{"text_format":"1","workbook":"xlsx","n_sheets":5,"sheets":["eplustbl","Resultats PMV","Synth & graphe PMV","Resultats PPD","Tableau BREEAM"],"not_rendered":{"charts":5,"images":0,"macros":1,"external_links":0,"defined_names":0,"comments":0,"pivot_tables":0},"unopened":[],"bounds":{"document_bytes":16777216,"sheet_cells":100000,"rows_first":2000,"rows_last":500,"rows_between":2000,"halvings":0,"cell_chars":16384,"cell_head_chars":4096},"cells_cut":0,"cells_raw":0,"read":"whole","date_system":"1900"}

{"sheet":"eplustbl","index":0,"n_rows":804,"n_cols":34,"rows_kept":804,"cut":false,"hidden":false,"merged":[]}
["Program Version:","EnergyPlus"," Version 8.9.0-40101eaafd"," YMD=2021.05.17 08:59"]
["Tabular Output Report in Format: ","Comma"]
[]
["Building:","Building"]
["Environment:","SITE (O1-O1:31-12) ** Gerona - ESP SWEC WMO#=081840"]
[]
["----------------------------------------------------------------------------------------------------"]
["REPORT:","Annual Building Utility Performance Summary"]
["FOR:","Entire Facility"]
["Values gathered over      8760.00 hours"]
[]
["Site and Source Energy"]
[]
[null,null,"Total Energy [kWh]","Energy Per Total Building Area [kWh/m2]","Energy Per Conditioned Building Area [kWh/m2]"]
[null,"Total Site Energy",9700.5499999999993,59.68,59.68]
[null,"Net Site Energy",9700.5499999999993,59.68,59.68]
[null,"Total Source Energy",28272.799999999999,173.93,173.93]
[null,"Net Source Energy",28272.799999999999,173.93,173.93]
[]
[]
["Site to Source Energy Conversion Factors"]
[]
[null,null,"Site=>Source Conversion Factor"]
[null,"Electricity",3.1669999999999998]
[null,"Natural Gas",1.0840000000000001]
[null,"District Cooling",1.056]
[null,"District Heating",3.613]
[null,"Steam",0.25]
[null,"Gasoline",1.05]
[null,"Diesel",1.05]
[null,"Coal",1.05]
[null,"Fuel Oil #1",1.05]
[null,"Fuel Oil #2",1.05]
[null,"Propane",1.05]
[null,"Other Fuel 1",1]
[null,"Other Fuel 2",1]
[]
[]
["Building Area"]
[]
[null,null,"Area [m2]"]
[null,"Total Building Area",162.56]
[null,"Net Conditioned Building Area",162.56]
[null,"Unconditioned Building Area",0]
[]
[]
["End Uses"]
[]
[null,null,"Electricity [kWh]","Natural Gas [kWh]","Additional Fuel [kWh]","District Cooling [kWh]","District Heating [kWh]","Water [m3]"]
[null,"Heating",7.17,1175.6400000000001,0,0,0,0]
[null,"Cooling",567.66,0,0,0,0,7.01]
[null,"Interior Lighting",4072.98,0,0,0,0,0]
[null,"Exterior Lighting",0,0,0,0,0,0]
[null,"Interior Equipment",2993.04,0,0,0,0,0]
[null,"Exterior Equipment",0,0,0,0,0,0]
[null,"Fans",881.57,0,0,0,0,0]
[null,"Pumps",2.5,0,0,0,0,0]
[null,"Heat Rejection",0,0,0,0,0,0]
[null,"Humidification",0,0,0,0,0,0]
[null,"Heat Recovery",0,0,0,0,0,0]
[null,"Water Systems",0,0,0,0,0,0]
[null,"Refrigeration",0,0,0,0,0,0]
[null,"Generators",0,0,0,0,0,0]
[]
[null,"Total End Uses",8524.92,1175.6400000000001,0,0,0,7.01]
["Note: Natural gas appears to be the principal heating source based on energy usage."]
[]
[]
["End Uses By Subcategory"]
[]
[null,null,"Subcategory","Electricity [kWh]","Natural Gas [kWh]","Additional Fuel [kWh]","District Cooling [kWh]","District Heating [kWh]","Water [m3]"]
[null,"Heating","Boiler",0,1175.6400000000001,0,0,0,0]
[null,null,"Boiler Parasitic",7.17,0,0,0,0,0]
[null,"Cooling","General",306.66000000000003,0,0,0,0,0]
[null,null,"Other",261,0,0,0,0,7.01]
[null,"Interior Lighting","General",4072.98,0,0,0,0,0]
[null,"Exterior Lighting","General",0,0,0,0,0,0]
[null,"Interior Equipment","ELECTRIC EQUIPMENT#Floor0:Zone1#05",1127.43,0,0,0,0,0]
[null,null,"ELECTRIC EQUIPMENT#Floor0:Zone2#05",367.57,0,0,0,0,0]
[null,null,"ELECTRIC EQUIPMENT#Floor1:Sanitaires#05",63.02,0,0,0,0,0]
[null,null,"ELECTRIC EQUIPMENT#Floor1:Zone1#05",1435.02,0,0,0,0,0]
[null,"Exterior Equipment","General",0,0,0,0,0,0]
[null,"Fans","General",881.57,0,0,0,0,0]
[null,"Pumps","General",2.5,0,0,0,0,0]
[null,"Heat Rejection","General",0,0,0,0,0,0]
[null,"Humidification","General",0,0,0,0,0,0]
[null,"Heat Recovery","General",0,0,0,0,0,0]
[null,"Water Systems","General",0,0,0,0,0,0]
[null,"Refrigeration","General",0,0,0,0,0,0]
[null,"Generators","General",0,0,0,0,0,0]
[]
[]
["Normalized Metrics"]
["Utility Use Per Conditioned Floor Area"]
[]
[null,null,"Electricity Intensity [kWh/m2]","Natural Gas Intensity [kWh/m2]","Additional Fuel Intensity [kWh/m2]","District Cooling Intensity [kWh/m2]","District Heating Intensity [kWh/m2]","Water Intensity [m3/m2]"]
[null,"Lighting",25.06,0,0,0,0,0]
[null,"HVAC",8.9700000000000006,7.23,0,0,0,0.04]
[null,"Other",18.41,0,0,0,0,0]
[null,"Total",52.44,7.23,0,0,0,0.04]
[]
[]
["Utility Use Per Total Floor Area"]
[]
[null,null,"Electricity Intensity [kWh/m2]","Natural Gas Intensity [kWh/m2]","Additional Fuel Intensity [kWh/m2]","District Cooling Intensity [kWh/m2]","District Heating Intensity [kWh/m2]","Water Intensity [m3/m2]"]
[null,"Lighting",25.06,0,0,0,0,0]
[null,"HVAC",8.9700000000000006,7.23,0,0,0,0.04]
[null,"Other",18.41,0,0,0,0,0]
[null,"Total",52.44,7.23,0,0,0,0.04]
[]
[]
["Electric Loads Satisfied"]
[]
[null,null,"Electricity [kWh]","Percent Electricity [%]"]
[null,"Fuel-Fired Power Generation",0,0]
[null,"High Temperature Geothermal*",0,0]
[null,"Photovoltaic Power",0,0]
[null,"Wind Power",0,0]
[null,"Power Conversion",0,0]
[null,"Net Decrease in On-Site Storage",0,0]
[null,"Total On-Site Electric Sources",0,0]
[]
[null,"Electricity Coming From Utility",8524.9159999999993,100]
[null,"Surplus Electricity Going To Utility",0,0]
[null,"Net Electricity From Utility",8524.9159999999993,100]
[]
[null,"Total On-Site and Utility Electric Sources",8524.9159999999993,100]
[null,"Total Electricity End Uses",8524.9159999999993,100]
[]
[]
["On-Site Thermal Sources"]
[]
[null,null,"Heat [kWh]","Percent Heat [%]"]
[null,"Water-Side Heat Recovery",0,0]
[null,"Air to Air Heat Recovery for Cooling",434.14,32.47]
[null,"Air to Air Heat Recovery for Heating",902.98,67.53]
[null,"High-Temperature Geothermal*",0,0]
[null,"Solar Water Thermal",0,0]
[null,"Solar Air Thermal",0,0]
[null,"Total On-Site Thermal Sources",1337.13,100]
[]
[]
["Water Source Summary"]
[]
[null,null,"Water [m3]","Percent Water [%]"]
[null,"Rainwater Collection",0,0]
[null,"Condensate Collection",0,0]
[null,"Groundwater Well",0,0]
[null,"Total On Site Water Sources",0,0]
[null,"-","-","-"]
[null,"Initial Storage",0,0]
[null,"Final Storage",0,0]
[null,"Change in Storage",0,0]
[null,"-","-","-"]
[null,"Water Supplied by Utility",7.01,100]
[null,"-","-","-"]
[null,"Total On Site"," Change in Storage"," and Utility Water Sources",7.01,100]
[null,"Total Water End Uses",7.01,100]
[]
[]
["Setpoint Not Met Criteria"]
[]
[null,null,"Degrees [deltaC]"]
[null,"Tolerance for Zone Heating Setpoint Not Met Time",1.1100000000000001]
[null,"Tolerance for Zone Cooling Setpoint Not Met Time",1.1100000000000001]
[]
[]
["Comfort and Setpoint Not Met Summary"]
[]
[null,null,"Facility [Hours]"]
[null,"Time Setpoint Not Met During Occupied Heating",675.5]
[null,"Time Setpoint Not Met During Occupied Cooling",0]
[null,"Time Not Comfortable Based on Simple ASHRAE 55-2004",2059.5]
[]
[]
["Note 1: An asterisk (*) indicates that the feature is not yet implemented."]
["----------------------------------------------------------------------------------------------------"]
["REPORT:","Component Sizing Summary"]
["FOR:","Entire Facility"]
["AirTerminal:SingleDuct:ConstantVolume:NoReheat"]
[]
[null,null,"Design Size Maximum Air Flow Rate [m3/s]"]
[null,"FLOOR0:ZONE1 AIR DIRECT",6.7967E-2]
[null,"FLOOR0:ZONE2 AIR DIRECT",2.2159000000000002E-2]
[null,"FLOOR1:ZONE1 AIR DIRECT",8.6511000000000005E-2]
["User-Specified values were used. Design Size values were used if no User-Specified values were provided."]
[]
[]
["AirLoopHVAC"]
[]
[null,null,"Sum of Air Terminal Maximum Heating Flow Rates [m3/s]","Sum of Air Terminal Minimum Heating Flow Rates [m3/s]","Sum of Air Terminal Maximum Flow Rates [m3/s]","Adjusted Heating Design Air Flow Rate [m3/s]","Adjusted Cooling Design Air Flow Rate [m3/s]","Adjusted Main Design Air Flow Rate [m3/s]","User Heating Air Flow Ratio []","Calculated Heating Air Flow Ratio []","Design Supply Air Flow Rate [m3/s]"]
[null,"DISTRIBUTION AIR",0,0,0.17663699999999999,0.17663699999999999,0.17663699999999999,0.17663699999999999,1,1,0.17663699999999999]
["User-Specified values were used. Design Size values were used if no User-Specified values were provided."]
[]
[]
["Fan:ConstantVolume"]
[]
[null,null,"Design Size Maximum Flow Rate [m3/s]"]
[null,"DISTRIBUTION AIR CTA VENTILATEUR EXTRACTION",0.17663699999999999]
[null,"DISTRIBUTION AIR CTA VENTILATEUR SOUFFLAGE",0.17663699999999999]
["User-Specified values were used. Design Size values were used if no User-Specified values were provided."]
[]
[]
["EvaporativeCooler:Direct:CelDekPad"]
[]
[null,null,"Design Size Celdek Pad Area [m2]","User-Specified Celdek Pad Area [m2]","Design Size Celdek Pad Depth [m]","User-Specified Celdek Pad Depth [m]"]
[null,"DISTRIBUTION AIR CTA BATTERIE EVAPORATIVE",5.8879000000000001E-2,0.6,0.17382,0.2]
["User-Specified values were used. Design Size values were used if no User-Specified values were provided."]
[]
[]
["Controller:OutdoorAir"]
[]
[null,null,"Maximum Outdoor Air Flow Rate [m3/s]","Minimum Outdoor Air Flow Rate [m3/s]"]
[null,"DISTRIBUTION AIR CTA CONTRôLEUR AIR EXTéRIEUR",0.17663699999999999,0.17663699999999999]
["User-Specified values were used. Design Size values were used if no User-Specified values were provided."]
[]
[]
["HeatExchanger:AirToAir:SensibleAndLatent"]
[]
[null,null,"Design Size Nominal Supply Air Flow Rate [m3/s]"]
[null,"DISTRIBUTION AIR CTA RéCUPéRATEUR DE CHALEUR",0.17663699999999999]
["User-Specified values were used. Design Size values were used if no User-Specified values were provided."]
[]
[]
["Coil:Cooling:Water"]
[]
[null,null,"Design Size Design Coil Load [W]","Design Size Design Water Flow Rate [m3/s]","Design Size Design Air Flow Rate [m3/s]","Design Size Design Inlet Air Temperature [C]","Design Size Design Inlet Water Temperature [C]","Design Size Design Outlet Air Temperature [C]","Design Size Design Inlet Air Humidity Ratio","Design Size Design Outlet Air Humidity Ratio"]
[null,"DISTRIBUTION AIR CTA BATTERIE FROIDE",4897.96,3.1799999999999998E-4,0.17663699999999999,34.6,6,18,1.0234E-2,1.0234E-2]
["User-Specified values were used. Design Size values were used if no User-Specified values were provided."]
[]
[]
["Coil:Heating:Water"]
[]
[null,null,"Design Size Rated Capacity [W]","Design Size Maximum Water Flow Rate [m3/s]","Design Size U-Factor Times Area Value [W/K]"]
[null,"DISTRIBUTION AIR CTA BATTERIE CHAUDE",3936.54,9.3999999999999994E-5,61.4]
["User-Specified values were used. Design Size values were used if no User-Specified values were provided."]
[]
[]
["Controller:WaterCoil"]
[]
[null,null,"Maximum Actuated Flow [m3/s]","Controller Convergence Tolerance"]
[null,"DISTRIBUTION AIR CTA BATTERIE FROIDE CONTROLLER",3.1799999999999998E-4,1E-3]
[null,"DISTRIBUTION AIR CTA BATTERIE CHAUDE CONTRôLEUR",9.3999999999999994E-5,1E-3]
["User-Specified values were used. Design Size values were used if no User-Specified values were provided."]
[]
[]
["PlantLoop"]
[]
[null,null,"Maximum Loop Flow Rate [m3/s]","Plant Loop Volume [m3]"]
[null,"BOUCLE EAU CHAUDE",9.3999999999999994E-5,1.1289E-2]
[null,"BOUCLE EAU GLACéE",3.1799999999999998E-4,3.8188E-2]
["User-Specified values were used. Design Size values were used if no User-Specified values were provided."]
[]
[]
["Pump:VariableSpeed"]
[]
[null,null,"Design Flow Rate [m3/s]","Design Power Consumption [W]"]
[null,"BOUCLE EAU CHAUDE PRODUCTION POMPE",9.3999999999999994E-5,2.68]
[null,"BOUCLE EAU GLACéE PRODUCTION POMPE",3.1799999999999998E-4,9.07]
["User-Specified values were used. Design Size values were used if no User-Specified values were provided."]
[]
[]
["Boiler:HotWater"]
[]
[null,null,"Design Size Nominal Capacity [W]","Design Size Design Water Flow Rate [m3/s]"]
[null,"CHAUDIèRE",3950.65,9.3999999999999994E-5]
["User-Specified values were used. Design Size values were used if no User-Specified values were provided."]
[]
[]
["Chiller:Electric:EIR"]
[]
[null,null,"Design Size Reference Chilled Water Flow Rate [m3/s]","Design Size Reference Capacity [W]","Design Size Reference Condenser Fluid Flow Rate  [m3/s]"]
[null,"GROUPE FROID",3.1799999999999998E-4,4898.13,0.55838699999999997]
["User-Specified values were used. Design Size values were used if no User-Specified values were provided."]
[]
[]
["----------------------------------------------------------------------------------------------------"]
["REPORT:","Adaptive Comfort Summary"]
["FOR:","Entire Facility"]
["Time Not Meeting the Adaptive Comfort Models during Occupied Hours"]
[]
[null,null,"ASHRAE55 90% Acceptability Limits [Hours]","ASHRAE55 80% Acceptability Limits  [Hours]","CEN15251 Category I Acceptability Limits [Hours]","CEN15251 Category II Acceptability Limits [Hours]","CEN15251 Category III Acceptability Limits [Hours]"]
[]
[]
["----------------------------------------------------------------------------------------------------"]
["REPORT:","HVAC Sizing Summary"]
["FOR:","Entire Facility"]
["Zone Sensible Cooling"]
[]
[null,null,"Calculated Design Load [W]","User Design Load [W]","User Design Load per Area [W/m2]","Calculated Design Air Flow [m3/s]","User Design Air Flow [m3/s]","Design Day Name","Date/Time Of Peak {TIMESTAMP}","Thermostat Setpoint Temperature at Peak Load [C]","Indoor Temperature at Peak Load [C]","Indoor Humidity Ratio at Peak Load [kgWater/kgAir]","Outdoor Temperature at Peak Load [C]","Outdoor Humidity Ratio at Peak Load [kgWater/kgAir]","Minimum Outdoor Air Flow Rate [m3/s]","Heat Gain Rate from DOAS [W]"]
[null,"FLOOR0:ZONE1",0,0,0,0,6.8000000000000005E-2,"SUMMER DESIGN DAY IN SITE (O1-O1:31-12) AOû",null,38.479999999999997,100,1.0000000000000001E-5,34.6,1.023E-2,6.8000000000000005E-2,-1010.34]
[null,"FLOOR0:ZONE2",0,0,0,0,2.1999999999999999E-2,"SUMMER DESIGN DAY IN SITE (O1-O1:31-12) AOû",null,38.19,100,1.0000000000000001E-5,34.6,1.023E-2,2.1999999999999999E-2,-324.20999999999998]
[null,"FLOOR1:SANITAIRES",0,0,0,0,4.0000000000000001E-3,"SUMMER DESIGN DAY IN SITE (O1-O1:31-12) AOû",null,39.69,100,1.0000000000000001E-5,34.6,1.023E-2,4.0000000000000001E-3,0]
[null,"FLOOR1:ZONE1",0,0,0,0,8.6999999999999994E-2,"SUMMER DESIGN DAY IN SITE (O1-O1:31-12) AOû",null,37.89,100,1.0000000000000001E-5,34.6,1.023E-2,8.6999999999999994E-2,-1234.58]
["The Design Load is the zone sensible load only. It does not include any system effects or ventilation loads."]
[]
[]
["Zone Sensible Heating"]
[]
[null,null,"Calculated Design Load [W]","User Design Load [W]","User Design Load per Area [W/m2]","Calculated Design Air Flow [m3/s]","User Design Air Flow [m3/s]","Design Day Name","Date/Time Of Peak {TIMESTAMP}","Thermostat Setpoint Temperature at Peak Load [C]","Indoor Temperature at Peak Load [C]","Indoor Humidity Ratio at Peak Load [kgWater/kgAir]","Outdoor Temperature at Peak Load [C]","Outdoor Humidity Ratio at Peak Load [kgWater/kgAir]","Minimum Outdoor Air Flow Rate [m3/s]","Heat Gain Rate from DOAS [W]"]
[null,"FLOOR0:ZONE1",2634.54,3293.17,53.78,7.8E-2,9.8000000000000004E-2,"WINTER DESIGN DAY IN SITE (O1-O1:31-12)",42006,22,22,3.5799999999999998E-3,-0.7,3.5799999999999998E-3,6.8000000000000005E-2,-61.87]
[null,"FLOOR0:ZONE2",1094.24,1367.8,68.52,3.3000000000000002E-2,4.1000000000000002E-2,"WINTER DESIGN DAY IN SITE (O1-O1:31-12)",42006,22,22,3.5799999999999998E-3,-0.7,3.5799999999999998E-3,2.1999999999999999E-2,-20.170000000000002]
[null,"FLOOR1:SANITAIRES",54.51,68.14,19.91,2E-3,4.0000000000000001E-3,"WINTER DESIGN DAY IN SITE (O1-O1:31-12)",42006,22,22,3.5799999999999998E-3,-0.7,3.5799999999999998E-3,4.0000000000000001E-3,0]
[null,"FLOOR1:ZONE1",2882.69,3603.37,46.23,8.5999999999999993E-2,0.107,"WINTER DESIGN DAY IN SITE (O1-O1:31-12)",42006,22,22,3.5799999999999998E-3,-0.7,3.5799999999999998E-3,8.6999999999999994E-2,-78.75]
["The Design Load is the zone sensible load only. It does not include any system effects or ventilation loads."]
[]
[]
["System Design Air Flow Rates"]
[]
[null,null,"Calculated cooling [m3/s]","User cooling [m3/s]","Calculated heating [m3/s]","User heating [m3/s]","Adjusted cooling [m3/s]","Adjusted heating [m3/s]","Adjusted main [m3/s]","Calculated Heating Air Flow Ratio []","User Heating Air Flow Ratio []"]
[null,"DISTRIBUTION AIR",0.18,0.18,0.25,0.18,0.17660000000000001,0.17660000000000001,0.17660000000000001,1,1]
[]
[]
["Plant Loop Coincident Design Fluid Flow Rate Adjustments"]
[]
[null,null,"Previous Design Volume Flow Rate [m3/s]","Algorithm Volume Flow Rate [m3/s]","Coincident Design Volume Flow Rate [m3/s]","Coincident Size Adjusted","Peak Sizing Period Name","Peak Day into Period {TIMESTAMP}[day]","Peak Hour Of Day {TIMESTAMP}[hr]","Peak Step Start Minute {TIMESTAMP}[min]"]
[null,"None"]
[]
[]
["Coil Sizing Summary"]
[]
[null,null,"Coil Type","HVAC Type","HVAC Name","Coil Final Gross Total Capacity [W]","Coil Final Gross Sensible Capacity [W]","Coil Final Reference Air Volume Flow Rate [m3/s]","Coil Final Reference Plant Fluid Volume Flow Rate [m3/s]","Coil U-value Times Area Value [W/K]","Design Day Name at Sensible Ideal Loads Peak","Date/Time at Sensible Ideal Loads Peak","Design Day Name at Air Flow Ideal Loads Peak","Date/Time at Air Flow Ideal Loads Peak","Coil Total Capacity at Ideal Loads Peak [W]","Coil Sensible Capacity at Ideal Loads Peak [W]","Coil Air Volume Flow Rate at Ideal Loads Peak [m3/s]","Coil Entering Air Drybulb at Ideal Loads Peak [C]","Coil Entering Air Wetbulb at Ideal Loads Peak [C]","Coil Entering Air Humidity Ratio at Ideal Loads Peak [KGWATER/KGDRYAIR]","Coil Leaving Air Drybulb at Ideal Loads Peak [C]","Coil Leaving Air Wetbulb at Ideal Loads Peak [C]","Coil Leaving Air Humidity Ratio at Ideal Loads Peak [C]","Outdoor Air Drybulb at Ideal Loads Peak [C]","Outdoor Air Humidity Ratio at Ideal Loads Peak [KGWATER/KGDRYAIR]","Outdoor Air Wetbulb at Ideal Loads Peak [C]","Outdoor Air Flow Percentage at Ideal Loads Peak [%]","Zone Air Drybulb at Ideal Loads Peak [C]","Zone Air Humidity Ratio at Ideal Loads Peak [KGWATER/KGDRYAIR]","Zone Air Relative Humidity at Ideal Loads Peak [%]","Zone Sensible Heat Gain at Ideal Loads Peak [W]","Zone Latent Heat Gain at Ideal Loads Peak [W]","Coil Total Capacity at Rating Conditions [W]","Coil Sensible Capacity at Rating Conditions [W]"]
[null,"DISTRIBUTION AIR CTA BATTERIE FROIDE","Coil:Cooling:Water","AirLoopHVAC","DISTRIBUTION AIR",4897.9620000000004,-999,0.17663699999999999,3.1823000000000002E-4,-999,"SUMMER DESIGN DAY IN SITE (O1-O1:31-12) AOû","2015-08-01T14:00:00","SUMMER DESIGN DAY IN SITE (O1-O1:31-12) JUIL","2015-07-01T00:30:00",4897.96,4897.96,0.17663699999999999,34.6,20.99,1.023379E-2,18,13.55,1.023379E-2,34.6,1.023379E-2,20.99,100,100,1.0000000000000001E-5,1.6000000000000001E-3,0,0,3724.08,3234.25]
[null,"DISTRIBUTION AIR CTA BATTERIE CHAUDE","Coil:Heating:Water","AirLoopHVAC","DISTRIBUTION AIR",3936.5369999999998,3936.5369999999998,0.17663699999999999,9.4069999999999999E-5,61.396000000000001,"WINTER DESIGN DAY IN SITE (O1-O1:31-12)",42006,"WINTER DESIGN DAY IN SITE (O1-O1:31-12)",42006,3206.45,3936.54,0.17663699999999999,-0.7,-0.75,3.5811800000000002E-3,18,13.55,8.0000000000000002E-3,-0.7,3.5811800000000002E-3,-0.75,100,22,3.5811800000000002E-3,21.5991,8264.34,0,3126.72,3126.72]
[]
[]
["----------------------------------------------------------------------------------------------------"]
["REPORT:","ZONE THERMAL COMFORT FANGER MODEL PMV [] [OFFICE_OPENOFF_OCC]"]
["FOR:","PEOPLE FLOOR0:ZONE1"]
["Values in table are in hours."]
[]
["Time Bin Results"]
[]
[null,null,"- [hr]","1 [hr]","2 [hr]","3 [hr]","4 [hr]","5 [hr]","6 [hr]","7 [hr]","8 [hr]","9 [hr]","10 [hr]","11 [hr]","12 [hr]","- [hr]","- [hr]"]
[null,"Interval Start","less than","-1.500<=","-1.250<=","-1.000<=","-0.750<=","-0.500<=","-0.250<=","0.0000<=","0.2500<=","0.5000<=","0.7500<=","1.0000<=","1.2500<=","equal to or more than","Row"]
[null,"Interval End",-1.5,"-1.250>","-1.000>","-0.750>","-0.500>","-0.250>","0.0000>","0.2500>","0.5000>","0.7500>","1.0000>","1.2500>","1.5000>",1.5,"Total"]
[null,"January",27,22.5,32.5,49,46,42.5,31,15,10.5,0,0,0,0,0,276]
[null,"February",10.5,15.5,25,28.5,37.5,42,33.5,22,15.5,9.5,0.5,0,0,0,240]
[null,"March",0,1,7.5,25,31.5,47,44,45.5,22,16.5,8.5,3.5,0,0,252]
[null,"April",19,23,31.5,31.5,36,31.5,23,24.5,18.5,9.5,8.5,5.5,2,0,264]
[null,"May",3.5,4.5,7.5,10.5,16.5,23.5,36.5,40,39.5,30,22,15.5,15,11.5,276]
[null,"June",0,0,0,0,0,0,1.5,7,16.5,32.5,41.5,37.5,32.5,71,240]
[null,"July",0,0,0,0,0,0,0,0,0,0,0.5,3,12,260.5,276]
[null,"August",0,0,0,0,0,0,0,0,0,0,0,4,17.5,242.5,264]
[null,"September",0,0,0,0,0,0,0,0,5,21,33.5,37,33.5,122,252]
[null,"October",0,0,0,0,0,1,5.5,13,36.5,33,29.5,45,48.5,64,276]
[null,"November",0,0.5,7,12,25.5,24.5,29.5,34,53,45,17.5,3.5,0,0,252]
[null,"December",27,26.5,27,45.5,59.5,44,27,5.5,2,0,0,0,0,0,264]
[null,"12:01 to  1:00 am",0,0,0,0,0,0,0,0,0,0,0,0,0,0,0]
[null," 1:01 to  2:00 am",0,0,0,0,0,0,0,0,0,0,0,0,0,0,0]
[null," 2:01 to  3:00 am",0,0,0,0,0,0,0,0,0,0,0,0,0,0,0]
[null," 3:01 to  4:00 am",0,0,0,0,0,0,0,0,0,0,0,0,0,0,0]
[null," 4:01 to  5:00 am",0,0,0,0,0,0,0,0,0,0,0,0,0,0,0]
[null," 5:01 to  6:00 am",0,0,0,0,0,0,0,0,0,0,0,0,0,0,0]
[null," 6:01 to  7:00 am",14.5,6.5,5,2,4.5,5.5,8.5,10.5,15,13.5,11,9,9,38.5,153]
[null," 7:01 to  8:00 am",42.5,29,29.5,16,14.5,7,9,10.5,18.5,13.5,13,9.5,8.5,40,261]
[null," 8:01 to  9:00 am",25.5,28.5,26,27,14,15.5,6.5,11.5,13.5,22.5,10,11.5,10.5,38.5,261]
[null," 9:01 to 10:00 am",4.5,24.5,28.5,27,27,14,12.5,9,11.5,16.5,20,7.5,12.5,46,261]
[null,"10:01 to 11:00 am",0,5,28.5,26.5,29,25.5,10,15.5,11.5,9,21.5,15,10.5,53.5,261]
[null,"11:01 to 12:00 pm",0,0,13.5,27.5,27.5,27.5,21.5,14,15.5,8.5,12.5,25.5,5,62.5,261]
[null,"12:01 to  1:00 pm",0,0,5,20.5,26,26.5,28,18,18,9.5,9.5,22.5,13.5,64,261]
[null," 1:01 to  2:00 pm",0,0,1.5,15,20.5,29.5,26,21.5,16.5,18,8,15,18.5,71,261]
[null," 2:01 to  3:00 pm",0,0,0,8,20,25.5,21,22.5,22.5,16.5,15.5,10,17,82.5,261]
[null," 3:01 to  4:00 pm",0,0,0,5,16.5,20,23,22,19,25,13.5,9,18.5,89.5,261]
[null," 4:01 to  5:00 pm",0,0,0,3,18.5,17,25,20,21,20.5,16,9.5,19.5,91,261]
[null," 5:01 to  6:00 pm",0,0,0.5,10,16.5,21,23,21,18.5,18,11,9.5,17.5,94.5,261]
[null," 6:01 to  7:00 pm",0,0,0,14.5,18,21.5,17.5,10.5,18,6,0.5,1,0.5,0,108]
[null," 7:01 to  8:00 pm",0,0,0,0,0,0,0,0,0,0,0,0,0,0,0]
[null," 8:01 to  9:00 pm",0,0,0,0,0,0,0,0,0,0,0,0,0,0,0]
[null," 9:01 to 10:00 pm",0,0,0,0,0,0,0,0,0,0,0,0,0,0,0]
[null,"10:01 to 11:00 pm",0,0,0,0,0,0,0,0,0,0,0,0,0,0,0]
[null,"11:01 to 12:00 am",0,0,0,0,0,0,0,0,0,0,0,0,0,0,0]
[null,"Total",87,93.5,138,202,252.5,256,231.5,206.5,219,197,162,154.5,161,771.5,3132]
[]
[]
["Statistics"]
[]
[null,null,"Statistic"]
[null,"Minimum",-2.2000000000000002]
[null,"Mean minus two standard deviations",-2]
[null,"Mean",0.51]
[null,"Mean plus two standard deviations",3.02]
[null,"Maximum",4.3899999999999997]
[null,"Standard deviation",1.26]
[]
[]
["----------------------------------------------------------------------------------------------------"]
["REPORT:","ZONE THERMAL COMFORT FANGER MODEL PPD [%] [OFFICE_OPENOFF_OCC]"]
["FOR:","PEOPLE FLOOR0:ZONE1"]
["Values in table are in hours."]
[]
["Time Bin Results"]
[]
[null,null,"- [hr]","1 [hr]","2 [hr]","3 [hr]","4 [hr]","5 [hr]","6 [hr]","7 [hr]","- [hr]","- [hr]"]
[null,"Interval Start","less than","5.01<=","10.01<=","15.01<=","20.01<=","25.01<=","30.01<=","35.01<=","equal to or more than","Row"]
[null,"Interval End",5.01,"10.01>","15.01>","20.01>","25.01>","30.01>","35.01>","40.01>",40.01,"Total"]
[null,"January",1.5,94.5,37.5,26.5,27.5,20,12.5,12,44,276]
[null,"February",2,109.5,36,23.5,16.5,11,9.5,9,23,240]
[null,"March",7,149.5,38,28,15,7.5,4.5,2,0.5,252]
[null,"April",3,91.5,37.5,25.5,20,20,16,9.5,41,264]
[null,"May",4,133,40,21.5,16.5,14.5,7.5,8.5,30.5,276]
[null,"June",0,23.5,25,24.5,20.5,21,14.5,17.5,93.5,240]
[null,"July",0,0,0,0,0,1.5,1,3,270.5,276]
[null,"August",0,0,0,0,0,0.5,2,3,258.5,264]
[null,"September",0,4.5,16,18,16.5,19,14,14.5,149.5,252]
[null,"October",1,53,27,19,17.5,15.5,18.5,22,102.5,276]
[null,"November",4.5,132.5,59.5,28,15,7.5,3.5,1,0.5,252]
[null,"December",2,75,42,38,24.5,14,10,11,47.5,264]
[null,"12:01 to  1:00 am",0,0,0,0,0,0,0,0,0,0]
[null," 1:01 to  2:00 am",0,0,0,0,0,0,0,0,0,0]
[null," 2:01 to  3:00 am",0,0,0,0,0,0,0,0,0,0]
[null," 3:01 to  4:00 am",0,0,0,0,0,0,0,0,0,0]
[null," 4:01 to  5:00 am",0,0,0,0,0,0,0,0,0,0]
[null," 5:01 to  6:00 am",0,0,0,0,0,0,0,0,0,0]
[null," 6:01 to  7:00 am",0.5,38,16,10.5,4,7,5.5,5.5,66,153]
[null," 7:01 to  8:00 am",0,43.5,22,17,16.5,17.5,16,14,114.5,261]
[null," 8:01 to  9:00 am",2,43,31,22,16.5,20.5,14,15,97,261]
[null," 9:01 to 10:00 am",1,45.5,28,35.5,26.5,13.5,17.5,17,76.5,261]
[null,"10:01 to 11:00 am",1.5,59.5,30.5,24,28.5,24.5,15.5,10.5,66.5,261]
[null,"11:01 to 12:00 pm",2,75.5,28.5,23,19.5,23.5,15.5,8.5,65,261]
[null,"12:01 to  1:00 pm",1,87,31.5,16,18.5,14,10,8.5,74.5,261]
[null," 1:01 to  2:00 pm",3,88,28,22.5,12,7,6,10,84.5,261]
[null," 2:01 to  3:00 pm",2.5,88,29.5,18.5,11,5,3,7,96.5,261]
[null," 3:01 to  4:00 pm",3,78.5,35,15.5,10,6.5,4.5,2.5,105.5,261]
[null," 4:01 to  5:00 pm",2.5,78,28.5,20,11,6,3,6.5,105.5,261]
[null," 5:01 to  6:00 pm",2.5,80.5,28,18,8.5,4,2.5,8,109,261]
[null," 6:01 to  7:00 pm",3.5,61.5,22,10,7,3,0.5,0,0.5,108]
[null," 7:01 to  8:00 pm",0,0,0,0,0,0,0,0,0,0]
[null," 8:01 to  9:00 pm",0,0,0,0,0,0,0,0,0,0]
[null," 9:01 to 10:00 pm",0,0,0,0,0,0,0,0,0,0]
[null,"10:01 to 11:00 pm",0,0,0,0,0,0,0,0,0,0]
[null,"11:01 to 12:00 am",0,0,0,0,0,0,0,0,0,0]
[null,"Total",25,866.5,358.5,252.5,189.5,152,113.5,113,1061.5,3132]
[]
[]
["Statistics"]
[]
[null,null,"Statistic"]
[null,"Minimum",5]
[null,"Mean minus two standard deviations",-26.3]
[null,"Mean",34.35]
[null,"Mean plus two standard deviations",95.04]
[null,"Maximum",100]
[null,"Standard deviation",30.34]
[]
[]
["----------------------------------------------------------------------------------------------------"]
["REPORT:","ZONE THERMAL COMFORT FANGER MODEL PMV [] [OFFICE_OPENOFF_OCC]"]
["FOR:","PEOPLE FLOOR0:ZONE2"]
["Values in table are in hours."]
[]
["Time Bin Results"]
[]
[null,null,"- [hr]","1 [hr]","2 [hr]","3 [hr]","4 [hr]","5 [hr]","6 [hr]","7 [hr]","8 [hr]","9 [hr]","10 [hr]","11 [hr]","12 [hr]","- [hr]","- [hr]"]
[null,"Interval Start","less than","-1.500<=","-1.250<=","-1.000<=","-0.750<=","-0.500<=","-0.250<=","0.0000<=","0.2500<=","0.5000<=","0.7500<=","1.0000<=","1.2500<=","equal to or more than","Row"]
[null,"Interval End",-1.5,"-1.250>","-1.000>","-0.750>","-0.500>","-0.250>","0.0000>","0.2500>","0.5000>","0.7500>","1.0000>","1.2500>","1.5000>",1.5,"Total"]
[null,"January",40.5,33,61,65,44,23.5,9,0,0,0,0,0,0,0,276]
[null,"February",18.5,22.5,28.5,47,50,48,21.5,4,0,0,0,0,0,0,240]
[null,"March",0,2,12.5,28.5,36.5,57.5,68.5,37,8.5,1,0,0,0,0,252]
[null,"April",25.5,22.5,27,29.5,43.5,55,40,15,5,1,0,0,0,0,264]
[null,"May",3.5,5.5,7.5,10,16,28.5,36,32,39.5,39.5,34.5,18,4.5,1,276]
[null,"June",0,0,0,0,0,0,1.5,6.5,12,36,34,49,41,60,240]
[null,"July",0,0,0,0,0,0,0,0,0,0,0,2.5,8.5,265,276]
[null,"August",0,0,0,0,0,0,0,0,0,0,0,5,16,243,264]
[null,"September",0,0,0,0,0,0,0,0,5.5,27,35,40,55,89.5,252]
[null,"October",0,0,0,0,0,1.5,9.5,22.5,41.5,42,64,67,17.5,10.5,276]
[null,"November",0,4,10,19,34.5,38.5,54,67.5,24,0.5,0,0,0,0,252]
[null,"December",42,29.5,53.5,86.5,45,7.5,0,0,0,0,0,0,0,0,264]
[null,"12:01 to  1:00 am",0,0,0,0,0,0,0,0,0,0,0,0,0,0,0]
[null," 1:01 to  2:00 am",0,0,0,0,0,0,0,0,0,0,0,0,0,0,0]
[null," 2:01 to  3:00 am",0,0,0,0,0,0,0,0,0,0,0,0,0,0,0]
[null," 3:01 to  4:00 am",0,0,0,0,0,0,0,0,0,0,0,0,0,0,0]
[null," 4:01 to  5:00 am",0,0,0,0,0,0,0,0,0,0,0,0,0,0,0]
[null," 5:01 to  6:00 am",0,0,0,0,0,0,0,0,0,0,0,0,0,0,0]
[null," 6:01 to  7:00 am",19,5.5,1.5,2,4.5,6,11,11.5,11.5,18,9.5,7,9.5,36.5,153]
[null," 7:01 to  8:00 am",55,28.5,24.5,16,9.5,4.5,10.5,12.5,14.5,15.5,13.5,7,7.5,42,261]
[null," 8:01 to  9:00 am",38.5,23.5,23.5,23,21,7,5,11,14,21.5,9.5,10.5,11.5,41.5,261]
[null," 9:01 to 10:00 am",16,26.5,24,23.5,22.5,17,8,8.5,9,19,16.5,8.5,13.5,48.5,261]
[null,"10:01 to 11:00 am",1.5,22.5,26,19.5,25,24.5,13,9,5.5,15.5,20,13.5,12,53.5,261]
[null,"11:01 to 12:00 pm",0,10,28.5,22.5,27,24,18.5,8.5,7,14,19,15,11.5,55.5,261]
[null,"12:01 to  1:00 pm",0,2.5,28,23,28.5,26.5,19.5,11.5,6.5,11,19,17,12.5,55.5,261]
[null," 1:01 to  2:00 pm",0,0,21,28.5,20.5,29.5,23.5,12.5,9,10,15,18.5,13.5,59.5,261]
[null," 2:01 to  3:00 pm",0,0,8,29.5,21.5,31.5,25.5,14,13,7.5,13,19.5,12.5,65.5,261]
[null," 3:01 to  4:00 pm",0,0,2.5,24.5,25.5,23,31.5,21.5,13.5,4.5,11.5,21,13.5,68.5,261]
[null," 4:01 to  5:00 pm",0,0,1.5,20.5,25,23,31.5,25,14.5,4.5,12,22,12.5,69,261]
[null," 5:01 to  6:00 pm",0,0,4,25,23.5,23,28,23,13,5.5,8.5,21.5,12.5,73.5,261]
[null," 6:01 to  7:00 pm",0,0,7,28,15.5,20.5,14.5,16,5,0.5,0.5,0.5,0,0,108]
[null," 7:01 to  8:00 pm",0,0,0,0,0,0,0,0,0,0,0,0,0,0,0]
[null," 8:01 to  9:00 pm",0,0,0,0,0,0,0,0,0,0,0,0,0,0,0]
[null," 9:01 to 10:00 pm",0,0,0,0,0,0,0,0,0,0,0,0,0,0,0]
[null,"10:01 to 11:00 pm",0,0,0,0,0,0,0,0,0,0,0,0,0,0,0]
[null,"11:01 to 12:00 am",0,0,0,0,0,0,0,0,0,0,0,0,0,0,0]
[null,"Total",130,119,200,285.5,269.5,260,240,184.5,136,147,167.5,181.5,142.5,669,3132]
[]
[]
["Statistics"]
[]
[null,null,"Statistic"]
[null,"Minimum",-2.2999999999999998]
[null,"Mean minus two standard deviations",-2.2000000000000002]
[null,"Mean",0.34]
[null,"Mean plus two standard deviations",2.89]
[null,"Maximum",3.77]
[null,"Standard deviation",1.28]
[]
[]
["----------------------------------------------------------------------------------------------------"]
["REPORT:","ZONE THERMAL COMFORT FANGER MODEL PPD [%] [OFFICE_OPENOFF_OCC]"]
["FOR:","PEOPLE FLOOR0:ZONE2"]
["Values in table are in hours."]
[]
["Time Bin Results"]
[]
[null,null,"- [hr]","1 [hr]","2 [hr]","3 [hr]","4 [hr]","5 [hr]","6 [hr]","7 [hr]","- [hr]","- [hr]"]
[null,"Interval Start","less than","5.01<=","10.01<=","15.01<=","20.01<=","25.01<=","30.01<=","35.01<=","equal to or more than","Row"]
[null,"Interval End",5.01,"10.01>","15.01>","20.01>","25.01>","30.01>","35.01>","40.01>",40.01,"Total"]
[null,"January",0,30.5,32,36,34.5,32.5,26.5,19.5,64.5,276]
[null,"February",2,70,37.5,33,24.5,14.5,12.5,9.5,36.5,240]
[null,"March",9,161,33,15.5,16,8,7,1.5,1,252]
[null,"April",3,110.5,35,22.5,14.5,15,9,13,41.5,264]
[null,"May",3,132,42,32.5,24,14,10.5,5.5,12.5,276]
[null,"June",0.5,18.5,27.5,21.5,17.5,20.5,20.5,19.5,94,240]
[null,"July",0,0,0,0,0,1,1,2,272,276]
[null,"August",0,0,0,0,0,2,1.5,5,255.5,264]
[null,"September",0,5.5,19,19.5,20,13,19,19.5,136.5,252]
[null,"October",1.5,71.5,31.5,33.5,36,30.5,32.5,16,23,276]
[null,"November",7.5,175,27,18.5,9,4.5,4.5,4,2,252]
[null,"December",0,6,32.5,46,44,33.5,22,13.5,66.5,264]
[null,"12:01 to  1:00 am",0,0,0,0,0,0,0,0,0,0]
[null," 1:01 to  2:00 am",0,0,0,0,0,0,0,0,0,0]
[null," 2:01 to  3:00 am",0,0,0,0,0,0,0,0,0,0]
[null," 3:01 to  4:00 am",0,0,0,0,0,0,0,0,0,0]
[null," 4:01 to  5:00 am",0,0,0,0,0,0,0,0,0,0]
[null," 5:01 to  6:00 am",0,0,0,0,0,0,0,0,0,0]
[null," 6:01 to  7:00 am",1.5,38.5,18,8.5,7,2.5,4,5.5,67.5,153]
[null," 7:01 to  8:00 am",1,40,18,19,16,12,14.5,17,123.5,261]
[null," 8:01 to  9:00 am",0.5,36.5,34.5,16.5,18.5,16,18.5,12.5,107.5,261]
[null," 9:01 to 10:00 am",0.5,40.5,30,29.5,21.5,14.5,11.5,15.5,97.5,261]
[null,"10:01 to 11:00 am",2,49,29,26.5,21,19,17,13.5,84,261]
[null,"11:01 to 12:00 pm",0.5,56.5,33,23.5,21.5,20,21,13,72,261]
[null,"12:01 to  1:00 pm",2,60.5,32.5,20,25,24,19.5,10.5,67,261]
[null," 1:01 to  2:00 pm",1.5,72,25.5,19,24.5,25,17,6.5,70,261]
[null," 2:01 to  3:00 pm",2.5,80.5,20,24,23,17.5,11,6.5,76,261]
[null," 3:01 to  4:00 pm",4.5,84.5,18.5,28.5,15.5,13,9,9,78.5,261]
[null," 4:01 to  5:00 pm",5,84.5,24,25.5,15,8.5,9,12,77.5,261]
[null," 5:01 to  6:00 pm",4,82.5,20,24,17,11.5,10.5,7,84.5,261]
[null," 6:01 to  7:00 pm",1,55,14,14,14.5,5.5,4,0,0,108]
[null," 7:01 to  8:00 pm",0,0,0,0,0,0,0,0,0,0]
[null," 8:01 to  9:00 pm",0,0,0,0,0,0,0,0,0,0]
[null," 9:01 to 10:00 pm",0,0,0,0,0,0,0,0,0,0]
[null,"10:01 to 11:00 pm",0,0,0,0,0,0,0,0,0,0]
[null,"11:01 to 12:00 am",0,0,0,0,0,0,0,0,0,0]
[null,"Total",26.5,780.5,317,278.5,240,189,166.5,128.5,1005.5,3132]
[]
[]
["Statistics"]
[]
[null,null,"Statistic"]
[null,"Minimum",5]
[null,"Mean minus two standard deviations",-24.4]
[null,"Mean",34.06]
[null,"Mean plus two standard deviations",92.46]
[null,"Maximum",99.99]
[null,"Standard deviation",29.2]
[]
[]
["----------------------------------------------------------------------------------------------------"]
["REPORT:","ZONE THERMAL COMFORT FANGER MODEL PMV [] [OFFICE_OPENOFF_OCC]"]
["FOR:","PEOPLE FLOOR1:SANITAIRES"]
["Values in table are in hours."]
[]
["Time Bin Results"]
[]
[null,null,"- [hr]","1 [hr]","2 [hr]","3 [hr]","4 [hr]","5 [hr]","6 [hr]","7 [hr]","8 [hr]","9 [hr]","10 [hr]","11 [hr]","12 [hr]","- [hr]","- [hr]"]
[null,"Interval Start","less than","-1.500<=","-1.250<=","-1.000<=","-0.750<=","-0.500<=","-0.250<=","0.0000<=","0.2500<=","0.5000<=","0.7500<=","1.0000<=","1.2500<=","equal to or more than","Row"]
[null,"Interval End",-1.5,"-1.250>","-1.000>","-0.750>","-0.500>","-0.250>","0.0000>","0.2500>","0.5000>","0.7500>","1.0000>","1.2500>","1.5000>",1.5,"Total"]
[null,"January",21.5,25.5,48,74.5,51.5,33.5,20.5,1,0,0,0,0,0,0,276]
[null,"February",8,14.5,31,45,58,47,28,8.5,0,0,0,0,0,0,240]
[null,"March",0,0,2.5,18.5,40.5,63.5,70.5,44.5,9,3,0,0,0,0,252]
[null,"April",5.5,17.5,33,53.5,55,46.5,30.5,14.5,6.5,1.5,0,0,0,0,264]
[null,"May",1,3.5,6.5,13.5,18.5,14.5,33.5,48.5,57,42.5,23.5,10.5,2.5,0.5,276]
[null,"June",0,0,0,0,0,0,0,1.5,11.5,22.5,42.5,61.5,45.5,55,240]
[null,"July",0,0,0,0,0,0,0,0,0,0,0,0,5,271,276]
[null,"August",0,0,0,0,0,0,0,0,0,0,0,0,2,262,264]
[null,"September",0,0,0,0,0,0,0,0,0,2.5,24.5,57,66,102,252]
[null,"October",0,0,0,0,0,0,1,10,28,59,54.5,56.5,48.5,18.5,276]
[null,"November",0,0,1.5,11.5,22.5,44,51.5,50,53.5,17.5,0,0,0,0,252]
[null,"December",17,34,47,77,70,18,1,0,0,0,0,0,0,0,264]
[null,"12:01 to  1:00 am",0,0,0,0,0,0,0,0,0,0,0,0,0,0,0]
[null," 1:01 to  2:00 am",0,0,0,0,0,0,0,0,0,0,0,0,0,0,0]
[null," 2:01 to  3:00 am",0,0,0,0,0,0,0,0,0,0,0,0,0,0,0]
[null," 3:01 to  4:00 am",0,0,0,0,0,0,0,0,0,0,0,0,0,0,0]
[null," 4:01 to  5:00 am",0,0,0,0,0,0,0,0,0,0,0,0,0,0,0]
[null," 5:01 to  6:00 am",0,0,0,0,0,0,0,0,0,0,0,0,0,0,0]
[null," 6:01 to  7:00 am",5.5,9.5,7,4,3,4,6,10,10.5,12.5,12.5,12.5,9,47,153]
[null," 7:01 to  8:00 am",30,24.5,26.5,29,14,10.5,7.5,6.5,14.5,12.5,12.5,15.5,8,49.5,261]
[null," 8:01 to  9:00 am",13,29.5,26.5,29.5,18,15,9.5,7.5,13.5,13,16,14.5,8,47.5,261]
[null," 9:01 to 10:00 am",4,20.5,30.5,27.5,29,15,9.5,7.5,14,12,16.5,14.5,9.5,51,261]
[null,"10:01 to 11:00 am",0.5,8.5,29.5,29,31,17.5,17,8.5,9,13,16,15.5,13,53,261]
[null,"11:01 to 12:00 pm",0,2.5,24,29.5,27,29,15.5,11,9,13.5,12,21,12,55,261]
[null,"12:01 to  1:00 pm",0,0,15.5,33.5,24.5,30.5,17.5,15.5,9,13.5,11.5,21,9.5,59.5,261]
[null," 1:01 to  2:00 pm",0,0,8,31,27,32,19,18,8,12.5,9.5,20.5,13.5,62,261]
[null," 2:01 to  3:00 pm",0,0,2,27.5,27,28.5,25.5,16,13,10.5,10.5,17,17.5,66,261]
[null," 3:01 to  4:00 pm",0,0,0,16.5,30,25,31,17.5,17,9.5,10,13,22,69.5,261]
[null," 4:01 to  5:00 pm",0,0,0,9,32,23,29,23,17.5,11,10.5,8,26,72,261]
[null," 5:01 to  6:00 pm",0,0,0,10,30.5,22,27.5,24,17.5,12,7.5,11.5,21.5,77,261]
[null," 6:01 to  7:00 pm",0,0,0,17.5,23,15,22,13.5,13,3,0,1,0,0,108]
[null," 7:01 to  8:00 pm",0,0,0,0,0,0,0,0,0,0,0,0,0,0,0]
[null," 8:01 to  9:00 pm",0,0,0,0,0,0,0,0,0,0,0,0,0,0,0]
[null," 9:01 to 10:00 pm",0,0,0,0,0,0,0,0,0,0,0,0,0,0,0]
[null,"10:01 to 11:00 pm",0,0,0,0,0,0,0,0,0,0,0,0,0,0,0]
[null,"11:01 to 12:00 am",0,0,0,0,0,0,0,0,0,0,0,0,0,0,0]
[null,"Total",53,95,169.5,293.5,316,267,236.5,178.5,165.5,148.5,145,185.5,169.5,709,3132]
[]
[]
["Statistics"]
[]
[null,null,"Statistic"]
[null,"Minimum",-2]
[null,"Mean minus two standard deviations",-2]
[null,"Mean",0.43]
[null,"Mean plus two standard deviations",2.89]
[null,"Maximum",3.67]
[null,"Standard deviation",1.23]
[]
[]
["----------------------------------------------------------------------------------------------------"]
["REPORT:","ZONE THERMAL COMFORT FANGER MODEL PPD [%] [OFFICE_OPENOFF_OCC]"]
["FOR:","PEOPLE FLOOR1:SANITAIRES"]
["Values in table are in hours."]
[]
["Time Bin Results"]
[]
[null,null,"- [hr]","1 [hr]","2 [hr]","3 [hr]","4 [hr]","5 [hr]","6 [hr]","7 [hr]","- [hr]","- [hr]"]
[null,"Interval Start","less than","5.01<=","10.01<=","15.01<=","20.01<=","25.01<=","30.01<=","35.01<=","equal to or more than","Row"]
[null,"Interval End",5.01,"10.01>","15.01>","20.01>","25.01>","30.01>","35.01>","40.01>",40.01,"Total"]
[null,"January",0.5,52,42.5,42,38.5,28,17,13.5,42,276]
[null,"February",2,80.5,44,32,23.5,17.5,15,7,18.5,240]
[null,"March",10,176.5,36.5,18,6.5,4,0.5,0,0,252]
[null,"April",3.5,90.5,45,35.5,29,17,12.5,12,19,264]
[null,"May",4.5,145,55.5,24,19,12,6,4.5,5.5,276]
[null,"June",0,11.5,16,21,26,25.5,27,20.5,92.5,240]
[null,"July",0,0,0,0,0,0,0,0.5,275.5,276]
[null,"August",0,0,0,0,0,0,0,0,264,264]
[null,"September",0,0,0.5,7,15,19,30,25.5,155,252]
[null,"October",0,36.5,50,27,32,25,22.5,28,55,276]
[null,"November",5.5,189.5,37.5,10.5,6.5,2,0.5,0,0,252]
[null,"December",0,18,47.5,56.5,38,26,18.5,15.5,44,264]
[null,"12:01 to  1:00 am",0,0,0,0,0,0,0,0,0,0]
[null," 1:01 to  2:00 am",0,0,0,0,0,0,0,0,0,0]
[null," 2:01 to  3:00 am",0,0,0,0,0,0,0,0,0,0]
[null," 3:01 to  4:00 am",0,0,0,0,0,0,0,0,0,0]
[null," 4:01 to  5:00 am",0,0,0,0,0,0,0,0,0,0]
[null," 5:01 to  6:00 am",0,0,0,0,0,0,0,0,0,0]
[null," 6:01 to  7:00 am",0,29.5,11,10.5,10,8,10,6.5,67.5,153]
[null," 7:01 to  8:00 am",0,36.5,22,17.5,25,21,17.5,16.5,105,261]
[null," 8:01 to  9:00 am",2,42.5,22.5,27,24.5,16,20,16,90.5,261]
[null," 9:01 to 10:00 am",1.5,43,30.5,26.5,24.5,23,17,16,79,261]
[null,"10:01 to 11:00 am",0.5,50,38.5,21.5,23,28,17,13.5,69,261]
[null,"11:01 to 12:00 pm",1.5,62,34,20.5,23,24,21,7.5,67.5,261]
[null,"12:01 to  1:00 pm",2.5,67,33,21.5,25,23,16,5.5,67.5,261]
[null," 1:01 to  2:00 pm",2,73.5,29.5,23.5,25,14.5,13.5,8.5,71,261]
[null," 2:01 to  3:00 pm",2,80,30,25.5,19.5,7,6,10.5,80.5,261]
[null," 3:01 to  4:00 pm",3.5,85.5,31,24.5,11.5,4.5,4,8.5,88,261]
[null," 4:01 to  5:00 pm",5,85,34.5,20.5,10,2.5,3.5,10,90,261]
[null," 5:01 to  6:00 pm",4.5,83.5,37,19,6,4.5,4,7,95.5,261]
[null," 6:01 to  7:00 pm",1,62,21.5,15.5,7,0,0,1,0,108]
[null," 7:01 to  8:00 pm",0,0,0,0,0,0,0,0,0,0]
[null," 8:01 to  9:00 pm",0,0,0,0,0,0,0,0,0,0]
[null," 9:01 to 10:00 pm",0,0,0,0,0,0,0,0,0,0]
[null,"10:01 to 11:00 pm",0,0,0,0,0,0,0,0,0,0]
[null,"11:01 to 12:00 am",0,0,0,0,0,0,0,0,0,0]
[null,"Total",26,800,375,273.5,234,176,149.5,127,971,3132]
[]
[]
["Statistics"]
[]
[null,null,"Statistic"]
[null,"Minimum",5]
[null,"Mean minus two standard deviations",-25.3]
[null,"Mean",33.450000000000003]
[null,"Mean plus two standard deviations",92.15]
[null,"Maximum",99.99]
[null,"Standard deviation",29.35]
[]
[]
["----------------------------------------------------------------------------------------------------"]
["REPORT:","ZONE THERMAL COMFORT FANGER MODEL PMV [] [OFFICE_OPENOFF_OCC]"]
["FOR:","PEOPLE FLOOR1:ZONE1"]
["Values in table are in hours."]
[]
["Time Bin Results"]
[]
[null,null,"- [hr]","1 [hr]","2 [hr]","3 [hr]","4 [hr]","5 [hr]","6 [hr]","7 [hr]","8 [hr]","9 [hr]","10 [hr]","11 [hr]","12 [hr]","- [hr]","- [hr]"]
[null,"Interval Start","less than","-1.500<=","-1.250<=","-1.000<=","-0.750<=","-0.500<=","-0.250<=","0.0000<=","0.2500<=","0.5000<=","0.7500<=","1.0000<=","1.2500<=","equal to or more than","Row"]
[null,"Interval End",-1.5,"-1.250>","-1.000>","-0.750>","-0.500>","-0.250>","0.0000>","0.2500>","0.5000>","0.7500>","1.0000>","1.2500>","1.5000>",1.5,"Total"]
[null,"January",26.5,27.5,62,68.5,48.5,27,16,0,0,0,0,0,0,0,276]
[null,"February",10,17,32.5,54.5,53,46.5,21.5,5,0,0,0,0,0,0,240]
[null,"March",0,0,4.5,26,41.5,73,66,31,7.5,2.5,0,0,0,0,252]
[null,"April",12.5,26,40.5,52,51,35.5,25.5,13,6.5,1.5,0,0,0,0,264]
[null,"May",1,6.5,9.5,11,18,20.5,45,46.5,53.5,31,20,10,3,0.5,276]
[null,"June",0,0,0,0,0,0,0,4,17,34,47,54.5,35.5,48,240]
[null,"July",0,0,0,0,0,0,0,0,0,0,0,1.5,7.5,267,276]
[null,"August",0,0,0,0,0,0,0,0,0,0,0,1,10.5,252.5,264]
[null,"September",0,0,0,0,0,0,0,0,0,13,39.5,56,57,86.5,252]
[null,"October",0,0,0,0,0,0,3,15,41.5,48.5,54.5,62.5,35,16,276]
[null,"November",0,0,4.5,14.5,27.5,44.5,52,56.5,45,7.5,0,0,0,0,252]
[null,"December",24,34,52,90.5,53,10.5,0,0,0,0,0,0,0,0,264]
[null,"12:01 to  1:00 am",0,0,0,0,0,0,0,0,0,0,0,0,0,0,0]
[null," 1:01 to  2:00 am",0,0,0,0,0,0,0,0,0,0,0,0,0,0,0]
[null," 2:01 to  3:00 am",0,0,0,0,0,0,0,0,0,0,0,0,0,0,0]
[null," 3:01 to  4:00 am",0,0,0,0,0,0,0,0,0,0,0,0,0,0,0]
[null," 4:01 to  5:00 am",0,0,0,0,0,0,0,0,0,0,0,0,0,0,0]
[null," 5:01 to  6:00 am",0,0,0,0,0,0,0,0,0,0,0,0,0,0,0]
[null," 6:01 to  7:00 am",9.5,9,6,2.5,2.5,4,8.5,10.5,11.5,11,14.5,11,6.5,46,153]
[null," 7:01 to  8:00 am",38,29,26.5,20.5,16,7,7.5,10.5,13.5,15.5,12.5,11.5,10,43,261]
[null," 8:01 to  9:00 am",21.5,30.5,26,26.5,17,14,8,9.5,14.5,18,13.5,10.5,8,43.5,261]
[null," 9:01 to 10:00 am",4.5,26.5,29.5,31,21.5,17.5,9,8,14,13,19,13,8.5,46,261]
[null,"10:01 to 11:00 am",0.5,13,32,28,30,16,16,8,14,10,22,9.5,12.5,49.5,261]
[null,"11:01 to 12:00 pm",0,3,32,28,27.5,22.5,18.5,10.5,11,9,20.5,14.5,11,53,261]
[null,"12:01 to  1:00 pm",0,0,23.5,30.5,25.5,30.5,14,15,12,10,16.5,17.5,11.5,54.5,261]
[null," 1:01 to  2:00 pm",0,0,13.5,31,26.5,31.5,17.5,16,11,10,11,22.5,8.5,62,261]
[null," 2:01 to  3:00 pm",0,0,4,29.5,27,27,26.5,14.5,12,11.5,8.5,22,14,64.5,261]
[null," 3:01 to  4:00 pm",0,0,1,21.5,27.5,24,32.5,15.5,16.5,10,9,16,21.5,66,261]
[null," 4:01 to  5:00 pm",0,0,1,20.5,27,21.5,30.5,17.5,20,9,8,19.5,19,67.5,261]
[null," 5:01 to  6:00 pm",0,0,3.5,23,25.5,24,24,22,14,9.5,6,17,17.5,75,261]
[null," 6:01 to  7:00 pm",0,0,7,24.5,19,18,16.5,13.5,7,1.5,0,1,0,0,108]
[null," 7:01 to  8:00 pm",0,0,0,0,0,0,0,0,0,0,0,0,0,0,0]
[null," 8:01 to  9:00 pm",0,0,0,0,0,0,0,0,0,0,0,0,0,0,0]
[null," 9:01 to 10:00 pm",0,0,0,0,0,0,0,0,0,0,0,0,0,0,0]
[null,"10:01 to 11:00 pm",0,0,0,0,0,0,0,0,0,0,0,0,0,0,0]
[null,"11:01 to 12:00 am",0,0,0,0,0,0,0,0,0,0,0,0,0,0,0]
[null,"Total",74,111,205.5,317,292.5,257.5,229,171,171,138,161,185.5,148.5,670.5,3132]
[]
[]
["Statistics"]
[]
[null,null,"Statistic"]
[null,"Minimum",-2.2000000000000002]
[null,"Mean minus two standard deviations",-2.1]
[null,"Mean",0.35]
[null,"Mean plus two standard deviations",2.82]
[null,"Maximum",3.91]
[null,"Standard deviation",1.23]
[]
[]
["----------------------------------------------------------------------------------------------------"]
["REPORT:","ZONE THERMAL COMFORT FANGER MODEL PPD [%] [OFFICE_OPENOFF_OCC]"]
["FOR:","PEOPLE FLOOR1:ZONE1"]
["Values in table are in hours."]
[]
["Time Bin Results"]
[]
[null,null,"- [hr]","1 [hr]","2 [hr]","3 [hr]","4 [hr]","5 [hr]","6 [hr]","7 [hr]","- [hr]","- [hr]"]
[null,"Interval Start","less than","5.01<=","10.01<=","15.01<=","20.01<=","25.01<=","30.01<=","35.01<=","equal to or more than","Row"]
[null,"Interval End",5.01,"10.01>","15.01>","20.01>","25.01>","30.01>","35.01>","40.01>",40.01,"Total"]
[null,"January",0,41.5,37,36.5,38.5,34,25,16,47.5,276]
[null,"February",3,68,42.5,35.5,27,17,12,12.5,22.5,240]
[null,"March",8,164.5,39,24,8,6,2,0.5,0,252]
[null,"April",3.5,75,42.5,30.5,30.5,19.5,19,10,33.5,264]
[null,"May",7,155.5,39.5,25,17,12.5,6.5,4,9,276]
[null,"June",0,20.5,24,26,25,27,23.5,19,75,240]
[null,"July",0,0,0,0,0,0,1,1,274,276]
[null,"August",0,0,0,0,0,0,0.5,0.5,263,264]
[null,"September",0,0,8.5,13.5,25,27,21.5,25,131.5,252]
[null,"October",2,56,40.5,27.5,30,25.5,29,25.5,40,276]
[null,"November",5.5,190.5,30,13.5,6.5,4,1.5,0.5,0,252]
[null,"December",0,9.5,33,54,49.5,34.5,17.5,16,50,264]
[null,"12:01 to  1:00 am",0,0,0,0,0,0,0,0,0,0]
[null," 1:01 to  2:00 am",0,0,0,0,0,0,0,0,0,0]
[null," 2:01 to  3:00 am",0,0,0,0,0,0,0,0,0,0]
[null," 3:01 to  4:00 am",0,0,0,0,0,0,0,0,0,0]
[null," 4:01 to  5:00 am",0,0,0,0,0,0,0,0,0,0]
[null," 5:01 to  6:00 am",0,0,0,0,0,0,0,0,0,0]
[null," 6:01 to  7:00 am",2,32,11,8.5,10.5,8,5.5,6.5,69,153]
[null," 7:01 to  8:00 am",1.5,36,26,16,18,19.5,17.5,13.5,113,261]
[null," 8:01 to  9:00 am",0,44.5,24.5,25.5,22.5,17.5,16,14.5,96,261]
[null," 9:01 to 10:00 am",0.5,47.5,23,31,27,16,19,18,79,261]
[null,"10:01 to 11:00 am",1,51,33,25,28.5,20,19,19.5,64,261]
[null,"11:01 to 12:00 pm",2,56.5,32.5,24,29,26.5,17,9,64.5,261]
[null,"12:01 to  1:00 pm",1.5,68.5,29,21,25,32,14.5,6.5,63,261]
[null," 1:01 to  2:00 pm",0.5,74.5,29,19.5,24.5,25,14,6,68,261]
[null," 2:01 to  3:00 pm",2,77.5,29,26.5,18.5,12.5,9.5,11.5,74,261]
[null," 3:01 to  4:00 pm",4.5,81,30,25,14,7,8,9,82.5,261]
[null," 4:01 to  5:00 pm",5.5,82.5,29,23.5,13,6,9.5,8.5,83.5,261]
[null," 5:01 to  6:00 pm",5,77.5,25.5,25,13,10,8,7.5,89.5,261]
[null," 6:01 to  7:00 pm",3,52,15,15.5,13.5,7,1.5,0.5,0,108]
[null," 7:01 to  8:00 pm",0,0,0,0,0,0,0,0,0,0]
[null," 8:01 to  9:00 pm",0,0,0,0,0,0,0,0,0,0]
[null," 9:01 to 10:00 pm",0,0,0,0,0,0,0,0,0,0]
[null,"10:01 to 11:00 pm",0,0,0,0,0,0,0,0,0,0]
[null,"11:01 to 12:00 am",0,0,0,0,0,0,0,0,0,0]
[null,"Total",29,781,336.5,286,257,207,159,130.5,946,3132]
[]
[]
["Statistics"]
[]
[null,null,"Statistic"]
[null,"Minimum",5]
[null,"Mean minus two standard deviations",-23.9]
[null,"Mean",32.99]
[null,"Mean plus two standard deviations",89.86]
[null,"Maximum",100]
[null,"Standard deviation",28.43]

{"sheet":"Resultats PMV","index":1,"n_rows":200,"n_cols":50,"rows_kept":200,"cut":false,"hidden":false,"merged":[[4,5,4,14],[4,22,4,31],[4,39,4,48],[0,4,0,14],[1,4,1,14]]}
[null,"1ère colonne",3,null,"Il s'agit du numéro de l'entête de colonne du tableau ZONE THERMAL COMFORT FANGER MODEL PMV qui correspond à la valeur minimale de PMV. Par défaut la colonne de PMV min à -1 est \"3 [hr]\". Le numéro est la valeur n de l'entête de colonne \"n [hr]\". Saisissez 0 pour partir de la colonne \"- [hr]\"."]
[null,"Dernière colonne",10,null,"Le numéro de la dernière colonne à reporter ci-dessous. Le numéro de l'entête de colonne est le chiffre n dans l'intitulé de ZONE THERMAL COMFORT FANGER MODEL PMV : n [hr]. Saisissez \"-\" pour la colonne \"equal to or more than\".\nAttention les tableaux ci-dessous ne sont pas automatiquement adaptés au nombre de tranches souhaitées, il faut les dimensionner manuellement et modifier la macro !! Conserver 8 tranches uniquement si vous ne voulez pas modifier la macro (dernière colonne - 1ère +1 = 8)."]
[]
[]
[null,null,null,null,null,"Totaux",null,null,null,null,null,null,null,null,null,"Total annuel",null,null,null,null,null,null,"Totaux",null,null,null,null,null,null,null,null,null,"Total annuel",null,null,null,null,null,null,"Totaux",null,null,null,null,null,null,null,null,null,"Total annuel"]
["Année",null,null,null,null,{"$f":"SUM(F9:F502)","v":1475.5},{"$f":"SUM(G9:G502)","v":1098},1130.5,1040.5,937,740.5,691.5,630.5,635.5,4148.5,{"$f":"SUM(F6:O6)","v":12528},null,"Eté",null,null,null,null,{"$f":"SUM(W9:W502)","v":60},{"$f":"SUM(X9:X502)","v":45},69,87,154,186,257,331.5,398,3644.5,{"$f":"SUM(W6:AF6)","v":5232},null,"Hiver",null,null,null,null,{"$f":"SUM(AN9:AN502)","v":1415.5},{"$f":"SUM(AO9:AO502)","v":1053},1061.5,953.5,783,554.5,434.5,299,237.5,504,{"$f":"SUM(AN6:AW6)","v":7296}]
[null,null,null,null,null,"Inférieur à","-1.000<=","-0.750<=","-0.500<=","-0.250<=","0.0000<=","0.2500<=","0.5000<=","0.7500<=","Supérieur à",null,null,null,null,null,null,null,"Inférieur à","-1.000<=","-0.750<=","-0.500<=","-0.250<=","0.0000<=","0.2500<=","0.5000<=","0.7500<=","Supérieur à",null,null,null,null,null,null,null,"Inférieur à","-1.000<=","-0.750<=","-0.500<=","-0.250<=","0.0000<=","0.2500<=","0.5000<=","0.7500<=","Supérieur à"]
["Nom Zone","Moyenne","Ecart Type","Min","Max","-1.000>","-0.750>","-0.500>","-0.250>","0.0000>","0.2500>","0.5000>","0.7500>","1.0000>","1.0000<=",null,null,"Nom Zone","Moyenne","Ecart Type","Min","Max","-1.000>","-0.750>","-0.500>","-0.250>","0.0000>","0.2500>","0.5000>","0.7500>","1.0000>","1.0000<=",null,null,"Nom Zone","Moyenne","Ecart Type","Min","Max","-1.000>","-0.750>","-0.500>","-0.250>","0.0000>","0.2500>","0.5000>","0.7500>","1.0000>","1.0000<="]
["FLOOR0:ZONE1",0.51,1.26,-2.2000000000000002,4.3899999999999997,318.5,202,252.5,256,231.5,206.5,219,197,162,1087,{"$f":"SUM(F9:O9)","v":3132},null,"FLOOR0:ZONE1",0,0,-10,1.5,15.5,10.5,16.5,23.5,38,47,61,83.5,97.5,915,{"$f":"SUM(W9:AF9)","v":1308},null,"FLOOR0:ZONE1",0,0,-10,1.5,303,191.5,236,232.5,193.5,159.5,158,113.5,64.5,172,{"$f":"SUM(AN9:AW9)","v":1824}]
["FLOOR0:ZONE2",0.34,1.28,-2.2999999999999998,3.77,449,285.5,269.5,260,240,184.5,136,147,167.5,993,{"$f":"SUM(F10:O10)","v":3132},null,"FLOOR0:ZONE2",0,0,-10,1.5,16.5,10,16,28.5,37.5,38.5,57,102.5,103.5,898,{"$f":"SUM(W10:AF10)","v":1308},null,"FLOOR0:ZONE2",0,0,-10,1.5,432.5,275.5,253.5,231.5,202.5,146,79,44.5,64,95,{"$f":"SUM(AN10:AW10)","v":1824}]
["FLOOR1:SANITAIRES",0.43,1.23,-2,3.67,317.5,293.5,316,267,236.5,178.5,165.5,148.5,145,1064,3132,null,"FLOOR1:SANITAIRES",0,0,-10,1.5,11,13.5,18.5,14.5,33.5,50,68.5,67.5,90.5,940.5,1308,null,"FLOOR1:SANITAIRES",0,0,-10,1.5,306.5,280,297.5,252.5,203,128.5,97,81,54.5,123.5,1824]
["FLOOR1:ZONE1",0.35,1.23,-2.2000000000000002,3.91,390.5,317,292.5,257.5,229,171,171,138,161,1004.5,3132,null,"FLOOR1:ZONE1",0,0,-10,1.5,17,11,18,20.5,45,50.5,70.5,78,106.5,891,1308,null,"FLOOR1:ZONE1",0,0,-10,1.5,373.5,306,274.5,237,184,120.5,100.5,60,54.5,113.5,1824]
[null,null,null,null,null,null,null,null,null,null,null,null,null,null,null,0,null,null,null,null,null,null,null,null,null,null,null,null,null,null,null,null,0,null,null,null,null,null,null,null,null,null,null,null,null,null,null,null,null,0]
[null,null,null,null,null,null,null,null,null,null,null,null,null,null,null,0,null,null,null,null,null,null,null,null,null,null,null,null,null,null,null,null,0,null,null,null,null,null,null,null,null,null,null,null,null,null,null,null,null,0]
[null,null,null,null,null,null,null,null,null,null,null,null,null,null,null,0,null,null,null,null,null,null,null,null,null,null,null,null,null,null,null,null,0,null,null,null,null,null,null,null,null,null,null,null,null,null,null,null,null,0]
[null,null,null,null,null,null,null,null,null,null,null,null,null,null,null,0,null,null,null,null,null,null,null,null,null,null,null,null,null,null,null,null,0,null,null,null,null,null,null,null,null,null,null,null,null,null,null,null,null,0]
[null,null,null,null,null,null,null,null,null,null,null,null,null,null,null,0,null,null,null,null,null,null,null,null,null,null,null,null,null,null,null,null,0,null,null,null,null,null,null,null,null,null,null,null,null,null,null,null,null,0]
[null,null,null,null,null,null,null,null,null,null,null,null,null,null,null,0,null,null,null,null,null,null,null,null,null,null,null,null,null,null,null,null,0,null,null,null,null,null,null,null,null,null,null,null,null,null,null,null,null,0]
[null,null,null,null,null,null,null,null,null,null,null,null,null,null,null,0,null,null,null,null,null,null,null,null,null,null,null,null,null,null,null,null,0,null,null,null,null,null,null,null,null,null,null,null,null,null,null,null,null,0]
[null,null,null,null,null,null,null,null,null,null,null,null,null,null,null,0,null,null,null,null,null,null,null,null,null,null,null,null,null,null,null,null,0,null,null,null,null,null,null,null,null,null,null,null,null,null,null,null,null,0]
[null,null,null,null,null,null,null,null,null,null,null,null,null,null,null,0,null,null,null,null,null,null,null,null,null,null,null,null,null,null,null,null,0,null,null,null,null,null,null,null,null,null,null,null,null,null,null,null,null,0]
[null,null,null,null,null,null,null,null,null,null,null,null,null,null,null,0,null,null,null,null,null,null,null,null,null,null,null,null,null,null,null,null,0,null,null,null,null,null,null,null,null,null,null,null,null,null,null,null,null,0]
[null,null,null,null,null,null,null,null,null,null,null,null,null,null,null,0,null,null,null,null,null,null,null,null,null,null,null,null,null,null,null,null,0,null,null,null,null,null,null,null,null,null,null,null,null,null,null,null,null,0]
[null,null,null,null,null,null,null,null,null,null,null,null,null,null,null,0,null,null,null,null,null,null,null,null,null,null,null,null,null,null,null,null,0,null,null,null,null,null,null,null,null,null,null,null,null,null,null,null,null,0]
[null,null,null,null,null,null,null,null,null,null,null,null,null,null,null,0,null,null,null,null,null,null,null,null,null,null,null,null,null,null,null,null,0,null,null,null,null,null,null,null,null,null,null,null,null,null,null,null,null,0]
[null,null,null,null,null,null,null,null,null,null,null,null,null,null,null,0,null,null,null,null,null,null,null,null,null,null,null,null,null,null,null,null,0,null,null,null,null,null,null,null,null,null,null,null,null,null,null,null,null,0]
[null,null,null,null,null,null,null,null,null,null,null,null,null,null,null,0,null,null,null,null,null,null,null,null,null,null,null,null,null,null,null,null,0,null,null,null,null,null,null,null,null,null,null,null,null,null,null,null,null,0]
[null,null,null,null,null,null,null,null,null,null,null,null,null,null,null,0,null,null,null,null,null,null,null,null,null,null,null,null,null,null,null,null,0,null,null,null,null,null,null,null,null,null,null,null,null,null,null,null,null,0]
[null,null,null,null,null,null,null,null,null,null,null,null,null,null,null,0,null,null,null,null,null,null,null,null,null,null,null,null,null,null,null,null,0,null,null,null,null,null,null,null,null,null,null,null,null,null,null,null,null,0]
[null,null,null,null,null,null,null,null,null,null,null,null,null,null,null,0,null,null,null,null,null,null,null,null,null,null,null,null,null,null,null,null,0,null,null,null,null,null,null,null,null,null,null,null,null,null,null,null,null,0]
[null,null,null,null,null,null,null,null,null,null,null,null,null,null,null,0,null,null,null,null,null,null,null,null,null,null,null,null,null,null,null,null,0,null,null,null,null,null,null,null,null,null,null,null,null,null,null,null,null,0]
[null,null,null,null,null,null,null,null,null,null,null,null,null,null,null,0,null,null,null,null,null,null,null,null,null,null,null,null,null,null,null,null,0,null,null,null,null,null,null,null,null,null,null,null,null,null,null,null,null,0]
[null,null,null,null,null,null,null,null,null,null,null,null,null,null,null,0,null,null,null,null,null,null,null,null,null,null,null,null,null,null,null,null,0,null,null,null,null,null,null,null,null,null,null,null,null,null,null,null,null,0]
[null,null,null,null,null,null,null,null,null,null,null,null,null,null,null,0,null,null,null,null,null,null,null,null,null,null,null,null,null,null,null,null,0,null,null,null,null,null,null,null,null,null,null,null,null,null,null,null,null,0]
[null,null,null,null,null,null,null,null,null,null,null,null,null,null,null,0,null,null,null,null,null,null,null,null,null,null,null,null,null,null,null,null,0,null,null,null,null,null,null,null,null,null,null,null,null,null,null,null,null,0]
[null,null,null,null,null,null,null,null,null,null,null,null,null,null,null,0,null,null,null,null,null,null,null,null,null,null,null,null,null,null,null,null,0,null,null,null,null,null,null,null,null,null,null,null,null,null,null,null,null,0]
[null,null,null,null,null,null,null,null,null,null,null,null,null,null,null,0,null,null,null,null,null,null,null,null,null,null,null,null,null,null,null,null,0,null,null,null,null,null,null,null,null,null,null,null,null,null,null,null,null,0]
[null,null,null,null,null,null,null,null,null,null,null,null,null,null,null,0,null,null,null,null,null,null,null,null,null,null,null,null,null,null,null,null,0,null,null,null,null,null,null,null,null,null,null,null,null,null,null,null,null,0]
[null,null,null,null,null,null,null,null,null,null,null,null,null,null,null,0,null,null,null,null,null,null,null,null,null,null,null,null,null,null,null,null,0,null,null,null,null,null,null,null,null,null,null,null,null,null,null,null,null,0]
[null,null,null,null,null,null,null,null,null,null,null,null,null,null,null,0,null,null,null,null,null,null,null,null,null,null,null,null,null,null,null,null,0,null,null,null,null,null,null,null,null,null,null,null,null,null,null,null,null,0]
[null,null,null,null,null,null,null,null,null,null,null,null,null,null,null,0,null,null,null,null,null,null,null,null,null,null,null,null,null,null,null,null,0,null,null,null,null,null,null,null,null,null,null,null,null,null,null,null,null,0]
[null,null,null,null,null,null,null,null,null,null,null,null,null,null,null,0,null,null,null,null,null,null,null,null,null,null,null,null,null,null,null,null,0,null,null,null,null,null,null,null,null,null,null,null,null,null,null,null,null,0]
[null,null,null,null,null,null,null,null,null,null,null,null,null,null,null,0,null,null,null,null,null,null,null,null,null,null,null,null,null,null,null,null,0,null,null,null,null,null,null,null,null,null,null,null,null,null,null,null,null,0]
[null,null,null,null,null,null,null,null,null,null,null,null,null,null,null,0,null,null,null,null,null,null,null,null,null,null,null,null,null,null,null,null,0,null,null,null,null,null,null,null,null,null,null,null,null,null,null,null,null,0]
[null,null,null,null,null,null,null,null,null,null,null,null,null,null,null,0,null,null,null,null,null,null,null,null,null,null,null,null,null,null,null,null,0,null,null,null,null,null,null,null,null,null,null,null,null,null,null,null,null,0]
[null,null,null,null,null,null,null,null,null,null,null,null,null,null,null,0,null,null,null,null,null,null,null,null,null,null,null,null,null,null,null,null,0,null,null,null,null,null,null,null,null,null,null,null,null,null,null,null,null,0]
[null,null,null,null,null,null,null,null,null,null,null,null,null,null,null,0,null,null,null,null,null,null,null,null,null,null,null,null,null,null,null,null,0,null,null,null,null,null,null,null,null,null,null,null,null,null,null,null,null,0]
[null,null,null,null,null,null,null,null,null,null,null,null,null,null,null,0,null,null,null,null,null,null,null,null,null,null,null,null,null,null,null,null,0,null,null,null,null,null,null,null,null,null,null,null,null,null,null,null,null,0]
[null,null,null,null,null,null,null,null,null,null,null,null,null,null,null,0,null,null,null,null,null,null,null,null,null,null,null,null,null,null,null,null,0,null,null,null,null,null,null,null,null,null,null,null,null,null,null,null,null,0]
[null,null,null,null,null,null,null,null,null,null,null,null,null,null,null,0,null,null,null,null,null,null,null,null,null,null,null,null,null,null,null,null,0,null,null,null,null,null,null,null,null,null,null,null,null,null,null,null,null,0]
[null,null,null,null,null,null,null,null,null,null,null,null,null,null,null,0,null,null,null,null,null,null,null,null,null,null,null,null,null,null,null,null,0,null,null,null,null,null,null,null,null,null,null,null,null,null,null,null,null,0]
[null,null,null,null,null,null,null,null,null,null,null,null,null,null,null,0,null,null,null,null,null,null,null,null,null,null,null,null,null,null,null,null,0,null,null,null,null,null,null,null,null,null,null,null,null,null,null,null,null,0]
[null,null,null,null,null,null,null,null,null,null,null,null,null,null,null,0,null,null,null,null,null,null,null,null,null,null,null,null,null,null,null,null,0,null,null,null,null,null,null,null,null,null,null,null,null,null,null,null,null,0]
[null,null,null,null,null,null,null,null,null,null,null,null,null,null,null,0,null,null,null,null,null,null,null,null,null,null,null,null,null,null,null,null,0,null,null,null,null,null,null,null,null,null,null,null,null,null,null,null,null,0]
[null,null,null,null,null,null,null,null,null,null,null,null,null,null,null,0,null,null,null,null,null,null,null,null,null,null,null,null,null,null,null,null,0,null,null,null,null,null,null,null,null,null,null,null,null,null,null,null,null,0]
[null,null,null,null,null,null,null,null,null,null,null,null,null,null,null,0,null,null,null,null,null,null,null,null,null,null,null,null,null,null,null,null,0,null,null,null,null,null,null,null,null,null,null,null,null,null,null,null,null,0]
[null,null,null,null,null,null,null,null,null,null,null,null,null,null,null,0,null,null,null,null,null,null,null,null,null,null,null,null,null,null,null,null,0,null,null,null,null,null,null,null,null,null,null,null,null,null,null,null,null,0]
[null,null,null,null,null,null,null,null,null,null,null,null,null,null,null,0,null,null,null,null,null,null,null,null,null,null,null,null,null,null,null,null,0,null,null,null,null,null,null,null,null,null,null,null,null,null,null,null,null,0]
[null,null,null,null,null,null,null,null,null,null,null,null,null,null,null,0,null,null,null,null,null,null,null,null,null,null,null,null,null,null,null,null,0,null,null,null,null,null,null,null,null,null,null,null,null,null,null,null,null,0]
[null,null,null,null,null,null,null,null,null,null,null,null,null,null,null,0,null,null,null,null,null,null,null,null,null,null,null,null,null,null,null,null,0,null,null,null,null,null,null,null,null,null,null,null,null,null,null,null,null,0]
[null,null,null,null,null,null,null,null,null,null,null,null,null,null,null,0,null,null,null,null,null,null,null,null,null,null,null,null,null,null,null,null,0,null,null,null,null,null,null,null,null,null,null,null,null,null,null,null,null,0]
[null,null,null,null,null,null,null,null,null,null,null,null,null,null,null,0,null,null,null,null,null,null,null,null,null,null,null,null,null,null,null,null,0,null,null,null,null,null,null,null,null,null,null,null,null,null,null,null,null,0]
[null,null,null,null,null,null,null,null,null,null,null,null,null,null,null,0,null,null,null,null,null,null,null,null,null,null,null,null,null,null,null,null,0,null,null,null,null,null,null,null,null,null,null,null,null,null,null,null,null,0]
[null,null,null,null,null,null,null,null,null,null,null,null,null,null,null,0,null,null,null,null,null,null,null,null,null,null,null,null,null,null,null,null,0,null,null,null,null,null,null,null,null,null,null,null,null,null,null,null,null,0]
[null,null,null,null,null,null,null,null,null,null,null,null,null,null,null,0,null,null,null,null,null,null,null,null,null,null,null,null,null,null,null,null,0,null,null,null,null,null,null,null,null,null,null,null,null,null,null,null,null,0]
[null,null,null,null,null,null,null,null,null,null,null,null,null,null,null,0,null,null,null,null,null,null,null,null,null,null,null,null,null,null,null,null,0,null,null,null,null,null,null,null,null,null,null,null,null,null,null,null,null,0]
[null,null,null,null,null,null,null,null,null,null,null,null,null,null,null,0,null,null,null,null,null,null,null,null,null,null,null,null,null,null,null,null,0,null,null,null,null,null,null,null,null,null,null,null,null,null,null,null,null,0]
[null,null,null,null,null,null,null,null,null,null,null,null,null,null,null,0,null,null,null,null,null,null,null,null,null,null,null,null,null,null,null,null,0,null,null,null,null,null,null,null,null,null,null,null,null,null,null,null,null,0]
[null,null,null,null,null,null,null,null,null,null,null,null,null,null,null,0,null,null,null,null,null,null,null,null,null,null,null,null,null,null,null,null,0,null,null,null,null,null,null,null,null,null,null,null,null,null,null,null,null,0]
[null,null,null,null,null,null,null,null,null,null,null,null,null,null,null,0,null,null,null,null,null,null,null,null,null,null,null,null,null,null,null,null,0,null,null,null,null,null,null,null,null,null,null,null,null,null,null,null,null,0]
[null,null,null,null,null,null,null,null,null,null,null,null,null,null,null,0,null,null,null,null,null,null,null,null,null,null,null,null,null,null,null,null,0,null,null,null,null,null,null,null,null,null,null,null,null,null,null,null,null,0]
[null,null,null,null,null,null,null,null,null,null,null,null,null,null,null,0,null,null,null,null,null,null,null,null,null,null,null,null,null,null,null,null,0,null,null,null,null,null,null,null,null,null,null,null,null,null,null,null,null,0]
[null,null,null,null,null,null,null,null,null,null,null,null,null,null,null,0,null,null,null,null,null,null,null,null,null,null,null,null,null,null,null,null,0,null,null,null,null,null,null,null,null,null,null,null,null,null,null,null,null,0]
[null,null,null,null,null,null,null,null,null,null,null,null,null,null,null,{"$f":"SUM(F74:O74)","v":0},null,null,null,null,null,null,null,null,null,null,null,null,null,null,null,null,{"$f":"SUM(W74:AF74)","v":0},null,null,null,null,null,null,null,null,null,null,null,null,null,null,null,null,{"$f":"SUM(AN74:AW74)","v":0}]
[null,null,null,null,null,null,null,null,null,null,null,null,null,null,null,0,null,null,null,null,null,null,null,null,null,null,null,null,null,null,null,null,0,null,null,null,null,null,null,null,null,null,null,null,null,null,null,null,null,0]
[null,null,null,null,null,null,null,null,null,null,null,null,null,null,null,0,null,null,null,null,null,null,null,null,null,null,null,null,null,null,null,null,0,null,null,null,null,null,null,null,null,null,null,null,null,null,null,null,null,0]
[null,null,null,null,null,null,null,null,null,null,null,null,null,null,null,0,null,null,null,null,null,null,null,null,null,null,null,null,null,null,null,null,0,null,null,null,null,null,null,null,null,null,null,null,null,null,null,null,null,0]
[null,null,null,null,null,null,null,null,null,null,null,null,null,null,null,0,null,null,null,null,null,null,null,null,null,null,null,null,null,null,null,null,0,null,null,null,null,null,null,null,null,null,null,null,null,null,null,null,null,0]
[null,null,null,null,null,null,null,null,null,null,null,null,null,null,null,0,null,null,null,null,null,null,null,null,null,null,null,null,null,null,null,null,0,null,null,null,null,null,null,null,null,null,null,null,null,null,null,null,null,0]
[null,null,null,null,null,null,null,null,null,null,null,null,null,null,null,0,null,null,null,null,null,null,null,null,null,null,null,null,null,null,null,null,0,null,null,null,null,null,null,null,null,null,null,null,null,null,null,null,null,0]
[null,null,null,null,null,null,null,null,null,null,null,null,null,null,null,0,null,null,null,null,null,null,null,null,null,null,null,null,null,null,null,null,0,null,null,null,null,null,null,null,null,null,null,null,null,null,null,null,null,0]
[null,null,null,null,null,null,null,null,null,null,null,null,null,null,null,0,null,null,null,null,null,null,null,null,null,null,null,null,null,null,null,null,0,null,null,null,null,null,null,null,null,null,null,null,null,null,null,null,null,0]
[null,null,null,null,null,null,null,null,null,null,null,null,null,null,null,0,null,null,null,null,null,null,null,null,null,null,null,null,null,null,null,null,0,null,null,null,null,null,null,null,null,null,null,null,null,null,null,null,null,0]
[null,null,null,null,null,null,null,null,null,null,null,null,null,null,null,0,null,null,null,null,null,null,null,null,null,null,null,null,null,null,null,null,0,null,null,null,null,null,null,null,null,null,null,null,null,null,null,null,null,0]
[null,null,null,null,null,null,null,null,null,null,null,null,null,null,null,0,null,null,null,null,null,null,null,null,null,null,null,null,null,null,null,null,0,null,null,null,null,null,null,null,null,null,null,null,null,null,null,null,null,0]
[null,null,null,null,null,null,null,null,null,null,null,null,null,null,null,0,null,null,null,null,null,null,null,null,null,null,null,null,null,null,null,null,0,null,null,null,null,null,null,null,null,null,null,null,null,null,null,null,null,0]
[null,null,null,null,null,null,null,null,null,null,null,null,null,null,null,0,null,null,null,null,null,null,null,null,null,null,null,null,null,null,null,null,0,null,null,null,null,null,null,null,null,null,null,null,null,null,null,null,null,0]
[null,null,null,null,null,null,null,null,null,null,null,null,null,null,null,0,null,null,null,null,null,null,null,null,null,null,null,null,null,null,null,null,0,null,null,null,null,null,null,null,null,null,null,null,null,null,null,null,null,0]
[null,null,null,null,null,null,null,null,null,null,null,null,null,null,null,0,null,null,null,null,null,null,null,null,null,null,null,null,null,null,null,null,0,null,null,null,null,null,null,null,null,null,null,null,null,null,null,null,null,0]
[null,null,null,null,null,null,null,null,null,null,null,null,null,null,null,0,null,null,null,null,null,null,null,null,null,null,null,null,null,null,null,null,0,null,null,null,null,null,null,null,null,null,null,null,null,null,null,null,null,0]
[null,null,null,null,null,null,null,null,null,null,null,null,null,null,null,0,null,null,null,null,null,null,null,null,null,null,null,null,null,null,null,null,0,null,null,null,null,null,null,null,null,null,null,null,null,null,null,null,null,0]
[null,null,null,null,null,null,null,null,null,null,null,null,null,null,null,0,null,null,null,null,null,null,null,null,null,null,null,null,null,null,null,null,0,null,null,null,null,null,null,null,null,null,null,null,null,null,null,null,null,0]
[null,null,null,null,null,null,null,null,null,null,null,null,null,null,null,0,null,null,null,null,null,null,null,null,null,null,null,null,null,null,null,null,0,null,null,null,null,null,null,null,null,null,null,null,null,null,null,null,null,0]
[null,null,null,null,null,null,null,null,null,null,null,null,null,null,null,0,null,null,null,null,null,null,null,null,null,null,null,null,null,null,null,null,0,null,null,null,null,null,null,null,null,null,null,null,null,null,null,null,null,0]
[null,null,null,null,null,null,null,null,null,null,null,null,null,null,null,0,null,null,null,null,null,null,null,null,null,null,null,null,null,null,null,null,0,null,null,null,null,null,null,null,null,null,null,null,null,null,null,null,null,0]
[null,null,null,null,null,null,null,null,null,null,null,null,null,null,null,0,null,null,null,null,null,null,null,null,null,null,null,null,null,null,null,null,0,null,null,null,null,null,null,null,null,null,null,null,null,null,null,null,null,0]
[null,null,null,null,null,null,null,null,null,null,null,null,null,null,null,0,null,null,null,null,null,null,null,null,null,null,null,null,null,null,null,null,0,null,null,null,null,null,null,null,null,null,null,null,null,null,null,null,null,0]
[null,null,null,null,null,null,null,null,null,null,null,null,null,null,null,0,null,null,null,null,null,null,null,null,null,null,null,null,null,null,null,null,0,null,null,null,null,null,null,null,null,null,null,null,null,null,null,null,null,0]
[null,null,null,null,null,null,null,null,null,null,null,null,null,null,null,0,null,null,null,null,null,null,null,null,null,null,null,null,null,null,null,null,0,null,null,null,null,null,null,null,null,null,null,null,null,null,null,null,null,0]
[null,null,null,null,null,null,null,null,null,null,null,null,null,null,null,0,null,null,null,null,null,null,null,null,null,null,null,null,null,null,null,null,0,null,null,null,null,null,null,null,null,null,null,null,null,null,null,null,null,0]
[null,null,null,null,null,null,null,null,null,null,null,null,null,null,null,0,null,null,null,null,null,null,null,null,null,null,null,null,null,null,null,null,0,null,null,null,null,null,null,null,null,null,null,null,null,null,null,null,null,0]
[null,null,null,null,null,null,null,null,null,null,null,null,null,null,null,0,null,null,null,null,null,null,null,null,null,null,null,null,null,null,null,null,0,null,null,null,null,null,null,null,null,null,null,null,null,null,null,null,null,0]
[null,null,null,null,null,null,null,null,null,null,null,null,null,null,null,0,null,null,null,null,null,null,null,null,null,null,null,null,null,null,null,null,0,null,null,null,null,null,null,null,null,null,null,null,null,null,null,null,null,0]
[null,null,null,null,null,null,null,null,null,null,null,null,null,null,null,0,null,null,null,null,null,null,null,null,null,null,null,null,null,null,null,null,0,null,null,null,null,null,null,null,null,null,null,null,null,null,null,null,null,0]
[null,null,null,null,null,null,null,null,null,null,null,null,null,null,null,0,null,null,null,null,null,null,null,null,null,null,null,null,null,null,null,null,0,null,null,null,null,null,null,null,null,null,null,null,null,null,null,null,null,0]
[null,null,null,null,null,null,null,null,null,null,null,null,null,null,null,0,null,null,null,null,null,null,null,null,null,null,null,null,null,null,null,null,0,null,null,null,null,null,null,null,null,null,null,null,null,null,null,null,null,0]
[null,null,null,null,null,null,null,null,null,null,null,null,null,null,null,0,null,null,null,null,null,null,null,null,null,null,null,null,null,null,null,null,0,null,null,null,null,null,null,null,null,null,null,null,null,null,null,null,null,0]
[null,null,null,null,null,null,null,null,null,null,null,null,null,null,null,0,null,null,null,null,null,null,null,null,null,null,null,null,null,null,null,null,0,null,null,null,null,null,null,null,null,null,null,null,null,null,null,null,null,0]
[null,null,null,null,null,null,null,null,null,null,null,null,null,null,null,0,null,null,null,null,null,null,null,null,null,null,null,null,null,null,null,null,0,null,null,null,null,null,null,null,null,null,null,null,null,null,null,null,null,0]
[null,null,null,null,null,null,null,null,null,null,null,null,null,null,null,0,null,null,null,null,null,null,null,null,null,null,null,null,null,null,null,null,0,null,null,null,null,null,null,null,null,null,null,null,null,null,null,null,null,0]
[null,null,null,null,null,null,null,null,null,null,null,null,null,null,null,0,null,null,null,null,null,null,null,null,null,null,null,null,null,null,null,null,0,null,null,null,null,null,null,null,null,null,null,null,null,null,null,null,null,0]
[null,null,null,null,null,null,null,null,null,null,null,null,null,null,null,0,null,null,null,null,null,null,null,null,null,null,null,null,null,null,null,null,0,null,null,null,null,null,null,null,null,null,null,null,null,null,null,null,null,0]
[null,null,null,null,null,null,null,null,null,null,null,null,null,null,null,0,null,null,null,null,null,null,null,null,null,null,null,null,null,null,null,null,0,null,null,null,null,null,null,null,null,null,null,null,null,null,null,null,null,0]
[null,null,null,null,null,null,null,null,null,null,null,null,null,null,null,0,null,null,null,null,null,null,null,null,null,null,null,null,null,null,null,null,0,null,null,null,null,null,null,null,null,null,null,null,null,null,null,null,null,0]
[null,null,null,null,null,null,null,null,null,null,null,null,null,null,null,0,null,null,null,null,null,null,null,null,null,null,null,null,null,null,null,null,0,null,null,null,null,null,null,null,null,null,null,null,null,null,null,null,null,0]
[null,null,null,null,null,null,null,null,null,null,null,null,null,null,null,0,null,null,null,null,null,null,null,null,null,null,null,null,null,null,null,null,0,null,null,null,null,null,null,null,null,null,null,null,null,null,null,null,null,0]
[null,null,null,null,null,null,null,null,null,null,null,null,null,null,null,0,null,null,null,null,null,null,null,null,null,null,null,null,null,null,null,null,0,null,null,null,null,null,null,null,null,null,null,null,null,null,null,null,null,0]
[null,null,null,null,null,null,null,null,null,null,null,null,null,null,null,0,null,null,null,null,null,null,null,null,null,null,null,null,null,null,null,null,0,null,null,null,null,null,null,null,null,null,null,null,null,null,null,null,null,0]
[null,null,null,null,null,null,null,null,null,null,null,null,null,null,null,0,null,null,null,null,null,null,null,null,null,null,null,null,null,null,null,null,0,null,null,null,null,null,null,null,null,null,null,null,null,null,null,null,null,0]
[null,null,null,null,null,null,null,null,null,null,null,null,null,null,null,0,null,null,null,null,null,null,null,null,null,null,null,null,null,null,null,null,0,null,null,null,null,null,null,null,null,null,null,null,null,null,null,null,null,0]
[null,null,null,null,null,null,null,null,null,null,null,null,null,null,null,0,null,null,null,null,null,null,null,null,null,null,null,null,null,null,null,null,0,null,null,null,null,null,null,null,null,null,null,null,null,null,null,null,null,0]
[null,null,null,null,null,null,null,null,null,null,null,null,null,null,null,0,null,null,null,null,null,null,null,null,null,null,null,null,null,null,null,null,0,null,null,null,null,null,null,null,null,null,null,null,null,null,null,null,null,0]
[null,null,null,null,null,null,null,null,null,null,null,null,null,null,null,0,null,null,null,null,null,null,null,null,null,null,null,null,null,null,null,null,0,null,null,null,null,null,null,null,null,null,null,null,null,null,null,null,null,0]
[null,null,null,null,null,null,null,null,null,null,null,null,null,null,null,0,null,null,null,null,null,null,null,null,null,null,null,null,null,null,null,null,0,null,null,null,null,null,null,null,null,null,null,null,null,null,null,null,null,0]
[null,null,null,null,null,null,null,null,null,null,null,null,null,null,null,0,null,null,null,null,null,null,null,null,null,null,null,null,null,null,null,null,0,null,null,null,null,null,null,null,null,null,null,null,null,null,null,null,null,0]
[null,null,null,null,null,null,null,null,null,null,null,null,null,null,null,0,null,null,null,null,null,null,null,null,null,null,null,null,null,null,null,null,0,null,null,null,null,null,null,null,null,null,null,null,null,null,null,null,null,0]
[null,null,null,null,null,null,null,null,null,null,null,null,null,null,null,0,null,null,null,null,null,null,null,null,null,null,null,null,null,null,null,null,0,null,null,null,null,null,null,null,null,null,null,null,null,null,null,null,null,0]
[null,null,null,null,null,null,null,null,null,null,null,null,null,null,null,0,null,null,null,null,null,null,null,null,null,null,null,null,null,null,null,null,0,null,null,null,null,null,null,null,null,null,null,null,null,null,null,null,null,0]
[null,null,null,null,null,null,null,null,null,null,null,null,null,null,null,0,null,null,null,null,null,null,null,null,null,null,null,null,null,null,null,null,0,null,null,null,null,null,null,null,null,null,null,null,null,null,null,null,null,0]
[null,null,null,null,null,null,null,null,null,null,null,null,null,null,null,0,null,null,null,null,null,null,null,null,null,null,null,null,null,null,null,null,0,null,null,null,null,null,null,null,null,null,null,null,null,null,null,null,null,0]
[null,null,null,null,null,null,null,null,null,null,null,null,null,null,null,0,null,null,null,null,null,null,null,null,null,null,null,null,null,null,null,null,0,null,null,null,null,null,null,null,null,null,null,null,null,null,null,null,null,0]
[null,null,null,null,null,null,null,null,null,null,null,null,null,null,null,0,null,null,null,null,null,null,null,null,null,null,null,null,null,null,null,null,0,null,null,null,null,null,null,null,null,null,null,null,null,null,null,null,null,0]
[null,null,null,null,null,null,null,null,null,null,null,null,null,null,null,0,null,null,null,null,null,null,null,null,null,null,null,null,null,null,null,null,0,null,null,null,null,null,null,null,null,null,null,null,null,null,null,null,null,0]
[null,null,null,null,null,null,null,null,null,null,null,null,null,null,null,0,null,null,null,null,null,null,null,null,null,null,null,null,null,null,null,null,0,null,null,null,null,null,null,null,null,null,null,null,null,null,null,null,null,0]
[null,null,null,null,null,null,null,null,null,null,null,null,null,null,null,0,null,null,null,null,null,null,null,null,null,null,null,null,null,null,null,null,0,null,null,null,null,null,null,null,null,null,null,null,null,null,null,null,null,0]
[null,null,null,null,null,null,null,null,null,null,null,null,null,null,null,0,null,null,null,null,null,null,null,null,null,null,null,null,null,null,null,null,0,null,null,null,null,null,null,null,null,null,null,null,null,null,null,null,null,0]
[null,null,null,null,null,null,null,null,null,null,null,null,null,null,null,0,null,null,null,null,null,null,null,null,null,null,null,null,null,null,null,null,0,null,null,null,null,null,null,null,null,null,null,null,null,null,null,null,null,0]
[null,null,null,null,null,null,null,null,null,null,null,null,null,null,null,{"$f":"SUM(F138:O138)","v":0},null,null,null,null,null,null,null,null,null,null,null,null,null,null,null,null,{"$f":"SUM(W138:AF138)","v":0},null,null,null,null,null,null,null,null,null,null,null,null,null,null,null,null,{"$f":"SUM(AN138:AW138)","v":0}]
[null,null,null,null,null,null,null,null,null,null,null,null,null,null,null,0,null,null,null,null,null,null,null,null,null,null,null,null,null,null,null,null,0,null,null,null,null,null,null,null,null,null,null,null,null,null,null,null,null,0]
[null,null,null,null,null,null,null,null,null,null,null,null,null,null,null,0,null,null,null,null,null,null,null,null,null,null,null,null,null,null,null,null,0,null,null,null,null,null,null,null,null,null,null,null,null,null,null,null,null,0]
[null,null,null,null,null,null,null,null,null,null,null,null,null,null,null,0,null,null,null,null,null,null,null,null,null,null,null,null,null,null,null,null,0,null,null,null,null,null,null,null,null,null,null,null,null,null,null,null,null,0]
[null,null,null,null,null,null,null,null,null,null,null,null,null,null,null,0,null,null,null,null,null,null,null,null,null,null,null,null,null,null,null,null,0,null,null,null,null,null,null,null,null,null,null,null,null,null,null,null,null,0]
[null,null,null,null,null,null,null,null,null,null,null,null,null,null,null,0,null,null,null,null,null,null,null,null,null,null,null,null,null,null,null,null,0,null,null,null,null,null,null,null,null,null,null,null,null,null,null,null,null,0]
[null,null,null,null,null,null,null,null,null,null,null,null,null,null,null,0,null,null,null,null,null,null,null,null,null,null,null,null,null,null,null,null,0,null,null,null,null,null,null,null,null,null,null,null,null,null,null,null,null,0]
[null,null,null,null,null,null,null,null,null,null,null,null,null,null,null,0,null,null,null,null,null,null,null,null,null,null,null,null,null,null,null,null,0,null,null,null,null,null,null,null,null,null,null,null,null,null,null,null,null,0]
[null,null,null,null,null,null,null,null,null,null,null,null,null,null,null,0,null,null,null,null,null,null,null,null,null,null,null,null,null,null,null,null,0,null,null,null,null,null,null,null,null,null,null,null,null,null,null,null,null,0]
[null,null,null,null,null,null,null,null,null,null,null,null,null,null,null,0,null,null,null,null,null,null,null,null,null,null,null,null,null,null,null,null,0,null,null,null,null,null,null,null,null,null,null,null,null,null,null,null,null,0]
[null,null,null,null,null,null,null,null,null,null,null,null,null,null,null,0,null,null,null,null,null,null,null,null,null,null,null,null,null,null,null,null,0,null,null,null,null,null,null,null,null,null,null,null,null,null,null,null,null,0]
[null,null,null,null,null,null,null,null,null,null,null,null,null,null,null,0,null,null,null,null,null,null,null,null,null,null,null,null,null,null,null,null,0,null,null,null,null,null,null,null,null,null,null,null,null,null,null,null,null,0]
[null,null,null,null,null,null,null,null,null,null,null,null,null,null,null,0,null,null,null,null,null,null,null,null,null,null,null,null,null,null,null,null,0,null,null,null,null,null,null,null,null,null,null,null,null,null,null,null,null,0]
[null,null,null,null,null,null,null,null,null,null,null,null,null,null,null,0,null,null,null,null,null,null,null,null,null,null,null,null,null,null,null,null,0,null,null,null,null,null,null,null,null,null,null,null,null,null,null,null,null,0]
[null,null,null,null,null,null,null,null,null,null,null,null,null,null,null,0,null,null,null,null,null,null,null,null,null,null,null,null,null,null,null,null,0,null,null,null,null,null,null,null,null,null,null,null,null,null,null,null,null,0]
[null,null,null,null,null,null,null,null,null,null,null,null,null,null,null,0,null,null,null,null,null,null,null,null,null,null,null,null,null,null,null,null,0,null,null,null,null,null,null,null,null,null,null,null,null,null,null,null,null,0]
[null,null,null,null,null,null,null,null,null,null,null,null,null,null,null,0,null,null,null,null,null,null,null,null,null,null,null,null,null,null,null,null,0,null,null,null,null,null,null,null,null,null,null,null,null,null,null,null,null,0]
[null,null,null,null,null,null,null,null,null,null,null,null,null,null,null,0,null,null,null,null,null,null,null,null,null,null,null,null,null,null,null,null,0,null,null,null,null,null,null,null,null,null,null,null,null,null,null,null,null,0]
[null,null,null,null,null,null,null,null,null,null,null,null,null,null,null,0,null,null,null,null,null,null,null,null,null,null,null,null,null,null,null,null,0,null,null,null,null,null,null,null,null,null,null,null,null,null,null,null,null,0]
[null,null,null,null,null,null,null,null,null,null,null,null,null,null,null,0,null,null,null,null,null,null,null,null,null,null,null,null,null,null,null,null,0,null,null,null,null,null,null,null,null,null,null,null,null,null,null,null,null,0]
[null,null,null,null,null,null,null,null,null,null,null,null,null,null,null,0,null,null,null,null,null,null,null,null,null,null,null,null,null,null,null,null,0,null,null,null,null,null,null,null,null,null,null,null,null,null,null,null,null,0]
[null,null,null,null,null,null,null,null,null,null,null,null,null,null,null,0,null,null,null,null,null,null,null,null,null,null,null,null,null,null,null,null,0,null,null,null,null,null,null,null,null,null,null,null,null,null,null,null,null,0]
[null,null,null,null,null,null,null,null,null,null,null,null,null,null,null,0,null,null,null,null,null,null,null,null,null,null,null,null,null,null,null,null,0,null,null,null,null,null,null,null,null,null,null,null,null,null,null,null,null,0]
[null,null,null,null,null,null,null,null,null,null,null,null,null,null,null,0,null,null,null,null,null,null,null,null,null,null,null,null,null,null,null,null,0,null,null,null,null,null,null,null,null,null,null,null,null,null,null,null,null,0]
[null,null,null,null,null,null,null,null,null,null,null,null,null,null,null,0,null,null,null,null,null,null,null,null,null,null,null,null,null,null,null,null,0,null,null,null,null,null,null,null,null,null,null,null,null,null,null,null,null,0]
[null,null,null,null,null,null,null,null,null,null,null,null,null,null,null,0,null,null,null,null,null,null,null,null,null,null,null,null,null,null,null,null,0,null,null,null,null,null,null,null,null,null,null,null,null,null,null,null,null,0]
[null,null,null,null,null,null,null,null,null,null,null,null,null,null,null,0,null,null,null,null,null,null,null,null,null,null,null,null,null,null,null,null,0,null,null,null,null,null,null,null,null,null,null,null,null,null,null,null,null,0]
[null,null,null,null,null,null,null,null,null,null,null,null,null,null,null,0,null,null,null,null,null,null,null,null,null,null,null,null,null,null,null,null,0,null,null,null,null,null,null,null,null,null,null,null,null,null,null,null,null,0]
[null,null,null,null,null,null,null,null,null,null,null,null,null,null,null,0,null,null,null,null,null,null,null,null,null,null,null,null,null,null,null,null,0,null,null,null,null,null,null,null,null,null,null,null,null,null,null,null,null,0]
[null,null,null,null,null,null,null,null,null,null,null,null,null,null,null,0,null,null,null,null,null,null,null,null,null,null,null,null,null,null,null,null,0,null,null,null,null,null,null,null,null,null,null,null,null,null,null,null,null,0]
[null,null,null,null,null,null,null,null,null,null,null,null,null,null,null,0,null,null,null,null,null,null,null,null,null,null,null,null,null,null,null,null,0,null,null,null,null,null,null,null,null,null,null,null,null,null,null,null,null,0]
[null,null,null,null,null,null,null,null,null,null,null,null,null,null,null,0,null,null,null,null,null,null,null,null,null,null,null,null,null,null,null,null,0,null,null,null,null,null,null,null,null,null,null,null,null,null,null,null,null,0]
[null,null,null,null,null,null,null,null,null,null,null,null,null,null,null,0,null,null,null,null,null,null,null,null,null,null,null,null,null,null,null,null,0,null,null,null,null,null,null,null,null,null,null,null,null,null,null,null,null,0]
[null,null,null,null,null,null,null,null,null,null,null,null,null,null,null,0,null,null,null,null,null,null,null,null,null,null,null,null,null,null,null,null,0,null,null,null,null,null,null,null,null,null,null,null,null,null,null,null,null,0]
[null,null,null,null,null,null,null,null,null,null,null,null,null,null,null,0,null,null,null,null,null,null,null,null,null,null,null,null,null,null,null,null,0,null,null,null,null,null,null,null,null,null,null,null,null,null,null,null,null,0]
[null,null,null,null,null,null,null,null,null,null,null,null,null,null,null,0,null,null,null,null,null,null,null,null,null,null,null,null,null,null,null,null,0,null,null,null,null,null,null,null,null,null,null,null,null,null,null,null,null,0]
[null,null,null,null,null,null,null,null,null,null,null,null,null,null,null,0,null,null,null,null,null,null,null,null,null,null,null,null,null,null,null,null,0,null,null,null,null,null,null,null,null,null,null,null,null,null,null,null,null,0]
[null,null,null,null,null,null,null,null,null,null,null,null,null,null,null,0,null,null,null,null,null,null,null,null,null,null,null,null,null,null,null,null,0,null,null,null,null,null,null,null,null,null,null,null,null,null,null,null,null,0]
[null,null,null,null,null,null,null,null,null,null,null,null,null,null,null,0,null,null,null,null,null,null,null,null,null,null,null,null,null,null,null,null,0,null,null,null,null,null,null,null,null,null,null,null,null,null,null,null,null,0]
[null,null,null,null,null,null,null,null,null,null,null,null,null,null,null,0,null,null,null,null,null,null,null,null,null,null,null,null,null,null,null,null,0,null,null,null,null,null,null,null,null,null,null,null,null,null,null,null,null,0]
[null,null,null,null,null,null,null,null,null,null,null,null,null,null,null,0,null,null,null,null,null,null,null,null,null,null,null,null,null,null,null,null,0,null,null,null,null,null,null,null,null,null,null,null,null,null,null,null,null,0]
[null,null,null,null,null,null,null,null,null,null,null,null,null,null,null,0,null,null,null,null,null,null,null,null,null,null,null,null,null,null,null,null,0,null,null,null,null,null,null,null,null,null,null,null,null,null,null,null,null,0]
[null,null,null,null,null,null,null,null,null,null,null,null,null,null,null,0,null,null,null,null,null,null,null,null,null,null,null,null,null,null,null,null,0,null,null,null,null,null,null,null,null,null,null,null,null,null,null,null,null,0]
[null,null,null,null,null,null,null,null,null,null,null,null,null,null,null,0,null,null,null,null,null,null,null,null,null,null,null,null,null,null,null,null,0,null,null,null,null,null,null,null,null,null,null,null,null,null,null,null,null,0]
[null,null,null,null,null,null,null,null,null,null,null,null,null,null,null,0,null,null,null,null,null,null,null,null,null,null,null,null,null,null,null,null,0,null,null,null,null,null,null,null,null,null,null,null,null,null,null,null,null,0]
[null,null,null,null,null,null,null,null,null,null,null,null,null,null,null,0,null,null,null,null,null,null,null,null,null,null,null,null,null,null,null,null,0,null,null,null,null,null,null,null,null,null,null,null,null,null,null,null,null,0]
[null,null,null,null,null,null,null,null,null,null,null,null,null,null,null,0,null,null,null,null,null,null,null,null,null,null,null,null,null,null,null,null,0,null,null,null,null,null,null,null,null,null,null,null,null,null,null,null,null,0]
[null,null,null,null,null,null,null,null,null,null,null,null,null,null,null,0,null,null,null,null,null,null,null,null,null,null,null,null,null,null,null,null,0,null,null,null,null,null,null,null,null,null,null,null,null,null,null,null,null,0]
[null,null,null,null,null,null,null,null,null,null,null,null,null,null,null,0,null,null,null,null,null,null,null,null,null,null,null,null,null,null,null,null,0,null,null,null,null,null,null,null,null,null,null,null,null,null,null,null,null,0]
[null,null,null,null,null,null,null,null,null,null,null,null,null,null,null,0,null,null,null,null,null,null,null,null,null,null,null,null,null,null,null,null,0,null,null,null,null,null,null,null,null,null,null,null,null,null,null,null,null,0]
[null,null,null,null,null,null,null,null,null,null,null,null,null,null,null,0,null,null,null,null,null,null,null,null,null,null,null,null,null,null,null,null,0,null,null,null,null,null,null,null,null,null,null,null,null,null,null,null,null,0]
[null,null,null,null,null,null,null,null,null,null,null,null,null,null,null,0,null,null,null,null,null,null,null,null,null,null,null,null,null,null,null,null,0,null,null,null,null,null,null,null,null,null,null,null,null,null,null,null,null,0]
[null,null,null,null,null,null,null,null,null,null,null,null,null,null,null,0,null,null,null,null,null,null,null,null,null,null,null,null,null,null,null,null,0,null,null,null,null,null,null,null,null,null,null,null,null,null,null,null,null,0]
[null,null,null,null,null,null,null,null,null,null,null,null,null,null,null,0,null,null,null,null,null,null,null,null,null,null,null,null,null,null,null,null,0,null,null,null,null,null,null,null,null,null,null,null,null,null,null,null,null,0]
[null,null,null,null,null,null,null,null,null,null,null,null,null,null,null,0,null,null,null,null,null,null,null,null,null,null,null,null,null,null,null,null,0,null,null,null,null,null,null,null,null,null,null,null,null,null,null,null,null,0]
[null,null,null,null,null,null,null,null,null,null,null,null,null,null,null,0,null,null,null,null,null,null,null,null,null,null,null,null,null,null,null,null,0,null,null,null,null,null,null,null,null,null,null,null,null,null,null,null,null,0]
[null,null,null,null,null,null,null,null,null,null,null,null,null,null,null,0,null,null,null,null,null,null,null,null,null,null,null,null,null,null,null,null,0,null,null,null,null,null,null,null,null,null,null,null,null,null,null,null,null,0]
[null,null,null,null,null,null,null,null,null,null,null,null,null,null,null,0,null,null,null,null,null,null,null,null,null,null,null,null,null,null,null,null,0,null,null,null,null,null,null,null,null,null,null,null,null,null,null,null,null,0]
[null,null,null,null,null,null,null,null,null,null,null,null,null,null,null,0,null,null,null,null,null,null,null,null,null,null,null,null,null,null,null,null,0,null,null,null,null,null,null,null,null,null,null,null,null,null,null,null,null,0]
[null,null,null,null,null,null,null,null,null,null,null,null,null,null,null,0,null,null,null,null,null,null,null,null,null,null,null,null,null,null,null,null,0,null,null,null,null,null,null,null,null,null,null,null,null,null,null,null,null,0]
[null,null,null,null,null,null,null,null,null,null,null,null,null,null,null,0,null,null,null,null,null,null,null,null,null,null,null,null,null,null,null,null,0,null,null,null,null,null,null,null,null,null,null,null,null,null,null,null,null,0]
[null,null,null,null,null,null,null,null,null,null,null,null,null,null,null,0,null,null,null,null,null,null,null,null,null,null,null,null,null,null,null,null,0,null,null,null,null,null,null,null,null,null,null,null,null,null,null,null,null,0]
[null,null,null,null,null,null,null,null,null,null,null,null,null,null,null,0,null,null,null,null,null,null,null,null,null,null,null,null,null,null,null,null,0,null,null,null,null,null,null,null,null,null,null,null,null,null,null,null,null,0]

{"sheet":"Synth & graphe PMV","index":2,"n_rows":104,"n_cols":39,"rows_kept":104,"cut":false,"hidden":false,"merged":[]}
[null,"Cumul des heures par tranches de PMV et par saison"]
[null,"Saison",{"$f":"LEFT('Resultats PMV'!F8,5)&\"<\"","v":"-1.00<"},{"$f":"LEFT('Resultats PMV'!G8,5)&\"<\"","v":"-0.75<"},{"$f":"LEFT('Resultats PMV'!H8,5)&\"<\"","v":"-0.50<"},{"$f":"LEFT('Resultats PMV'!I8,5)&\"<\"","v":"-0.25<"},{"$f":"LEFT('Resultats PMV'!J8,5)&\"<\"","v":"0.000<"},{"$f":"LEFT('Resultats PMV'!K8,5)&\"<\"","v":"0.250<"},{"$f":"LEFT('Resultats PMV'!L8,5)&\"<\"","v":"0.500<"},{"$f":"LEFT('Resultats PMV'!M8,5)&\"<\"","v":"0.750<"},{"$f":"LEFT('Resultats PMV'!N8,5)&\"<\"","v":"1.000<"},{"$f":"\">=\"&LEFT('Resultats PMV'!O8,5)","v":">=1.000"}]
[null,"Eté",{"$f":"'Resultats PMV'!W6","v":60},{"$f":"'Resultats PMV'!X6","v":45},{"$f":"'Resultats PMV'!Y6","v":69},{"$f":"'Resultats PMV'!Z6","v":87},{"$f":"'Resultats PMV'!AA6","v":154},{"$f":"'Resultats PMV'!AB6","v":186},{"$f":"'Resultats PMV'!AC6","v":257},{"$f":"'Resultats PMV'!AD6","v":331.5},{"$f":"'Resultats PMV'!AE6","v":398},{"$f":"'Resultats PMV'!AF6","v":3644.5}]
[null,"Hiver",{"$f":"'Resultats PMV'!AN6","v":1415.5},{"$f":"'Resultats PMV'!AO6","v":1053},{"$f":"'Resultats PMV'!AP6","v":1061.5},{"$f":"'Resultats PMV'!AQ6","v":953.5},{"$f":"'Resultats PMV'!AR6","v":783},{"$f":"'Resultats PMV'!AS6","v":554.5},{"$f":"'Resultats PMV'!AT6","v":434.5},{"$f":"'Resultats PMV'!AU6","v":299},{"$f":"'Resultats PMV'!AV6","v":237.5},{"$f":"'Resultats PMV'!AW6","v":504}]
[null,"Année",{"$f":"SUM(C3:C4)","v":1475.5},1098,1130.5,1040.5,937,740.5,691.5,630.5,635.5,4148.5]
[]
[null,"Pourcentage du temps par tranches de PMV et par saison"]
[null,"Saison",{"$f":"C2","v":"-1.00<"},{"$f":"D2","v":"-0.75<"},"-0.50<","-0.25<","0.000<","0.250<","0.500<","0.750<","1.000<",">=1.000"]
[null,"Eté",{"$f":"C3/'Resultats PMV'!$AG$6","v":1.1467889908256881E-2},{"$f":"D3/'Resultats PMV'!$AG$6","v":8.600917431192661E-3},{"$f":"E3/'Resultats PMV'!$AG$6","v":1.3188073394495414E-2},{"$f":"F3/'Resultats PMV'!$AG$6","v":1.6628440366972478E-2},{"$f":"G3/'Resultats PMV'!$AG$6","v":2.9434250764525993E-2},{"$f":"H3/'Resultats PMV'!$AG$6","v":3.5550458715596332E-2},{"$f":"I3/'Resultats PMV'!$AG$6","v":4.9120795107033641E-2},{"$f":"J3/'Resultats PMV'!$AG$6","v":6.3360091743119268E-2},{"$f":"K3/'Resultats PMV'!$AG$6","v":7.6070336391437315E-2},{"$f":"L3/'Resultats PMV'!$AG$6","v":0.69657874617737003}]
[null,"Hiver",{"$f":"C4/'Resultats PMV'!$AX$6","v":0.19401041666666666},{"$f":"D4/'Resultats PMV'!$AX$6","v":0.14432565789473684},{"$f":"E4/'Resultats PMV'!$AX$6","v":0.1454906798245614},{"$f":"F4/'Resultats PMV'!$AX$6","v":0.13068804824561403},{"$f":"G4/'Resultats PMV'!$AX$6","v":0.10731907894736842},{"$f":"H4/'Resultats PMV'!$AX$6","v":7.600054824561403E-2},{"$f":"I4/'Resultats PMV'!$AX$6","v":5.9553179824561403E-2},{"$f":"J4/'Resultats PMV'!$AX$6","v":4.0981359649122806E-2},{"$f":"K4/'Resultats PMV'!$AX$6","v":3.2552083333333336E-2},{"$f":"L4/'Resultats PMV'!$AX$6","v":6.9078947368421059E-2}]
[null,"Année",{"$f":"C5/'Resultats PMV'!$P$6","v":0.11777618135376756},{"$f":"D5/'Resultats PMV'!$P$6","v":8.7643678160919544E-2},{"$f":"E5/'Resultats PMV'!$P$6","v":9.0237867177522343E-2},{"$f":"F5/'Resultats PMV'!$P$6","v":8.3053959131545341E-2},{"$f":"G5/'Resultats PMV'!$P$6","v":7.4792464878671777E-2},{"$f":"H5/'Resultats PMV'!$P$6","v":5.9107598978288635E-2},{"$f":"I5/'Resultats PMV'!$P$6","v":5.5196360153256706E-2},{"$f":"J5/'Resultats PMV'!$P$6","v":5.0327266922094507E-2},{"$f":"K5/'Resultats PMV'!$P$6","v":5.0726372924648787E-2},{"$f":"L5/'Resultats PMV'!$P$6","v":0.33113825031928479}]
[]
[]
[]
[]
[]
[null,"Répartition des PMV par zone sur l'ANNEE",null,null,null,null,null,null,null,null,null,null,null,null,"Répartition des PMV par zone sur l'ÉTÉ",null,null,null,null,null,null,null,null,null,null,null,null,"Répartition des PMV par zone sur l'HIVER"]
[null,"Zone",{"$f":"C2","v":"-1.00<"},{"$f":"D2","v":"-0.75<"},"-0.50<","-0.25<","0.000<","0.250<","0.500<","0.750<","1.000<",">=1.000","Temps hors confort",null,"Zone",{"$f":"C18","v":"-1.00<"},{"$f":"D18","v":"-0.75<"},"-0.50<","-0.25<","0.000<","0.250<","0.500<","0.750<","1.000<",">=1.000","Temps hors confort",null,"Zone",{"$f":"P18","v":"-1.00<"},{"$f":"Q18","v":"-0.75<"},{"$f":"R18","v":"-0.50<"},{"$f":"S18","v":"-0.25<"},{"$f":"T18","v":"0.000<"},{"$f":"U18","v":"0.250<"},{"$f":"V18","v":"0.500<"},{"$f":"W18","v":"0.750<"},{"$f":"X18","v":"1.000<"},{"$f":"Y18","v":">=1.000"},"Temps hors confort"]
[null,{"$f":"'Resultats PMV'!A9","v":"FLOOR0:ZONE1"},{"$f":"'Resultats PMV'!F9/'Resultats PMV'!$P9","v":0.10169220945083014},{"$f":"'Resultats PMV'!G9/'Resultats PMV'!$P9","v":6.449553001277139E-2},{"$f":"'Resultats PMV'!H9/'Resultats PMV'!$P9","v":8.0619412515964245E-2},{"$f":"'Resultats PMV'!I9/'Resultats PMV'!$P9","v":8.1736909323116225E-2},{"$f":"'Resultats PMV'!J9/'Resultats PMV'!$P9","v":7.3914431673052367E-2},{"$f":"'Resultats PMV'!K9/'Resultats PMV'!$P9","v":6.5932311621966791E-2},{"$f":"'Resultats PMV'!L9/'Resultats PMV'!$P9","v":6.9923371647509572E-2},{"$f":"'Resultats PMV'!M9/'Resultats PMV'!$P9","v":6.2899106002554273E-2},{"$f":"'Resultats PMV'!N9/'Resultats PMV'!$P9","v":5.1724137931034482E-2},{"$f":"'Resultats PMV'!O9/'Resultats PMV'!$P9","v":0.34706257982120053},{"$f":"1-SUM(F19:I19)","v":0.70849297573435499},null,{"$f":"'Resultats PMV'!R9","v":"FLOOR0:ZONE1"},{"$f":"'Resultats PMV'!S9/'Resultats PMV'!$P9","v":0},{"$f":"'Resultats PMV'!T9/'Resultats PMV'!$P9","v":0},{"$f":"'Resultats PMV'!U9/'Resultats PMV'!$P9","v":-3.1928480204342275E-3},{"$f":"'Resultats PMV'!V9/'Resultats PMV'!$P9","v":4.7892720306513407E-4},{"$f":"'Resultats PMV'!W9/'Resultats PMV'!$P9","v":4.9489144316730528E-3},{"$f":"'Resultats PMV'!X9/'Resultats PMV'!$P9","v":3.3524904214559388E-3},{"$f":"'Resultats PMV'!Y9/'Resultats PMV'!$P9","v":5.2681992337164753E-3},{"$f":"'Resultats PMV'!Z9/'Resultats PMV'!$P9","v":7.5031928480204339E-3},{"$f":"'Resultats PMV'!AA9/'Resultats PMV'!$P9","v":1.2132822477650063E-2},{"$f":"'Resultats PMV'!AB9/'Resultats PMV'!$P9","v":1.5006385696040868E-2},{"$f":"1-SUM(S19:V19)","v":0.98595146871008943},null,{"$f":"'Resultats PMV'!AI9","v":"FLOOR0:ZONE1"},{"$f":"'Resultats PMV'!AN9/'Resultats PMV'!$AX9","v":0.16611842105263158},{"$f":"'Resultats PMV'!AO9/'Resultats PMV'!$AX9","v":0.1049890350877193},{"$f":"'Resultats PMV'!AP9/'Resultats PMV'!$AX9","v":0.12938596491228072},{"$f":"'Resultats PMV'!AQ9/'Resultats PMV'!$AX9","v":0.12746710526315788},{"$f":"'Resultats PMV'!AR9/'Resultats PMV'!$AX9","v":0.10608552631578948},{"$f":"'Resultats PMV'!AS9/'Resultats PMV'!$AX9","v":8.7445175438596492E-2},{"$f":"'Resultats PMV'!AT9/'Resultats PMV'!$AX9","v":8.6622807017543865E-2},{"$f":"'Resultats PMV'!AU9/'Resultats PMV'!$AX9","v":6.2225877192982455E-2},{"$f":"'Resultats PMV'!AV9/'Resultats PMV'!$AX9","v":3.5361842105263157E-2},{"$f":"'Resultats PMV'!AW9/'Resultats PMV'!$AX9","v":9.4298245614035089E-2},{"$f":"1-SUM(AF19:AI19)","v":0.59237938596491224}]
[null,{"$f":"'Resultats PMV'!A10","v":"FLOOR0:ZONE2"},{"$f":"'Resultats PMV'!F10/'Resultats PMV'!$P10","v":0.14335887611749681},{"$f":"'Resultats PMV'!G10/'Resultats PMV'!$P10","v":9.1155810983397187E-2},{"$f":"'Resultats PMV'!H10/'Resultats PMV'!$P10","v":8.6047254150702426E-2},{"$f":"'Resultats PMV'!I10/'Resultats PMV'!$P10","v":8.3014048531289908E-2},{"$f":"'Resultats PMV'!J10/'Resultats PMV'!$P10","v":7.662835249042145E-2},{"$f":"'Resultats PMV'!K10/'Resultats PMV'!$P10","v":5.8908045977011492E-2},{"$f":"'Resultats PMV'!L10/'Resultats PMV'!$P10","v":4.3422733077905493E-2},{"$f":"'Resultats PMV'!M10/'Resultats PMV'!$P10","v":4.6934865900383142E-2},{"$f":"'Resultats PMV'!N10/'Resultats PMV'!$P10","v":5.348020434227331E-2},{"$f":"'Resultats PMV'!O10/'Resultats PMV'!$P10","v":0.31704980842911878},{"$f":"1-SUM(F20:I20)","v":0.73802681992337171},null,{"$f":"'Resultats PMV'!R10","v":"FLOOR0:ZONE2"},{"$f":"'Resultats PMV'!S10/'Resultats PMV'!$P10","v":0},{"$f":"'Resultats PMV'!T10/'Resultats PMV'!$P10","v":0},{"$f":"'Resultats PMV'!U10/'Resultats PMV'!$P10","v":-3.1928480204342275E-3},{"$f":"'Resultats PMV'!V10/'Resultats PMV'!$P10","v":4.7892720306513407E-4},{"$f":"'Resultats PMV'!W10/'Resultats PMV'!$P10","v":5.2681992337164753E-3},{"$f":"'Resultats PMV'!X10/'Resultats PMV'!$P10","v":3.1928480204342275E-3},{"$f":"'Resultats PMV'!Y10/'Resultats PMV'!$P10","v":5.108556832694764E-3},{"$f":"'Resultats PMV'!Z10/'Resultats PMV'!$P10","v":9.0996168582375483E-3},{"$f":"'Resultats PMV'!AA10/'Resultats PMV'!$P10","v":1.1973180076628353E-2},{"$f":"'Resultats PMV'!AB10/'Resultats PMV'!$P10","v":1.2292464878671775E-2},{"$f":"1-SUM(S20:V20)","v":0.98595146871008943},null,{"$f":"'Resultats PMV'!AI10","v":"FLOOR0:ZONE2"},{"$f":"'Resultats PMV'!AN10/'Resultats PMV'!$AX10","v":0.23711622807017543},{"$f":"'Resultats PMV'!AO10/'Resultats PMV'!$AX10","v":0.15104166666666666},{"$f":"'Resultats PMV'!AP10/'Resultats PMV'!$AX10","v":0.13898026315789475},{"$f":"'Resultats PMV'!AQ10/'Resultats PMV'!$AX10","v":0.12691885964912281},{"$f":"'Resultats PMV'!AR10/'Resultats PMV'!$AX10","v":0.11101973684210527},{"$f":"'Resultats PMV'!AS10/'Resultats PMV'!$AX10","v":8.0043859649122806E-2},{"$f":"'Resultats PMV'!AT10/'Resultats PMV'!$AX10","v":4.3311403508771933E-2},{"$f":"'Resultats PMV'!AU10/'Resultats PMV'!$AX10","v":2.4396929824561403E-2},{"$f":"'Resultats PMV'!AV10/'Resultats PMV'!$AX10","v":3.5087719298245612E-2},{"$f":"'Resultats PMV'!AW10/'Resultats PMV'!$AX10","v":5.2083333333333336E-2},{"$f":"1-SUM(AF20:AI20)","v":0.63870614035087714}]
[null,{"$f":"'Resultats PMV'!A11","v":"FLOOR1:SANITAIRES"},{"$f":"'Resultats PMV'!F11/'Resultats PMV'!$P11","v":0.10137292464878672},{"$f":"'Resultats PMV'!G11/'Resultats PMV'!$P11","v":9.3710089399744567E-2},{"$f":"'Resultats PMV'!H11/'Resultats PMV'!$P11","v":0.10089399744572158},{"$f":"'Resultats PMV'!I11/'Resultats PMV'!$P11","v":8.5249042145593867E-2},{"$f":"'Resultats PMV'!J11/'Resultats PMV'!$P11","v":7.5510855683269471E-2},{"$f":"'Resultats PMV'!K11/'Resultats PMV'!$P11","v":5.699233716475096E-2},{"$f":"'Resultats PMV'!L11/'Resultats PMV'!$P11","v":5.2841634738186462E-2},{"$f":"'Resultats PMV'!M11/'Resultats PMV'!$P11","v":4.7413793103448273E-2},{"$f":"'Resultats PMV'!N11/'Resultats PMV'!$P11","v":4.6296296296296294E-2},{"$f":"'Resultats PMV'!O11/'Resultats PMV'!$P11","v":0.33971902937420179},0.72940613026819923,null,{"$f":"'Resultats PMV'!R11","v":"FLOOR1:SANITAIRES"},{"$f":"'Resultats PMV'!S11/'Resultats PMV'!$P11","v":0},{"$f":"'Resultats PMV'!T11/'Resultats PMV'!$P11","v":0},{"$f":"'Resultats PMV'!U11/'Resultats PMV'!$P11","v":-3.1928480204342275E-3},{"$f":"'Resultats PMV'!V11/'Resultats PMV'!$P11","v":4.7892720306513407E-4},{"$f":"'Resultats PMV'!W11/'Resultats PMV'!$P11","v":3.5121328224776501E-3},{"$f":"'Resultats PMV'!X11/'Resultats PMV'!$P11","v":4.3103448275862068E-3},{"$f":"'Resultats PMV'!Y11/'Resultats PMV'!$P11","v":5.9067688378033204E-3},{"$f":"'Resultats PMV'!Z11/'Resultats PMV'!$P11","v":4.6296296296296294E-3},{"$f":"'Resultats PMV'!AA11/'Resultats PMV'!$P11","v":1.0696040868454661E-2},{"$f":"'Resultats PMV'!AB11/'Resultats PMV'!$P11","v":1.5964240102171137E-2},0.9857918263090677,null,{"$f":"'Resultats PMV'!AI11","v":"FLOOR1:SANITAIRES"},{"$f":"'Resultats PMV'!AN11/'Resultats PMV'!$AX11","v":0.16803728070175439},{"$f":"'Resultats PMV'!AO11/'Resultats PMV'!$AX11","v":0.15350877192982457},{"$f":"'Resultats PMV'!AP11/'Resultats PMV'!$AX11","v":0.1631030701754386},{"$f":"'Resultats PMV'!AQ11/'Resultats PMV'!$AX11","v":0.13843201754385964},{"$f":"'Resultats PMV'!AR11/'Resultats PMV'!$AX11","v":0.11129385964912281},{"$f":"'Resultats PMV'!AS11/'Resultats PMV'!$AX11","v":7.0449561403508776E-2},{"$f":"'Resultats PMV'!AT11/'Resultats PMV'!$AX11","v":5.3179824561403508E-2},{"$f":"'Resultats PMV'!AU11/'Resultats PMV'!$AX11","v":4.4407894736842105E-2},{"$f":"'Resultats PMV'!AV11/'Resultats PMV'!$AX11","v":2.987938596491228E-2},{"$f":"'Resultats PMV'!AW11/'Resultats PMV'!$AX11","v":6.7708333333333329E-2},0.62664473684210531]
[null,{"$f":"'Resultats PMV'!A12","v":"FLOOR1:ZONE1"},{"$f":"'Resultats PMV'!F12/'Resultats PMV'!$P12","v":0.12468071519795658},{"$f":"'Resultats PMV'!G12/'Resultats PMV'!$P12","v":0.101213282247765},{"$f":"'Resultats PMV'!H12/'Resultats PMV'!$P12","v":9.3390804597701146E-2},{"$f":"'Resultats PMV'!I12/'Resultats PMV'!$P12","v":8.2215836526181349E-2},{"$f":"'Resultats PMV'!J12/'Resultats PMV'!$P12","v":7.3116219667943808E-2},{"$f":"'Resultats PMV'!K12/'Resultats PMV'!$P12","v":5.459770114942529E-2},{"$f":"'Resultats PMV'!L12/'Resultats PMV'!$P12","v":5.459770114942529E-2},{"$f":"'Resultats PMV'!M12/'Resultats PMV'!$P12","v":4.4061302681992334E-2},{"$f":"'Resultats PMV'!N12/'Resultats PMV'!$P12","v":5.1404853128991061E-2},{"$f":"'Resultats PMV'!O12/'Resultats PMV'!$P12","v":0.32072158365261816},0.73547254150702424,null,{"$f":"'Resultats PMV'!R12","v":"FLOOR1:ZONE1"},{"$f":"'Resultats PMV'!S12/'Resultats PMV'!$P12","v":0},{"$f":"'Resultats PMV'!T12/'Resultats PMV'!$P12","v":0},{"$f":"'Resultats PMV'!U12/'Resultats PMV'!$P12","v":-3.1928480204342275E-3},{"$f":"'Resultats PMV'!V12/'Resultats PMV'!$P12","v":4.7892720306513407E-4},{"$f":"'Resultats PMV'!W12/'Resultats PMV'!$P12","v":5.4278416347381866E-3},{"$f":"'Resultats PMV'!X12/'Resultats PMV'!$P12","v":3.5121328224776501E-3},{"$f":"'Resultats PMV'!Y12/'Resultats PMV'!$P12","v":5.7471264367816091E-3},{"$f":"'Resultats PMV'!Z12/'Resultats PMV'!$P12","v":6.5453384418901663E-3},{"$f":"'Resultats PMV'!AA12/'Resultats PMV'!$P12","v":1.4367816091954023E-2},{"$f":"'Resultats PMV'!AB12/'Resultats PMV'!$P12","v":1.6123882503192848E-2},0.98483397190293742,null,{"$f":"'Resultats PMV'!AI12","v":"FLOOR1:ZONE1"},{"$f":"'Resultats PMV'!AN12/'Resultats PMV'!$AX12","v":0.20476973684210525},{"$f":"'Resultats PMV'!AO12/'Resultats PMV'!$AX12","v":0.16776315789473684},{"$f":"'Resultats PMV'!AP12/'Resultats PMV'!$AX12","v":0.15049342105263158},{"$f":"'Resultats PMV'!AQ12/'Resultats PMV'!$AX12","v":0.12993421052631579},{"$f":"'Resultats PMV'!AR12/'Resultats PMV'!$AX12","v":0.10087719298245613},{"$f":"'Resultats PMV'!AS12/'Resultats PMV'!$AX12","v":6.6063596491228074E-2},{"$f":"'Resultats PMV'!AT12/'Resultats PMV'!$AX12","v":5.5098684210526314E-2},{"$f":"'Resultats PMV'!AU12/'Resultats PMV'!$AX12","v":3.2894736842105261E-2},{"$f":"'Resultats PMV'!AV12/'Resultats PMV'!$AX12","v":2.987938596491228E-2},{"$f":"'Resultats PMV'!AW12/'Resultats PMV'!$AX12","v":6.2225877192982455E-2},0.64802631578947367]
[null,{"$f":"'Resultats PMV'!A13","v":0},{"$f":"'Resultats PMV'!F13/'Resultats PMV'!$P13","v":{"$error":"#DIV/0!"}},{"$f":"'Resultats PMV'!G13/'Resultats PMV'!$P13","v":{"$error":"#DIV/0!"}},{"$f":"'Resultats PMV'!H13/'Resultats PMV'!$P13","v":{"$error":"#DIV/0!"}},{"$f":"'Resultats PMV'!I13/'Resultats PMV'!$P13","v":{"$error":"#DIV/0!"}},{"$f":"'Resultats PMV'!J13/'Resultats PMV'!$P13","v":{"$error":"#DIV/0!"}},{"$f":"'Resultats PMV'!K13/'Resultats PMV'!$P13","v":{"$error":"#DIV/0!"}},{"$f":"'Resultats PMV'!L13/'Resultats PMV'!$P13","v":{"$error":"#DIV/0!"}},{"$f":"'Resultats PMV'!M13/'Resultats PMV'!$P13","v":{"$error":"#DIV/0!"}},{"$f":"'Resultats PMV'!N13/'Resultats PMV'!$P13","v":{"$error":"#DIV/0!"}},{"$f":"'Resultats PMV'!O13/'Resultats PMV'!$P13","v":{"$error":"#DIV/0!"}},{"$error":"#DIV/0!"},null,{"$f":"'Resultats PMV'!R13","v":0},{"$f":"'Resultats PMV'!S13/'Resultats PMV'!$P13","v":{"$error":"#DIV/0!"}},{"$f":"'Resultats PMV'!T13/'Resultats PMV'!$P13","v":{"$error":"#DIV/0!"}},{"$f":"'Resultats PMV'!U13/'Resultats PMV'!$P13","v":{"$error":"#DIV/0!"}},{"$f":"'Resultats PMV'!V13/'Resultats PMV'!$P13","v":{"$error":"#DIV/0!"}},{"$f":"'Resultats PMV'!W13/'Resultats PMV'!$P13","v":{"$error":"#DIV/0!"}},{"$f":"'Resultats PMV'!X13/'Resultats PMV'!$P13","v":{"$error":"#DIV/0!"}},{"$f":"'Resultats PMV'!Y13/'Resultats PMV'!$P13","v":{"$error":"#DIV/0!"}},{"$f":"'Resultats PMV'!Z13/'Resultats PMV'!$P13","v":{"$error":"#DIV/0!"}},{"$f":"'Resultats PMV'!AA13/'Resultats PMV'!$P13","v":{"$error":"#DIV/0!"}},{"$f":"'Resultats PMV'!AB13/'Resultats PMV'!$P13","v":{"$error":"#DIV/0!"}},{"$error":"#DIV/0!"},null,{"$f":"'Resultats PMV'!AI13","v":0},{"$f":"'Resultats PMV'!AN13/'Resultats PMV'!$AX13","v":{"$error":"#DIV/0!"}},{"$f":"'Resultats PMV'!AO13/'Resultats PMV'!$AX13","v":{"$error":"#DIV/0!"}},{"$f":"'Resultats PMV'!AP13/'Resultats PMV'!$AX13","v":{"$error":"#DIV/0!"}},{"$f":"'Resultats PMV'!AQ13/'Resultats PMV'!$AX13","v":{"$error":"#DIV/0!"}},{"$f":"'Resultats PMV'!AR13/'Resultats PMV'!$AX13","v":{"$error":"#DIV/0!"}},{"$f":"'Resultats PMV'!AS13/'Resultats PMV'!$AX13","v":{"$error":"#DIV/0!"}},{"$f":"'Resultats PMV'!AT13/'Resultats PMV'!$AX13","v":{"$error":"#DIV/0!"}},{"$f":"'Resultats PMV'!AU13/'Resultats PMV'!$AX13","v":{"$error":"#DIV/0!"}},{"$f":"'Resultats PMV'!AV13/'Resultats PMV'!$AX13","v":{"$error":"#DIV/0!"}},{"$f":"'Resultats PMV'!AW13/'Resultats PMV'!$AX13","v":{"$error":"#DIV/0!"}},{"$error":"#DIV/0!"}]
[null,{"$f":"'Resultats PMV'!A14","v":0},{"$f":"'Resultats PMV'!F14/'Resultats PMV'!$P14","v":{"$error":"#DIV/0!"}},{"$f":"'Resultats PMV'!G14/'Resultats PMV'!$P14","v":{"$error":"#DIV/0!"}},{"$f":"'Resultats PMV'!H14/'Resultats PMV'!$P14","v":{"$error":"#DIV/0!"}},{"$f":"'Resultats PMV'!I14/'Resultats PMV'!$P14","v":{"$error":"#DIV/0!"}},{"$f":"'Resultats PMV'!J14/'Resultats PMV'!$P14","v":{"$error":"#DIV/0!"}},{"$f":"'Resultats PMV'!K14/'Resultats PMV'!$P14","v":{"$error":"#DIV/0!"}},{"$f":"'Resultats PMV'!L14/'Resultats PMV'!$P14","v":{"$error":"#DIV/0!"}},{"$f":"'Resultats PMV'!M14/'Resultats PMV'!$P14","v":{"$error":"#DIV/0!"}},{"$f":"'Resultats PMV'!N14/'Resultats PMV'!$P14","v":{"$error":"#DIV/0!"}},{"$f":"'Resultats PMV'!O14/'Resultats PMV'!$P14","v":{"$error":"#DIV/0!"}},{"$error":"#DIV/0!"},null,{"$f":"'Resultats PMV'!R14","v":0},{"$f":"'Resultats PMV'!S14/'Resultats PMV'!$P14","v":{"$error":"#DIV/0!"}},{"$f":"'Resultats PMV'!T14/'Resultats PMV'!$P14","v":{"$error":"#DIV/0!"}},{"$f":"'Resultats PMV'!U14/'Resultats PMV'!$P14","v":{"$error":"#DIV/0!"}},{"$f":"'Resultats PMV'!V14/'Resultats PMV'!$P14","v":{"$error":"#DIV/0!"}},{"$f":"'Resultats PMV'!W14/'Resultats PMV'!$P14","v":{"$error":"#DIV/0!"}},{"$f":"'Resultats PMV'!X14/'Resultats PMV'!$P14","v":{"$error":"#DIV/0!"}},{"$f":"'Resultats PMV'!Y14/'Resultats PMV'!$P14","v":{"$error":"#DIV/0!"}},{"$f":"'Resultats PMV'!Z14/'Resultats PMV'!$P14","v":{"$error":"#DIV/0!"}},{"$f":"'Resultats PMV'!AA14/'Resultats PMV'!$P14","v":{"$error":"#DIV/0!"}},{"$f":"'Resultats PMV'!AB14/'Resultats PMV'!$P14","v":{"$error":"#DIV/0!"}},{"$error":"#DIV/0!"},null,{"$f":"'Resultats PMV'!AI14","v":0},{"$f":"'Resultats PMV'!AN14/'Resultats PMV'!$AX14","v":{"$error":"#DIV/0!"}},{"$f":"'Resultats PMV'!AO14/'Resultats PMV'!$AX14","v":{"$error":"#DIV/0!"}},{"$f":"'Resultats PMV'!AP14/'Resultats PMV'!$AX14","v":{"$error":"#DIV/0!"}},{"$f":"'Resultats PMV'!AQ14/'Resultats PMV'!$AX14","v":{"$error":"#DIV/0!"}},{"$f":"'Resultats PMV'!AR14/'Resultats PMV'!$AX14","v":{"$error":"#DIV/0!"}},{"$f":"'Resultats PMV'!AS14/'Resultats PMV'!$AX14","v":{"$error":"#DIV/0!"}},{"$f":"'Resultats PMV'!AT14/'Resultats PMV'!$AX14","v":{"$error":"#DIV/0!"}},{"$f":"'Resultats PMV'!AU14/'Resultats PMV'!$AX14","v":{"$error":"#DIV/0!"}},{"$f":"'Resultats PMV'!AV14/'Resultats PMV'!$AX14","v":{"$error":"#DIV/0!"}},{"$f":"'Resultats PMV'!AW14/'Resultats PMV'!$AX14","v":{"$error":"#DIV/0!"}},{"$error":"#DIV/0!"}]
[null,{"$f":"'Resultats PMV'!A15","v":0},{"$f":"'Resultats PMV'!F15/'Resultats PMV'!$P15","v":{"$error":"#DIV/0!"}},{"$f":"'Resultats PMV'!G15/'Resultats PMV'!$P15","v":{"$error":"#DIV/0!"}},{"$f":"'Resultats PMV'!H15/'Resultats PMV'!$P15","v":{"$error":"#DIV/0!"}},{"$f":"'Resultats PMV'!I15/'Resultats PMV'!$P15","v":{"$error":"#DIV/0!"}},{"$f":"'Resultats PMV'!J15/'Resultats PMV'!$P15","v":{"$error":"#DIV/0!"}},{"$f":"'Resultats PMV'!K15/'Resultats PMV'!$P15","v":{"$error":"#DIV/0!"}},{"$f":"'Resultats PMV'!L15/'Resultats PMV'!$P15","v":{"$error":"#DIV/0!"}},{"$f":"'Resultats PMV'!M15/'Resultats PMV'!$P15","v":{"$error":"#DIV/0!"}},{"$f":"'Resultats PMV'!N15/'Resultats PMV'!$P15","v":{"$error":"#DIV/0!"}},{"$f":"'Resultats PMV'!O15/'Resultats PMV'!$P15","v":{"$error":"#DIV/0!"}},{"$error":"#DIV/0!"},null,{"$f":"'Resultats PMV'!R15","v":0},{"$f":"'Resultats PMV'!S15/'Resultats PMV'!$P15","v":{"$error":"#DIV/0!"}},{"$f":"'Resultats PMV'!T15/'Resultats PMV'!$P15","v":{"$error":"#DIV/0!"}},{"$f":"'Resultats PMV'!U15/'Resultats PMV'!$P15","v":{"$error":"#DIV/0!"}},{"$f":"'Resultats PMV'!V15/'Resultats PMV'!$P15","v":{"$error":"#DIV/0!"}},{"$f":"'Resultats PMV'!W15/'Resultats PMV'!$P15","v":{"$error":"#DIV/0!"}},{"$f":"'Resultats PMV'!X15/'Resultats PMV'!$P15","v":{"$error":"#DIV/0!"}},{"$f":"'Resultats PMV'!Y15/'Resultats PMV'!$P15","v":{"$error":"#DIV/0!"}},{"$f":"'Resultats PMV'!Z15/'Resultats PMV'!$P15","v":{"$error":"#DIV/0!"}},{"$f":"'Resultats PMV'!AA15/'Resultats PMV'!$P15","v":{"$error":"#DIV/0!"}},{"$f":"'Resultats PMV'!AB15/'Resultats PMV'!$P15","v":{"$error":"#DIV/0!"}},{"$error":"#DIV/0!"},null,{"$f":"'Resultats PMV'!AI15","v":0},{"$f":"'Resultats PMV'!AN15/'Resultats PMV'!$AX15","v":{"$error":"#DIV/0!"}},{"$f":"'Resultats PMV'!AO15/'Resultats PMV'!$AX15","v":{"$error":"#DIV/0!"}},{"$f":"'Resultats PMV'!AP15/'Resultats PMV'!$AX15","v":{"$error":"#DIV/0!"}},{"$f":"'Resultats PMV'!AQ15/'Resultats PMV'!$AX15","v":{"$error":"#DIV/0!"}},{"$f":"'Resultats PMV'!AR15/'Resultats PMV'!$AX15","v":{"$error":"#DIV/0!"}},{"$f":"'Resultats PMV'!AS15/'Resultats PMV'!$AX15","v":{"$error":"#DIV/0!"}},{"$f":"'Resultats PMV'!AT15/'Resultats PMV'!$AX15","v":{"$error":"#DIV/0!"}},{"$f":"'Resultats PMV'!AU15/'Resultats PMV'!$AX15","v":{"$error":"#DIV/0!"}},{"$f":"'Resultats PMV'!AV15/'Resultats PMV'!$AX15","v":{"$error":"#DIV/0!"}},{"$f":"'Resultats PMV'!AW15/'Resultats PMV'!$AX15","v":{"$error":"#DIV/0!"}},{"$error":"#DIV/0!"}]
[null,{"$f":"'Resultats PMV'!A16","v":0},{"$f":"'Resultats PMV'!F16/'Resultats PMV'!$P16","v":{"$error":"#DIV/0!"}},{"$f":"'Resultats PMV'!G16/'Resultats PMV'!$P16","v":{"$error":"#DIV/0!"}},{"$f":"'Resultats PMV'!H16/'Resultats PMV'!$P16","v":{"$error":"#DIV/0!"}},{"$f":"'Resultats PMV'!I16/'Resultats PMV'!$P16","v":{"$error":"#DIV/0!"}},{"$f":"'Resultats PMV'!J16/'Resultats PMV'!$P16","v":{"$error":"#DIV/0!"}},{"$f":"'Resultats PMV'!K16/'Resultats PMV'!$P16","v":{"$error":"#DIV/0!"}},{"$f":"'Resultats PMV'!L16/'Resultats PMV'!$P16","v":{"$error":"#DIV/0!"}},{"$f":"'Resultats PMV'!M16/'Resultats PMV'!$P16","v":{"$error":"#DIV/0!"}},{"$f":"'Resultats PMV'!N16/'Resultats PMV'!$P16","v":{"$error":"#DIV/0!"}},{"$f":"'Resultats PMV'!O16/'Resultats PMV'!$P16","v":{"$error":"#DIV/0!"}},{"$error":"#DIV/0!"},null,{"$f":"'Resultats PMV'!R16","v":0},{"$f":"'Resultats PMV'!S16/'Resultats PMV'!$P16","v":{"$error":"#DIV/0!"}},{"$f":"'Resultats PMV'!T16/'Resultats PMV'!$P16","v":{"$error":"#DIV/0!"}},{"$f":"'Resultats PMV'!U16/'Resultats PMV'!$P16","v":{"$error":"#DIV/0!"}},{"$f":"'Resultats PMV'!V16/'Resultats PMV'!$P16","v":{"$error":"#DIV/0!"}},{"$f":"'Resultats PMV'!W16/'Resultats PMV'!$P16","v":{"$error":"#DIV/0!"}},{"$f":"'Resultats PMV'!X16/'Resultats PMV'!$P16","v":{"$error":"#DIV/0!"}},{"$f":"'Resultats PMV'!Y16/'Resultats PMV'!$P16","v":{"$error":"#DIV/0!"}},{"$f":"'Resultats PMV'!Z16/'Resultats PMV'!$P16","v":{"$error":"#DIV/0!"}},{"$f":"'Resultats PMV'!AA16/'Resultats PMV'!$P16","v":{"$error":"#DIV/0!"}},{"$f":"'Resultats PMV'!AB16/'Resultats PMV'!$P16","v":{"$error":"#DIV/0!"}},{"$error":"#DIV/0!"},null,{"$f":"'Resultats PMV'!AI16","v":0},{"$f":"'Resultats PMV'!AN16/'Resultats PMV'!$AX16","v":{"$error":"#DIV/0!"}},{"$f":"'Resultats PMV'!AO16/'Resultats PMV'!$AX16","v":{"$error":"#DIV/0!"}},{"$f":"'Resultats PMV'!AP16/'Resultats PMV'!$AX16","v":{"$error":"#DIV/0!"}},{"$f":"'Resultats PMV'!AQ16/'Resultats PMV'!$AX16","v":{"$error":"#DIV/0!"}},{"$f":"'Resultats PMV'!AR16/'Resultats PMV'!$AX16","v":{"$error":"#DIV/0!"}},{"$f":"'Resultats PMV'!AS16/'Resultats PMV'!$AX16","v":{"$error":"#DIV/0!"}},{"$f":"'Resultats PMV'!AT16/'Resultats PMV'!$AX16","v":{"$error":"#DIV/0!"}},{"$f":"'Resultats PMV'!AU16/'Resultats PMV'!$AX16","v":{"$error":"#DIV/0!"}},{"$f":"'Resultats PMV'!AV16/'Resultats PMV'!$AX16","v":{"$error":"#DIV/0!"}},{"$f":"'Resultats PMV'!AW16/'Resultats PMV'!$AX16","v":{"$error":"#DIV/0!"}},{"$error":"#DIV/0!"}]
[null,{"$f":"'Resultats PMV'!A17","v":0},{"$f":"'Resultats PMV'!F17/'Resultats PMV'!$P17","v":{"$error":"#DIV/0!"}},{"$f":"'Resultats PMV'!G17/'Resultats PMV'!$P17","v":{"$error":"#DIV/0!"}},{"$f":"'Resultats PMV'!H17/'Resultats PMV'!$P17","v":{"$error":"#DIV/0!"}},{"$f":"'Resultats PMV'!I17/'Resultats PMV'!$P17","v":{"$error":"#DIV/0!"}},{"$f":"'Resultats PMV'!J17/'Resultats PMV'!$P17","v":{"$error":"#DIV/0!"}},{"$f":"'Resultats PMV'!K17/'Resultats PMV'!$P17","v":{"$error":"#DIV/0!"}},{"$f":"'Resultats PMV'!L17/'Resultats PMV'!$P17","v":{"$error":"#DIV/0!"}},{"$f":"'Resultats PMV'!M17/'Resultats PMV'!$P17","v":{"$error":"#DIV/0!"}},{"$f":"'Resultats PMV'!N17/'Resultats PMV'!$P17","v":{"$error":"#DIV/0!"}},{"$f":"'Resultats PMV'!O17/'Resultats PMV'!$P17","v":{"$error":"#DIV/0!"}},{"$error":"#DIV/0!"},null,{"$f":"'Resultats PMV'!R17","v":0},{"$f":"'Resultats PMV'!S17/'Resultats PMV'!$P17","v":{"$error":"#DIV/0!"}},{"$f":"'Resultats PMV'!T17/'Resultats PMV'!$P17","v":{"$error":"#DIV/0!"}},{"$f":"'Resultats PMV'!U17/'Resultats PMV'!$P17","v":{"$error":"#DIV/0!"}},{"$f":"'Resultats PMV'!V17/'Resultats PMV'!$P17","v":{"$error":"#DIV/0!"}},{"$f":"'Resultats PMV'!W17/'Resultats PMV'!$P17","v":{"$error":"#DIV/0!"}},{"$f":"'Resultats PMV'!X17/'Resultats PMV'!$P17","v":{"$error":"#DIV/0!"}},{"$f":"'Resultats PMV'!Y17/'Resultats PMV'!$P17","v":{"$error":"#DIV/0!"}},{"$f":"'Resultats PMV'!Z17/'Resultats PMV'!$P17","v":{"$error":"#DIV/0!"}},{"$f":"'Resultats PMV'!AA17/'Resultats PMV'!$P17","v":{"$error":"#DIV/0!"}},{"$f":"'Resultats PMV'!AB17/'Resultats PMV'!$P17","v":{"$error":"#DIV/0!"}},{"$error":"#DIV/0!"},null,{"$f":"'Resultats PMV'!AI17","v":0},{"$f":"'Resultats PMV'!AN17/'Resultats PMV'!$AX17","v":{"$error":"#DIV/0!"}},{"$f":"'Resultats PMV'!AO17/'Resultats PMV'!$AX17","v":{"$error":"#DIV/0!"}},{"$f":"'Resultats PMV'!AP17/'Resultats PMV'!$AX17","v":{"$error":"#DIV/0!"}},{"$f":"'Resultats PMV'!AQ17/'Resultats PMV'!$AX17","v":{"$error":"#DIV/0!"}},{"$f":"'Resultats PMV'!AR17/'Resultats PMV'!$AX17","v":{"$error":"#DIV/0!"}},{"$f":"'Resultats PMV'!AS17/'Resultats PMV'!$AX17","v":{"$error":"#DIV/0!"}},{"$f":"'Resultats PMV'!AT17/'Resultats PMV'!$AX17","v":{"$error":"#DIV/0!"}},{"$f":"'Resultats PMV'!AU17/'Resultats PMV'!$AX17","v":{"$error":"#DIV/0!"}},{"$f":"'Resultats PMV'!AV17/'Resultats PMV'!$AX17","v":{"$error":"#DIV/0!"}},{"$f":"'Resultats PMV'!AW17/'Resultats PMV'!$AX17","v":{"$error":"#DIV/0!"}},{"$error":"#DIV/0!"}]
[null,{"$f":"'Resultats PMV'!A18","v":0},{"$f":"'Resultats PMV'!F18/'Resultats PMV'!$P18","v":{"$error":"#DIV/0!"}},{"$f":"'Resultats PMV'!G18/'Resultats PMV'!$P18","v":{"$error":"#DIV/0!"}},{"$f":"'Resultats PMV'!H18/'Resultats PMV'!$P18","v":{"$error":"#DIV/0!"}},{"$f":"'Resultats PMV'!I18/'Resultats PMV'!$P18","v":{"$error":"#DIV/0!"}},{"$f":"'Resultats PMV'!J18/'Resultats PMV'!$P18","v":{"$error":"#DIV/0!"}},{"$f":"'Resultats PMV'!K18/'Resultats PMV'!$P18","v":{"$error":"#DIV/0!"}},{"$f":"'Resultats PMV'!L18/'Resultats PMV'!$P18","v":{"$error":"#DIV/0!"}},{"$f":"'Resultats PMV'!M18/'Resultats PMV'!$P18","v":{"$error":"#DIV/0!"}},{"$f":"'Resultats PMV'!N18/'Resultats PMV'!$P18","v":{"$error":"#DIV/0!"}},{"$f":"'Resultats PMV'!O18/'Resultats PMV'!$P18","v":{"$error":"#DIV/0!"}},{"$error":"#DIV/0!"},null,{"$f":"'Resultats PMV'!R18","v":0},{"$f":"'Resultats PMV'!S18/'Resultats PMV'!$P18","v":{"$error":"#DIV/0!"}},{"$f":"'Resultats PMV'!T18/'Resultats PMV'!$P18","v":{"$error":"#DIV/0!"}},{"$f":"'Resultats PMV'!U18/'Resultats PMV'!$P18","v":{"$error":"#DIV/0!"}},{"$f":"'Resultats PMV'!V18/'Resultats PMV'!$P18","v":{"$error":"#DIV/0!"}},{"$f":"'Resultats PMV'!W18/'Resultats PMV'!$P18","v":{"$error":"#DIV/0!"}},{"$f":"'Resultats PMV'!X18/'Resultats PMV'!$P18","v":{"$error":"#DIV/0!"}},{"$f":"'Resultats PMV'!Y18/'Resultats PMV'!$P18","v":{"$error":"#DIV/0!"}},{"$f":"'Resultats PMV'!Z18/'Resultats PMV'!$P18","v":{"$error":"#DIV/0!"}},{"$f":"'Resultats PMV'!AA18/'Resultats PMV'!$P18","v":{"$error":"#DIV/0!"}},{"$f":"'Resultats PMV'!AB18/'Resultats PMV'!$P18","v":{"$error":"#DIV/0!"}},{"$error":"#DIV/0!"},null,{"$f":"'Resultats PMV'!AI18","v":0},{"$f":"'Resultats PMV'!AN18/'Resultats PMV'!$AX18","v":{"$error":"#DIV/0!"}},{"$f":"'Resultats PMV'!AO18/'Resultats PMV'!$AX18","v":{"$error":"#DIV/0!"}},{"$f":"'Resultats PMV'!AP18/'Resultats PMV'!$AX18","v":{"$error":"#DIV/0!"}},{"$f":"'Resultats PMV'!AQ18/'Resultats PMV'!$AX18","v":{"$error":"#DIV/0!"}},{"$f":"'Resultats PMV'!AR18/'Resultats PMV'!$AX18","v":{"$error":"#DIV/0!"}},{"$f":"'Resultats PMV'!AS18/'Resultats PMV'!$AX18","v":{"$error":"#DIV/0!"}},{"$f":"'Resultats PMV'!AT18/'Resultats PMV'!$AX18","v":{"$error":"#DIV/0!"}},{"$f":"'Resultats PMV'!AU18/'Resultats PMV'!$AX18","v":{"$error":"#DIV/0!"}},{"$f":"'Resultats PMV'!AV18/'Resultats PMV'!$AX18","v":{"$error":"#DIV/0!"}},{"$f":"'Resultats PMV'!AW18/'Resultats PMV'!$AX18","v":{"$error":"#DIV/0!"}},{"$error":"#DIV/0!"}]
[null,{"$f":"'Resultats PMV'!A19","v":0},{"$f":"'Resultats PMV'!F19/'Resultats PMV'!$P19","v":{"$error":"#DIV/0!"}},{"$f":"'Resultats PMV'!G19/'Resultats PMV'!$P19","v":{"$error":"#DIV/0!"}},{"$f":"'Resultats PMV'!H19/'Resultats PMV'!$P19","v":{"$error":"#DIV/0!"}},{"$f":"'Resultats PMV'!I19/'Resultats PMV'!$P19","v":{"$error":"#DIV/0!"}},{"$f":"'Resultats PMV'!J19/'Resultats PMV'!$P19","v":{"$error":"#DIV/0!"}},{"$f":"'Resultats PMV'!K19/'Resultats PMV'!$P19","v":{"$error":"#DIV/0!"}},{"$f":"'Resultats PMV'!L19/'Resultats PMV'!$P19","v":{"$error":"#DIV/0!"}},{"$f":"'Resultats PMV'!M19/'Resultats PMV'!$P19","v":{"$error":"#DIV/0!"}},{"$f":"'Resultats PMV'!N19/'Resultats PMV'!$P19","v":{"$error":"#DIV/0!"}},{"$f":"'Resultats PMV'!O19/'Resultats PMV'!$P19","v":{"$error":"#DIV/0!"}},{"$error":"#DIV/0!"},null,{"$f":"'Resultats PMV'!R19","v":0},{"$f":"'Resultats PMV'!S19/'Resultats PMV'!$P19","v":{"$error":"#DIV/0!"}},{"$f":"'Resultats PMV'!T19/'Resultats PMV'!$P19","v":{"$error":"#DIV/0!"}},{"$f":"'Resultats PMV'!U19/'Resultats PMV'!$P19","v":{"$error":"#DIV/0!"}},{"$f":"'Resultats PMV'!V19/'Resultats PMV'!$P19","v":{"$error":"#DIV/0!"}},{"$f":"'Resultats PMV'!W19/'Resultats PMV'!$P19","v":{"$error":"#DIV/0!"}},{"$f":"'Resultats PMV'!X19/'Resultats PMV'!$P19","v":{"$error":"#DIV/0!"}},{"$f":"'Resultats PMV'!Y19/'Resultats PMV'!$P19","v":{"$error":"#DIV/0!"}},{"$f":"'Resultats PMV'!Z19/'Resultats PMV'!$P19","v":{"$error":"#DIV/0!"}},{"$f":"'Resultats PMV'!AA19/'Resultats PMV'!$P19","v":{"$error":"#DIV/0!"}},{"$f":"'Resultats PMV'!AB19/'Resultats PMV'!$P19","v":{"$error":"#DIV/0!"}},{"$error":"#DIV/0!"},null,{"$f":"'Resultats PMV'!AI19","v":0},{"$f":"'Resultats PMV'!AN19/'Resultats PMV'!$AX19","v":{"$error":"#DIV/0!"}},{"$f":"'Resultats PMV'!AO19/'Resultats PMV'!$AX19","v":{"$error":"#DIV/0!"}},{"$f":"'Resultats PMV'!AP19/'Resultats PMV'!$AX19","v":{"$error":"#DIV/0!"}},{"$f":"'Resultats PMV'!AQ19/'Resultats PMV'!$AX19","v":{"$error":"#DIV/0!"}},{"$f":"'Resultats PMV'!AR19/'Resultats PMV'!$AX19","v":{"$error":"#DIV/0!"}},{"$f":"'Resultats PMV'!AS19/'Resultats PMV'!$AX19","v":{"$error":"#DIV/0!"}},{"$f":"'Resultats PMV'!AT19/'Resultats PMV'!$AX19","v":{"$error":"#DIV/0!"}},{"$f":"'Resultats PMV'!AU19/'Resultats PMV'!$AX19","v":{"$error":"#DIV/0!"}},{"$f":"'Resultats PMV'!AV19/'Resultats PMV'!$AX19","v":{"$error":"#DIV/0!"}},{"$f":"'Resultats PMV'!AW19/'Resultats PMV'!$AX19","v":{"$error":"#DIV/0!"}},{"$error":"#DIV/0!"}]
[null,{"$f":"'Resultats PMV'!A20","v":0},{"$f":"'Resultats PMV'!F20/'Resultats PMV'!$P20","v":{"$error":"#DIV/0!"}},{"$f":"'Resultats PMV'!G20/'Resultats PMV'!$P20","v":{"$error":"#DIV/0!"}},{"$f":"'Resultats PMV'!H20/'Resultats PMV'!$P20","v":{"$error":"#DIV/0!"}},{"$f":"'Resultats PMV'!I20/'Resultats PMV'!$P20","v":{"$error":"#DIV/0!"}},{"$f":"'Resultats PMV'!J20/'Resultats PMV'!$P20","v":{"$error":"#DIV/0!"}},{"$f":"'Resultats PMV'!K20/'Resultats PMV'!$P20","v":{"$error":"#DIV/0!"}},{"$f":"'Resultats PMV'!L20/'Resultats PMV'!$P20","v":{"$error":"#DIV/0!"}},{"$f":"'Resultats PMV'!M20/'Resultats PMV'!$P20","v":{"$error":"#DIV/0!"}},{"$f":"'Resultats PMV'!N20/'Resultats PMV'!$P20","v":{"$error":"#DIV/0!"}},{"$f":"'Resultats PMV'!O20/'Resultats PMV'!$P20","v":{"$error":"#DIV/0!"}},{"$error":"#DIV/0!"},null,{"$f":"'Resultats PMV'!R20","v":0},{"$f":"'Resultats PMV'!S20/'Resultats PMV'!$P20","v":{"$error":"#DIV/0!"}},{"$f":"'Resultats PMV'!T20/'Resultats PMV'!$P20","v":{"$error":"#DIV/0!"}},{"$f":"'Resultats PMV'!U20/'Resultats PMV'!$P20","v":{"$error":"#DIV/0!"}},{"$f":"'Resultats PMV'!V20/'Resultats PMV'!$P20","v":{"$error":"#DIV/0!"}},{"$f":"'Resultats PMV'!W20/'Resultats PMV'!$P20","v":{"$error":"#DIV/0!"}},{"$f":"'Resultats PMV'!X20/'Resultats PMV'!$P20","v":{"$error":"#DIV/0!"}},{"$f":"'Resultats PMV'!Y20/'Resultats PMV'!$P20","v":{"$error":"#DIV/0!"}},{"$f":"'Resultats PMV'!Z20/'Resultats PMV'!$P20","v":{"$error":"#DIV/0!"}},{"$f":"'Resultats PMV'!AA20/'Resultats PMV'!$P20","v":{"$error":"#DIV/0!"}},{"$f":"'Resultats PMV'!AB20/'Resultats PMV'!$P20","v":{"$error":"#DIV/0!"}},{"$error":"#DIV/0!"},null,{"$f":"'Resultats PMV'!AI20","v":0},{"$f":"'Resultats PMV'!AN20/'Resultats PMV'!$AX20","v":{"$error":"#DIV/0!"}},{"$f":"'Resultats PMV'!AO20/'Resultats PMV'!$AX20","v":{"$error":"#DIV/0!"}},{"$f":"'Resultats PMV'!AP20/'Resultats PMV'!$AX20","v":{"$error":"#DIV/0!"}},{"$f":"'Resultats PMV'!AQ20/'Resultats PMV'!$AX20","v":{"$error":"#DIV/0!"}},{"$f":"'Resultats PMV'!AR20/'Resultats PMV'!$AX20","v":{"$error":"#DIV/0!"}},{"$f":"'Resultats PMV'!AS20/'Resultats PMV'!$AX20","v":{"$error":"#DIV/0!"}},{"$f":"'Resultats PMV'!AT20/'Resultats PMV'!$AX20","v":{"$error":"#DIV/0!"}},{"$f":"'Resultats PMV'!AU20/'Resultats PMV'!$AX20","v":{"$error":"#DIV/0!"}},{"$f":"'Resultats PMV'!AV20/'Resultats PMV'!$AX20","v":{"$error":"#DIV/0!"}},{"$f":"'Resultats PMV'!AW20/'Resultats PMV'!$AX20","v":{"$error":"#DIV/0!"}},{"$error":"#DIV/0!"}]
[null,{"$f":"'Resultats PMV'!A21","v":0},{"$f":"'Resultats PMV'!F21/'Resultats PMV'!$P21","v":{"$error":"#DIV/0!"}},{"$f":"'Resultats PMV'!G21/'Resultats PMV'!$P21","v":{"$error":"#DIV/0!"}},{"$f":"'Resultats PMV'!H21/'Resultats PMV'!$P21","v":{"$error":"#DIV/0!"}},{"$f":"'Resultats PMV'!I21/'Resultats PMV'!$P21","v":{"$error":"#DIV/0!"}},{"$f":"'Resultats PMV'!J21/'Resultats PMV'!$P21","v":{"$error":"#DIV/0!"}},{"$f":"'Resultats PMV'!K21/'Resultats PMV'!$P21","v":{"$error":"#DIV/0!"}},{"$f":"'Resultats PMV'!L21/'Resultats PMV'!$P21","v":{"$error":"#DIV/0!"}},{"$f":"'Resultats PMV'!M21/'Resultats PMV'!$P21","v":{"$error":"#DIV/0!"}},{"$f":"'Resultats PMV'!N21/'Resultats PMV'!$P21","v":{"$error":"#DIV/0!"}},{"$f":"'Resultats PMV'!O21/'Resultats PMV'!$P21","v":{"$error":"#DIV/0!"}},{"$error":"#DIV/0!"},null,{"$f":"'Resultats PMV'!R21","v":0},{"$f":"'Resultats PMV'!S21/'Resultats PMV'!$P21","v":{"$error":"#DIV/0!"}},{"$f":"'Resultats PMV'!T21/'Resultats PMV'!$P21","v":{"$error":"#DIV/0!"}},{"$f":"'Resultats PMV'!U21/'Resultats PMV'!$P21","v":{"$error":"#DIV/0!"}},{"$f":"'Resultats PMV'!V21/'Resultats PMV'!$P21","v":{"$error":"#DIV/0!"}},{"$f":"'Resultats PMV'!W21/'Resultats PMV'!$P21","v":{"$error":"#DIV/0!"}},{"$f":"'Resultats PMV'!X21/'Resultats PMV'!$P21","v":{"$error":"#DIV/0!"}},{"$f":"'Resultats PMV'!Y21/'Resultats PMV'!$P21","v":{"$error":"#DIV/0!"}},{"$f":"'Resultats PMV'!Z21/'Resultats PMV'!$P21","v":{"$error":"#DIV/0!"}},{"$f":"'Resultats PMV'!AA21/'Resultats PMV'!$P21","v":{"$error":"#DIV/0!"}},{"$f":"'Resultats PMV'!AB21/'Resultats PMV'!$P21","v":{"$error":"#DIV/0!"}},{"$error":"#DIV/0!"},null,{"$f":"'Resultats PMV'!AI21","v":0},{"$f":"'Resultats PMV'!AN21/'Resultats PMV'!$AX21","v":{"$error":"#DIV/0!"}},{"$f":"'Resultats PMV'!AO21/'Resultats PMV'!$AX21","v":{"$error":"#DIV/0!"}},{"$f":"'Resultats PMV'!AP21/'Resultats PMV'!$AX21","v":{"$error":"#DIV/0!"}},{"$f":"'Resultats PMV'!AQ21/'Resultats PMV'!$AX21","v":{"$error":"#DIV/0!"}},{"$f":"'Resultats PMV'!AR21/'Resultats PMV'!$AX21","v":{"$error":"#DIV/0!"}},{"$f":"'Resultats PMV'!AS21/'Resultats PMV'!$AX21","v":{"$error":"#DIV/0!"}},{"$f":"'Resultats PMV'!AT21/'Resultats PMV'!$AX21","v":{"$error":"#DIV/0!"}},{"$f":"'Resultats PMV'!AU21/'Resultats PMV'!$AX21","v":{"$error":"#DIV/0!"}},{"$f":"'Resultats PMV'!AV21/'Resultats PMV'!$AX21","v":{"$error":"#DIV/0!"}},{"$f":"'Resultats PMV'!AW21/'Resultats PMV'!$AX21","v":{"$error":"#DIV/0!"}},{"$error":"#DIV/0!"}]
[null,{"$f":"'Resultats PMV'!A22","v":0},{"$f":"'Resultats PMV'!F22/'Resultats PMV'!$P22","v":{"$error":"#DIV/0!"}},{"$f":"'Resultats PMV'!G22/'Resultats PMV'!$P22","v":{"$error":"#DIV/0!"}},{"$f":"'Resultats PMV'!H22/'Resultats PMV'!$P22","v":{"$error":"#DIV/0!"}},{"$f":"'Resultats PMV'!I22/'Resultats PMV'!$P22","v":{"$error":"#DIV/0!"}},{"$f":"'Resultats PMV'!J22/'Resultats PMV'!$P22","v":{"$error":"#DIV/0!"}},{"$f":"'Resultats PMV'!K22/'Resultats PMV'!$P22","v":{"$error":"#DIV/0!"}},{"$f":"'Resultats PMV'!L22/'Resultats PMV'!$P22","v":{"$error":"#DIV/0!"}},{"$f":"'Resultats PMV'!M22/'Resultats PMV'!$P22","v":{"$error":"#DIV/0!"}},{"$f":"'Resultats PMV'!N22/'Resultats PMV'!$P22","v":{"$error":"#DIV/0!"}},{"$f":"'Resultats PMV'!O22/'Resultats PMV'!$P22","v":{"$error":"#DIV/0!"}},{"$error":"#DIV/0!"},null,{"$f":"'Resultats PMV'!R22","v":0},{"$f":"'Resultats PMV'!S22/'Resultats PMV'!$P22","v":{"$error":"#DIV/0!"}},{"$f":"'Resultats PMV'!T22/'Resultats PMV'!$P22","v":{"$error":"#DIV/0!"}},{"$f":"'Resultats PMV'!U22/'Resultats PMV'!$P22","v":{"$error":"#DIV/0!"}},{"$f":"'Resultats PMV'!V22/'Resultats PMV'!$P22","v":{"$error":"#DIV/0!"}},{"$f":"'Resultats PMV'!W22/'Resultats PMV'!$P22","v":{"$error":"#DIV/0!"}},{"$f":"'Resultats PMV'!X22/'Resultats PMV'!$P22","v":{"$error":"#DIV/0!"}},{"$f":"'Resultats PMV'!Y22/'Resultats PMV'!$P22","v":{"$error":"#DIV/0!"}},{"$f":"'Resultats PMV'!Z22/'Resultats PMV'!$P22","v":{"$error":"#DIV/0!"}},{"$f":"'Resultats PMV'!AA22/'Resultats PMV'!$P22","v":{"$error":"#DIV/0!"}},{"$f":"'Resultats PMV'!AB22/'Resultats PMV'!$P22","v":{"$error":"#DIV/0!"}},{"$error":"#DIV/0!"},null,{"$f":"'Resultats PMV'!AI22","v":0},{"$f":"'Resultats PMV'!AN22/'Resultats PMV'!$AX22","v":{"$error":"#DIV/0!"}},{"$f":"'Resultats PMV'!AO22/'Resultats PMV'!$AX22","v":{"$error":"#DIV/0!"}},{"$f":"'Resultats PMV'!AP22/'Resultats PMV'!$AX22","v":{"$error":"#DIV/0!"}},{"$f":"'Resultats PMV'!AQ22/'Resultats PMV'!$AX22","v":{"$error":"#DIV/0!"}},{"$f":"'Resultats PMV'!AR22/'Resultats PMV'!$AX22","v":{"$error":"#DIV/0!"}},{"$f":"'Resultats PMV'!AS22/'Resultats PMV'!$AX22","v":{"$error":"#DIV/0!"}},{"$f":"'Resultats PMV'!AT22/'Resultats PMV'!$AX22","v":{"$error":"#DIV/0!"}},{"$f":"'Resultats PMV'!AU22/'Resultats PMV'!$AX22","v":{"$error":"#DIV/0!"}},{"$f":"'Resultats PMV'!AV22/'Resultats PMV'!$AX22","v":{"$error":"#DIV/0!"}},{"$f":"'Resultats PMV'!AW22/'Resultats PMV'!$AX22","v":{"$error":"#DIV/0!"}},{"$error":"#DIV/0!"}]
[null,{"$f":"'Resultats PMV'!A23","v":0},{"$f":"'Resultats PMV'!F23/'Resultats PMV'!$P23","v":{"$error":"#DIV/0!"}},{"$f":"'Resultats PMV'!G23/'Resultats PMV'!$P23","v":{"$error":"#DIV/0!"}},{"$f":"'Resultats PMV'!H23/'Resultats PMV'!$P23","v":{"$error":"#DIV/0!"}},{"$f":"'Resultats PMV'!I23/'Resultats PMV'!$P23","v":{"$error":"#DIV/0!"}},{"$f":"'Resultats PMV'!J23/'Resultats PMV'!$P23","v":{"$error":"#DIV/0!"}},{"$f":"'Resultats PMV'!K23/'Resultats PMV'!$P23","v":{"$error":"#DIV/0!"}},{"$f":"'Resultats PMV'!L23/'Resultats PMV'!$P23","v":{"$error":"#DIV/0!"}},{"$f":"'Resultats PMV'!M23/'Resultats PMV'!$P23","v":{"$error":"#DIV/0!"}},{"$f":"'Resultats PMV'!N23/'Resultats PMV'!$P23","v":{"$error":"#DIV/0!"}},{"$f":"'Resultats PMV'!O23/'Resultats PMV'!$P23","v":{"$error":"#DIV/0!"}},{"$error":"#DIV/0!"},null,{"$f":"'Resultats PMV'!R23","v":0},{"$f":"'Resultats PMV'!S23/'Resultats PMV'!$P23","v":{"$error":"#DIV/0!"}},{"$f":"'Resultats PMV'!T23/'Resultats PMV'!$P23","v":{"$error":"#DIV/0!"}},{"$f":"'Resultats PMV'!U23/'Resultats PMV'!$P23","v":{"$error":"#DIV/0!"}},{"$f":"'Resultats PMV'!V23/'Resultats PMV'!$P23","v":{"$error":"#DIV/0!"}},{"$f":"'Resultats PMV'!W23/'Resultats PMV'!$P23","v":{"$error":"#DIV/0!"}},{"$f":"'Resultats PMV'!X23/'Resultats PMV'!$P23","v":{"$error":"#DIV/0!"}},{"$f":"'Resultats PMV'!Y23/'Resultats PMV'!$P23","v":{"$error":"#DIV/0!"}},{"$f":"'Resultats PMV'!Z23/'Resultats PMV'!$P23","v":{"$error":"#DIV/0!"}},{"$f":"'Resultats PMV'!AA23/'Resultats PMV'!$P23","v":{"$error":"#DIV/0!"}},{"$f":"'Resultats PMV'!AB23/'Resultats PMV'!$P23","v":{"$error":"#DIV/0!"}},{"$error":"#DIV/0!"},null,{"$f":"'Resultats PMV'!AI23","v":0},{"$f":"'Resultats PMV'!AN23/'Resultats PMV'!$AX23","v":{"$error":"#DIV/0!"}},{"$f":"'Resultats PMV'!AO23/'Resultats PMV'!$AX23","v":{"$error":"#DIV/0!"}},{"$f":"'Resultats PMV'!AP23/'Resultats PMV'!$AX23","v":{"$error":"#DIV/0!"}},{"$f":"'Resultats PMV'!AQ23/'Resultats PMV'!$AX23","v":{"$error":"#DIV/0!"}},{"$f":"'Resultats PMV'!AR23/'Resultats PMV'!$AX23","v":{"$error":"#DIV/0!"}},{"$f":"'Resultats PMV'!AS23/'Resultats PMV'!$AX23","v":{"$error":"#DIV/0!"}},{"$f":"'Resultats PMV'!AT23/'Resultats PMV'!$AX23","v":{"$error":"#DIV/0!"}},{"$f":"'Resultats PMV'!AU23/'Resultats PMV'!$AX23","v":{"$error":"#DIV/0!"}},{"$f":"'Resultats PMV'!AV23/'Resultats PMV'!$AX23","v":{"$error":"#DIV/0!"}},{"$f":"'Resultats PMV'!AW23/'Resultats PMV'!$AX23","v":{"$error":"#DIV/0!"}},{"$error":"#DIV/0!"}]
[null,{"$f":"'Resultats PMV'!A24","v":0},{"$f":"'Resultats PMV'!F24/'Resultats PMV'!$P24","v":{"$error":"#DIV/0!"}},{"$f":"'Resultats PMV'!G24/'Resultats PMV'!$P24","v":{"$error":"#DIV/0!"}},{"$f":"'Resultats PMV'!H24/'Resultats PMV'!$P24","v":{"$error":"#DIV/0!"}},{"$f":"'Resultats PMV'!I24/'Resultats PMV'!$P24","v":{"$error":"#DIV/0!"}},{"$f":"'Resultats PMV'!J24/'Resultats PMV'!$P24","v":{"$error":"#DIV/0!"}},{"$f":"'Resultats PMV'!K24/'Resultats PMV'!$P24","v":{"$error":"#DIV/0!"}},{"$f":"'Resultats PMV'!L24/'Resultats PMV'!$P24","v":{"$error":"#DIV/0!"}},{"$f":"'Resultats PMV'!M24/'Resultats PMV'!$P24","v":{"$error":"#DIV/0!"}},{"$f":"'Resultats PMV'!N24/'Resultats PMV'!$P24","v":{"$error":"#DIV/0!"}},{"$f":"'Resultats PMV'!O24/'Resultats PMV'!$P24","v":{"$error":"#DIV/0!"}},{"$error":"#DIV/0!"},null,{"$f":"'Resultats PMV'!R24","v":0},{"$f":"'Resultats PMV'!S24/'Resultats PMV'!$P24","v":{"$error":"#DIV/0!"}},{"$f":"'Resultats PMV'!T24/'Resultats PMV'!$P24","v":{"$error":"#DIV/0!"}},{"$f":"'Resultats PMV'!U24/'Resultats PMV'!$P24","v":{"$error":"#DIV/0!"}},{"$f":"'Resultats PMV'!V24/'Resultats PMV'!$P24","v":{"$error":"#DIV/0!"}},{"$f":"'Resultats PMV'!W24/'Resultats PMV'!$P24","v":{"$error":"#DIV/0!"}},{"$f":"'Resultats PMV'!X24/'Resultats PMV'!$P24","v":{"$error":"#DIV/0!"}},{"$f":"'Resultats PMV'!Y24/'Resultats PMV'!$P24","v":{"$error":"#DIV/0!"}},{"$f":"'Resultats PMV'!Z24/'Resultats PMV'!$P24","v":{"$error":"#DIV/0!"}},{"$f":"'Resultats PMV'!AA24/'Resultats PMV'!$P24","v":{"$error":"#DIV/0!"}},{"$f":"'Resultats PMV'!AB24/'Resultats PMV'!$P24","v":{"$error":"#DIV/0!"}},{"$error":"#DIV/0!"},null,{"$f":"'Resultats PMV'!AI24","v":0},{"$f":"'Resultats PMV'!AN24/'Resultats PMV'!$AX24","v":{"$error":"#DIV/0!"}},{"$f":"'Resultats PMV'!AO24/'Resultats PMV'!$AX24","v":{"$error":"#DIV/0!"}},{"$f":"'Resultats PMV'!AP24/'Resultats PMV'!$AX24","v":{"$error":"#DIV/0!"}},{"$f":"'Resultats PMV'!AQ24/'Resultats PMV'!$AX24","v":{"$error":"#DIV/0!"}},{"$f":"'Resultats PMV'!AR24/'Resultats PMV'!$AX24","v":{"$error":"#DIV/0!"}},{"$f":"'Resultats PMV'!AS24/'Resultats PMV'!$AX24","v":{"$error":"#DIV/0!"}},{"$f":"'Resultats PMV'!AT24/'Resultats PMV'!$AX24","v":{"$error":"#DIV/0!"}},{"$f":"'Resultats PMV'!AU24/'Resultats PMV'!$AX24","v":{"$error":"#DIV/0!"}},{"$f":"'Resultats PMV'!AV24/'Resultats PMV'!$AX24","v":{"$error":"#DIV/0!"}},{"$f":"'Resultats PMV'!AW24/'Resultats PMV'!$AX24","v":{"$error":"#DIV/0!"}},{"$error":"#DIV/0!"}]
[null,{"$f":"'Resultats PMV'!A25","v":0},{"$f":"'Resultats PMV'!F25/'Resultats PMV'!$P25","v":{"$error":"#DIV/0!"}},{"$f":"'Resultats PMV'!G25/'Resultats PMV'!$P25","v":{"$error":"#DIV/0!"}},{"$f":"'Resultats PMV'!H25/'Resultats PMV'!$P25","v":{"$error":"#DIV/0!"}},{"$f":"'Resultats PMV'!I25/'Resultats PMV'!$P25","v":{"$error":"#DIV/0!"}},{"$f":"'Resultats PMV'!J25/'Resultats PMV'!$P25","v":{"$error":"#DIV/0!"}},{"$f":"'Resultats PMV'!K25/'Resultats PMV'!$P25","v":{"$error":"#DIV/0!"}},{"$f":"'Resultats PMV'!L25/'Resultats PMV'!$P25","v":{"$error":"#DIV/0!"}},{"$f":"'Resultats PMV'!M25/'Resultats PMV'!$P25","v":{"$error":"#DIV/0!"}},{"$f":"'Resultats PMV'!N25/'Resultats PMV'!$P25","v":{"$error":"#DIV/0!"}},{"$f":"'Resultats PMV'!O25/'Resultats PMV'!$P25","v":{"$error":"#DIV/0!"}},{"$error":"#DIV/0!"},null,{"$f":"'Resultats PMV'!R25","v":0},{"$f":"'Resultats PMV'!S25/'Resultats PMV'!$P25","v":{"$error":"#DIV/0!"}},{"$f":"'Resultats PMV'!T25/'Resultats PMV'!$P25","v":{"$error":"#DIV/0!"}},{"$f":"'Resultats PMV'!U25/'Resultats PMV'!$P25","v":{"$error":"#DIV/0!"}},{"$f":"'Resultats PMV'!V25/'Resultats PMV'!$P25","v":{"$error":"#DIV/0!"}},{"$f":"'Resultats PMV'!W25/'Resultats PMV'!$P25","v":{"$error":"#DIV/0!"}},{"$f":"'Resultats PMV'!X25/'Resultats PMV'!$P25","v":{"$error":"#DIV/0!"}},{"$f":"'Resultats PMV'!Y25/'Resultats PMV'!$P25","v":{"$error":"#DIV/0!"}},{"$f":"'Resultats PMV'!Z25/'Resultats PMV'!$P25","v":{"$error":"#DIV/0!"}},{"$f":"'Resultats PMV'!AA25/'Resultats PMV'!$P25","v":{"$error":"#DIV/0!"}},{"$f":"'Resultats PMV'!AB25/'Resultats PMV'!$P25","v":{"$error":"#DIV/0!"}},{"$error":"#DIV/0!"},null,{"$f":"'Resultats PMV'!AI25","v":0},{"$f":"'Resultats PMV'!AN25/'Resultats PMV'!$AX25","v":{"$error":"#DIV/0!"}},{"$f":"'Resultats PMV'!AO25/'Resultats PMV'!$AX25","v":{"$error":"#DIV/0!"}},{"$f":"'Resultats PMV'!AP25/'Resultats PMV'!$AX25","v":{"$error":"#DIV/0!"}},{"$f":"'Resultats PMV'!AQ25/'Resultats PMV'!$AX25","v":{"$error":"#DIV/0!"}},{"$f":"'Resultats PMV'!AR25/'Resultats PMV'!$AX25","v":{"$error":"#DIV/0!"}},{"$f":"'Resultats PMV'!AS25/'Resultats PMV'!$AX25","v":{"$error":"#DIV/0!"}},{"$f":"'Resultats PMV'!AT25/'Resultats PMV'!$AX25","v":{"$error":"#DIV/0!"}},{"$f":"'Resultats PMV'!AU25/'Resultats PMV'!$AX25","v":{"$error":"#DIV/0!"}},{"$f":"'Resultats PMV'!AV25/'Resultats PMV'!$AX25","v":{"$error":"#DIV/0!"}},{"$f":"'Resultats PMV'!AW25/'Resultats PMV'!$AX25","v":{"$error":"#DIV/0!"}},{"$error":"#DIV/0!"}]
[null,{"$f":"'Resultats PMV'!A26","v":0},{"$f":"'Resultats PMV'!F26/'Resultats PMV'!$P26","v":{"$error":"#DIV/0!"}},{"$f":"'Resultats PMV'!G26/'Resultats PMV'!$P26","v":{"$error":"#DIV/0!"}},{"$f":"'Resultats PMV'!H26/'Resultats PMV'!$P26","v":{"$error":"#DIV/0!"}},{"$f":"'Resultats PMV'!I26/'Resultats PMV'!$P26","v":{"$error":"#DIV/0!"}},{"$f":"'Resultats PMV'!J26/'Resultats PMV'!$P26","v":{"$error":"#DIV/0!"}},{"$f":"'Resultats PMV'!K26/'Resultats PMV'!$P26","v":{"$error":"#DIV/0!"}},{"$f":"'Resultats PMV'!L26/'Resultats PMV'!$P26","v":{"$error":"#DIV/0!"}},{"$f":"'Resultats PMV'!M26/'Resultats PMV'!$P26","v":{"$error":"#DIV/0!"}},{"$f":"'Resultats PMV'!N26/'Resultats PMV'!$P26","v":{"$error":"#DIV/0!"}},{"$f":"'Resultats PMV'!O26/'Resultats PMV'!$P26","v":{"$error":"#DIV/0!"}},{"$error":"#DIV/0!"},null,{"$f":"'Resultats PMV'!R26","v":0},{"$f":"'Resultats PMV'!S26/'Resultats PMV'!$P26","v":{"$error":"#DIV/0!"}},{"$f":"'Resultats PMV'!T26/'Resultats PMV'!$P26","v":{"$error":"#DIV/0!"}},{"$f":"'Resultats PMV'!U26/'Resultats PMV'!$P26","v":{"$error":"#DIV/0!"}},{"$f":"'Resultats PMV'!V26/'Resultats PMV'!$P26","v":{"$error":"#DIV/0!"}},{"$f":"'Resultats PMV'!W26/'Resultats PMV'!$P26","v":{"$error":"#DIV/0!"}},{"$f":"'Resultats PMV'!X26/'Resultats PMV'!$P26","v":{"$error":"#DIV/0!"}},{"$f":"'Resultats PMV'!Y26/'Resultats PMV'!$P26","v":{"$error":"#DIV/0!"}},{"$f":"'Resultats PMV'!Z26/'Resultats PMV'!$P26","v":{"$error":"#DIV/0!"}},{"$f":"'Resultats PMV'!AA26/'Resultats PMV'!$P26","v":{"$error":"#DIV/0!"}},{"$f":"'Resultats PMV'!AB26/'Resultats PMV'!$P26","v":{"$error":"#DIV/0!"}},{"$error":"#DIV/0!"},null,{"$f":"'Resultats PMV'!AI26","v":0},{"$f":"'Resultats PMV'!AN26/'Resultats PMV'!$AX26","v":{"$error":"#DIV/0!"}},{"$f":"'Resultats PMV'!AO26/'Resultats PMV'!$AX26","v":{"$error":"#DIV/0!"}},{"$f":"'Resultats PMV'!AP26/'Resultats PMV'!$AX26","v":{"$error":"#DIV/0!"}},{"$f":"'Resultats PMV'!AQ26/'Resultats PMV'!$AX26","v":{"$error":"#DIV/0!"}},{"$f":"'Resultats PMV'!AR26/'Resultats PMV'!$AX26","v":{"$error":"#DIV/0!"}},{"$f":"'Resultats PMV'!AS26/'Resultats PMV'!$AX26","v":{"$error":"#DIV/0!"}},{"$f":"'Resultats PMV'!AT26/'Resultats PMV'!$AX26","v":{"$error":"#DIV/0!"}},{"$f":"'Resultats PMV'!AU26/'Resultats PMV'!$AX26","v":{"$error":"#DIV/0!"}},{"$f":"'Resultats PMV'!AV26/'Resultats PMV'!$AX26","v":{"$error":"#DIV/0!"}},{"$f":"'Resultats PMV'!AW26/'Resultats PMV'!$AX26","v":{"$error":"#DIV/0!"}},{"$error":"#DIV/0!"}]
[null,{"$f":"'Resultats PMV'!A27","v":0},{"$f":"'Resultats PMV'!F27/'Resultats PMV'!$P27","v":{"$error":"#DIV/0!"}},{"$f":"'Resultats PMV'!G27/'Resultats PMV'!$P27","v":{"$error":"#DIV/0!"}},{"$f":"'Resultats PMV'!H27/'Resultats PMV'!$P27","v":{"$error":"#DIV/0!"}},{"$f":"'Resultats PMV'!I27/'Resultats PMV'!$P27","v":{"$error":"#DIV/0!"}},{"$f":"'Resultats PMV'!J27/'Resultats PMV'!$P27","v":{"$error":"#DIV/0!"}},{"$f":"'Resultats PMV'!K27/'Resultats PMV'!$P27","v":{"$error":"#DIV/0!"}},{"$f":"'Resultats PMV'!L27/'Resultats PMV'!$P27","v":{"$error":"#DIV/0!"}},{"$f":"'Resultats PMV'!M27/'Resultats PMV'!$P27","v":{"$error":"#DIV/0!"}},{"$f":"'Resultats PMV'!N27/'Resultats PMV'!$P27","v":{"$error":"#DIV/0!"}},{"$f":"'Resultats PMV'!O27/'Resultats PMV'!$P27","v":{"$error":"#DIV/0!"}},{"$error":"#DIV/0!"},null,{"$f":"'Resultats PMV'!R27","v":0},{"$f":"'Resultats PMV'!S27/'Resultats PMV'!$P27","v":{"$error":"#DIV/0!"}},{"$f":"'Resultats PMV'!T27/'Resultats PMV'!$P27","v":{"$error":"#DIV/0!"}},{"$f":"'Resultats PMV'!U27/'Resultats PMV'!$P27","v":{"$error":"#DIV/0!"}},{"$f":"'Resultats PMV'!V27/'Resultats PMV'!$P27","v":{"$error":"#DIV/0!"}},{"$f":"'Resultats PMV'!W27/'Resultats PMV'!$P27","v":{"$error":"#DIV/0!"}},{"$f":"'Resultats PMV'!X27/'Resultats PMV'!$P27","v":{"$error":"#DIV/0!"}},{"$f":"'Resultats PMV'!Y27/'Resultats PMV'!$P27","v":{"$error":"#DIV/0!"}},{"$f":"'Resultats PMV'!Z27/'Resultats PMV'!$P27","v":{"$error":"#DIV/0!"}},{"$f":"'Resultats PMV'!AA27/'Resultats PMV'!$P27","v":{"$error":"#DIV/0!"}},{"$f":"'Resultats PMV'!AB27/'Resultats PMV'!$P27","v":{"$error":"#DIV/0!"}},{"$error":"#DIV/0!"},null,{"$f":"'Resultats PMV'!AI27","v":0},{"$f":"'Resultats PMV'!AN27/'Resultats PMV'!$AX27","v":{"$error":"#DIV/0!"}},{"$f":"'Resultats PMV'!AO27/'Resultats PMV'!$AX27","v":{"$error":"#DIV/0!"}},{"$f":"'Resultats PMV'!AP27/'Resultats PMV'!$AX27","v":{"$error":"#DIV/0!"}},{"$f":"'Resultats PMV'!AQ27/'Resultats PMV'!$AX27","v":{"$error":"#DIV/0!"}},{"$f":"'Resultats PMV'!AR27/'Resultats PMV'!$AX27","v":{"$error":"#DIV/0!"}},{"$f":"'Resultats PMV'!AS27/'Resultats PMV'!$AX27","v":{"$error":"#DIV/0!"}},{"$f":"'Resultats PMV'!AT27/'Resultats PMV'!$AX27","v":{"$error":"#DIV/0!"}},{"$f":"'Resultats PMV'!AU27/'Resultats PMV'!$AX27","v":{"$error":"#DIV/0!"}},{"$f":"'Resultats PMV'!AV27/'Resultats PMV'!$AX27","v":{"$error":"#DIV/0!"}},{"$f":"'Resultats PMV'!AW27/'Resultats PMV'!$AX27","v":{"$error":"#DIV/0!"}},{"$error":"#DIV/0!"}]
[null,{"$f":"'Resultats PMV'!A28","v":0},{"$f":"'Resultats PMV'!F28/'Resultats PMV'!$P28","v":{"$error":"#DIV/0!"}},{"$f":"'Resultats PMV'!G28/'Resultats PMV'!$P28","v":{"$error":"#DIV/0!"}},{"$f":"'Resultats PMV'!H28/'Resultats PMV'!$P28","v":{"$error":"#DIV/0!"}},{"$f":"'Resultats PMV'!I28/'Resultats PMV'!$P28","v":{"$error":"#DIV/0!"}},{"$f":"'Resultats PMV'!J28/'Resultats PMV'!$P28","v":{"$error":"#DIV/0!"}},{"$f":"'Resultats PMV'!K28/'Resultats PMV'!$P28","v":{"$error":"#DIV/0!"}},{"$f":"'Resultats PMV'!L28/'Resultats PMV'!$P28","v":{"$error":"#DIV/0!"}},{"$f":"'Resultats PMV'!M28/'Resultats PMV'!$P28","v":{"$error":"#DIV/0!"}},{"$f":"'Resultats PMV'!N28/'Resultats PMV'!$P28","v":{"$error":"#DIV/0!"}},{"$f":"'Resultats PMV'!O28/'Resultats PMV'!$P28","v":{"$error":"#DIV/0!"}},{"$error":"#DIV/0!"},null,{"$f":"'Resultats PMV'!R28","v":0},{"$f":"'Resultats PMV'!S28/'Resultats PMV'!$P28","v":{"$error":"#DIV/0!"}},{"$f":"'Resultats PMV'!T28/'Resultats PMV'!$P28","v":{"$error":"#DIV/0!"}},{"$f":"'Resultats PMV'!U28/'Resultats PMV'!$P28","v":{"$error":"#DIV/0!"}},{"$f":"'Resultats PMV'!V28/'Resultats PMV'!$P28","v":{"$error":"#DIV/0!"}},{"$f":"'Resultats PMV'!W28/'Resultats PMV'!$P28","v":{"$error":"#DIV/0!"}},{"$f":"'Resultats PMV'!X28/'Resultats PMV'!$P28","v":{"$error":"#DIV/0!"}},{"$f":"'Resultats PMV'!Y28/'Resultats PMV'!$P28","v":{"$error":"#DIV/0!"}},{"$f":"'Resultats PMV'!Z28/'Resultats PMV'!$P28","v":{"$error":"#DIV/0!"}},{"$f":"'Resultats PMV'!AA28/'Resultats PMV'!$P28","v":{"$error":"#DIV/0!"}},{"$f":"'Resultats PMV'!AB28/'Resultats PMV'!$P28","v":{"$error":"#DIV/0!"}},{"$error":"#DIV/0!"},null,{"$f":"'Resultats PMV'!AI28","v":0},{"$f":"'Resultats PMV'!AN28/'Resultats PMV'!$AX28","v":{"$error":"#DIV/0!"}},{"$f":"'Resultats PMV'!AO28/'Resultats PMV'!$AX28","v":{"$error":"#DIV/0!"}},{"$f":"'Resultats PMV'!AP28/'Resultats PMV'!$AX28","v":{"$error":"#DIV/0!"}},{"$f":"'Resultats PMV'!AQ28/'Resultats PMV'!$AX28","v":{"$error":"#DIV/0!"}},{"$f":"'Resultats PMV'!AR28/'Resultats PMV'!$AX28","v":{"$error":"#DIV/0!"}},{"$f":"'Resultats PMV'!AS28/'Resultats PMV'!$AX28","v":{"$error":"#DIV/0!"}},{"$f":"'Resultats PMV'!AT28/'Resultats PMV'!$AX28","v":{"$error":"#DIV/0!"}},{"$f":"'Resultats PMV'!AU28/'Resultats PMV'!$AX28","v":{"$error":"#DIV/0!"}},{"$f":"'Resultats PMV'!AV28/'Resultats PMV'!$AX28","v":{"$error":"#DIV/0!"}},{"$f":"'Resultats PMV'!AW28/'Resultats PMV'!$AX28","v":{"$error":"#DIV/0!"}},{"$error":"#DIV/0!"}]
[null,{"$f":"'Resultats PMV'!A29","v":0},{"$f":"'Resultats PMV'!F29/'Resultats PMV'!$P29","v":{"$error":"#DIV/0!"}},{"$f":"'Resultats PMV'!G29/'Resultats PMV'!$P29","v":{"$error":"#DIV/0!"}},{"$f":"'Resultats PMV'!H29/'Resultats PMV'!$P29","v":{"$error":"#DIV/0!"}},{"$f":"'Resultats PMV'!I29/'Resultats PMV'!$P29","v":{"$error":"#DIV/0!"}},{"$f":"'Resultats PMV'!J29/'Resultats PMV'!$P29","v":{"$error":"#DIV/0!"}},{"$f":"'Resultats PMV'!K29/'Resultats PMV'!$P29","v":{"$error":"#DIV/0!"}},{"$f":"'Resultats PMV'!L29/'Resultats PMV'!$P29","v":{"$error":"#DIV/0!"}},{"$f":"'Resultats PMV'!M29/'Resultats PMV'!$P29","v":{"$error":"#DIV/0!"}},{"$f":"'Resultats PMV'!N29/'Resultats PMV'!$P29","v":{"$error":"#DIV/0!"}},{"$f":"'Resultats PMV'!O29/'Resultats PMV'!$P29","v":{"$error":"#DIV/0!"}},{"$error":"#DIV/0!"},null,{"$f":"'Resultats PMV'!R29","v":0},{"$f":"'Resultats PMV'!S29/'Resultats PMV'!$P29","v":{"$error":"#DIV/0!"}},{"$f":"'Resultats PMV'!T29/'Resultats PMV'!$P29","v":{"$error":"#DIV/0!"}},{"$f":"'Resultats PMV'!U29/'Resultats PMV'!$P29","v":{"$error":"#DIV/0!"}},{"$f":"'Resultats PMV'!V29/'Resultats PMV'!$P29","v":{"$error":"#DIV/0!"}},{"$f":"'Resultats PMV'!W29/'Resultats PMV'!$P29","v":{"$error":"#DIV/0!"}},{"$f":"'Resultats PMV'!X29/'Resultats PMV'!$P29","v":{"$error":"#DIV/0!"}},{"$f":"'Resultats PMV'!Y29/'Resultats PMV'!$P29","v":{"$error":"#DIV/0!"}},{"$f":"'Resultats PMV'!Z29/'Resultats PMV'!$P29","v":{"$error":"#DIV/0!"}},{"$f":"'Resultats PMV'!AA29/'Resultats PMV'!$P29","v":{"$error":"#DIV/0!"}},{"$f":"'Resultats PMV'!AB29/'Resultats PMV'!$P29","v":{"$error":"#DIV/0!"}},{"$error":"#DIV/0!"},null,{"$f":"'Resultats PMV'!AI29","v":0},{"$f":"'Resultats PMV'!AN29/'Resultats PMV'!$AX29","v":{"$error":"#DIV/0!"}},{"$f":"'Resultats PMV'!AO29/'Resultats PMV'!$AX29","v":{"$error":"#DIV/0!"}},{"$f":"'Resultats PMV'!AP29/'Resultats PMV'!$AX29","v":{"$error":"#DIV/0!"}},{"$f":"'Resultats PMV'!AQ29/'Resultats PMV'!$AX29","v":{"$error":"#DIV/0!"}},{"$f":"'Resultats PMV'!AR29/'Resultats PMV'!$AX29","v":{"$error":"#DIV/0!"}},{"$f":"'Resultats PMV'!AS29/'Resultats PMV'!$AX29","v":{"$error":"#DIV/0!"}},{"$f":"'Resultats PMV'!AT29/'Resultats PMV'!$AX29","v":{"$error":"#DIV/0!"}},{"$f":"'Resultats PMV'!AU29/'Resultats PMV'!$AX29","v":{"$error":"#DIV/0!"}},{"$f":"'Resultats PMV'!AV29/'Resultats PMV'!$AX29","v":{"$error":"#DIV/0!"}},{"$f":"'Resultats PMV'!AW29/'Resultats PMV'!$AX29","v":{"$error":"#DIV/0!"}},{"$error":"#DIV/0!"}]
[null,{"$f":"'Resultats PMV'!A30","v":0},{"$f":"'Resultats PMV'!F30/'Resultats PMV'!$P30","v":{"$error":"#DIV/0!"}},{"$f":"'Resultats PMV'!G30/'Resultats PMV'!$P30","v":{"$error":"#DIV/0!"}},{"$f":"'Resultats PMV'!H30/'Resultats PMV'!$P30","v":{"$error":"#DIV/0!"}},{"$f":"'Resultats PMV'!I30/'Resultats PMV'!$P30","v":{"$error":"#DIV/0!"}},{"$f":"'Resultats PMV'!J30/'Resultats PMV'!$P30","v":{"$error":"#DIV/0!"}},{"$f":"'Resultats PMV'!K30/'Resultats PMV'!$P30","v":{"$error":"#DIV/0!"}},{"$f":"'Resultats PMV'!L30/'Resultats PMV'!$P30","v":{"$error":"#DIV/0!"}},{"$f":"'Resultats PMV'!M30/'Resultats PMV'!$P30","v":{"$error":"#DIV/0!"}},{"$f":"'Resultats PMV'!N30/'Resultats PMV'!$P30","v":{"$error":"#DIV/0!"}},{"$f":"'Resultats PMV'!O30/'Resultats PMV'!$P30","v":{"$error":"#DIV/0!"}},{"$error":"#DIV/0!"},null,{"$f":"'Resultats PMV'!R30","v":0},{"$f":"'Resultats PMV'!S30/'Resultats PMV'!$P30","v":{"$error":"#DIV/0!"}},{"$f":"'Resultats PMV'!T30/'Resultats PMV'!$P30","v":{"$error":"#DIV/0!"}},{"$f":"'Resultats PMV'!U30/'Resultats PMV'!$P30","v":{"$error":"#DIV/0!"}},{"$f":"'Resultats PMV'!V30/'Resultats PMV'!$P30","v":{"$error":"#DIV/0!"}},{"$f":"'Resultats PMV'!W30/'Resultats PMV'!$P30","v":{"$error":"#DIV/0!"}},{"$f":"'Resultats PMV'!X30/'Resultats PMV'!$P30","v":{"$error":"#DIV/0!"}},{"$f":"'Resultats PMV'!Y30/'Resultats PMV'!$P30","v":{"$error":"#DIV/0!"}},{"$f":"'Resultats PMV'!Z30/'Resultats PMV'!$P30","v":{"$error":"#DIV/0!"}},{"$f":"'Resultats PMV'!AA30/'Resultats PMV'!$P30","v":{"$error":"#DIV/0!"}},{"$f":"'Resultats PMV'!AB30/'Resultats PMV'!$P30","v":{"$error":"#DIV/0!"}},{"$error":"#DIV/0!"},null,{"$f":"'Resultats PMV'!AI30","v":0},{"$f":"'Resultats PMV'!AN30/'Resultats PMV'!$AX30","v":{"$error":"#DIV/0!"}},{"$f":"'Resultats PMV'!AO30/'Resultats PMV'!$AX30","v":{"$error":"#DIV/0!"}},{"$f":"'Resultats PMV'!AP30/'Resultats PMV'!$AX30","v":{"$error":"#DIV/0!"}},{"$f":"'Resultats PMV'!AQ30/'Resultats PMV'!$AX30","v":{"$error":"#DIV/0!"}},{"$f":"'Resultats PMV'!AR30/'Resultats PMV'!$AX30","v":{"$error":"#DIV/0!"}},{"$f":"'Resultats PMV'!AS30/'Resultats PMV'!$AX30","v":{"$error":"#DIV/0!"}},{"$f":"'Resultats PMV'!AT30/'Resultats PMV'!$AX30","v":{"$error":"#DIV/0!"}},{"$f":"'Resultats PMV'!AU30/'Resultats PMV'!$AX30","v":{"$error":"#DIV/0!"}},{"$f":"'Resultats PMV'!AV30/'Resultats PMV'!$AX30","v":{"$error":"#DIV/0!"}},{"$f":"'Resultats PMV'!AW30/'Resultats PMV'!$AX30","v":{"$error":"#DIV/0!"}},{"$error":"#DIV/0!"}]
[null,{"$f":"'Resultats PMV'!A31","v":0},{"$f":"'Resultats PMV'!F31/'Resultats PMV'!$P31","v":{"$error":"#DIV/0!"}},{"$f":"'Resultats PMV'!G31/'Resultats PMV'!$P31","v":{"$error":"#DIV/0!"}},{"$f":"'Resultats PMV'!H31/'Resultats PMV'!$P31","v":{"$error":"#DIV/0!"}},{"$f":"'Resultats PMV'!I31/'Resultats PMV'!$P31","v":{"$error":"#DIV/0!"}},{"$f":"'Resultats PMV'!J31/'Resultats PMV'!$P31","v":{"$error":"#DIV/0!"}},{"$f":"'Resultats PMV'!K31/'Resultats PMV'!$P31","v":{"$error":"#DIV/0!"}},{"$f":"'Resultats PMV'!L31/'Resultats PMV'!$P31","v":{"$error":"#DIV/0!"}},{"$f":"'Resultats PMV'!M31/'Resultats PMV'!$P31","v":{"$error":"#DIV/0!"}},{"$f":"'Resultats PMV'!N31/'Resultats PMV'!$P31","v":{"$error":"#DIV/0!"}},{"$f":"'Resultats PMV'!O31/'Resultats PMV'!$P31","v":{"$error":"#DIV/0!"}},{"$error":"#DIV/0!"},null,{"$f":"'Resultats PMV'!R31","v":0},{"$f":"'Resultats PMV'!S31/'Resultats PMV'!$P31","v":{"$error":"#DIV/0!"}},{"$f":"'Resultats PMV'!T31/'Resultats PMV'!$P31","v":{"$error":"#DIV/0!"}},{"$f":"'Resultats PMV'!U31/'Resultats PMV'!$P31","v":{"$error":"#DIV/0!"}},{"$f":"'Resultats PMV'!V31/'Resultats PMV'!$P31","v":{"$error":"#DIV/0!"}},{"$f":"'Resultats PMV'!W31/'Resultats PMV'!$P31","v":{"$error":"#DIV/0!"}},{"$f":"'Resultats PMV'!X31/'Resultats PMV'!$P31","v":{"$error":"#DIV/0!"}},{"$f":"'Resultats PMV'!Y31/'Resultats PMV'!$P31","v":{"$error":"#DIV/0!"}},{"$f":"'Resultats PMV'!Z31/'Resultats PMV'!$P31","v":{"$error":"#DIV/0!"}},{"$f":"'Resultats PMV'!AA31/'Resultats PMV'!$P31","v":{"$error":"#DIV/0!"}},{"$f":"'Resultats PMV'!AB31/'Resultats PMV'!$P31","v":{"$error":"#DIV/0!"}},{"$error":"#DIV/0!"},null,{"$f":"'Resultats PMV'!AI31","v":0},{"$f":"'Resultats PMV'!AN31/'Resultats PMV'!$AX31","v":{"$error":"#DIV/0!"}},{"$f":"'Resultats PMV'!AO31/'Resultats PMV'!$AX31","v":{"$error":"#DIV/0!"}},{"$f":"'Resultats PMV'!AP31/'Resultats PMV'!$AX31","v":{"$error":"#DIV/0!"}},{"$f":"'Resultats PMV'!AQ31/'Resultats PMV'!$AX31","v":{"$error":"#DIV/0!"}},{"$f":"'Resultats PMV'!AR31/'Resultats PMV'!$AX31","v":{"$error":"#DIV/0!"}},{"$f":"'Resultats PMV'!AS31/'Resultats PMV'!$AX31","v":{"$error":"#DIV/0!"}},{"$f":"'Resultats PMV'!AT31/'Resultats PMV'!$AX31","v":{"$error":"#DIV/0!"}},{"$f":"'Resultats PMV'!AU31/'Resultats PMV'!$AX31","v":{"$error":"#DIV/0!"}},{"$f":"'Resultats PMV'!AV31/'Resultats PMV'!$AX31","v":{"$error":"#DIV/0!"}},{"$f":"'Resultats PMV'!AW31/'Resultats PMV'!$AX31","v":{"$error":"#DIV/0!"}},{"$error":"#DIV/0!"}]
[null,{"$f":"'Resultats PMV'!A32","v":0},{"$f":"'Resultats PMV'!F32/'Resultats PMV'!$P32","v":{"$error":"#DIV/0!"}},{"$f":"'Resultats PMV'!G32/'Resultats PMV'!$P32","v":{"$error":"#DIV/0!"}},{"$f":"'Resultats PMV'!H32/'Resultats PMV'!$P32","v":{"$error":"#DIV/0!"}},{"$f":"'Resultats PMV'!I32/'Resultats PMV'!$P32","v":{"$error":"#DIV/0!"}},{"$f":"'Resultats PMV'!J32/'Resultats PMV'!$P32","v":{"$error":"#DIV/0!"}},{"$f":"'Resultats PMV'!K32/'Resultats PMV'!$P32","v":{"$error":"#DIV/0!"}},{"$f":"'Resultats PMV'!L32/'Resultats PMV'!$P32","v":{"$error":"#DIV/0!"}},{"$f":"'Resultats PMV'!M32/'Resultats PMV'!$P32","v":{"$error":"#DIV/0!"}},{"$f":"'Resultats PMV'!N32/'Resultats PMV'!$P32","v":{"$error":"#DIV/0!"}},{"$f":"'Resultats PMV'!O32/'Resultats PMV'!$P32","v":{"$error":"#DIV/0!"}},{"$error":"#DIV/0!"},null,{"$f":"'Resultats PMV'!R32","v":0},{"$f":"'Resultats PMV'!S32/'Resultats PMV'!$P32","v":{"$error":"#DIV/0!"}},{"$f":"'Resultats PMV'!T32/'Resultats PMV'!$P32","v":{"$error":"#DIV/0!"}},{"$f":"'Resultats PMV'!U32/'Resultats PMV'!$P32","v":{"$error":"#DIV/0!"}},{"$f":"'Resultats PMV'!V32/'Resultats PMV'!$P32","v":{"$error":"#DIV/0!"}},{"$f":"'Resultats PMV'!W32/'Resultats PMV'!$P32","v":{"$error":"#DIV/0!"}},{"$f":"'Resultats PMV'!X32/'Resultats PMV'!$P32","v":{"$error":"#DIV/0!"}},{"$f":"'Resultats PMV'!Y32/'Resultats PMV'!$P32","v":{"$error":"#DIV/0!"}},{"$f":"'Resultats PMV'!Z32/'Resultats PMV'!$P32","v":{"$error":"#DIV/0!"}},{"$f":"'Resultats PMV'!AA32/'Resultats PMV'!$P32","v":{"$error":"#DIV/0!"}},{"$f":"'Resultats PMV'!AB32/'Resultats PMV'!$P32","v":{"$error":"#DIV/0!"}},{"$error":"#DIV/0!"},null,{"$f":"'Resultats PMV'!AI32","v":0},{"$f":"'Resultats PMV'!AN32/'Resultats PMV'!$AX32","v":{"$error":"#DIV/0!"}},{"$f":"'Resultats PMV'!AO32/'Resultats PMV'!$AX32","v":{"$error":"#DIV/0!"}},{"$f":"'Resultats PMV'!AP32/'Resultats PMV'!$AX32","v":{"$error":"#DIV/0!"}},{"$f":"'Resultats PMV'!AQ32/'Resultats PMV'!$AX32","v":{"$error":"#DIV/0!"}},{"$f":"'Resultats PMV'!AR32/'Resultats PMV'!$AX32","v":{"$error":"#DIV/0!"}},{"$f":"'Resultats PMV'!AS32/'Resultats PMV'!$AX32","v":{"$error":"#DIV/0!"}},{"$f":"'Resultats PMV'!AT32/'Resultats PMV'!$AX32","v":{"$error":"#DIV/0!"}},{"$f":"'Resultats PMV'!AU32/'Resultats PMV'!$AX32","v":{"$error":"#DIV/0!"}},{"$f":"'Resultats PMV'!AV32/'Resultats PMV'!$AX32","v":{"$error":"#DIV/0!"}},{"$f":"'Resultats PMV'!AW32/'Resultats PMV'!$AX32","v":{"$error":"#DIV/0!"}},{"$error":"#DIV/0!"}]
[null,{"$f":"'Resultats PMV'!A33","v":0},{"$f":"'Resultats PMV'!F33/'Resultats PMV'!$P33","v":{"$error":"#DIV/0!"}},{"$f":"'Resultats PMV'!G33/'Resultats PMV'!$P33","v":{"$error":"#DIV/0!"}},{"$f":"'Resultats PMV'!H33/'Resultats PMV'!$P33","v":{"$error":"#DIV/0!"}},{"$f":"'Resultats PMV'!I33/'Resultats PMV'!$P33","v":{"$error":"#DIV/0!"}},{"$f":"'Resultats PMV'!J33/'Resultats PMV'!$P33","v":{"$error":"#DIV/0!"}},{"$f":"'Resultats PMV'!K33/'Resultats PMV'!$P33","v":{"$error":"#DIV/0!"}},{"$f":"'Resultats PMV'!L33/'Resultats PMV'!$P33","v":{"$error":"#DIV/0!"}},{"$f":"'Resultats PMV'!M33/'Resultats PMV'!$P33","v":{"$error":"#DIV/0!"}},{"$f":"'Resultats PMV'!N33/'Resultats PMV'!$P33","v":{"$error":"#DIV/0!"}},{"$f":"'Resultats PMV'!O33/'Resultats PMV'!$P33","v":{"$error":"#DIV/0!"}},{"$error":"#DIV/0!"},null,{"$f":"'Resultats PMV'!R33","v":0},{"$f":"'Resultats PMV'!S33/'Resultats PMV'!$P33","v":{"$error":"#DIV/0!"}},{"$f":"'Resultats PMV'!T33/'Resultats PMV'!$P33","v":{"$error":"#DIV/0!"}},{"$f":"'Resultats PMV'!U33/'Resultats PMV'!$P33","v":{"$error":"#DIV/0!"}},{"$f":"'Resultats PMV'!V33/'Resultats PMV'!$P33","v":{"$error":"#DIV/0!"}},{"$f":"'Resultats PMV'!W33/'Resultats PMV'!$P33","v":{"$error":"#DIV/0!"}},{"$f":"'Resultats PMV'!X33/'Resultats PMV'!$P33","v":{"$error":"#DIV/0!"}},{"$f":"'Resultats PMV'!Y33/'Resultats PMV'!$P33","v":{"$error":"#DIV/0!"}},{"$f":"'Resultats PMV'!Z33/'Resultats PMV'!$P33","v":{"$error":"#DIV/0!"}},{"$f":"'Resultats PMV'!AA33/'Resultats PMV'!$P33","v":{"$error":"#DIV/0!"}},{"$f":"'Resultats PMV'!AB33/'Resultats PMV'!$P33","v":{"$error":"#DIV/0!"}},{"$error":"#DIV/0!"},null,{"$f":"'Resultats PMV'!AI33","v":0},{"$f":"'Resultats PMV'!AN33/'Resultats PMV'!$AX33","v":{"$error":"#DIV/0!"}},{"$f":"'Resultats PMV'!AO33/'Resultats PMV'!$AX33","v":{"$error":"#DIV/0!"}},{"$f":"'Resultats PMV'!AP33/'Resultats PMV'!$AX33","v":{"$error":"#DIV/0!"}},{"$f":"'Resultats PMV'!AQ33/'Resultats PMV'!$AX33","v":{"$error":"#DIV/0!"}},{"$f":"'Resultats PMV'!AR33/'Resultats PMV'!$AX33","v":{"$error":"#DIV/0!"}},{"$f":"'Resultats PMV'!AS33/'Resultats PMV'!$AX33","v":{"$error":"#DIV/0!"}},{"$f":"'Resultats PMV'!AT33/'Resultats PMV'!$AX33","v":{"$error":"#DIV/0!"}},{"$f":"'Resultats PMV'!AU33/'Resultats PMV'!$AX33","v":{"$error":"#DIV/0!"}},{"$f":"'Resultats PMV'!AV33/'Resultats PMV'!$AX33","v":{"$error":"#DIV/0!"}},{"$f":"'Resultats PMV'!AW33/'Resultats PMV'!$AX33","v":{"$error":"#DIV/0!"}},{"$error":"#DIV/0!"}]
[null,{"$f":"'Resultats PMV'!A34","v":0},{"$f":"'Resultats PMV'!F34/'Resultats PMV'!$P34","v":{"$error":"#DIV/0!"}},{"$f":"'Resultats PMV'!G34/'Resultats PMV'!$P34","v":{"$error":"#DIV/0!"}},{"$f":"'Resultats PMV'!H34/'Resultats PMV'!$P34","v":{"$error":"#DIV/0!"}},{"$f":"'Resultats PMV'!I34/'Resultats PMV'!$P34","v":{"$error":"#DIV/0!"}},{"$f":"'Resultats PMV'!J34/'Resultats PMV'!$P34","v":{"$error":"#DIV/0!"}},{"$f":"'Resultats PMV'!K34/'Resultats PMV'!$P34","v":{"$error":"#DIV/0!"}},{"$f":"'Resultats PMV'!L34/'Resultats PMV'!$P34","v":{"$error":"#DIV/0!"}},{"$f":"'Resultats PMV'!M34/'Resultats PMV'!$P34","v":{"$error":"#DIV/0!"}},{"$f":"'Resultats PMV'!N34/'Resultats PMV'!$P34","v":{"$error":"#DIV/0!"}},{"$f":"'Resultats PMV'!O34/'Resultats PMV'!$P34","v":{"$error":"#DIV/0!"}},{"$error":"#DIV/0!"},null,{"$f":"'Resultats PMV'!R34","v":0},{"$f":"'Resultats PMV'!S34/'Resultats PMV'!$P34","v":{"$error":"#DIV/0!"}},{"$f":"'Resultats PMV'!T34/'Resultats PMV'!$P34","v":{"$error":"#DIV/0!"}},{"$f":"'Resultats PMV'!U34/'Resultats PMV'!$P34","v":{"$error":"#DIV/0!"}},{"$f":"'Resultats PMV'!V34/'Resultats PMV'!$P34","v":{"$error":"#DIV/0!"}},{"$f":"'Resultats PMV'!W34/'Resultats PMV'!$P34","v":{"$error":"#DIV/0!"}},{"$f":"'Resultats PMV'!X34/'Resultats PMV'!$P34","v":{"$error":"#DIV/0!"}},{"$f":"'Resultats PMV'!Y34/'Resultats PMV'!$P34","v":{"$error":"#DIV/0!"}},{"$f":"'Resultats PMV'!Z34/'Resultats PMV'!$P34","v":{"$error":"#DIV/0!"}},{"$f":"'Resultats PMV'!AA34/'Resultats PMV'!$P34","v":{"$error":"#DIV/0!"}},{"$f":"'Resultats PMV'!AB34/'Resultats PMV'!$P34","v":{"$error":"#DIV/0!"}},{"$error":"#DIV/0!"},null,{"$f":"'Resultats PMV'!AI34","v":0},{"$f":"'Resultats PMV'!AN34/'Resultats PMV'!$AX34","v":{"$error":"#DIV/0!"}},{"$f":"'Resultats PMV'!AO34/'Resultats PMV'!$AX34","v":{"$error":"#DIV/0!"}},{"$f":"'Resultats PMV'!AP34/'Resultats PMV'!$AX34","v":{"$error":"#DIV/0!"}},{"$f":"'Resultats PMV'!AQ34/'Resultats PMV'!$AX34","v":{"$error":"#DIV/0!"}},{"$f":"'Resultats PMV'!AR34/'Resultats PMV'!$AX34","v":{"$error":"#DIV/0!"}},{"$f":"'Resultats PMV'!AS34/'Resultats PMV'!$AX34","v":{"$error":"#DIV/0!"}},{"$f":"'Resultats PMV'!AT34/'Resultats PMV'!$AX34","v":{"$error":"#DIV/0!"}},{"$f":"'Resultats PMV'!AU34/'Resultats PMV'!$AX34","v":{"$error":"#DIV/0!"}},{"$f":"'Resultats PMV'!AV34/'Resultats PMV'!$AX34","v":{"$error":"#DIV/0!"}},{"$f":"'Resultats PMV'!AW34/'Resultats PMV'!$AX34","v":{"$error":"#DIV/0!"}},{"$error":"#DIV/0!"}]
[null,{"$f":"'Resultats PMV'!A35","v":0},{"$f":"'Resultats PMV'!F35/'Resultats PMV'!$P35","v":{"$error":"#DIV/0!"}},{"$f":"'Resultats PMV'!G35/'Resultats PMV'!$P35","v":{"$error":"#DIV/0!"}},{"$f":"'Resultats PMV'!H35/'Resultats PMV'!$P35","v":{"$error":"#DIV/0!"}},{"$f":"'Resultats PMV'!I35/'Resultats PMV'!$P35","v":{"$error":"#DIV/0!"}},{"$f":"'Resultats PMV'!J35/'Resultats PMV'!$P35","v":{"$error":"#DIV/0!"}},{"$f":"'Resultats PMV'!K35/'Resultats PMV'!$P35","v":{"$error":"#DIV/0!"}},{"$f":"'Resultats PMV'!L35/'Resultats PMV'!$P35","v":{"$error":"#DIV/0!"}},{"$f":"'Resultats PMV'!M35/'Resultats PMV'!$P35","v":{"$error":"#DIV/0!"}},{"$f":"'Resultats PMV'!N35/'Resultats PMV'!$P35","v":{"$error":"#DIV/0!"}},{"$f":"'Resultats PMV'!O35/'Resultats PMV'!$P35","v":{"$error":"#DIV/0!"}},{"$error":"#DIV/0!"},null,{"$f":"'Resultats PMV'!R35","v":0},{"$f":"'Resultats PMV'!S35/'Resultats PMV'!$P35","v":{"$error":"#DIV/0!"}},{"$f":"'Resultats PMV'!T35/'Resultats PMV'!$P35","v":{"$error":"#DIV/0!"}},{"$f":"'Resultats PMV'!U35/'Resultats PMV'!$P35","v":{"$error":"#DIV/0!"}},{"$f":"'Resultats PMV'!V35/'Resultats PMV'!$P35","v":{"$error":"#DIV/0!"}},{"$f":"'Resultats PMV'!W35/'Resultats PMV'!$P35","v":{"$error":"#DIV/0!"}},{"$f":"'Resultats PMV'!X35/'Resultats PMV'!$P35","v":{"$error":"#DIV/0!"}},{"$f":"'Resultats PMV'!Y35/'Resultats PMV'!$P35","v":{"$error":"#DIV/0!"}},{"$f":"'Resultats PMV'!Z35/'Resultats PMV'!$P35","v":{"$error":"#DIV/0!"}},{"$f":"'Resultats PMV'!AA35/'Resultats PMV'!$P35","v":{"$error":"#DIV/0!"}},{"$f":"'Resultats PMV'!AB35/'Resultats PMV'!$P35","v":{"$error":"#DIV/0!"}},{"$error":"#DIV/0!"},null,{"$f":"'Resultats PMV'!AI35","v":0},{"$f":"'Resultats PMV'!AN35/'Resultats PMV'!$AX35","v":{"$error":"#DIV/0!"}},{"$f":"'Resultats PMV'!AO35/'Resultats PMV'!$AX35","v":{"$error":"#DIV/0!"}},{"$f":"'Resultats PMV'!AP35/'Resultats PMV'!$AX35","v":{"$error":"#DIV/0!"}},{"$f":"'Resultats PMV'!AQ35/'Resultats PMV'!$AX35","v":{"$error":"#DIV/0!"}},{"$f":"'Resultats PMV'!AR35/'Resultats PMV'!$AX35","v":{"$error":"#DIV/0!"}},{"$f":"'Resultats PMV'!AS35/'Resultats PMV'!$AX35","v":{"$error":"#DIV/0!"}},{"$f":"'Resultats PMV'!AT35/'Resultats PMV'!$AX35","v":{"$error":"#DIV/0!"}},{"$f":"'Resultats PMV'!AU35/'Resultats PMV'!$AX35","v":{"$error":"#DIV/0!"}},{"$f":"'Resultats PMV'!AV35/'Resultats PMV'!$AX35","v":{"$error":"#DIV/0!"}},{"$f":"'Resultats PMV'!AW35/'Resultats PMV'!$AX35","v":{"$error":"#DIV/0!"}},{"$error":"#DIV/0!"}]
[null,{"$f":"'Resultats PMV'!A36","v":0},{"$f":"'Resultats PMV'!F36/'Resultats PMV'!$P36","v":{"$error":"#DIV/0!"}},{"$f":"'Resultats PMV'!G36/'Resultats PMV'!$P36","v":{"$error":"#DIV/0!"}},{"$f":"'Resultats PMV'!H36/'Resultats PMV'!$P36","v":{"$error":"#DIV/0!"}},{"$f":"'Resultats PMV'!I36/'Resultats PMV'!$P36","v":{"$error":"#DIV/0!"}},{"$f":"'Resultats PMV'!J36/'Resultats PMV'!$P36","v":{"$error":"#DIV/0!"}},{"$f":"'Resultats PMV'!K36/'Resultats PMV'!$P36","v":{"$error":"#DIV/0!"}},{"$f":"'Resultats PMV'!L36/'Resultats PMV'!$P36","v":{"$error":"#DIV/0!"}},{"$f":"'Resultats PMV'!M36/'Resultats PMV'!$P36","v":{"$error":"#DIV/0!"}},{"$f":"'Resultats PMV'!N36/'Resultats PMV'!$P36","v":{"$error":"#DIV/0!"}},{"$f":"'Resultats PMV'!O36/'Resultats PMV'!$P36","v":{"$error":"#DIV/0!"}},{"$error":"#DIV/0!"},null,{"$f":"'Resultats PMV'!R36","v":0},{"$f":"'Resultats PMV'!S36/'Resultats PMV'!$P36","v":{"$error":"#DIV/0!"}},{"$f":"'Resultats PMV'!T36/'Resultats PMV'!$P36","v":{"$error":"#DIV/0!"}},{"$f":"'Resultats PMV'!U36/'Resultats PMV'!$P36","v":{"$error":"#DIV/0!"}},{"$f":"'Resultats PMV'!V36/'Resultats PMV'!$P36","v":{"$error":"#DIV/0!"}},{"$f":"'Resultats PMV'!W36/'Resultats PMV'!$P36","v":{"$error":"#DIV/0!"}},{"$f":"'Resultats PMV'!X36/'Resultats PMV'!$P36","v":{"$error":"#DIV/0!"}},{"$f":"'Resultats PMV'!Y36/'Resultats PMV'!$P36","v":{"$error":"#DIV/0!"}},{"$f":"'Resultats PMV'!Z36/'Resultats PMV'!$P36","v":{"$error":"#DIV/0!"}},{"$f":"'Resultats PMV'!AA36/'Resultats PMV'!$P36","v":{"$error":"#DIV/0!"}},{"$f":"'Resultats PMV'!AB36/'Resultats PMV'!$P36","v":{"$error":"#DIV/0!"}},{"$error":"#DIV/0!"},null,{"$f":"'Resultats PMV'!AI36","v":0},{"$f":"'Resultats PMV'!AN36/'Resultats PMV'!$AX36","v":{"$error":"#DIV/0!"}},{"$f":"'Resultats PMV'!AO36/'Resultats PMV'!$AX36","v":{"$error":"#DIV/0!"}},{"$f":"'Resultats PMV'!AP36/'Resultats PMV'!$AX36","v":{"$error":"#DIV/0!"}},{"$f":"'Resultats PMV'!AQ36/'Resultats PMV'!$AX36","v":{"$error":"#DIV/0!"}},{"$f":"'Resultats PMV'!AR36/'Resultats PMV'!$AX36","v":{"$error":"#DIV/0!"}},{"$f":"'Resultats PMV'!AS36/'Resultats PMV'!$AX36","v":{"$error":"#DIV/0!"}},{"$f":"'Resultats PMV'!AT36/'Resultats PMV'!$AX36","v":{"$error":"#DIV/0!"}},{"$f":"'Resultats PMV'!AU36/'Resultats PMV'!$AX36","v":{"$error":"#DIV/0!"}},{"$f":"'Resultats PMV'!AV36/'Resultats PMV'!$AX36","v":{"$error":"#DIV/0!"}},{"$f":"'Resultats PMV'!AW36/'Resultats PMV'!$AX36","v":{"$error":"#DIV/0!"}},{"$error":"#DIV/0!"}]
[null,{"$f":"'Resultats PMV'!A37","v":0},{"$f":"'Resultats PMV'!F37/'Resultats PMV'!$P37","v":{"$error":"#DIV/0!"}},{"$f":"'Resultats PMV'!G37/'Resultats PMV'!$P37","v":{"$error":"#DIV/0!"}},{"$f":"'Resultats PMV'!H37/'Resultats PMV'!$P37","v":{"$error":"#DIV/0!"}},{"$f":"'Resultats PMV'!I37/'Resultats PMV'!$P37","v":{"$error":"#DIV/0!"}},{"$f":"'Resultats PMV'!J37/'Resultats PMV'!$P37","v":{"$error":"#DIV/0!"}},{"$f":"'Resultats PMV'!K37/'Resultats PMV'!$P37","v":{"$error":"#DIV/0!"}},{"$f":"'Resultats PMV'!L37/'Resultats PMV'!$P37","v":{"$error":"#DIV/0!"}},{"$f":"'Resultats PMV'!M37/'Resultats PMV'!$P37","v":{"$error":"#DIV/0!"}},{"$f":"'Resultats PMV'!N37/'Resultats PMV'!$P37","v":{"$error":"#DIV/0!"}},{"$f":"'Resultats PMV'!O37/'Resultats PMV'!$P37","v":{"$error":"#DIV/0!"}},{"$error":"#DIV/0!"},null,{"$f":"'Resultats PMV'!R37","v":0},{"$f":"'Resultats PMV'!S37/'Resultats PMV'!$P37","v":{"$error":"#DIV/0!"}},{"$f":"'Resultats PMV'!T37/'Resultats PMV'!$P37","v":{"$error":"#DIV/0!"}},{"$f":"'Resultats PMV'!U37/'Resultats PMV'!$P37","v":{"$error":"#DIV/0!"}},{"$f":"'Resultats PMV'!V37/'Resultats PMV'!$P37","v":{"$error":"#DIV/0!"}},{"$f":"'Resultats PMV'!W37/'Resultats PMV'!$P37","v":{"$error":"#DIV/0!"}},{"$f":"'Resultats PMV'!X37/'Resultats PMV'!$P37","v":{"$error":"#DIV/0!"}},{"$f":"'Resultats PMV'!Y37/'Resultats PMV'!$P37","v":{"$error":"#DIV/0!"}},{"$f":"'Resultats PMV'!Z37/'Resultats PMV'!$P37","v":{"$error":"#DIV/0!"}},{"$f":"'Resultats PMV'!AA37/'Resultats PMV'!$P37","v":{"$error":"#DIV/0!"}},{"$f":"'Resultats PMV'!AB37/'Resultats PMV'!$P37","v":{"$error":"#DIV/0!"}},{"$error":"#DIV/0!"},null,{"$f":"'Resultats PMV'!AI37","v":0},{"$f":"'Resultats PMV'!AN37/'Resultats PMV'!$AX37","v":{"$error":"#DIV/0!"}},{"$f":"'Resultats PMV'!AO37/'Resultats PMV'!$AX37","v":{"$error":"#DIV/0!"}},{"$f":"'Resultats PMV'!AP37/'Resultats PMV'!$AX37","v":{"$error":"#DIV/0!"}},{"$f":"'Resultats PMV'!AQ37/'Resultats PMV'!$AX37","v":{"$error":"#DIV/0!"}},{"$f":"'Resultats PMV'!AR37/'Resultats PMV'!$AX37","v":{"$error":"#DIV/0!"}},{"$f":"'Resultats PMV'!AS37/'Resultats PMV'!$AX37","v":{"$error":"#DIV/0!"}},{"$f":"'Resultats PMV'!AT37/'Resultats PMV'!$AX37","v":{"$error":"#DIV/0!"}},{"$f":"'Resultats PMV'!AU37/'Resultats PMV'!$AX37","v":{"$error":"#DIV/0!"}},{"$f":"'Resultats PMV'!AV37/'Resultats PMV'!$AX37","v":{"$error":"#DIV/0!"}},{"$f":"'Resultats PMV'!AW37/'Resultats PMV'!$AX37","v":{"$error":"#DIV/0!"}},{"$error":"#DIV/0!"}]
[null,{"$f":"'Resultats PMV'!A38","v":0},{"$f":"'Resultats PMV'!F38/'Resultats PMV'!$P38","v":{"$error":"#DIV/0!"}},{"$f":"'Resultats PMV'!G38/'Resultats PMV'!$P38","v":{"$error":"#DIV/0!"}},{"$f":"'Resultats PMV'!H38/'Resultats PMV'!$P38","v":{"$error":"#DIV/0!"}},{"$f":"'Resultats PMV'!I38/'Resultats PMV'!$P38","v":{"$error":"#DIV/0!"}},{"$f":"'Resultats PMV'!J38/'Resultats PMV'!$P38","v":{"$error":"#DIV/0!"}},{"$f":"'Resultats PMV'!K38/'Resultats PMV'!$P38","v":{"$error":"#DIV/0!"}},{"$f":"'Resultats PMV'!L38/'Resultats PMV'!$P38","v":{"$error":"#DIV/0!"}},{"$f":"'Resultats PMV'!M38/'Resultats PMV'!$P38","v":{"$error":"#DIV/0!"}},{"$f":"'Resultats PMV'!N38/'Resultats PMV'!$P38","v":{"$error":"#DIV/0!"}},{"$f":"'Resultats PMV'!O38/'Resultats PMV'!$P38","v":{"$error":"#DIV/0!"}},{"$error":"#DIV/0!"},null,{"$f":"'Resultats PMV'!R38","v":0},{"$f":"'Resultats PMV'!S38/'Resultats PMV'!$P38","v":{"$error":"#DIV/0!"}},{"$f":"'Resultats PMV'!T38/'Resultats PMV'!$P38","v":{"$error":"#DIV/0!"}},{"$f":"'Resultats PMV'!U38/'Resultats PMV'!$P38","v":{"$error":"#DIV/0!"}},{"$f":"'Resultats PMV'!V38/'Resultats PMV'!$P38","v":{"$error":"#DIV/0!"}},{"$f":"'Resultats PMV'!W38/'Resultats PMV'!$P38","v":{"$error":"#DIV/0!"}},{"$f":"'Resultats PMV'!X38/'Resultats PMV'!$P38","v":{"$error":"#DIV/0!"}},{"$f":"'Resultats PMV'!Y38/'Resultats PMV'!$P38","v":{"$error":"#DIV/0!"}},{"$f":"'Resultats PMV'!Z38/'Resultats PMV'!$P38","v":{"$error":"#DIV/0!"}},{"$f":"'Resultats PMV'!AA38/'Resultats PMV'!$P38","v":{"$error":"#DIV/0!"}},{"$f":"'Resultats PMV'!AB38/'Resultats PMV'!$P38","v":{"$error":"#DIV/0!"}},{"$error":"#DIV/0!"},null,{"$f":"'Resultats PMV'!AI38","v":0},{"$f":"'Resultats PMV'!AN38/'Resultats PMV'!$AX38","v":{"$error":"#DIV/0!"}},{"$f":"'Resultats PMV'!AO38/'Resultats PMV'!$AX38","v":{"$error":"#DIV/0!"}},{"$f":"'Resultats PMV'!AP38/'Resultats PMV'!$AX38","v":{"$error":"#DIV/0!"}},{"$f":"'Resultats PMV'!AQ38/'Resultats PMV'!$AX38","v":{"$error":"#DIV/0!"}},{"$f":"'Resultats PMV'!AR38/'Resultats PMV'!$AX38","v":{"$error":"#DIV/0!"}},{"$f":"'Resultats PMV'!AS38/'Resultats PMV'!$AX38","v":{"$error":"#DIV/0!"}},{"$f":"'Resultats PMV'!AT38/'Resultats PMV'!$AX38","v":{"$error":"#DIV/0!"}},{"$f":"'Resultats PMV'!AU38/'Resultats PMV'!$AX38","v":{"$error":"#DIV/0!"}},{"$f":"'Resultats PMV'!AV38/'Resultats PMV'!$AX38","v":{"$error":"#DIV/0!"}},{"$f":"'Resultats PMV'!AW38/'Resultats PMV'!$AX38","v":{"$error":"#DIV/0!"}},{"$error":"#DIV/0!"}]
[null,{"$f":"'Resultats PMV'!A39","v":0},{"$f":"'Resultats PMV'!F39/'Resultats PMV'!$P39","v":{"$error":"#DIV/0!"}},{"$f":"'Resultats PMV'!G39/'Resultats PMV'!$P39","v":{"$error":"#DIV/0!"}},{"$f":"'Resultats PMV'!H39/'Resultats PMV'!$P39","v":{"$error":"#DIV/0!"}},{"$f":"'Resultats PMV'!I39/'Resultats PMV'!$P39","v":{"$error":"#DIV/0!"}},{"$f":"'Resultats PMV'!J39/'Resultats PMV'!$P39","v":{"$error":"#DIV/0!"}},{"$f":"'Resultats PMV'!K39/'Resultats PMV'!$P39","v":{"$error":"#DIV/0!"}},{"$f":"'Resultats PMV'!L39/'Resultats PMV'!$P39","v":{"$error":"#DIV/0!"}},{"$f":"'Resultats PMV'!M39/'Resultats PMV'!$P39","v":{"$error":"#DIV/0!"}},{"$f":"'Resultats PMV'!N39/'Resultats PMV'!$P39","v":{"$error":"#DIV/0!"}},{"$f":"'Resultats PMV'!O39/'Resultats PMV'!$P39","v":{"$error":"#DIV/0!"}},{"$error":"#DIV/0!"},null,{"$f":"'Resultats PMV'!R39","v":0},{"$f":"'Resultats PMV'!S39/'Resultats PMV'!$P39","v":{"$error":"#DIV/0!"}},{"$f":"'Resultats PMV'!T39/'Resultats PMV'!$P39","v":{"$error":"#DIV/0!"}},{"$f":"'Resultats PMV'!U39/'Resultats PMV'!$P39","v":{"$error":"#DIV/0!"}},{"$f":"'Resultats PMV'!V39/'Resultats PMV'!$P39","v":{"$error":"#DIV/0!"}},{"$f":"'Resultats PMV'!W39/'Resultats PMV'!$P39","v":{"$error":"#DIV/0!"}},{"$f":"'Resultats PMV'!X39/'Resultats PMV'!$P39","v":{"$error":"#DIV/0!"}},{"$f":"'Resultats PMV'!Y39/'Resultats PMV'!$P39","v":{"$error":"#DIV/0!"}},{"$f":"'Resultats PMV'!Z39/'Resultats PMV'!$P39","v":{"$error":"#DIV/0!"}},{"$f":"'Resultats PMV'!AA39/'Resultats PMV'!$P39","v":{"$error":"#DIV/0!"}},{"$f":"'Resultats PMV'!AB39/'Resultats PMV'!$P39","v":{"$error":"#DIV/0!"}},{"$error":"#DIV/0!"},null,{"$f":"'Resultats PMV'!AI39","v":0},{"$f":"'Resultats PMV'!AN39/'Resultats PMV'!$AX39","v":{"$error":"#DIV/0!"}},{"$f":"'Resultats PMV'!AO39/'Resultats PMV'!$AX39","v":{"$error":"#DIV/0!"}},{"$f":"'Resultats PMV'!AP39/'Resultats PMV'!$AX39","v":{"$error":"#DIV/0!"}},{"$f":"'Resultats PMV'!AQ39/'Resultats PMV'!$AX39","v":{"$error":"#DIV/0!"}},{"$f":"'Resultats PMV'!AR39/'Resultats PMV'!$AX39","v":{"$error":"#DIV/0!"}},{"$f":"'Resultats PMV'!AS39/'Resultats PMV'!$AX39","v":{"$error":"#DIV/0!"}},{"$f":"'Resultats PMV'!AT39/'Resultats PMV'!$AX39","v":{"$error":"#DIV/0!"}},{"$f":"'Resultats PMV'!AU39/'Resultats PMV'!$AX39","v":{"$error":"#DIV/0!"}},{"$f":"'Resultats PMV'!AV39/'Resultats PMV'!$AX39","v":{"$error":"#DIV/0!"}},{"$f":"'Resultats PMV'!AW39/'Resultats PMV'!$AX39","v":{"$error":"#DIV/0!"}},{"$error":"#DIV/0!"}]
[null,{"$f":"'Resultats PMV'!A40","v":0},{"$f":"'Resultats PMV'!F40/'Resultats PMV'!$P40","v":{"$error":"#DIV/0!"}},{"$f":"'Resultats PMV'!G40/'Resultats PMV'!$P40","v":{"$error":"#DIV/0!"}},{"$f":"'Resultats PMV'!H40/'Resultats PMV'!$P40","v":{"$error":"#DIV/0!"}},{"$f":"'Resultats PMV'!I40/'Resultats PMV'!$P40","v":{"$error":"#DIV/0!"}},{"$f":"'Resultats PMV'!J40/'Resultats PMV'!$P40","v":{"$error":"#DIV/0!"}},{"$f":"'Resultats PMV'!K40/'Resultats PMV'!$P40","v":{"$error":"#DIV/0!"}},{"$f":"'Resultats PMV'!L40/'Resultats PMV'!$P40","v":{"$error":"#DIV/0!"}},{"$f":"'Resultats PMV'!M40/'Resultats PMV'!$P40","v":{"$error":"#DIV/0!"}},{"$f":"'Resultats PMV'!N40/'Resultats PMV'!$P40","v":{"$error":"#DIV/0!"}},{"$f":"'Resultats PMV'!O40/'Resultats PMV'!$P40","v":{"$error":"#DIV/0!"}},{"$error":"#DIV/0!"},null,{"$f":"'Resultats PMV'!R40","v":0},{"$f":"'Resultats PMV'!S40/'Resultats PMV'!$P40","v":{"$error":"#DIV/0!"}},{"$f":"'Resultats PMV'!T40/'Resultats PMV'!$P40","v":{"$error":"#DIV/0!"}},{"$f":"'Resultats PMV'!U40/'Resultats PMV'!$P40","v":{"$error":"#DIV/0!"}},{"$f":"'Resultats PMV'!V40/'Resultats PMV'!$P40","v":{"$error":"#DIV/0!"}},{"$f":"'Resultats PMV'!W40/'Resultats PMV'!$P40","v":{"$error":"#DIV/0!"}},{"$f":"'Resultats PMV'!X40/'Resultats PMV'!$P40","v":{"$error":"#DIV/0!"}},{"$f":"'Resultats PMV'!Y40/'Resultats PMV'!$P40","v":{"$error":"#DIV/0!"}},{"$f":"'Resultats PMV'!Z40/'Resultats PMV'!$P40","v":{"$error":"#DIV/0!"}},{"$f":"'Resultats PMV'!AA40/'Resultats PMV'!$P40","v":{"$error":"#DIV/0!"}},{"$f":"'Resultats PMV'!AB40/'Resultats PMV'!$P40","v":{"$error":"#DIV/0!"}},{"$error":"#DIV/0!"},null,{"$f":"'Resultats PMV'!AI40","v":0},{"$f":"'Resultats PMV'!AN40/'Resultats PMV'!$AX40","v":{"$error":"#DIV/0!"}},{"$f":"'Resultats PMV'!AO40/'Resultats PMV'!$AX40","v":{"$error":"#DIV/0!"}},{"$f":"'Resultats PMV'!AP40/'Resultats PMV'!$AX40","v":{"$error":"#DIV/0!"}},{"$f":"'Resultats PMV'!AQ40/'Resultats PMV'!$AX40","v":{"$error":"#DIV/0!"}},{"$f":"'Resultats PMV'!AR40/'Resultats PMV'!$AX40","v":{"$error":"#DIV/0!"}},{"$f":"'Resultats PMV'!AS40/'Resultats PMV'!$AX40","v":{"$error":"#DIV/0!"}},{"$f":"'Resultats PMV'!AT40/'Resultats PMV'!$AX40","v":{"$error":"#DIV/0!"}},{"$f":"'Resultats PMV'!AU40/'Resultats PMV'!$AX40","v":{"$error":"#DIV/0!"}},{"$f":"'Resultats PMV'!AV40/'Resultats PMV'!$AX40","v":{"$error":"#DIV/0!"}},{"$f":"'Resultats PMV'!AW40/'Resultats PMV'!$AX40","v":{"$error":"#DIV/0!"}},{"$error":"#DIV/0!"}]
[null,{"$f":"'Resultats PMV'!A41","v":0},{"$f":"'Resultats PMV'!F41/'Resultats PMV'!$P41","v":{"$error":"#DIV/0!"}},{"$f":"'Resultats PMV'!G41/'Resultats PMV'!$P41","v":{"$error":"#DIV/0!"}},{"$f":"'Resultats PMV'!H41/'Resultats PMV'!$P41","v":{"$error":"#DIV/0!"}},{"$f":"'Resultats PMV'!I41/'Resultats PMV'!$P41","v":{"$error":"#DIV/0!"}},{"$f":"'Resultats PMV'!J41/'Resultats PMV'!$P41","v":{"$error":"#DIV/0!"}},{"$f":"'Resultats PMV'!K41/'Resultats PMV'!$P41","v":{"$error":"#DIV/0!"}},{"$f":"'Resultats PMV'!L41/'Resultats PMV'!$P41","v":{"$error":"#DIV/0!"}},{"$f":"'Resultats PMV'!M41/'Resultats PMV'!$P41","v":{"$error":"#DIV/0!"}},{"$f":"'Resultats PMV'!N41/'Resultats PMV'!$P41","v":{"$error":"#DIV/0!"}},{"$f":"'Resultats PMV'!O41/'Resultats PMV'!$P41","v":{"$error":"#DIV/0!"}},{"$error":"#DIV/0!"},null,{"$f":"'Resultats PMV'!R41","v":0},{"$f":"'Resultats PMV'!S41/'Resultats PMV'!$P41","v":{"$error":"#DIV/0!"}},{"$f":"'Resultats PMV'!T41/'Resultats PMV'!$P41","v":{"$error":"#DIV/0!"}},{"$f":"'Resultats PMV'!U41/'Resultats PMV'!$P41","v":{"$error":"#DIV/0!"}},{"$f":"'Resultats PMV'!V41/'Resultats PMV'!$P41","v":{"$error":"#DIV/0!"}},{"$f":"'Resultats PMV'!W41/'Resultats PMV'!$P41","v":{"$error":"#DIV/0!"}},{"$f":"'Resultats PMV'!X41/'Resultats PMV'!$P41","v":{"$error":"#DIV/0!"}},{"$f":"'Resultats PMV'!Y41/'Resultats PMV'!$P41","v":{"$error":"#DIV/0!"}},{"$f":"'Resultats PMV'!Z41/'Resultats PMV'!$P41","v":{"$error":"#DIV/0!"}},{"$f":"'Resultats PMV'!AA41/'Resultats PMV'!$P41","v":{"$error":"#DIV/0!"}},{"$f":"'Resultats PMV'!AB41/'Resultats PMV'!$P41","v":{"$error":"#DIV/0!"}},{"$error":"#DIV/0!"},null,{"$f":"'Resultats PMV'!AI41","v":0},{"$f":"'Resultats PMV'!AN41/'Resultats PMV'!$AX41","v":{"$error":"#DIV/0!"}},{"$f":"'Resultats PMV'!AO41/'Resultats PMV'!$AX41","v":{"$error":"#DIV/0!"}},{"$f":"'Resultats PMV'!AP41/'Resultats PMV'!$AX41","v":{"$error":"#DIV/0!"}},{"$f":"'Resultats PMV'!AQ41/'Resultats PMV'!$AX41","v":{"$error":"#DIV/0!"}},{"$f":"'Resultats PMV'!AR41/'Resultats PMV'!$AX41","v":{"$error":"#DIV/0!"}},{"$f":"'Resultats PMV'!AS41/'Resultats PMV'!$AX41","v":{"$error":"#DIV/0!"}},{"$f":"'Resultats PMV'!AT41/'Resultats PMV'!$AX41","v":{"$error":"#DIV/0!"}},{"$f":"'Resultats PMV'!AU41/'Resultats PMV'!$AX41","v":{"$error":"#DIV/0!"}},{"$f":"'Resultats PMV'!AV41/'Resultats PMV'!$AX41","v":{"$error":"#DIV/0!"}},{"$f":"'Resultats PMV'!AW41/'Resultats PMV'!$AX41","v":{"$error":"#DIV/0!"}},{"$error":"#DIV/0!"}]
[null,{"$f":"'Resultats PMV'!A42","v":0},{"$f":"'Resultats PMV'!F42/'Resultats PMV'!$P42","v":{"$error":"#DIV/0!"}},{"$f":"'Resultats PMV'!G42/'Resultats PMV'!$P42","v":{"$error":"#DIV/0!"}},{"$f":"'Resultats PMV'!H42/'Resultats PMV'!$P42","v":{"$error":"#DIV/0!"}},{"$f":"'Resultats PMV'!I42/'Resultats PMV'!$P42","v":{"$error":"#DIV/0!"}},{"$f":"'Resultats PMV'!J42/'Resultats PMV'!$P42","v":{"$error":"#DIV/0!"}},{"$f":"'Resultats PMV'!K42/'Resultats PMV'!$P42","v":{"$error":"#DIV/0!"}},{"$f":"'Resultats PMV'!L42/'Resultats PMV'!$P42","v":{"$error":"#DIV/0!"}},{"$f":"'Resultats PMV'!M42/'Resultats PMV'!$P42","v":{"$error":"#DIV/0!"}},{"$f":"'Resultats PMV'!N42/'Resultats PMV'!$P42","v":{"$error":"#DIV/0!"}},{"$f":"'Resultats PMV'!O42/'Resultats PMV'!$P42","v":{"$error":"#DIV/0!"}},{"$error":"#DIV/0!"},null,{"$f":"'Resultats PMV'!R42","v":0},{"$f":"'Resultats PMV'!S42/'Resultats PMV'!$P42","v":{"$error":"#DIV/0!"}},{"$f":"'Resultats PMV'!T42/'Resultats PMV'!$P42","v":{"$error":"#DIV/0!"}},{"$f":"'Resultats PMV'!U42/'Resultats PMV'!$P42","v":{"$error":"#DIV/0!"}},{"$f":"'Resultats PMV'!V42/'Resultats PMV'!$P42","v":{"$error":"#DIV/0!"}},{"$f":"'Resultats PMV'!W42/'Resultats PMV'!$P42","v":{"$error":"#DIV/0!"}},{"$f":"'Resultats PMV'!X42/'Resultats PMV'!$P42","v":{"$error":"#DIV/0!"}},{"$f":"'Resultats PMV'!Y42/'Resultats PMV'!$P42","v":{"$error":"#DIV/0!"}},{"$f":"'Resultats PMV'!Z42/'Resultats PMV'!$P42","v":{"$error":"#DIV/0!"}},{"$f":"'Resultats PMV'!AA42/'Resultats PMV'!$P42","v":{"$error":"#DIV/0!"}},{"$f":"'Resultats PMV'!AB42/'Resultats PMV'!$P42","v":{"$error":"#DIV/0!"}},{"$error":"#DIV/0!"},null,{"$f":"'Resultats PMV'!AI42","v":0},{"$f":"'Resultats PMV'!AN42/'Resultats PMV'!$AX42","v":{"$error":"#DIV/0!"}},{"$f":"'Resultats PMV'!AO42/'Resultats PMV'!$AX42","v":{"$error":"#DIV/0!"}},{"$f":"'Resultats PMV'!AP42/'Resultats PMV'!$AX42","v":{"$error":"#DIV/0!"}},{"$f":"'Resultats PMV'!AQ42/'Resultats PMV'!$AX42","v":{"$error":"#DIV/0!"}},{"$f":"'Resultats PMV'!AR42/'Resultats PMV'!$AX42","v":{"$error":"#DIV/0!"}},{"$f":"'Resultats PMV'!AS42/'Resultats PMV'!$AX42","v":{"$error":"#DIV/0!"}},{"$f":"'Resultats PMV'!AT42/'Resultats PMV'!$AX42","v":{"$error":"#DIV/0!"}},{"$f":"'Resultats PMV'!AU42/'Resultats PMV'!$AX42","v":{"$error":"#DIV/0!"}},{"$f":"'Resultats PMV'!AV42/'Resultats PMV'!$AX42","v":{"$error":"#DIV/0!"}},{"$f":"'Resultats PMV'!AW42/'Resultats PMV'!$AX42","v":{"$error":"#DIV/0!"}},{"$error":"#DIV/0!"}]
[null,{"$f":"'Resultats PMV'!A43","v":0},{"$f":"'Resultats PMV'!F43/'Resultats PMV'!$P43","v":{"$error":"#DIV/0!"}},{"$f":"'Resultats PMV'!G43/'Resultats PMV'!$P43","v":{"$error":"#DIV/0!"}},{"$f":"'Resultats PMV'!H43/'Resultats PMV'!$P43","v":{"$error":"#DIV/0!"}},{"$f":"'Resultats PMV'!I43/'Resultats PMV'!$P43","v":{"$error":"#DIV/0!"}},{"$f":"'Resultats PMV'!J43/'Resultats PMV'!$P43","v":{"$error":"#DIV/0!"}},{"$f":"'Resultats PMV'!K43/'Resultats PMV'!$P43","v":{"$error":"#DIV/0!"}},{"$f":"'Resultats PMV'!L43/'Resultats PMV'!$P43","v":{"$error":"#DIV/0!"}},{"$f":"'Resultats PMV'!M43/'Resultats PMV'!$P43","v":{"$error":"#DIV/0!"}},{"$f":"'Resultats PMV'!N43/'Resultats PMV'!$P43","v":{"$error":"#DIV/0!"}},{"$f":"'Resultats PMV'!O43/'Resultats PMV'!$P43","v":{"$error":"#DIV/0!"}},{"$error":"#DIV/0!"},null,{"$f":"'Resultats PMV'!R43","v":0},{"$f":"'Resultats PMV'!S43/'Resultats PMV'!$P43","v":{"$error":"#DIV/0!"}},{"$f":"'Resultats PMV'!T43/'Resultats PMV'!$P43","v":{"$error":"#DIV/0!"}},{"$f":"'Resultats PMV'!U43/'Resultats PMV'!$P43","v":{"$error":"#DIV/0!"}},{"$f":"'Resultats PMV'!V43/'Resultats PMV'!$P43","v":{"$error":"#DIV/0!"}},{"$f":"'Resultats PMV'!W43/'Resultats PMV'!$P43","v":{"$error":"#DIV/0!"}},{"$f":"'Resultats PMV'!X43/'Resultats PMV'!$P43","v":{"$error":"#DIV/0!"}},{"$f":"'Resultats PMV'!Y43/'Resultats PMV'!$P43","v":{"$error":"#DIV/0!"}},{"$f":"'Resultats PMV'!Z43/'Resultats PMV'!$P43","v":{"$error":"#DIV/0!"}},{"$f":"'Resultats PMV'!AA43/'Resultats PMV'!$P43","v":{"$error":"#DIV/0!"}},{"$f":"'Resultats PMV'!AB43/'Resultats PMV'!$P43","v":{"$error":"#DIV/0!"}},{"$error":"#DIV/0!"},null,{"$f":"'Resultats PMV'!AI43","v":0},{"$f":"'Resultats PMV'!AN43/'Resultats PMV'!$AX43","v":{"$error":"#DIV/0!"}},{"$f":"'Resultats PMV'!AO43/'Resultats PMV'!$AX43","v":{"$error":"#DIV/0!"}},{"$f":"'Resultats PMV'!AP43/'Resultats PMV'!$AX43","v":{"$error":"#DIV/0!"}},{"$f":"'Resultats PMV'!AQ43/'Resultats PMV'!$AX43","v":{"$error":"#DIV/0!"}},{"$f":"'Resultats PMV'!AR43/'Resultats PMV'!$AX43","v":{"$error":"#DIV/0!"}},{"$f":"'Resultats PMV'!AS43/'Resultats PMV'!$AX43","v":{"$error":"#DIV/0!"}},{"$f":"'Resultats PMV'!AT43/'Resultats PMV'!$AX43","v":{"$error":"#DIV/0!"}},{"$f":"'Resultats PMV'!AU43/'Resultats PMV'!$AX43","v":{"$error":"#DIV/0!"}},{"$f":"'Resultats PMV'!AV43/'Resultats PMV'!$AX43","v":{"$error":"#DIV/0!"}},{"$f":"'Resultats PMV'!AW43/'Resultats PMV'!$AX43","v":{"$error":"#DIV/0!"}},{"$error":"#DIV/0!"}]
[null,{"$f":"'Resultats PMV'!A44","v":0},{"$f":"'Resultats PMV'!F44/'Resultats PMV'!$P44","v":{"$error":"#DIV/0!"}},{"$f":"'Resultats PMV'!G44/'Resultats PMV'!$P44","v":{"$error":"#DIV/0!"}},{"$f":"'Resultats PMV'!H44/'Resultats PMV'!$P44","v":{"$error":"#DIV/0!"}},{"$f":"'Resultats PMV'!I44/'Resultats PMV'!$P44","v":{"$error":"#DIV/0!"}},{"$f":"'Resultats PMV'!J44/'Resultats PMV'!$P44","v":{"$error":"#DIV/0!"}},{"$f":"'Resultats PMV'!K44/'Resultats PMV'!$P44","v":{"$error":"#DIV/0!"}},{"$f":"'Resultats PMV'!L44/'Resultats PMV'!$P44","v":{"$error":"#DIV/0!"}},{"$f":"'Resultats PMV'!M44/'Resultats PMV'!$P44","v":{"$error":"#DIV/0!"}},{"$f":"'Resultats PMV'!N44/'Resultats PMV'!$P44","v":{"$error":"#DIV/0!"}},{"$f":"'Resultats PMV'!O44/'Resultats PMV'!$P44","v":{"$error":"#DIV/0!"}},{"$error":"#DIV/0!"},null,{"$f":"'Resultats PMV'!R44","v":0},{"$f":"'Resultats PMV'!S44/'Resultats PMV'!$P44","v":{"$error":"#DIV/0!"}},{"$f":"'Resultats PMV'!T44/'Resultats PMV'!$P44","v":{"$error":"#DIV/0!"}},{"$f":"'Resultats PMV'!U44/'Resultats PMV'!$P44","v":{"$error":"#DIV/0!"}},{"$f":"'Resultats PMV'!V44/'Resultats PMV'!$P44","v":{"$error":"#DIV/0!"}},{"$f":"'Resultats PMV'!W44/'Resultats PMV'!$P44","v":{"$error":"#DIV/0!"}},{"$f":"'Resultats PMV'!X44/'Resultats PMV'!$P44","v":{"$error":"#DIV/0!"}},{"$f":"'Resultats PMV'!Y44/'Resultats PMV'!$P44","v":{"$error":"#DIV/0!"}},{"$f":"'Resultats PMV'!Z44/'Resultats PMV'!$P44","v":{"$error":"#DIV/0!"}},{"$f":"'Resultats PMV'!AA44/'Resultats PMV'!$P44","v":{"$error":"#DIV/0!"}},{"$f":"'Resultats PMV'!AB44/'Resultats PMV'!$P44","v":{"$error":"#DIV/0!"}},{"$error":"#DIV/0!"},null,{"$f":"'Resultats PMV'!AI44","v":0},{"$f":"'Resultats PMV'!AN44/'Resultats PMV'!$AX44","v":{"$error":"#DIV/0!"}},{"$f":"'Resultats PMV'!AO44/'Resultats PMV'!$AX44","v":{"$error":"#DIV/0!"}},{"$f":"'Resultats PMV'!AP44/'Resultats PMV'!$AX44","v":{"$error":"#DIV/0!"}},{"$f":"'Resultats PMV'!AQ44/'Resultats PMV'!$AX44","v":{"$error":"#DIV/0!"}},{"$f":"'Resultats PMV'!AR44/'Resultats PMV'!$AX44","v":{"$error":"#DIV/0!"}},{"$f":"'Resultats PMV'!AS44/'Resultats PMV'!$AX44","v":{"$error":"#DIV/0!"}},{"$f":"'Resultats PMV'!AT44/'Resultats PMV'!$AX44","v":{"$error":"#DIV/0!"}},{"$f":"'Resultats PMV'!AU44/'Resultats PMV'!$AX44","v":{"$error":"#DIV/0!"}},{"$f":"'Resultats PMV'!AV44/'Resultats PMV'!$AX44","v":{"$error":"#DIV/0!"}},{"$f":"'Resultats PMV'!AW44/'Resultats PMV'!$AX44","v":{"$error":"#DIV/0!"}},{"$error":"#DIV/0!"}]
[null,{"$f":"'Resultats PMV'!A45","v":0},{"$f":"'Resultats PMV'!F45/'Resultats PMV'!$P45","v":{"$error":"#DIV/0!"}},{"$f":"'Resultats PMV'!G45/'Resultats PMV'!$P45","v":{"$error":"#DIV/0!"}},{"$f":"'Resultats PMV'!H45/'Resultats PMV'!$P45","v":{"$error":"#DIV/0!"}},{"$f":"'Resultats PMV'!I45/'Resultats PMV'!$P45","v":{"$error":"#DIV/0!"}},{"$f":"'Resultats PMV'!J45/'Resultats PMV'!$P45","v":{"$error":"#DIV/0!"}},{"$f":"'Resultats PMV'!K45/'Resultats PMV'!$P45","v":{"$error":"#DIV/0!"}},{"$f":"'Resultats PMV'!L45/'Resultats PMV'!$P45","v":{"$error":"#DIV/0!"}},{"$f":"'Resultats PMV'!M45/'Resultats PMV'!$P45","v":{"$error":"#DIV/0!"}},{"$f":"'Resultats PMV'!N45/'Resultats PMV'!$P45","v":{"$error":"#DIV/0!"}},{"$f":"'Resultats PMV'!O45/'Resultats PMV'!$P45","v":{"$error":"#DIV/0!"}},{"$error":"#DIV/0!"},null,{"$f":"'Resultats PMV'!R45","v":0},{"$f":"'Resultats PMV'!S45/'Resultats PMV'!$P45","v":{"$error":"#DIV/0!"}},{"$f":"'Resultats PMV'!T45/'Resultats PMV'!$P45","v":{"$error":"#DIV/0!"}},{"$f":"'Resultats PMV'!U45/'Resultats PMV'!$P45","v":{"$error":"#DIV/0!"}},{"$f":"'Resultats PMV'!V45/'Resultats PMV'!$P45","v":{"$error":"#DIV/0!"}},{"$f":"'Resultats PMV'!W45/'Resultats PMV'!$P45","v":{"$error":"#DIV/0!"}},{"$f":"'Resultats PMV'!X45/'Resultats PMV'!$P45","v":{"$error":"#DIV/0!"}},{"$f":"'Resultats PMV'!Y45/'Resultats PMV'!$P45","v":{"$error":"#DIV/0!"}},{"$f":"'Resultats PMV'!Z45/'Resultats PMV'!$P45","v":{"$error":"#DIV/0!"}},{"$f":"'Resultats PMV'!AA45/'Resultats PMV'!$P45","v":{"$error":"#DIV/0!"}},{"$f":"'Resultats PMV'!AB45/'Resultats PMV'!$P45","v":{"$error":"#DIV/0!"}},{"$error":"#DIV/0!"},null,{"$f":"'Resultats PMV'!AI45","v":0},{"$f":"'Resultats PMV'!AN45/'Resultats PMV'!$AX45","v":{"$error":"#DIV/0!"}},{"$f":"'Resultats PMV'!AO45/'Resultats PMV'!$AX45","v":{"$error":"#DIV/0!"}},{"$f":"'Resultats PMV'!AP45/'Resultats PMV'!$AX45","v":{"$error":"#DIV/0!"}},{"$f":"'Resultats PMV'!AQ45/'Resultats PMV'!$AX45","v":{"$error":"#DIV/0!"}},{"$f":"'Resultats PMV'!AR45/'Resultats PMV'!$AX45","v":{"$error":"#DIV/0!"}},{"$f":"'Resultats PMV'!AS45/'Resultats PMV'!$AX45","v":{"$error":"#DIV/0!"}},{"$f":"'Resultats PMV'!AT45/'Resultats PMV'!$AX45","v":{"$error":"#DIV/0!"}},{"$f":"'Resultats PMV'!AU45/'Resultats PMV'!$AX45","v":{"$error":"#DIV/0!"}},{"$f":"'Resultats PMV'!AV45/'Resultats PMV'!$AX45","v":{"$error":"#DIV/0!"}},{"$f":"'Resultats PMV'!AW45/'Resultats PMV'!$AX45","v":{"$error":"#DIV/0!"}},{"$error":"#DIV/0!"}]
[null,{"$f":"'Resultats PMV'!A46","v":0},{"$f":"'Resultats PMV'!F46/'Resultats PMV'!$P46","v":{"$error":"#DIV/0!"}},{"$f":"'Resultats PMV'!G46/'Resultats PMV'!$P46","v":{"$error":"#DIV/0!"}},{"$f":"'Resultats PMV'!H46/'Resultats PMV'!$P46","v":{"$error":"#DIV/0!"}},{"$f":"'Resultats PMV'!I46/'Resultats PMV'!$P46","v":{"$error":"#DIV/0!"}},{"$f":"'Resultats PMV'!J46/'Resultats PMV'!$P46","v":{"$error":"#DIV/0!"}},{"$f":"'Resultats PMV'!K46/'Resultats PMV'!$P46","v":{"$error":"#DIV/0!"}},{"$f":"'Resultats PMV'!L46/'Resultats PMV'!$P46","v":{"$error":"#DIV/0!"}},{"$f":"'Resultats PMV'!M46/'Resultats PMV'!$P46","v":{"$error":"#DIV/0!"}},{"$f":"'Resultats PMV'!N46/'Resultats PMV'!$P46","v":{"$error":"#DIV/0!"}},{"$f":"'Resultats PMV'!O46/'Resultats PMV'!$P46","v":{"$error":"#DIV/0!"}},{"$error":"#DIV/0!"},null,{"$f":"'Resultats PMV'!R46","v":0},{"$f":"'Resultats PMV'!S46/'Resultats PMV'!$P46","v":{"$error":"#DIV/0!"}},{"$f":"'Resultats PMV'!T46/'Resultats PMV'!$P46","v":{"$error":"#DIV/0!"}},{"$f":"'Resultats PMV'!U46/'Resultats PMV'!$P46","v":{"$error":"#DIV/0!"}},{"$f":"'Resultats PMV'!V46/'Resultats PMV'!$P46","v":{"$error":"#DIV/0!"}},{"$f":"'Resultats PMV'!W46/'Resultats PMV'!$P46","v":{"$error":"#DIV/0!"}},{"$f":"'Resultats PMV'!X46/'Resultats PMV'!$P46","v":{"$error":"#DIV/0!"}},{"$f":"'Resultats PMV'!Y46/'Resultats PMV'!$P46","v":{"$error":"#DIV/0!"}},{"$f":"'Resultats PMV'!Z46/'Resultats PMV'!$P46","v":{"$error":"#DIV/0!"}},{"$f":"'Resultats PMV'!AA46/'Resultats PMV'!$P46","v":{"$error":"#DIV/0!"}},{"$f":"'Resultats PMV'!AB46/'Resultats PMV'!$P46","v":{"$error":"#DIV/0!"}},{"$error":"#DIV/0!"},null,{"$f":"'Resultats PMV'!AI46","v":0},{"$f":"'Resultats PMV'!AN46/'Resultats PMV'!$AX46","v":{"$error":"#DIV/0!"}},{"$f":"'Resultats PMV'!AO46/'Resultats PMV'!$AX46","v":{"$error":"#DIV/0!"}},{"$f":"'Resultats PMV'!AP46/'Resultats PMV'!$AX46","v":{"$error":"#DIV/0!"}},{"$f":"'Resultats PMV'!AQ46/'Resultats PMV'!$AX46","v":{"$error":"#DIV/0!"}},{"$f":"'Resultats PMV'!AR46/'Resultats PMV'!$AX46","v":{"$error":"#DIV/0!"}},{"$f":"'Resultats PMV'!AS46/'Resultats PMV'!$AX46","v":{"$error":"#DIV/0!"}},{"$f":"'Resultats PMV'!AT46/'Resultats PMV'!$AX46","v":{"$error":"#DIV/0!"}},{"$f":"'Resultats PMV'!AU46/'Resultats PMV'!$AX46","v":{"$error":"#DIV/0!"}},{"$f":"'Resultats PMV'!AV46/'Resultats PMV'!$AX46","v":{"$error":"#DIV/0!"}},{"$f":"'Resultats PMV'!AW46/'Resultats PMV'!$AX46","v":{"$error":"#DIV/0!"}},{"$error":"#DIV/0!"}]
[null,{"$f":"'Resultats PMV'!A47","v":0},{"$f":"'Resultats PMV'!F47/'Resultats PMV'!$P47","v":{"$error":"#DIV/0!"}},{"$f":"'Resultats PMV'!G47/'Resultats PMV'!$P47","v":{"$error":"#DIV/0!"}},{"$f":"'Resultats PMV'!H47/'Resultats PMV'!$P47","v":{"$error":"#DIV/0!"}},{"$f":"'Resultats PMV'!I47/'Resultats PMV'!$P47","v":{"$error":"#DIV/0!"}},{"$f":"'Resultats PMV'!J47/'Resultats PMV'!$P47","v":{"$error":"#DIV/0!"}},{"$f":"'Resultats PMV'!K47/'Resultats PMV'!$P47","v":{"$error":"#DIV/0!"}},{"$f":"'Resultats PMV'!L47/'Resultats PMV'!$P47","v":{"$error":"#DIV/0!"}},{"$f":"'Resultats PMV'!M47/'Resultats PMV'!$P47","v":{"$error":"#DIV/0!"}},{"$f":"'Resultats PMV'!N47/'Resultats PMV'!$P47","v":{"$error":"#DIV/0!"}},{"$f":"'Resultats PMV'!O47/'Resultats PMV'!$P47","v":{"$error":"#DIV/0!"}},{"$error":"#DIV/0!"},null,{"$f":"'Resultats PMV'!R47","v":0},{"$f":"'Resultats PMV'!S47/'Resultats PMV'!$P47","v":{"$error":"#DIV/0!"}},{"$f":"'Resultats PMV'!T47/'Resultats PMV'!$P47","v":{"$error":"#DIV/0!"}},{"$f":"'Resultats PMV'!U47/'Resultats PMV'!$P47","v":{"$error":"#DIV/0!"}},{"$f":"'Resultats PMV'!V47/'Resultats PMV'!$P47","v":{"$error":"#DIV/0!"}},{"$f":"'Resultats PMV'!W47/'Resultats PMV'!$P47","v":{"$error":"#DIV/0!"}},{"$f":"'Resultats PMV'!X47/'Resultats PMV'!$P47","v":{"$error":"#DIV/0!"}},{"$f":"'Resultats PMV'!Y47/'Resultats PMV'!$P47","v":{"$error":"#DIV/0!"}},{"$f":"'Resultats PMV'!Z47/'Resultats PMV'!$P47","v":{"$error":"#DIV/0!"}},{"$f":"'Resultats PMV'!AA47/'Resultats PMV'!$P47","v":{"$error":"#DIV/0!"}},{"$f":"'Resultats PMV'!AB47/'Resultats PMV'!$P47","v":{"$error":"#DIV/0!"}},{"$error":"#DIV/0!"},null,{"$f":"'Resultats PMV'!AI47","v":0},{"$f":"'Resultats PMV'!AN47/'Resultats PMV'!$AX47","v":{"$error":"#DIV/0!"}},{"$f":"'Resultats PMV'!AO47/'Resultats PMV'!$AX47","v":{"$error":"#DIV/0!"}},{"$f":"'Resultats PMV'!AP47/'Resultats PMV'!$AX47","v":{"$error":"#DIV/0!"}},{"$f":"'Resultats PMV'!AQ47/'Resultats PMV'!$AX47","v":{"$error":"#DIV/0!"}},{"$f":"'Resultats PMV'!AR47/'Resultats PMV'!$AX47","v":{"$error":"#DIV/0!"}},{"$f":"'Resultats PMV'!AS47/'Resultats PMV'!$AX47","v":{"$error":"#DIV/0!"}},{"$f":"'Resultats PMV'!AT47/'Resultats PMV'!$AX47","v":{"$error":"#DIV/0!"}},{"$f":"'Resultats PMV'!AU47/'Resultats PMV'!$AX47","v":{"$error":"#DIV/0!"}},{"$f":"'Resultats PMV'!AV47/'Resultats PMV'!$AX47","v":{"$error":"#DIV/0!"}},{"$f":"'Resultats PMV'!AW47/'Resultats PMV'!$AX47","v":{"$error":"#DIV/0!"}},{"$error":"#DIV/0!"}]
[null,{"$f":"'Resultats PMV'!A48","v":0},{"$f":"'Resultats PMV'!F48/'Resultats PMV'!$P48","v":{"$error":"#DIV/0!"}},{"$f":"'Resultats PMV'!G48/'Resultats PMV'!$P48","v":{"$error":"#DIV/0!"}},{"$f":"'Resultats PMV'!H48/'Resultats PMV'!$P48","v":{"$error":"#DIV/0!"}},{"$f":"'Resultats PMV'!I48/'Resultats PMV'!$P48","v":{"$error":"#DIV/0!"}},{"$f":"'Resultats PMV'!J48/'Resultats PMV'!$P48","v":{"$error":"#DIV/0!"}},{"$f":"'Resultats PMV'!K48/'Resultats PMV'!$P48","v":{"$error":"#DIV/0!"}},{"$f":"'Resultats PMV'!L48/'Resultats PMV'!$P48","v":{"$error":"#DIV/0!"}},{"$f":"'Resultats PMV'!M48/'Resultats PMV'!$P48","v":{"$error":"#DIV/0!"}},{"$f":"'Resultats PMV'!N48/'Resultats PMV'!$P48","v":{"$error":"#DIV/0!"}},{"$f":"'Resultats PMV'!O48/'Resultats PMV'!$P48","v":{"$error":"#DIV/0!"}},{"$error":"#DIV/0!"},null,{"$f":"'Resultats PMV'!R48","v":0},{"$f":"'Resultats PMV'!S48/'Resultats PMV'!$P48","v":{"$error":"#DIV/0!"}},{"$f":"'Resultats PMV'!T48/'Resultats PMV'!$P48","v":{"$error":"#DIV/0!"}},{"$f":"'Resultats PMV'!U48/'Resultats PMV'!$P48","v":{"$error":"#DIV/0!"}},{"$f":"'Resultats PMV'!V48/'Resultats PMV'!$P48","v":{"$error":"#DIV/0!"}},{"$f":"'Resultats PMV'!W48/'Resultats PMV'!$P48","v":{"$error":"#DIV/0!"}},{"$f":"'Resultats PMV'!X48/'Resultats PMV'!$P48","v":{"$error":"#DIV/0!"}},{"$f":"'Resultats PMV'!Y48/'Resultats PMV'!$P48","v":{"$error":"#DIV/0!"}},{"$f":"'Resultats PMV'!Z48/'Resultats PMV'!$P48","v":{"$error":"#DIV/0!"}},{"$f":"'Resultats PMV'!AA48/'Resultats PMV'!$P48","v":{"$error":"#DIV/0!"}},{"$f":"'Resultats PMV'!AB48/'Resultats PMV'!$P48","v":{"$error":"#DIV/0!"}},{"$error":"#DIV/0!"},null,{"$f":"'Resultats PMV'!AI48","v":0},{"$f":"'Resultats PMV'!AN48/'Resultats PMV'!$AX48","v":{"$error":"#DIV/0!"}},{"$f":"'Resultats PMV'!AO48/'Resultats PMV'!$AX48","v":{"$error":"#DIV/0!"}},{"$f":"'Resultats PMV'!AP48/'Resultats PMV'!$AX48","v":{"$error":"#DIV/0!"}},{"$f":"'Resultats PMV'!AQ48/'Resultats PMV'!$AX48","v":{"$error":"#DIV/0!"}},{"$f":"'Resultats PMV'!AR48/'Resultats PMV'!$AX48","v":{"$error":"#DIV/0!"}},{"$f":"'Resultats PMV'!AS48/'Resultats PMV'!$AX48","v":{"$error":"#DIV/0!"}},{"$f":"'Resultats PMV'!AT48/'Resultats PMV'!$AX48","v":{"$error":"#DIV/0!"}},{"$f":"'Resultats PMV'!AU48/'Resultats PMV'!$AX48","v":{"$error":"#DIV/0!"}},{"$f":"'Resultats PMV'!AV48/'Resultats PMV'!$AX48","v":{"$error":"#DIV/0!"}},{"$f":"'Resultats PMV'!AW48/'Resultats PMV'!$AX48","v":{"$error":"#DIV/0!"}},{"$error":"#DIV/0!"}]
[null,{"$f":"'Resultats PMV'!A49","v":0},{"$f":"'Resultats PMV'!F49/'Resultats PMV'!$P49","v":{"$error":"#DIV/0!"}},{"$f":"'Resultats PMV'!G49/'Resultats PMV'!$P49","v":{"$error":"#DIV/0!"}},{"$f":"'Resultats PMV'!H49/'Resultats PMV'!$P49","v":{"$error":"#DIV/0!"}},{"$f":"'Resultats PMV'!I49/'Resultats PMV'!$P49","v":{"$error":"#DIV/0!"}},{"$f":"'Resultats PMV'!J49/'Resultats PMV'!$P49","v":{"$error":"#DIV/0!"}},{"$f":"'Resultats PMV'!K49/'Resultats PMV'!$P49","v":{"$error":"#DIV/0!"}},{"$f":"'Resultats PMV'!L49/'Resultats PMV'!$P49","v":{"$error":"#DIV/0!"}},{"$f":"'Resultats PMV'!M49/'Resultats PMV'!$P49","v":{"$error":"#DIV/0!"}},{"$f":"'Resultats PMV'!N49/'Resultats PMV'!$P49","v":{"$error":"#DIV/0!"}},{"$f":"'Resultats PMV'!O49/'Resultats PMV'!$P49","v":{"$error":"#DIV/0!"}},{"$error":"#DIV/0!"},null,{"$f":"'Resultats PMV'!R49","v":0},{"$f":"'Resultats PMV'!S49/'Resultats PMV'!$P49","v":{"$error":"#DIV/0!"}},{"$f":"'Resultats PMV'!T49/'Resultats PMV'!$P49","v":{"$error":"#DIV/0!"}},{"$f":"'Resultats PMV'!U49/'Resultats PMV'!$P49","v":{"$error":"#DIV/0!"}},{"$f":"'Resultats PMV'!V49/'Resultats PMV'!$P49","v":{"$error":"#DIV/0!"}},{"$f":"'Resultats PMV'!W49/'Resultats PMV'!$P49","v":{"$error":"#DIV/0!"}},{"$f":"'Resultats PMV'!X49/'Resultats PMV'!$P49","v":{"$error":"#DIV/0!"}},{"$f":"'Resultats PMV'!Y49/'Resultats PMV'!$P49","v":{"$error":"#DIV/0!"}},{"$f":"'Resultats PMV'!Z49/'Resultats PMV'!$P49","v":{"$error":"#DIV/0!"}},{"$f":"'Resultats PMV'!AA49/'Resultats PMV'!$P49","v":{"$error":"#DIV/0!"}},{"$f":"'Resultats PMV'!AB49/'Resultats PMV'!$P49","v":{"$error":"#DIV/0!"}},{"$error":"#DIV/0!"},null,{"$f":"'Resultats PMV'!AI49","v":0},{"$f":"'Resultats PMV'!AN49/'Resultats PMV'!$AX49","v":{"$error":"#DIV/0!"}},{"$f":"'Resultats PMV'!AO49/'Resultats PMV'!$AX49","v":{"$error":"#DIV/0!"}},{"$f":"'Resultats PMV'!AP49/'Resultats PMV'!$AX49","v":{"$error":"#DIV/0!"}},{"$f":"'Resultats PMV'!AQ49/'Resultats PMV'!$AX49","v":{"$error":"#DIV/0!"}},{"$f":"'Resultats PMV'!AR49/'Resultats PMV'!$AX49","v":{"$error":"#DIV/0!"}},{"$f":"'Resultats PMV'!AS49/'Resultats PMV'!$AX49","v":{"$error":"#DIV/0!"}},{"$f":"'Resultats PMV'!AT49/'Resultats PMV'!$AX49","v":{"$error":"#DIV/0!"}},{"$f":"'Resultats PMV'!AU49/'Resultats PMV'!$AX49","v":{"$error":"#DIV/0!"}},{"$f":"'Resultats PMV'!AV49/'Resultats PMV'!$AX49","v":{"$error":"#DIV/0!"}},{"$f":"'Resultats PMV'!AW49/'Resultats PMV'!$AX49","v":{"$error":"#DIV/0!"}},{"$error":"#DIV/0!"}]
[null,{"$f":"'Resultats PMV'!A50","v":0},{"$f":"'Resultats PMV'!F50/'Resultats PMV'!$P50","v":{"$error":"#DIV/0!"}},{"$f":"'Resultats PMV'!G50/'Resultats PMV'!$P50","v":{"$error":"#DIV/0!"}},{"$f":"'Resultats PMV'!H50/'Resultats PMV'!$P50","v":{"$error":"#DIV/0!"}},{"$f":"'Resultats PMV'!I50/'Resultats PMV'!$P50","v":{"$error":"#DIV/0!"}},{"$f":"'Resultats PMV'!J50/'Resultats PMV'!$P50","v":{"$error":"#DIV/0!"}},{"$f":"'Resultats PMV'!K50/'Resultats PMV'!$P50","v":{"$error":"#DIV/0!"}},{"$f":"'Resultats PMV'!L50/'Resultats PMV'!$P50","v":{"$error":"#DIV/0!"}},{"$f":"'Resultats PMV'!M50/'Resultats PMV'!$P50","v":{"$error":"#DIV/0!"}},{"$f":"'Resultats PMV'!N50/'Resultats PMV'!$P50","v":{"$error":"#DIV/0!"}},{"$f":"'Resultats PMV'!O50/'Resultats PMV'!$P50","v":{"$error":"#DIV/0!"}},{"$error":"#DIV/0!"},null,{"$f":"'Resultats PMV'!R50","v":0},{"$f":"'Resultats PMV'!S50/'Resultats PMV'!$P50","v":{"$error":"#DIV/0!"}},{"$f":"'Resultats PMV'!T50/'Resultats PMV'!$P50","v":{"$error":"#DIV/0!"}},{"$f":"'Resultats PMV'!U50/'Resultats PMV'!$P50","v":{"$error":"#DIV/0!"}},{"$f":"'Resultats PMV'!V50/'Resultats PMV'!$P50","v":{"$error":"#DIV/0!"}},{"$f":"'Resultats PMV'!W50/'Resultats PMV'!$P50","v":{"$error":"#DIV/0!"}},{"$f":"'Resultats PMV'!X50/'Resultats PMV'!$P50","v":{"$error":"#DIV/0!"}},{"$f":"'Resultats PMV'!Y50/'Resultats PMV'!$P50","v":{"$error":"#DIV/0!"}},{"$f":"'Resultats PMV'!Z50/'Resultats PMV'!$P50","v":{"$error":"#DIV/0!"}},{"$f":"'Resultats PMV'!AA50/'Resultats PMV'!$P50","v":{"$error":"#DIV/0!"}},{"$f":"'Resultats PMV'!AB50/'Resultats PMV'!$P50","v":{"$error":"#DIV/0!"}},{"$error":"#DIV/0!"},null,{"$f":"'Resultats PMV'!AI50","v":0},{"$f":"'Resultats PMV'!AN50/'Resultats PMV'!$AX50","v":{"$error":"#DIV/0!"}},{"$f":"'Resultats PMV'!AO50/'Resultats PMV'!$AX50","v":{"$error":"#DIV/0!"}},{"$f":"'Resultats PMV'!AP50/'Resultats PMV'!$AX50","v":{"$error":"#DIV/0!"}},{"$f":"'Resultats PMV'!AQ50/'Resultats PMV'!$AX50","v":{"$error":"#DIV/0!"}},{"$f":"'Resultats PMV'!AR50/'Resultats PMV'!$AX50","v":{"$error":"#DIV/0!"}},{"$f":"'Resultats PMV'!AS50/'Resultats PMV'!$AX50","v":{"$error":"#DIV/0!"}},{"$f":"'Resultats PMV'!AT50/'Resultats PMV'!$AX50","v":{"$error":"#DIV/0!"}},{"$f":"'Resultats PMV'!AU50/'Resultats PMV'!$AX50","v":{"$error":"#DIV/0!"}},{"$f":"'Resultats PMV'!AV50/'Resultats PMV'!$AX50","v":{"$error":"#DIV/0!"}},{"$f":"'Resultats PMV'!AW50/'Resultats PMV'!$AX50","v":{"$error":"#DIV/0!"}},{"$error":"#DIV/0!"}]
[null,{"$f":"'Resultats PMV'!A51","v":0},{"$f":"'Resultats PMV'!F51/'Resultats PMV'!$P51","v":{"$error":"#DIV/0!"}},{"$f":"'Resultats PMV'!G51/'Resultats PMV'!$P51","v":{"$error":"#DIV/0!"}},{"$f":"'Resultats PMV'!H51/'Resultats PMV'!$P51","v":{"$error":"#DIV/0!"}},{"$f":"'Resultats PMV'!I51/'Resultats PMV'!$P51","v":{"$error":"#DIV/0!"}},{"$f":"'Resultats PMV'!J51/'Resultats PMV'!$P51","v":{"$error":"#DIV/0!"}},{"$f":"'Resultats PMV'!K51/'Resultats PMV'!$P51","v":{"$error":"#DIV/0!"}},{"$f":"'Resultats PMV'!L51/'Resultats PMV'!$P51","v":{"$error":"#DIV/0!"}},{"$f":"'Resultats PMV'!M51/'Resultats PMV'!$P51","v":{"$error":"#DIV/0!"}},{"$f":"'Resultats PMV'!N51/'Resultats PMV'!$P51","v":{"$error":"#DIV/0!"}},{"$f":"'Resultats PMV'!O51/'Resultats PMV'!$P51","v":{"$error":"#DIV/0!"}},{"$error":"#DIV/0!"},null,{"$f":"'Resultats PMV'!R51","v":0},{"$f":"'Resultats PMV'!S51/'Resultats PMV'!$P51","v":{"$error":"#DIV/0!"}},{"$f":"'Resultats PMV'!T51/'Resultats PMV'!$P51","v":{"$error":"#DIV/0!"}},{"$f":"'Resultats PMV'!U51/'Resultats PMV'!$P51","v":{"$error":"#DIV/0!"}},{"$f":"'Resultats PMV'!V51/'Resultats PMV'!$P51","v":{"$error":"#DIV/0!"}},{"$f":"'Resultats PMV'!W51/'Resultats PMV'!$P51","v":{"$error":"#DIV/0!"}},{"$f":"'Resultats PMV'!X51/'Resultats PMV'!$P51","v":{"$error":"#DIV/0!"}},{"$f":"'Resultats PMV'!Y51/'Resultats PMV'!$P51","v":{"$error":"#DIV/0!"}},{"$f":"'Resultats PMV'!Z51/'Resultats PMV'!$P51","v":{"$error":"#DIV/0!"}},{"$f":"'Resultats PMV'!AA51/'Resultats PMV'!$P51","v":{"$error":"#DIV/0!"}},{"$f":"'Resultats PMV'!AB51/'Resultats PMV'!$P51","v":{"$error":"#DIV/0!"}},{"$error":"#DIV/0!"},null,{"$f":"'Resultats PMV'!AI51","v":0},{"$f":"'Resultats PMV'!AN51/'Resultats PMV'!$AX51","v":{"$error":"#DIV/0!"}},{"$f":"'Resultats PMV'!AO51/'Resultats PMV'!$AX51","v":{"$error":"#DIV/0!"}},{"$f":"'Resultats PMV'!AP51/'Resultats PMV'!$AX51","v":{"$error":"#DIV/0!"}},{"$f":"'Resultats PMV'!AQ51/'Resultats PMV'!$AX51","v":{"$error":"#DIV/0!"}},{"$f":"'Resultats PMV'!AR51/'Resultats PMV'!$AX51","v":{"$error":"#DIV/0!"}},{"$f":"'Resultats PMV'!AS51/'Resultats PMV'!$AX51","v":{"$error":"#DIV/0!"}},{"$f":"'Resultats PMV'!AT51/'Resultats PMV'!$AX51","v":{"$error":"#DIV/0!"}},{"$f":"'Resultats PMV'!AU51/'Resultats PMV'!$AX51","v":{"$error":"#DIV/0!"}},{"$f":"'Resultats PMV'!AV51/'Resultats PMV'!$AX51","v":{"$error":"#DIV/0!"}},{"$f":"'Resultats PMV'!AW51/'Resultats PMV'!$AX51","v":{"$error":"#DIV/0!"}},{"$error":"#DIV/0!"}]
[null,{"$f":"'Resultats PMV'!A52","v":0},{"$f":"'Resultats PMV'!F52/'Resultats PMV'!$P52","v":{"$error":"#DIV/0!"}},{"$f":"'Resultats PMV'!G52/'Resultats PMV'!$P52","v":{"$error":"#DIV/0!"}},{"$f":"'Resultats PMV'!H52/'Resultats PMV'!$P52","v":{"$error":"#DIV/0!"}},{"$f":"'Resultats PMV'!I52/'Resultats PMV'!$P52","v":{"$error":"#DIV/0!"}},{"$f":"'Resultats PMV'!J52/'Resultats PMV'!$P52","v":{"$error":"#DIV/0!"}},{"$f":"'Resultats PMV'!K52/'Resultats PMV'!$P52","v":{"$error":"#DIV/0!"}},{"$f":"'Resultats PMV'!L52/'Resultats PMV'!$P52","v":{"$error":"#DIV/0!"}},{"$f":"'Resultats PMV'!M52/'Resultats PMV'!$P52","v":{"$error":"#DIV/0!"}},{"$f":"'Resultats PMV'!N52/'Resultats PMV'!$P52","v":{"$error":"#DIV/0!"}},{"$f":"'Resultats PMV'!O52/'Resultats PMV'!$P52","v":{"$error":"#DIV/0!"}},{"$error":"#DIV/0!"},null,{"$f":"'Resultats PMV'!R52","v":0},{"$f":"'Resultats PMV'!S52/'Resultats PMV'!$P52","v":{"$error":"#DIV/0!"}},{"$f":"'Resultats PMV'!T52/'Resultats PMV'!$P52","v":{"$error":"#DIV/0!"}},{"$f":"'Resultats PMV'!U52/'Resultats PMV'!$P52","v":{"$error":"#DIV/0!"}},{"$f":"'Resultats PMV'!V52/'Resultats PMV'!$P52","v":{"$error":"#DIV/0!"}},{"$f":"'Resultats PMV'!W52/'Resultats PMV'!$P52","v":{"$error":"#DIV/0!"}},{"$f":"'Resultats PMV'!X52/'Resultats PMV'!$P52","v":{"$error":"#DIV/0!"}},{"$f":"'Resultats PMV'!Y52/'Resultats PMV'!$P52","v":{"$error":"#DIV/0!"}},{"$f":"'Resultats PMV'!Z52/'Resultats PMV'!$P52","v":{"$error":"#DIV/0!"}},{"$f":"'Resultats PMV'!AA52/'Resultats PMV'!$P52","v":{"$error":"#DIV/0!"}},{"$f":"'Resultats PMV'!AB52/'Resultats PMV'!$P52","v":{"$error":"#DIV/0!"}},{"$error":"#DIV/0!"},null,{"$f":"'Resultats PMV'!AI52","v":0},{"$f":"'Resultats PMV'!AN52/'Resultats PMV'!$AX52","v":{"$error":"#DIV/0!"}},{"$f":"'Resultats PMV'!AO52/'Resultats PMV'!$AX52","v":{"$error":"#DIV/0!"}},{"$f":"'Resultats PMV'!AP52/'Resultats PMV'!$AX52","v":{"$error":"#DIV/0!"}},{"$f":"'Resultats PMV'!AQ52/'Resultats PMV'!$AX52","v":{"$error":"#DIV/0!"}},{"$f":"'Resultats PMV'!AR52/'Resultats PMV'!$AX52","v":{"$error":"#DIV/0!"}},{"$f":"'Resultats PMV'!AS52/'Resultats PMV'!$AX52","v":{"$error":"#DIV/0!"}},{"$f":"'Resultats PMV'!AT52/'Resultats PMV'!$AX52","v":{"$error":"#DIV/0!"}},{"$f":"'Resultats PMV'!AU52/'Resultats PMV'!$AX52","v":{"$error":"#DIV/0!"}},{"$f":"'Resultats PMV'!AV52/'Resultats PMV'!$AX52","v":{"$error":"#DIV/0!"}},{"$f":"'Resultats PMV'!AW52/'Resultats PMV'!$AX52","v":{"$error":"#DIV/0!"}},{"$error":"#DIV/0!"}]
[null,{"$f":"'Resultats PMV'!A53","v":0},{"$f":"'Resultats PMV'!F53/'Resultats PMV'!$P53","v":{"$error":"#DIV/0!"}},{"$f":"'Resultats PMV'!G53/'Resultats PMV'!$P53","v":{"$error":"#DIV/0!"}},{"$f":"'Resultats PMV'!H53/'Resultats PMV'!$P53","v":{"$error":"#DIV/0!"}},{"$f":"'Resultats PMV'!I53/'Resultats PMV'!$P53","v":{"$error":"#DIV/0!"}},{"$f":"'Resultats PMV'!J53/'Resultats PMV'!$P53","v":{"$error":"#DIV/0!"}},{"$f":"'Resultats PMV'!K53/'Resultats PMV'!$P53","v":{"$error":"#DIV/0!"}},{"$f":"'Resultats PMV'!L53/'Resultats PMV'!$P53","v":{"$error":"#DIV/0!"}},{"$f":"'Resultats PMV'!M53/'Resultats PMV'!$P53","v":{"$error":"#DIV/0!"}},{"$f":"'Resultats PMV'!N53/'Resultats PMV'!$P53","v":{"$error":"#DIV/0!"}},{"$f":"'Resultats PMV'!O53/'Resultats PMV'!$P53","v":{"$error":"#DIV/0!"}},{"$error":"#DIV/0!"},null,{"$f":"'Resultats PMV'!R53","v":0},{"$f":"'Resultats PMV'!S53/'Resultats PMV'!$P53","v":{"$error":"#DIV/0!"}},{"$f":"'Resultats PMV'!T53/'Resultats PMV'!$P53","v":{"$error":"#DIV/0!"}},{"$f":"'Resultats PMV'!U53/'Resultats PMV'!$P53","v":{"$error":"#DIV/0!"}},{"$f":"'Resultats PMV'!V53/'Resultats PMV'!$P53","v":{"$error":"#DIV/0!"}},{"$f":"'Resultats PMV'!W53/'Resultats PMV'!$P53","v":{"$error":"#DIV/0!"}},{"$f":"'Resultats PMV'!X53/'Resultats PMV'!$P53","v":{"$error":"#DIV/0!"}},{"$f":"'Resultats PMV'!Y53/'Resultats PMV'!$P53","v":{"$error":"#DIV/0!"}},{"$f":"'Resultats PMV'!Z53/'Resultats PMV'!$P53","v":{"$error":"#DIV/0!"}},{"$f":"'Resultats PMV'!AA53/'Resultats PMV'!$P53","v":{"$error":"#DIV/0!"}},{"$f":"'Resultats PMV'!AB53/'Resultats PMV'!$P53","v":{"$error":"#DIV/0!"}},{"$error":"#DIV/0!"},null,{"$f":"'Resultats PMV'!AI53","v":0},{"$f":"'Resultats PMV'!AN53/'Resultats PMV'!$AX53","v":{"$error":"#DIV/0!"}},{"$f":"'Resultats PMV'!AO53/'Resultats PMV'!$AX53","v":{"$error":"#DIV/0!"}},{"$f":"'Resultats PMV'!AP53/'Resultats PMV'!$AX53","v":{"$error":"#DIV/0!"}},{"$f":"'Resultats PMV'!AQ53/'Resultats PMV'!$AX53","v":{"$error":"#DIV/0!"}},{"$f":"'Resultats PMV'!AR53/'Resultats PMV'!$AX53","v":{"$error":"#DIV/0!"}},{"$f":"'Resultats PMV'!AS53/'Resultats PMV'!$AX53","v":{"$error":"#DIV/0!"}},{"$f":"'Resultats PMV'!AT53/'Resultats PMV'!$AX53","v":{"$error":"#DIV/0!"}},{"$f":"'Resultats PMV'!AU53/'Resultats PMV'!$AX53","v":{"$error":"#DIV/0!"}},{"$f":"'Resultats PMV'!AV53/'Resultats PMV'!$AX53","v":{"$error":"#DIV/0!"}},{"$f":"'Resultats PMV'!AW53/'Resultats PMV'!$AX53","v":{"$error":"#DIV/0!"}},{"$error":"#DIV/0!"}]
[null,{"$f":"'Resultats PMV'!A54","v":0},{"$f":"'Resultats PMV'!F54/'Resultats PMV'!$P54","v":{"$error":"#DIV/0!"}},{"$f":"'Resultats PMV'!G54/'Resultats PMV'!$P54","v":{"$error":"#DIV/0!"}},{"$f":"'Resultats PMV'!H54/'Resultats PMV'!$P54","v":{"$error":"#DIV/0!"}},{"$f":"'Resultats PMV'!I54/'Resultats PMV'!$P54","v":{"$error":"#DIV/0!"}},{"$f":"'Resultats PMV'!J54/'Resultats PMV'!$P54","v":{"$error":"#DIV/0!"}},{"$f":"'Resultats PMV'!K54/'Resultats PMV'!$P54","v":{"$error":"#DIV/0!"}},{"$f":"'Resultats PMV'!L54/'Resultats PMV'!$P54","v":{"$error":"#DIV/0!"}},{"$f":"'Resultats PMV'!M54/'Resultats PMV'!$P54","v":{"$error":"#DIV/0!"}},{"$f":"'Resultats PMV'!N54/'Resultats PMV'!$P54","v":{"$error":"#DIV/0!"}},{"$f":"'Resultats PMV'!O54/'Resultats PMV'!$P54","v":{"$error":"#DIV/0!"}},{"$error":"#DIV/0!"},null,{"$f":"'Resultats PMV'!R54","v":0},{"$f":"'Resultats PMV'!S54/'Resultats PMV'!$P54","v":{"$error":"#DIV/0!"}},{"$f":"'Resultats PMV'!T54/'Resultats PMV'!$P54","v":{"$error":"#DIV/0!"}},{"$f":"'Resultats PMV'!U54/'Resultats PMV'!$P54","v":{"$error":"#DIV/0!"}},{"$f":"'Resultats PMV'!V54/'Resultats PMV'!$P54","v":{"$error":"#DIV/0!"}},{"$f":"'Resultats PMV'!W54/'Resultats PMV'!$P54","v":{"$error":"#DIV/0!"}},{"$f":"'Resultats PMV'!X54/'Resultats PMV'!$P54","v":{"$error":"#DIV/0!"}},{"$f":"'Resultats PMV'!Y54/'Resultats PMV'!$P54","v":{"$error":"#DIV/0!"}},{"$f":"'Resultats PMV'!Z54/'Resultats PMV'!$P54","v":{"$error":"#DIV/0!"}},{"$f":"'Resultats PMV'!AA54/'Resultats PMV'!$P54","v":{"$error":"#DIV/0!"}},{"$f":"'Resultats PMV'!AB54/'Resultats PMV'!$P54","v":{"$error":"#DIV/0!"}},{"$error":"#DIV/0!"},null,{"$f":"'Resultats PMV'!AI54","v":0},{"$f":"'Resultats PMV'!AN54/'Resultats PMV'!$AX54","v":{"$error":"#DIV/0!"}},{"$f":"'Resultats PMV'!AO54/'Resultats PMV'!$AX54","v":{"$error":"#DIV/0!"}},{"$f":"'Resultats PMV'!AP54/'Resultats PMV'!$AX54","v":{"$error":"#DIV/0!"}},{"$f":"'Resultats PMV'!AQ54/'Resultats PMV'!$AX54","v":{"$error":"#DIV/0!"}},{"$f":"'Resultats PMV'!AR54/'Resultats PMV'!$AX54","v":{"$error":"#DIV/0!"}},{"$f":"'Resultats PMV'!AS54/'Resultats PMV'!$AX54","v":{"$error":"#DIV/0!"}},{"$f":"'Resultats PMV'!AT54/'Resultats PMV'!$AX54","v":{"$error":"#DIV/0!"}},{"$f":"'Resultats PMV'!AU54/'Resultats PMV'!$AX54","v":{"$error":"#DIV/0!"}},{"$f":"'Resultats PMV'!AV54/'Resultats PMV'!$AX54","v":{"$error":"#DIV/0!"}},{"$f":"'Resultats PMV'!AW54/'Resultats PMV'!$AX54","v":{"$error":"#DIV/0!"}},{"$error":"#DIV/0!"}]
[null,{"$f":"'Resultats PMV'!A55","v":0},{"$f":"'Resultats PMV'!F55/'Resultats PMV'!$P55","v":{"$error":"#DIV/0!"}},{"$f":"'Resultats PMV'!G55/'Resultats PMV'!$P55","v":{"$error":"#DIV/0!"}},{"$f":"'Resultats PMV'!H55/'Resultats PMV'!$P55","v":{"$error":"#DIV/0!"}},{"$f":"'Resultats PMV'!I55/'Resultats PMV'!$P55","v":{"$error":"#DIV/0!"}},{"$f":"'Resultats PMV'!J55/'Resultats PMV'!$P55","v":{"$error":"#DIV/0!"}},{"$f":"'Resultats PMV'!K55/'Resultats PMV'!$P55","v":{"$error":"#DIV/0!"}},{"$f":"'Resultats PMV'!L55/'Resultats PMV'!$P55","v":{"$error":"#DIV/0!"}},{"$f":"'Resultats PMV'!M55/'Resultats PMV'!$P55","v":{"$error":"#DIV/0!"}},{"$f":"'Resultats PMV'!N55/'Resultats PMV'!$P55","v":{"$error":"#DIV/0!"}},{"$f":"'Resultats PMV'!O55/'Resultats PMV'!$P55","v":{"$error":"#DIV/0!"}},{"$error":"#DIV/0!"},null,{"$f":"'Resultats PMV'!R55","v":0},{"$f":"'Resultats PMV'!S55/'Resultats PMV'!$P55","v":{"$error":"#DIV/0!"}},{"$f":"'Resultats PMV'!T55/'Resultats PMV'!$P55","v":{"$error":"#DIV/0!"}},{"$f":"'Resultats PMV'!U55/'Resultats PMV'!$P55","v":{"$error":"#DIV/0!"}},{"$f":"'Resultats PMV'!V55/'Resultats PMV'!$P55","v":{"$error":"#DIV/0!"}},{"$f":"'Resultats PMV'!W55/'Resultats PMV'!$P55","v":{"$error":"#DIV/0!"}},{"$f":"'Resultats PMV'!X55/'Resultats PMV'!$P55","v":{"$error":"#DIV/0!"}},{"$f":"'Resultats PMV'!Y55/'Resultats PMV'!$P55","v":{"$error":"#DIV/0!"}},{"$f":"'Resultats PMV'!Z55/'Resultats PMV'!$P55","v":{"$error":"#DIV/0!"}},{"$f":"'Resultats PMV'!AA55/'Resultats PMV'!$P55","v":{"$error":"#DIV/0!"}},{"$f":"'Resultats PMV'!AB55/'Resultats PMV'!$P55","v":{"$error":"#DIV/0!"}},{"$error":"#DIV/0!"},null,{"$f":"'Resultats PMV'!AI55","v":0},{"$f":"'Resultats PMV'!AN55/'Resultats PMV'!$AX55","v":{"$error":"#DIV/0!"}},{"$f":"'Resultats PMV'!AO55/'Resultats PMV'!$AX55","v":{"$error":"#DIV/0!"}},{"$f":"'Resultats PMV'!AP55/'Resultats PMV'!$AX55","v":{"$error":"#DIV/0!"}},{"$f":"'Resultats PMV'!AQ55/'Resultats PMV'!$AX55","v":{"$error":"#DIV/0!"}},{"$f":"'Resultats PMV'!AR55/'Resultats PMV'!$AX55","v":{"$error":"#DIV/0!"}},{"$f":"'Resultats PMV'!AS55/'Resultats PMV'!$AX55","v":{"$error":"#DIV/0!"}},{"$f":"'Resultats PMV'!AT55/'Resultats PMV'!$AX55","v":{"$error":"#DIV/0!"}},{"$f":"'Resultats PMV'!AU55/'Resultats PMV'!$AX55","v":{"$error":"#DIV/0!"}},{"$f":"'Resultats PMV'!AV55/'Resultats PMV'!$AX55","v":{"$error":"#DIV/0!"}},{"$f":"'Resultats PMV'!AW55/'Resultats PMV'!$AX55","v":{"$error":"#DIV/0!"}},{"$error":"#DIV/0!"}]
[null,{"$f":"'Resultats PMV'!A56","v":0},{"$f":"'Resultats PMV'!F56/'Resultats PMV'!$P56","v":{"$error":"#DIV/0!"}},{"$f":"'Resultats PMV'!G56/'Resultats PMV'!$P56","v":{"$error":"#DIV/0!"}},{"$f":"'Resultats PMV'!H56/'Resultats PMV'!$P56","v":{"$error":"#DIV/0!"}},{"$f":"'Resultats PMV'!I56/'Resultats PMV'!$P56","v":{"$error":"#DIV/0!"}},{"$f":"'Resultats PMV'!J56/'Resultats PMV'!$P56","v":{"$error":"#DIV/0!"}},{"$f":"'Resultats PMV'!K56/'Resultats PMV'!$P56","v":{"$error":"#DIV/0!"}},{"$f":"'Resultats PMV'!L56/'Resultats PMV'!$P56","v":{"$error":"#DIV/0!"}},{"$f":"'Resultats PMV'!M56/'Resultats PMV'!$P56","v":{"$error":"#DIV/0!"}},{"$f":"'Resultats PMV'!N56/'Resultats PMV'!$P56","v":{"$error":"#DIV/0!"}},{"$f":"'Resultats PMV'!O56/'Resultats PMV'!$P56","v":{"$error":"#DIV/0!"}},{"$error":"#DIV/0!"},null,{"$f":"'Resultats PMV'!R56","v":0},{"$f":"'Resultats PMV'!S56/'Resultats PMV'!$P56","v":{"$error":"#DIV/0!"}},{"$f":"'Resultats PMV'!T56/'Resultats PMV'!$P56","v":{"$error":"#DIV/0!"}},{"$f":"'Resultats PMV'!U56/'Resultats PMV'!$P56","v":{"$error":"#DIV/0!"}},{"$f":"'Resultats PMV'!V56/'Resultats PMV'!$P56","v":{"$error":"#DIV/0!"}},{"$f":"'Resultats PMV'!W56/'Resultats PMV'!$P56","v":{"$error":"#DIV/0!"}},{"$f":"'Resultats PMV'!X56/'Resultats PMV'!$P56","v":{"$error":"#DIV/0!"}},{"$f":"'Resultats PMV'!Y56/'Resultats PMV'!$P56","v":{"$error":"#DIV/0!"}},{"$f":"'Resultats PMV'!Z56/'Resultats PMV'!$P56","v":{"$error":"#DIV/0!"}},{"$f":"'Resultats PMV'!AA56/'Resultats PMV'!$P56","v":{"$error":"#DIV/0!"}},{"$f":"'Resultats PMV'!AB56/'Resultats PMV'!$P56","v":{"$error":"#DIV/0!"}},{"$error":"#DIV/0!"},null,{"$f":"'Resultats PMV'!AI56","v":0},{"$f":"'Resultats PMV'!AN56/'Resultats PMV'!$AX56","v":{"$error":"#DIV/0!"}},{"$f":"'Resultats PMV'!AO56/'Resultats PMV'!$AX56","v":{"$error":"#DIV/0!"}},{"$f":"'Resultats PMV'!AP56/'Resultats PMV'!$AX56","v":{"$error":"#DIV/0!"}},{"$f":"'Resultats PMV'!AQ56/'Resultats PMV'!$AX56","v":{"$error":"#DIV/0!"}},{"$f":"'Resultats PMV'!AR56/'Resultats PMV'!$AX56","v":{"$error":"#DIV/0!"}},{"$f":"'Resultats PMV'!AS56/'Resultats PMV'!$AX56","v":{"$error":"#DIV/0!"}},{"$f":"'Resultats PMV'!AT56/'Resultats PMV'!$AX56","v":{"$error":"#DIV/0!"}},{"$f":"'Resultats PMV'!AU56/'Resultats PMV'!$AX56","v":{"$error":"#DIV/0!"}},{"$f":"'Resultats PMV'!AV56/'Resultats PMV'!$AX56","v":{"$error":"#DIV/0!"}},{"$f":"'Resultats PMV'!AW56/'Resultats PMV'!$AX56","v":{"$error":"#DIV/0!"}},{"$error":"#DIV/0!"}]
[null,{"$f":"'Resultats PMV'!A57","v":0},{"$f":"'Resultats PMV'!F57/'Resultats PMV'!$P57","v":{"$error":"#DIV/0!"}},{"$f":"'Resultats PMV'!G57/'Resultats PMV'!$P57","v":{"$error":"#DIV/0!"}},{"$f":"'Resultats PMV'!H57/'Resultats PMV'!$P57","v":{"$error":"#DIV/0!"}},{"$f":"'Resultats PMV'!I57/'Resultats PMV'!$P57","v":{"$error":"#DIV/0!"}},{"$f":"'Resultats PMV'!J57/'Resultats PMV'!$P57","v":{"$error":"#DIV/0!"}},{"$f":"'Resultats PMV'!K57/'Resultats PMV'!$P57","v":{"$error":"#DIV/0!"}},{"$f":"'Resultats PMV'!L57/'Resultats PMV'!$P57","v":{"$error":"#DIV/0!"}},{"$f":"'Resultats PMV'!M57/'Resultats PMV'!$P57","v":{"$error":"#DIV/0!"}},{"$f":"'Resultats PMV'!N57/'Resultats PMV'!$P57","v":{"$error":"#DIV/0!"}},{"$f":"'Resultats PMV'!O57/'Resultats PMV'!$P57","v":{"$error":"#DIV/0!"}},{"$error":"#DIV/0!"},null,{"$f":"'Resultats PMV'!R57","v":0},{"$f":"'Resultats PMV'!S57/'Resultats PMV'!$P57","v":{"$error":"#DIV/0!"}},{"$f":"'Resultats PMV'!T57/'Resultats PMV'!$P57","v":{"$error":"#DIV/0!"}},{"$f":"'Resultats PMV'!U57/'Resultats PMV'!$P57","v":{"$error":"#DIV/0!"}},{"$f":"'Resultats PMV'!V57/'Resultats PMV'!$P57","v":{"$error":"#DIV/0!"}},{"$f":"'Resultats PMV'!W57/'Resultats PMV'!$P57","v":{"$error":"#DIV/0!"}},{"$f":"'Resultats PMV'!X57/'Resultats PMV'!$P57","v":{"$error":"#DIV/0!"}},{"$f":"'Resultats PMV'!Y57/'Resultats PMV'!$P57","v":{"$error":"#DIV/0!"}},{"$f":"'Resultats PMV'!Z57/'Resultats PMV'!$P57","v":{"$error":"#DIV/0!"}},{"$f":"'Resultats PMV'!AA57/'Resultats PMV'!$P57","v":{"$error":"#DIV/0!"}},{"$f":"'Resultats PMV'!AB57/'Resultats PMV'!$P57","v":{"$error":"#DIV/0!"}},{"$error":"#DIV/0!"},null,{"$f":"'Resultats PMV'!AI57","v":0},{"$f":"'Resultats PMV'!AN57/'Resultats PMV'!$AX57","v":{"$error":"#DIV/0!"}},{"$f":"'Resultats PMV'!AO57/'Resultats PMV'!$AX57","v":{"$error":"#DIV/0!"}},{"$f":"'Resultats PMV'!AP57/'Resultats PMV'!$AX57","v":{"$error":"#DIV/0!"}},{"$f":"'Resultats PMV'!AQ57/'Resultats PMV'!$AX57","v":{"$error":"#DIV/0!"}},{"$f":"'Resultats PMV'!AR57/'Resultats PMV'!$AX57","v":{"$error":"#DIV/0!"}},{"$f":"'Resultats PMV'!AS57/'Resultats PMV'!$AX57","v":{"$error":"#DIV/0!"}},{"$f":"'Resultats PMV'!AT57/'Resultats PMV'!$AX57","v":{"$error":"#DIV/0!"}},{"$f":"'Resultats PMV'!AU57/'Resultats PMV'!$AX57","v":{"$error":"#DIV/0!"}},{"$f":"'Resultats PMV'!AV57/'Resultats PMV'!$AX57","v":{"$error":"#DIV/0!"}},{"$f":"'Resultats PMV'!AW57/'Resultats PMV'!$AX57","v":{"$error":"#DIV/0!"}},{"$error":"#DIV/0!"}]
[null,{"$f":"'Resultats PMV'!A58","v":0},{"$f":"'Resultats PMV'!F58/'Resultats PMV'!$P58","v":{"$error":"#DIV/0!"}},{"$f":"'Resultats PMV'!G58/'Resultats PMV'!$P58","v":{"$error":"#DIV/0!"}},{"$f":"'Resultats PMV'!H58/'Resultats PMV'!$P58","v":{"$error":"#DIV/0!"}},{"$f":"'Resultats PMV'!I58/'Resultats PMV'!$P58","v":{"$error":"#DIV/0!"}},{"$f":"'Resultats PMV'!J58/'Resultats PMV'!$P58","v":{"$error":"#DIV/0!"}},{"$f":"'Resultats PMV'!K58/'Resultats PMV'!$P58","v":{"$error":"#DIV/0!"}},{"$f":"'Resultats PMV'!L58/'Resultats PMV'!$P58","v":{"$error":"#DIV/0!"}},{"$f":"'Resultats PMV'!M58/'Resultats PMV'!$P58","v":{"$error":"#DIV/0!"}},{"$f":"'Resultats PMV'!N58/'Resultats PMV'!$P58","v":{"$error":"#DIV/0!"}},{"$f":"'Resultats PMV'!O58/'Resultats PMV'!$P58","v":{"$error":"#DIV/0!"}},{"$error":"#DIV/0!"},null,{"$f":"'Resultats PMV'!R58","v":0},{"$f":"'Resultats PMV'!S58/'Resultats PMV'!$P58","v":{"$error":"#DIV/0!"}},{"$f":"'Resultats PMV'!T58/'Resultats PMV'!$P58","v":{"$error":"#DIV/0!"}},{"$f":"'Resultats PMV'!U58/'Resultats PMV'!$P58","v":{"$error":"#DIV/0!"}},{"$f":"'Resultats PMV'!V58/'Resultats PMV'!$P58","v":{"$error":"#DIV/0!"}},{"$f":"'Resultats PMV'!W58/'Resultats PMV'!$P58","v":{"$error":"#DIV/0!"}},{"$f":"'Resultats PMV'!X58/'Resultats PMV'!$P58","v":{"$error":"#DIV/0!"}},{"$f":"'Resultats PMV'!Y58/'Resultats PMV'!$P58","v":{"$error":"#DIV/0!"}},{"$f":"'Resultats PMV'!Z58/'Resultats PMV'!$P58","v":{"$error":"#DIV/0!"}},{"$f":"'Resultats PMV'!AA58/'Resultats PMV'!$P58","v":{"$error":"#DIV/0!"}},{"$f":"'Resultats PMV'!AB58/'Resultats PMV'!$P58","v":{"$error":"#DIV/0!"}},{"$error":"#DIV/0!"},null,{"$f":"'Resultats PMV'!AI58","v":0},{"$f":"'Resultats PMV'!AN58/'Resultats PMV'!$AX58","v":{"$error":"#DIV/0!"}},{"$f":"'Resultats PMV'!AO58/'Resultats PMV'!$AX58","v":{"$error":"#DIV/0!"}},{"$f":"'Resultats PMV'!AP58/'Resultats PMV'!$AX58","v":{"$error":"#DIV/0!"}},{"$f":"'Resultats PMV'!AQ58/'Resultats PMV'!$AX58","v":{"$error":"#DIV/0!"}},{"$f":"'Resultats PMV'!AR58/'Resultats PMV'!$AX58","v":{"$error":"#DIV/0!"}},{"$f":"'Resultats PMV'!AS58/'Resultats PMV'!$AX58","v":{"$error":"#DIV/0!"}},{"$f":"'Resultats PMV'!AT58/'Resultats PMV'!$AX58","v":{"$error":"#DIV/0!"}},{"$f":"'Resultats PMV'!AU58/'Resultats PMV'!$AX58","v":{"$error":"#DIV/0!"}},{"$f":"'Resultats PMV'!AV58/'Resultats PMV'!$AX58","v":{"$error":"#DIV/0!"}},{"$f":"'Resultats PMV'!AW58/'Resultats PMV'!$AX58","v":{"$error":"#DIV/0!"}},{"$error":"#DIV/0!"}]
[null,{"$f":"'Resultats PMV'!A59","v":0},{"$f":"'Resultats PMV'!F59/'Resultats PMV'!$P59","v":{"$error":"#DIV/0!"}},{"$f":"'Resultats PMV'!G59/'Resultats PMV'!$P59","v":{"$error":"#DIV/0!"}},{"$f":"'Resultats PMV'!H59/'Resultats PMV'!$P59","v":{"$error":"#DIV/0!"}},{"$f":"'Resultats PMV'!I59/'Resultats PMV'!$P59","v":{"$error":"#DIV/0!"}},{"$f":"'Resultats PMV'!J59/'Resultats PMV'!$P59","v":{"$error":"#DIV/0!"}},{"$f":"'Resultats PMV'!K59/'Resultats PMV'!$P59","v":{"$error":"#DIV/0!"}},{"$f":"'Resultats PMV'!L59/'Resultats PMV'!$P59","v":{"$error":"#DIV/0!"}},{"$f":"'Resultats PMV'!M59/'Resultats PMV'!$P59","v":{"$error":"#DIV/0!"}},{"$f":"'Resultats PMV'!N59/'Resultats PMV'!$P59","v":{"$error":"#DIV/0!"}},{"$f":"'Resultats PMV'!O59/'Resultats PMV'!$P59","v":{"$error":"#DIV/0!"}},{"$error":"#DIV/0!"},null,{"$f":"'Resultats PMV'!R59","v":0},{"$f":"'Resultats PMV'!S59/'Resultats PMV'!$P59","v":{"$error":"#DIV/0!"}},{"$f":"'Resultats PMV'!T59/'Resultats PMV'!$P59","v":{"$error":"#DIV/0!"}},{"$f":"'Resultats PMV'!U59/'Resultats PMV'!$P59","v":{"$error":"#DIV/0!"}},{"$f":"'Resultats PMV'!V59/'Resultats PMV'!$P59","v":{"$error":"#DIV/0!"}},{"$f":"'Resultats PMV'!W59/'Resultats PMV'!$P59","v":{"$error":"#DIV/0!"}},{"$f":"'Resultats PMV'!X59/'Resultats PMV'!$P59","v":{"$error":"#DIV/0!"}},{"$f":"'Resultats PMV'!Y59/'Resultats PMV'!$P59","v":{"$error":"#DIV/0!"}},{"$f":"'Resultats PMV'!Z59/'Resultats PMV'!$P59","v":{"$error":"#DIV/0!"}},{"$f":"'Resultats PMV'!AA59/'Resultats PMV'!$P59","v":{"$error":"#DIV/0!"}},{"$f":"'Resultats PMV'!AB59/'Resultats PMV'!$P59","v":{"$error":"#DIV/0!"}},{"$error":"#DIV/0!"},null,{"$f":"'Resultats PMV'!AI59","v":0},{"$f":"'Resultats PMV'!AN59/'Resultats PMV'!$AX59","v":{"$error":"#DIV/0!"}},{"$f":"'Resultats PMV'!AO59/'Resultats PMV'!$AX59","v":{"$error":"#DIV/0!"}},{"$f":"'Resultats PMV'!AP59/'Resultats PMV'!$AX59","v":{"$error":"#DIV/0!"}},{"$f":"'Resultats PMV'!AQ59/'Resultats PMV'!$AX59","v":{"$error":"#DIV/0!"}},{"$f":"'Resultats PMV'!AR59/'Resultats PMV'!$AX59","v":{"$error":"#DIV/0!"}},{"$f":"'Resultats PMV'!AS59/'Resultats PMV'!$AX59","v":{"$error":"#DIV/0!"}},{"$f":"'Resultats PMV'!AT59/'Resultats PMV'!$AX59","v":{"$error":"#DIV/0!"}},{"$f":"'Resultats PMV'!AU59/'Resultats PMV'!$AX59","v":{"$error":"#DIV/0!"}},{"$f":"'Resultats PMV'!AV59/'Resultats PMV'!$AX59","v":{"$error":"#DIV/0!"}},{"$f":"'Resultats PMV'!AW59/'Resultats PMV'!$AX59","v":{"$error":"#DIV/0!"}},{"$error":"#DIV/0!"}]
[null,{"$f":"'Resultats PMV'!A60","v":0},{"$f":"'Resultats PMV'!F60/'Resultats PMV'!$P60","v":{"$error":"#DIV/0!"}},{"$f":"'Resultats PMV'!G60/'Resultats PMV'!$P60","v":{"$error":"#DIV/0!"}},{"$f":"'Resultats PMV'!H60/'Resultats PMV'!$P60","v":{"$error":"#DIV/0!"}},{"$f":"'Resultats PMV'!I60/'Resultats PMV'!$P60","v":{"$error":"#DIV/0!"}},{"$f":"'Resultats PMV'!J60/'Resultats PMV'!$P60","v":{"$error":"#DIV/0!"}},{"$f":"'Resultats PMV'!K60/'Resultats PMV'!$P60","v":{"$error":"#DIV/0!"}},{"$f":"'Resultats PMV'!L60/'Resultats PMV'!$P60","v":{"$error":"#DIV/0!"}},{"$f":"'Resultats PMV'!M60/'Resultats PMV'!$P60","v":{"$error":"#DIV/0!"}},{"$f":"'Resultats PMV'!N60/'Resultats PMV'!$P60","v":{"$error":"#DIV/0!"}},{"$f":"'Resultats PMV'!O60/'Resultats PMV'!$P60","v":{"$error":"#DIV/0!"}},{"$error":"#DIV/0!"},null,{"$f":"'Resultats PMV'!R60","v":0},{"$f":"'Resultats PMV'!S60/'Resultats PMV'!$P60","v":{"$error":"#DIV/0!"}},{"$f":"'Resultats PMV'!T60/'Resultats PMV'!$P60","v":{"$error":"#DIV/0!"}},{"$f":"'Resultats PMV'!U60/'Resultats PMV'!$P60","v":{"$error":"#DIV/0!"}},{"$f":"'Resultats PMV'!V60/'Resultats PMV'!$P60","v":{"$error":"#DIV/0!"}},{"$f":"'Resultats PMV'!W60/'Resultats PMV'!$P60","v":{"$error":"#DIV/0!"}},{"$f":"'Resultats PMV'!X60/'Resultats PMV'!$P60","v":{"$error":"#DIV/0!"}},{"$f":"'Resultats PMV'!Y60/'Resultats PMV'!$P60","v":{"$error":"#DIV/0!"}},{"$f":"'Resultats PMV'!Z60/'Resultats PMV'!$P60","v":{"$error":"#DIV/0!"}},{"$f":"'Resultats PMV'!AA60/'Resultats PMV'!$P60","v":{"$error":"#DIV/0!"}},{"$f":"'Resultats PMV'!AB60/'Resultats PMV'!$P60","v":{"$error":"#DIV/0!"}},{"$error":"#DIV/0!"},null,{"$f":"'Resultats PMV'!AI60","v":0},{"$f":"'Resultats PMV'!AN60/'Resultats PMV'!$AX60","v":{"$error":"#DIV/0!"}},{"$f":"'Resultats PMV'!AO60/'Resultats PMV'!$AX60","v":{"$error":"#DIV/0!"}},{"$f":"'Resultats PMV'!AP60/'Resultats PMV'!$AX60","v":{"$error":"#DIV/0!"}},{"$f":"'Resultats PMV'!AQ60/'Resultats PMV'!$AX60","v":{"$error":"#DIV/0!"}},{"$f":"'Resultats PMV'!AR60/'Resultats PMV'!$AX60","v":{"$error":"#DIV/0!"}},{"$f":"'Resultats PMV'!AS60/'Resultats PMV'!$AX60","v":{"$error":"#DIV/0!"}},{"$f":"'Resultats PMV'!AT60/'Resultats PMV'!$AX60","v":{"$error":"#DIV/0!"}},{"$f":"'Resultats PMV'!AU60/'Resultats PMV'!$AX60","v":{"$error":"#DIV/0!"}},{"$f":"'Resultats PMV'!AV60/'Resultats PMV'!$AX60","v":{"$error":"#DIV/0!"}},{"$f":"'Resultats PMV'!AW60/'Resultats PMV'!$AX60","v":{"$error":"#DIV/0!"}},{"$error":"#DIV/0!"}]
[null,{"$f":"'Resultats PMV'!A61","v":0},{"$f":"'Resultats PMV'!F61/'Resultats PMV'!$P61","v":{"$error":"#DIV/0!"}},{"$f":"'Resultats PMV'!G61/'Resultats PMV'!$P61","v":{"$error":"#DIV/0!"}},{"$f":"'Resultats PMV'!H61/'Resultats PMV'!$P61","v":{"$error":"#DIV/0!"}},{"$f":"'Resultats PMV'!I61/'Resultats PMV'!$P61","v":{"$error":"#DIV/0!"}},{"$f":"'Resultats PMV'!J61/'Resultats PMV'!$P61","v":{"$error":"#DIV/0!"}},{"$f":"'Resultats PMV'!K61/'Resultats PMV'!$P61","v":{"$error":"#DIV/0!"}},{"$f":"'Resultats PMV'!L61/'Resultats PMV'!$P61","v":{"$error":"#DIV/0!"}},{"$f":"'Resultats PMV'!M61/'Resultats PMV'!$P61","v":{"$error":"#DIV/0!"}},{"$f":"'Resultats PMV'!N61/'Resultats PMV'!$P61","v":{"$error":"#DIV/0!"}},{"$f":"'Resultats PMV'!O61/'Resultats PMV'!$P61","v":{"$error":"#DIV/0!"}},{"$error":"#DIV/0!"},null,{"$f":"'Resultats PMV'!R61","v":0},{"$f":"'Resultats PMV'!S61/'Resultats PMV'!$P61","v":{"$error":"#DIV/0!"}},{"$f":"'Resultats PMV'!T61/'Resultats PMV'!$P61","v":{"$error":"#DIV/0!"}},{"$f":"'Resultats PMV'!U61/'Resultats PMV'!$P61","v":{"$error":"#DIV/0!"}},{"$f":"'Resultats PMV'!V61/'Resultats PMV'!$P61","v":{"$error":"#DIV/0!"}},{"$f":"'Resultats PMV'!W61/'Resultats PMV'!$P61","v":{"$error":"#DIV/0!"}},{"$f":"'Resultats PMV'!X61/'Resultats PMV'!$P61","v":{"$error":"#DIV/0!"}},{"$f":"'Resultats PMV'!Y61/'Resultats PMV'!$P61","v":{"$error":"#DIV/0!"}},{"$f":"'Resultats PMV'!Z61/'Resultats PMV'!$P61","v":{"$error":"#DIV/0!"}},{"$f":"'Resultats PMV'!AA61/'Resultats PMV'!$P61","v":{"$error":"#DIV/0!"}},{"$f":"'Resultats PMV'!AB61/'Resultats PMV'!$P61","v":{"$error":"#DIV/0!"}},{"$error":"#DIV/0!"},null,{"$f":"'Resultats PMV'!AI61","v":0},{"$f":"'Resultats PMV'!AN61/'Resultats PMV'!$AX61","v":{"$error":"#DIV/0!"}},{"$f":"'Resultats PMV'!AO61/'Resultats PMV'!$AX61","v":{"$error":"#DIV/0!"}},{"$f":"'Resultats PMV'!AP61/'Resultats PMV'!$AX61","v":{"$error":"#DIV/0!"}},{"$f":"'Resultats PMV'!AQ61/'Resultats PMV'!$AX61","v":{"$error":"#DIV/0!"}},{"$f":"'Resultats PMV'!AR61/'Resultats PMV'!$AX61","v":{"$error":"#DIV/0!"}},{"$f":"'Resultats PMV'!AS61/'Resultats PMV'!$AX61","v":{"$error":"#DIV/0!"}},{"$f":"'Resultats PMV'!AT61/'Resultats PMV'!$AX61","v":{"$error":"#DIV/0!"}},{"$f":"'Resultats PMV'!AU61/'Resultats PMV'!$AX61","v":{"$error":"#DIV/0!"}},{"$f":"'Resultats PMV'!AV61/'Resultats PMV'!$AX61","v":{"$error":"#DIV/0!"}},{"$f":"'Resultats PMV'!AW61/'Resultats PMV'!$AX61","v":{"$error":"#DIV/0!"}},{"$error":"#DIV/0!"}]
[null,{"$f":"'Resultats PMV'!A62","v":0},{"$f":"'Resultats PMV'!F62/'Resultats PMV'!$P62","v":{"$error":"#DIV/0!"}},{"$f":"'Resultats PMV'!G62/'Resultats PMV'!$P62","v":{"$error":"#DIV/0!"}},{"$f":"'Resultats PMV'!H62/'Resultats PMV'!$P62","v":{"$error":"#DIV/0!"}},{"$f":"'Resultats PMV'!I62/'Resultats PMV'!$P62","v":{"$error":"#DIV/0!"}},{"$f":"'Resultats PMV'!J62/'Resultats PMV'!$P62","v":{"$error":"#DIV/0!"}},{"$f":"'Resultats PMV'!K62/'Resultats PMV'!$P62","v":{"$error":"#DIV/0!"}},{"$f":"'Resultats PMV'!L62/'Resultats PMV'!$P62","v":{"$error":"#DIV/0!"}},{"$f":"'Resultats PMV'!M62/'Resultats PMV'!$P62","v":{"$error":"#DIV/0!"}},{"$f":"'Resultats PMV'!N62/'Resultats PMV'!$P62","v":{"$error":"#DIV/0!"}},{"$f":"'Resultats PMV'!O62/'Resultats PMV'!$P62","v":{"$error":"#DIV/0!"}},{"$error":"#DIV/0!"},null,{"$f":"'Resultats PMV'!R62","v":0},{"$f":"'Resultats PMV'!S62/'Resultats PMV'!$P62","v":{"$error":"#DIV/0!"}},{"$f":"'Resultats PMV'!T62/'Resultats PMV'!$P62","v":{"$error":"#DIV/0!"}},{"$f":"'Resultats PMV'!U62/'Resultats PMV'!$P62","v":{"$error":"#DIV/0!"}},{"$f":"'Resultats PMV'!V62/'Resultats PMV'!$P62","v":{"$error":"#DIV/0!"}},{"$f":"'Resultats PMV'!W62/'Resultats PMV'!$P62","v":{"$error":"#DIV/0!"}},{"$f":"'Resultats PMV'!X62/'Resultats PMV'!$P62","v":{"$error":"#DIV/0!"}},{"$f":"'Resultats PMV'!Y62/'Resultats PMV'!$P62","v":{"$error":"#DIV/0!"}},{"$f":"'Resultats PMV'!Z62/'Resultats PMV'!$P62","v":{"$error":"#DIV/0!"}},{"$f":"'Resultats PMV'!AA62/'Resultats PMV'!$P62","v":{"$error":"#DIV/0!"}},{"$f":"'Resultats PMV'!AB62/'Resultats PMV'!$P62","v":{"$error":"#DIV/0!"}},{"$error":"#DIV/0!"},null,{"$f":"'Resultats PMV'!AI62","v":0},{"$f":"'Resultats PMV'!AN62/'Resultats PMV'!$AX62","v":{"$error":"#DIV/0!"}},{"$f":"'Resultats PMV'!AO62/'Resultats PMV'!$AX62","v":{"$error":"#DIV/0!"}},{"$f":"'Resultats PMV'!AP62/'Resultats PMV'!$AX62","v":{"$error":"#DIV/0!"}},{"$f":"'Resultats PMV'!AQ62/'Resultats PMV'!$AX62","v":{"$error":"#DIV/0!"}},{"$f":"'Resultats PMV'!AR62/'Resultats PMV'!$AX62","v":{"$error":"#DIV/0!"}},{"$f":"'Resultats PMV'!AS62/'Resultats PMV'!$AX62","v":{"$error":"#DIV/0!"}},{"$f":"'Resultats PMV'!AT62/'Resultats PMV'!$AX62","v":{"$error":"#DIV/0!"}},{"$f":"'Resultats PMV'!AU62/'Resultats PMV'!$AX62","v":{"$error":"#DIV/0!"}},{"$f":"'Resultats PMV'!AV62/'Resultats PMV'!$AX62","v":{"$error":"#DIV/0!"}},{"$f":"'Resultats PMV'!AW62/'Resultats PMV'!$AX62","v":{"$error":"#DIV/0!"}},{"$error":"#DIV/0!"}]
[null,{"$f":"'Resultats PMV'!A63","v":0},{"$f":"'Resultats PMV'!F63/'Resultats PMV'!$P63","v":{"$error":"#DIV/0!"}},{"$f":"'Resultats PMV'!G63/'Resultats PMV'!$P63","v":{"$error":"#DIV/0!"}},{"$f":"'Resultats PMV'!H63/'Resultats PMV'!$P63","v":{"$error":"#DIV/0!"}},{"$f":"'Resultats PMV'!I63/'Resultats PMV'!$P63","v":{"$error":"#DIV/0!"}},{"$f":"'Resultats PMV'!J63/'Resultats PMV'!$P63","v":{"$error":"#DIV/0!"}},{"$f":"'Resultats PMV'!K63/'Resultats PMV'!$P63","v":{"$error":"#DIV/0!"}},{"$f":"'Resultats PMV'!L63/'Resultats PMV'!$P63","v":{"$error":"#DIV/0!"}},{"$f":"'Resultats PMV'!M63/'Resultats PMV'!$P63","v":{"$error":"#DIV/0!"}},{"$f":"'Resultats PMV'!N63/'Resultats PMV'!$P63","v":{"$error":"#DIV/0!"}},{"$f":"'Resultats PMV'!O63/'Resultats PMV'!$P63","v":{"$error":"#DIV/0!"}},{"$error":"#DIV/0!"},null,{"$f":"'Resultats PMV'!R63","v":0},{"$f":"'Resultats PMV'!S63/'Resultats PMV'!$P63","v":{"$error":"#DIV/0!"}},{"$f":"'Resultats PMV'!T63/'Resultats PMV'!$P63","v":{"$error":"#DIV/0!"}},{"$f":"'Resultats PMV'!U63/'Resultats PMV'!$P63","v":{"$error":"#DIV/0!"}},{"$f":"'Resultats PMV'!V63/'Resultats PMV'!$P63","v":{"$error":"#DIV/0!"}},{"$f":"'Resultats PMV'!W63/'Resultats PMV'!$P63","v":{"$error":"#DIV/0!"}},{"$f":"'Resultats PMV'!X63/'Resultats PMV'!$P63","v":{"$error":"#DIV/0!"}},{"$f":"'Resultats PMV'!Y63/'Resultats PMV'!$P63","v":{"$error":"#DIV/0!"}},{"$f":"'Resultats PMV'!Z63/'Resultats PMV'!$P63","v":{"$error":"#DIV/0!"}},{"$f":"'Resultats PMV'!AA63/'Resultats PMV'!$P63","v":{"$error":"#DIV/0!"}},{"$f":"'Resultats PMV'!AB63/'Resultats PMV'!$P63","v":{"$error":"#DIV/0!"}},{"$error":"#DIV/0!"},null,{"$f":"'Resultats PMV'!AI63","v":0},{"$f":"'Resultats PMV'!AN63/'Resultats PMV'!$AX63","v":{"$error":"#DIV/0!"}},{"$f":"'Resultats PMV'!AO63/'Resultats PMV'!$AX63","v":{"$error":"#DIV/0!"}},{"$f":"'Resultats PMV'!AP63/'Resultats PMV'!$AX63","v":{"$error":"#DIV/0!"}},{"$f":"'Resultats PMV'!AQ63/'Resultats PMV'!$AX63","v":{"$error":"#DIV/0!"}},{"$f":"'Resultats PMV'!AR63/'Resultats PMV'!$AX63","v":{"$error":"#DIV/0!"}},{"$f":"'Resultats PMV'!AS63/'Resultats PMV'!$AX63","v":{"$error":"#DIV/0!"}},{"$f":"'Resultats PMV'!AT63/'Resultats PMV'!$AX63","v":{"$error":"#DIV/0!"}},{"$f":"'Resultats PMV'!AU63/'Resultats PMV'!$AX63","v":{"$error":"#DIV/0!"}},{"$f":"'Resultats PMV'!AV63/'Resultats PMV'!$AX63","v":{"$error":"#DIV/0!"}},{"$f":"'Resultats PMV'!AW63/'Resultats PMV'!$AX63","v":{"$error":"#DIV/0!"}},{"$error":"#DIV/0!"}]
[null,{"$f":"'Resultats PMV'!A64","v":0},{"$f":"'Resultats PMV'!F64/'Resultats PMV'!$P64","v":{"$error":"#DIV/0!"}},{"$f":"'Resultats PMV'!G64/'Resultats PMV'!$P64","v":{"$error":"#DIV/0!"}},{"$f":"'Resultats PMV'!H64/'Resultats PMV'!$P64","v":{"$error":"#DIV/0!"}},{"$f":"'Resultats PMV'!I64/'Resultats PMV'!$P64","v":{"$error":"#DIV/0!"}},{"$f":"'Resultats PMV'!J64/'Resultats PMV'!$P64","v":{"$error":"#DIV/0!"}},{"$f":"'Resultats PMV'!K64/'Resultats PMV'!$P64","v":{"$error":"#DIV/0!"}},{"$f":"'Resultats PMV'!L64/'Resultats PMV'!$P64","v":{"$error":"#DIV/0!"}},{"$f":"'Resultats PMV'!M64/'Resultats PMV'!$P64","v":{"$error":"#DIV/0!"}},{"$f":"'Resultats PMV'!N64/'Resultats PMV'!$P64","v":{"$error":"#DIV/0!"}},{"$f":"'Resultats PMV'!O64/'Resultats PMV'!$P64","v":{"$error":"#DIV/0!"}},{"$error":"#DIV/0!"},null,{"$f":"'Resultats PMV'!R64","v":0},{"$f":"'Resultats PMV'!S64/'Resultats PMV'!$P64","v":{"$error":"#DIV/0!"}},{"$f":"'Resultats PMV'!T64/'Resultats PMV'!$P64","v":{"$error":"#DIV/0!"}},{"$f":"'Resultats PMV'!U64/'Resultats PMV'!$P64","v":{"$error":"#DIV/0!"}},{"$f":"'Resultats PMV'!V64/'Resultats PMV'!$P64","v":{"$error":"#DIV/0!"}},{"$f":"'Resultats PMV'!W64/'Resultats PMV'!$P64","v":{"$error":"#DIV/0!"}},{"$f":"'Resultats PMV'!X64/'Resultats PMV'!$P64","v":{"$error":"#DIV/0!"}},{"$f":"'Resultats PMV'!Y64/'Resultats PMV'!$P64","v":{"$error":"#DIV/0!"}},{"$f":"'Resultats PMV'!Z64/'Resultats PMV'!$P64","v":{"$error":"#DIV/0!"}},{"$f":"'Resultats PMV'!AA64/'Resultats PMV'!$P64","v":{"$error":"#DIV/0!"}},{"$f":"'Resultats PMV'!AB64/'Resultats PMV'!$P64","v":{"$error":"#DIV/0!"}},{"$error":"#DIV/0!"},null,{"$f":"'Resultats PMV'!AI64","v":0},{"$f":"'Resultats PMV'!AN64/'Resultats PMV'!$AX64","v":{"$error":"#DIV/0!"}},{"$f":"'Resultats PMV'!AO64/'Resultats PMV'!$AX64","v":{"$error":"#DIV/0!"}},{"$f":"'Resultats PMV'!AP64/'Resultats PMV'!$AX64","v":{"$error":"#DIV/0!"}},{"$f":"'Resultats PMV'!AQ64/'Resultats PMV'!$AX64","v":{"$error":"#DIV/0!"}},{"$f":"'Resultats PMV'!AR64/'Resultats PMV'!$AX64","v":{"$error":"#DIV/0!"}},{"$f":"'Resultats PMV'!AS64/'Resultats PMV'!$AX64","v":{"$error":"#DIV/0!"}},{"$f":"'Resultats PMV'!AT64/'Resultats PMV'!$AX64","v":{"$error":"#DIV/0!"}},{"$f":"'Resultats PMV'!AU64/'Resultats PMV'!$AX64","v":{"$error":"#DIV/0!"}},{"$f":"'Resultats PMV'!AV64/'Resultats PMV'!$AX64","v":{"$error":"#DIV/0!"}},{"$f":"'Resultats PMV'!AW64/'Resultats PMV'!$AX64","v":{"$error":"#DIV/0!"}},{"$error":"#DIV/0!"}]
[null,{"$f":"'Resultats PMV'!A65","v":0},{"$f":"'Resultats PMV'!F65/'Resultats PMV'!$P65","v":{"$error":"#DIV/0!"}},{"$f":"'Resultats PMV'!G65/'Resultats PMV'!$P65","v":{"$error":"#DIV/0!"}},{"$f":"'Resultats PMV'!H65/'Resultats PMV'!$P65","v":{"$error":"#DIV/0!"}},{"$f":"'Resultats PMV'!I65/'Resultats PMV'!$P65","v":{"$error":"#DIV/0!"}},{"$f":"'Resultats PMV'!J65/'Resultats PMV'!$P65","v":{"$error":"#DIV/0!"}},{"$f":"'Resultats PMV'!K65/'Resultats PMV'!$P65","v":{"$error":"#DIV/0!"}},{"$f":"'Resultats PMV'!L65/'Resultats PMV'!$P65","v":{"$error":"#DIV/0!"}},{"$f":"'Resultats PMV'!M65/'Resultats PMV'!$P65","v":{"$error":"#DIV/0!"}},{"$f":"'Resultats PMV'!N65/'Resultats PMV'!$P65","v":{"$error":"#DIV/0!"}},{"$f":"'Resultats PMV'!O65/'Resultats PMV'!$P65","v":{"$error":"#DIV/0!"}},{"$error":"#DIV/0!"},null,{"$f":"'Resultats PMV'!R65","v":0},{"$f":"'Resultats PMV'!S65/'Resultats PMV'!$P65","v":{"$error":"#DIV/0!"}},{"$f":"'Resultats PMV'!T65/'Resultats PMV'!$P65","v":{"$error":"#DIV/0!"}},{"$f":"'Resultats PMV'!U65/'Resultats PMV'!$P65","v":{"$error":"#DIV/0!"}},{"$f":"'Resultats PMV'!V65/'Resultats PMV'!$P65","v":{"$error":"#DIV/0!"}},{"$f":"'Resultats PMV'!W65/'Resultats PMV'!$P65","v":{"$error":"#DIV/0!"}},{"$f":"'Resultats PMV'!X65/'Resultats PMV'!$P65","v":{"$error":"#DIV/0!"}},{"$f":"'Resultats PMV'!Y65/'Resultats PMV'!$P65","v":{"$error":"#DIV/0!"}},{"$f":"'Resultats PMV'!Z65/'Resultats PMV'!$P65","v":{"$error":"#DIV/0!"}},{"$f":"'Resultats PMV'!AA65/'Resultats PMV'!$P65","v":{"$error":"#DIV/0!"}},{"$f":"'Resultats PMV'!AB65/'Resultats PMV'!$P65","v":{"$error":"#DIV/0!"}},{"$error":"#DIV/0!"},null,{"$f":"'Resultats PMV'!AI65","v":0},{"$f":"'Resultats PMV'!AN65/'Resultats PMV'!$AX65","v":{"$error":"#DIV/0!"}},{"$f":"'Resultats PMV'!AO65/'Resultats PMV'!$AX65","v":{"$error":"#DIV/0!"}},{"$f":"'Resultats PMV'!AP65/'Resultats PMV'!$AX65","v":{"$error":"#DIV/0!"}},{"$f":"'Resultats PMV'!AQ65/'Resultats PMV'!$AX65","v":{"$error":"#DIV/0!"}},{"$f":"'Resultats PMV'!AR65/'Resultats PMV'!$AX65","v":{"$error":"#DIV/0!"}},{"$f":"'Resultats PMV'!AS65/'Resultats PMV'!$AX65","v":{"$error":"#DIV/0!"}},{"$f":"'Resultats PMV'!AT65/'Resultats PMV'!$AX65","v":{"$error":"#DIV/0!"}},{"$f":"'Resultats PMV'!AU65/'Resultats PMV'!$AX65","v":{"$error":"#DIV/0!"}},{"$f":"'Resultats PMV'!AV65/'Resultats PMV'!$AX65","v":{"$error":"#DIV/0!"}},{"$f":"'Resultats PMV'!AW65/'Resultats PMV'!$AX65","v":{"$error":"#DIV/0!"}},{"$error":"#DIV/0!"}]
[null,{"$f":"'Resultats PMV'!A66","v":0},{"$f":"'Resultats PMV'!F66/'Resultats PMV'!$P66","v":{"$error":"#DIV/0!"}},{"$f":"'Resultats PMV'!G66/'Resultats PMV'!$P66","v":{"$error":"#DIV/0!"}},{"$f":"'Resultats PMV'!H66/'Resultats PMV'!$P66","v":{"$error":"#DIV/0!"}},{"$f":"'Resultats PMV'!I66/'Resultats PMV'!$P66","v":{"$error":"#DIV/0!"}},{"$f":"'Resultats PMV'!J66/'Resultats PMV'!$P66","v":{"$error":"#DIV/0!"}},{"$f":"'Resultats PMV'!K66/'Resultats PMV'!$P66","v":{"$error":"#DIV/0!"}},{"$f":"'Resultats PMV'!L66/'Resultats PMV'!$P66","v":{"$error":"#DIV/0!"}},{"$f":"'Resultats PMV'!M66/'Resultats PMV'!$P66","v":{"$error":"#DIV/0!"}},{"$f":"'Resultats PMV'!N66/'Resultats PMV'!$P66","v":{"$error":"#DIV/0!"}},{"$f":"'Resultats PMV'!O66/'Resultats PMV'!$P66","v":{"$error":"#DIV/0!"}},{"$error":"#DIV/0!"},null,{"$f":"'Resultats PMV'!R66","v":0},{"$f":"'Resultats PMV'!S66/'Resultats PMV'!$P66","v":{"$error":"#DIV/0!"}},{"$f":"'Resultats PMV'!T66/'Resultats PMV'!$P66","v":{"$error":"#DIV/0!"}},{"$f":"'Resultats PMV'!U66/'Resultats PMV'!$P66","v":{"$error":"#DIV/0!"}},{"$f":"'Resultats PMV'!V66/'Resultats PMV'!$P66","v":{"$error":"#DIV/0!"}},{"$f":"'Resultats PMV'!W66/'Resultats PMV'!$P66","v":{"$error":"#DIV/0!"}},{"$f":"'Resultats PMV'!X66/'Resultats PMV'!$P66","v":{"$error":"#DIV/0!"}},{"$f":"'Resultats PMV'!Y66/'Resultats PMV'!$P66","v":{"$error":"#DIV/0!"}},{"$f":"'Resultats PMV'!Z66/'Resultats PMV'!$P66","v":{"$error":"#DIV/0!"}},{"$f":"'Resultats PMV'!AA66/'Resultats PMV'!$P66","v":{"$error":"#DIV/0!"}},{"$f":"'Resultats PMV'!AB66/'Resultats PMV'!$P66","v":{"$error":"#DIV/0!"}},{"$error":"#DIV/0!"},null,{"$f":"'Resultats PMV'!AI66","v":0},{"$f":"'Resultats PMV'!AN66/'Resultats PMV'!$AX66","v":{"$error":"#DIV/0!"}},{"$f":"'Resultats PMV'!AO66/'Resultats PMV'!$AX66","v":{"$error":"#DIV/0!"}},{"$f":"'Resultats PMV'!AP66/'Resultats PMV'!$AX66","v":{"$error":"#DIV/0!"}},{"$f":"'Resultats PMV'!AQ66/'Resultats PMV'!$AX66","v":{"$error":"#DIV/0!"}},{"$f":"'Resultats PMV'!AR66/'Resultats PMV'!$AX66","v":{"$error":"#DIV/0!"}},{"$f":"'Resultats PMV'!AS66/'Resultats PMV'!$AX66","v":{"$error":"#DIV/0!"}},{"$f":"'Resultats PMV'!AT66/'Resultats PMV'!$AX66","v":{"$error":"#DIV/0!"}},{"$f":"'Resultats PMV'!AU66/'Resultats PMV'!$AX66","v":{"$error":"#DIV/0!"}},{"$f":"'Resultats PMV'!AV66/'Resultats PMV'!$AX66","v":{"$error":"#DIV/0!"}},{"$f":"'Resultats PMV'!AW66/'Resultats PMV'!$AX66","v":{"$error":"#DIV/0!"}},{"$error":"#DIV/0!"}]
[null,{"$f":"'Resultats PMV'!A67","v":0},{"$f":"'Resultats PMV'!F67/'Resultats PMV'!$P67","v":{"$error":"#DIV/0!"}},{"$f":"'Resultats PMV'!G67/'Resultats PMV'!$P67","v":{"$error":"#DIV/0!"}},{"$f":"'Resultats PMV'!H67/'Resultats PMV'!$P67","v":{"$error":"#DIV/0!"}},{"$f":"'Resultats PMV'!I67/'Resultats PMV'!$P67","v":{"$error":"#DIV/0!"}},{"$f":"'Resultats PMV'!J67/'Resultats PMV'!$P67","v":{"$error":"#DIV/0!"}},{"$f":"'Resultats PMV'!K67/'Resultats PMV'!$P67","v":{"$error":"#DIV/0!"}},{"$f":"'Resultats PMV'!L67/'Resultats PMV'!$P67","v":{"$error":"#DIV/0!"}},{"$f":"'Resultats PMV'!M67/'Resultats PMV'!$P67","v":{"$error":"#DIV/0!"}},{"$f":"'Resultats PMV'!N67/'Resultats PMV'!$P67","v":{"$error":"#DIV/0!"}},{"$f":"'Resultats PMV'!O67/'Resultats PMV'!$P67","v":{"$error":"#DIV/0!"}},{"$error":"#DIV/0!"},null,{"$f":"'Resultats PMV'!R67","v":0},{"$f":"'Resultats PMV'!S67/'Resultats PMV'!$P67","v":{"$error":"#DIV/0!"}},{"$f":"'Resultats PMV'!T67/'Resultats PMV'!$P67","v":{"$error":"#DIV/0!"}},{"$f":"'Resultats PMV'!U67/'Resultats PMV'!$P67","v":{"$error":"#DIV/0!"}},{"$f":"'Resultats PMV'!V67/'Resultats PMV'!$P67","v":{"$error":"#DIV/0!"}},{"$f":"'Resultats PMV'!W67/'Resultats PMV'!$P67","v":{"$error":"#DIV/0!"}},{"$f":"'Resultats PMV'!X67/'Resultats PMV'!$P67","v":{"$error":"#DIV/0!"}},{"$f":"'Resultats PMV'!Y67/'Resultats PMV'!$P67","v":{"$error":"#DIV/0!"}},{"$f":"'Resultats PMV'!Z67/'Resultats PMV'!$P67","v":{"$error":"#DIV/0!"}},{"$f":"'Resultats PMV'!AA67/'Resultats PMV'!$P67","v":{"$error":"#DIV/0!"}},{"$f":"'Resultats PMV'!AB67/'Resultats PMV'!$P67","v":{"$error":"#DIV/0!"}},{"$error":"#DIV/0!"},null,{"$f":"'Resultats PMV'!AI67","v":0},{"$f":"'Resultats PMV'!AN67/'Resultats PMV'!$AX67","v":{"$error":"#DIV/0!"}},{"$f":"'Resultats PMV'!AO67/'Resultats PMV'!$AX67","v":{"$error":"#DIV/0!"}},{"$f":"'Resultats PMV'!AP67/'Resultats PMV'!$AX67","v":{"$error":"#DIV/0!"}},{"$f":"'Resultats PMV'!AQ67/'Resultats PMV'!$AX67","v":{"$error":"#DIV/0!"}},{"$f":"'Resultats PMV'!AR67/'Resultats PMV'!$AX67","v":{"$error":"#DIV/0!"}},{"$f":"'Resultats PMV'!AS67/'Resultats PMV'!$AX67","v":{"$error":"#DIV/0!"}},{"$f":"'Resultats PMV'!AT67/'Resultats PMV'!$AX67","v":{"$error":"#DIV/0!"}},{"$f":"'Resultats PMV'!AU67/'Resultats PMV'!$AX67","v":{"$error":"#DIV/0!"}},{"$f":"'Resultats PMV'!AV67/'Resultats PMV'!$AX67","v":{"$error":"#DIV/0!"}},{"$f":"'Resultats PMV'!AW67/'Resultats PMV'!$AX67","v":{"$error":"#DIV/0!"}},{"$error":"#DIV/0!"}]
[null,{"$f":"'Resultats PMV'!A68","v":0},{"$f":"'Resultats PMV'!F68/'Resultats PMV'!$P68","v":{"$error":"#DIV/0!"}},{"$f":"'Resultats PMV'!G68/'Resultats PMV'!$P68","v":{"$error":"#DIV/0!"}},{"$f":"'Resultats PMV'!H68/'Resultats PMV'!$P68","v":{"$error":"#DIV/0!"}},{"$f":"'Resultats PMV'!I68/'Resultats PMV'!$P68","v":{"$error":"#DIV/0!"}},{"$f":"'Resultats PMV'!J68/'Resultats PMV'!$P68","v":{"$error":"#DIV/0!"}},{"$f":"'Resultats PMV'!K68/'Resultats PMV'!$P68","v":{"$error":"#DIV/0!"}},{"$f":"'Resultats PMV'!L68/'Resultats PMV'!$P68","v":{"$error":"#DIV/0!"}},{"$f":"'Resultats PMV'!M68/'Resultats PMV'!$P68","v":{"$error":"#DIV/0!"}},{"$f":"'Resultats PMV'!N68/'Resultats PMV'!$P68","v":{"$error":"#DIV/0!"}},{"$f":"'Resultats PMV'!O68/'Resultats PMV'!$P68","v":{"$error":"#DIV/0!"}},{"$error":"#DIV/0!"},null,{"$f":"'Resultats PMV'!R68","v":0},{"$f":"'Resultats PMV'!S68/'Resultats PMV'!$P68","v":{"$error":"#DIV/0!"}},{"$f":"'Resultats PMV'!T68/'Resultats PMV'!$P68","v":{"$error":"#DIV/0!"}},{"$f":"'Resultats PMV'!U68/'Resultats PMV'!$P68","v":{"$error":"#DIV/0!"}},{"$f":"'Resultats PMV'!V68/'Resultats PMV'!$P68","v":{"$error":"#DIV/0!"}},{"$f":"'Resultats PMV'!W68/'Resultats PMV'!$P68","v":{"$error":"#DIV/0!"}},{"$f":"'Resultats PMV'!X68/'Resultats PMV'!$P68","v":{"$error":"#DIV/0!"}},{"$f":"'Resultats PMV'!Y68/'Resultats PMV'!$P68","v":{"$error":"#DIV/0!"}},{"$f":"'Resultats PMV'!Z68/'Resultats PMV'!$P68","v":{"$error":"#DIV/0!"}},{"$f":"'Resultats PMV'!AA68/'Resultats PMV'!$P68","v":{"$error":"#DIV/0!"}},{"$f":"'Resultats PMV'!AB68/'Resultats PMV'!$P68","v":{"$error":"#DIV/0!"}},{"$error":"#DIV/0!"},null,{"$f":"'Resultats PMV'!AI68","v":0},{"$f":"'Resultats PMV'!AN68/'Resultats PMV'!$AX68","v":{"$error":"#DIV/0!"}},{"$f":"'Resultats PMV'!AO68/'Resultats PMV'!$AX68","v":{"$error":"#DIV/0!"}},{"$f":"'Resultats PMV'!AP68/'Resultats PMV'!$AX68","v":{"$error":"#DIV/0!"}},{"$f":"'Resultats PMV'!AQ68/'Resultats PMV'!$AX68","v":{"$error":"#DIV/0!"}},{"$f":"'Resultats PMV'!AR68/'Resultats PMV'!$AX68","v":{"$error":"#DIV/0!"}},{"$f":"'Resultats PMV'!AS68/'Resultats PMV'!$AX68","v":{"$error":"#DIV/0!"}},{"$f":"'Resultats PMV'!AT68/'Resultats PMV'!$AX68","v":{"$error":"#DIV/0!"}},{"$f":"'Resultats PMV'!AU68/'Resultats PMV'!$AX68","v":{"$error":"#DIV/0!"}},{"$f":"'Resultats PMV'!AV68/'Resultats PMV'!$AX68","v":{"$error":"#DIV/0!"}},{"$f":"'Resultats PMV'!AW68/'Resultats PMV'!$AX68","v":{"$error":"#DIV/0!"}},{"$error":"#DIV/0!"}]
[null,{"$f":"'Resultats PMV'!A69","v":0},{"$f":"'Resultats PMV'!F69/'Resultats PMV'!$P69","v":{"$error":"#DIV/0!"}},{"$f":"'Resultats PMV'!G69/'Resultats PMV'!$P69","v":{"$error":"#DIV/0!"}},{"$f":"'Resultats PMV'!H69/'Resultats PMV'!$P69","v":{"$error":"#DIV/0!"}},{"$f":"'Resultats PMV'!I69/'Resultats PMV'!$P69","v":{"$error":"#DIV/0!"}},{"$f":"'Resultats PMV'!J69/'Resultats PMV'!$P69","v":{"$error":"#DIV/0!"}},{"$f":"'Resultats PMV'!K69/'Resultats PMV'!$P69","v":{"$error":"#DIV/0!"}},{"$f":"'Resultats PMV'!L69/'Resultats PMV'!$P69","v":{"$error":"#DIV/0!"}},{"$f":"'Resultats PMV'!M69/'Resultats PMV'!$P69","v":{"$error":"#DIV/0!"}},{"$f":"'Resultats PMV'!N69/'Resultats PMV'!$P69","v":{"$error":"#DIV/0!"}},{"$f":"'Resultats PMV'!O69/'Resultats PMV'!$P69","v":{"$error":"#DIV/0!"}},{"$error":"#DIV/0!"},null,{"$f":"'Resultats PMV'!R69","v":0},{"$f":"'Resultats PMV'!S69/'Resultats PMV'!$P69","v":{"$error":"#DIV/0!"}},{"$f":"'Resultats PMV'!T69/'Resultats PMV'!$P69","v":{"$error":"#DIV/0!"}},{"$f":"'Resultats PMV'!U69/'Resultats PMV'!$P69","v":{"$error":"#DIV/0!"}},{"$f":"'Resultats PMV'!V69/'Resultats PMV'!$P69","v":{"$error":"#DIV/0!"}},{"$f":"'Resultats PMV'!W69/'Resultats PMV'!$P69","v":{"$error":"#DIV/0!"}},{"$f":"'Resultats PMV'!X69/'Resultats PMV'!$P69","v":{"$error":"#DIV/0!"}},{"$f":"'Resultats PMV'!Y69/'Resultats PMV'!$P69","v":{"$error":"#DIV/0!"}},{"$f":"'Resultats PMV'!Z69/'Resultats PMV'!$P69","v":{"$error":"#DIV/0!"}},{"$f":"'Resultats PMV'!AA69/'Resultats PMV'!$P69","v":{"$error":"#DIV/0!"}},{"$f":"'Resultats PMV'!AB69/'Resultats PMV'!$P69","v":{"$error":"#DIV/0!"}},{"$error":"#DIV/0!"},null,{"$f":"'Resultats PMV'!AI69","v":0},{"$f":"'Resultats PMV'!AN69/'Resultats PMV'!$AX69","v":{"$error":"#DIV/0!"}},{"$f":"'Resultats PMV'!AO69/'Resultats PMV'!$AX69","v":{"$error":"#DIV/0!"}},{"$f":"'Resultats PMV'!AP69/'Resultats PMV'!$AX69","v":{"$error":"#DIV/0!"}},{"$f":"'Resultats PMV'!AQ69/'Resultats PMV'!$AX69","v":{"$error":"#DIV/0!"}},{"$f":"'Resultats PMV'!AR69/'Resultats PMV'!$AX69","v":{"$error":"#DIV/0!"}},{"$f":"'Resultats PMV'!AS69/'Resultats PMV'!$AX69","v":{"$error":"#DIV/0!"}},{"$f":"'Resultats PMV'!AT69/'Resultats PMV'!$AX69","v":{"$error":"#DIV/0!"}},{"$f":"'Resultats PMV'!AU69/'Resultats PMV'!$AX69","v":{"$error":"#DIV/0!"}},{"$f":"'Resultats PMV'!AV69/'Resultats PMV'!$AX69","v":{"$error":"#DIV/0!"}},{"$f":"'Resultats PMV'!AW69/'Resultats PMV'!$AX69","v":{"$error":"#DIV/0!"}},{"$error":"#DIV/0!"}]
[null,{"$f":"'Resultats PMV'!A70","v":0},{"$f":"'Resultats PMV'!F70/'Resultats PMV'!$P70","v":{"$error":"#DIV/0!"}},{"$f":"'Resultats PMV'!G70/'Resultats PMV'!$P70","v":{"$error":"#DIV/0!"}},{"$f":"'Resultats PMV'!H70/'Resultats PMV'!$P70","v":{"$error":"#DIV/0!"}},{"$f":"'Resultats PMV'!I70/'Resultats PMV'!$P70","v":{"$error":"#DIV/0!"}},{"$f":"'Resultats PMV'!J70/'Resultats PMV'!$P70","v":{"$error":"#DIV/0!"}},{"$f":"'Resultats PMV'!K70/'Resultats PMV'!$P70","v":{"$error":"#DIV/0!"}},{"$f":"'Resultats PMV'!L70/'Resultats PMV'!$P70","v":{"$error":"#DIV/0!"}},{"$f":"'Resultats PMV'!M70/'Resultats PMV'!$P70","v":{"$error":"#DIV/0!"}},{"$f":"'Resultats PMV'!N70/'Resultats PMV'!$P70","v":{"$error":"#DIV/0!"}},{"$f":"'Resultats PMV'!O70/'Resultats PMV'!$P70","v":{"$error":"#DIV/0!"}},{"$error":"#DIV/0!"},null,{"$f":"'Resultats PMV'!R70","v":0},{"$f":"'Resultats PMV'!S70/'Resultats PMV'!$P70","v":{"$error":"#DIV/0!"}},{"$f":"'Resultats PMV'!T70/'Resultats PMV'!$P70","v":{"$error":"#DIV/0!"}},{"$f":"'Resultats PMV'!U70/'Resultats PMV'!$P70","v":{"$error":"#DIV/0!"}},{"$f":"'Resultats PMV'!V70/'Resultats PMV'!$P70","v":{"$error":"#DIV/0!"}},{"$f":"'Resultats PMV'!W70/'Resultats PMV'!$P70","v":{"$error":"#DIV/0!"}},{"$f":"'Resultats PMV'!X70/'Resultats PMV'!$P70","v":{"$error":"#DIV/0!"}},{"$f":"'Resultats PMV'!Y70/'Resultats PMV'!$P70","v":{"$error":"#DIV/0!"}},{"$f":"'Resultats PMV'!Z70/'Resultats PMV'!$P70","v":{"$error":"#DIV/0!"}},{"$f":"'Resultats PMV'!AA70/'Resultats PMV'!$P70","v":{"$error":"#DIV/0!"}},{"$f":"'Resultats PMV'!AB70/'Resultats PMV'!$P70","v":{"$error":"#DIV/0!"}},{"$error":"#DIV/0!"},null,{"$f":"'Resultats PMV'!AI70","v":0},{"$f":"'Resultats PMV'!AN70/'Resultats PMV'!$AX70","v":{"$error":"#DIV/0!"}},{"$f":"'Resultats PMV'!AO70/'Resultats PMV'!$AX70","v":{"$error":"#DIV/0!"}},{"$f":"'Resultats PMV'!AP70/'Resultats PMV'!$AX70","v":{"$error":"#DIV/0!"}},{"$f":"'Resultats PMV'!AQ70/'Resultats PMV'!$AX70","v":{"$error":"#DIV/0!"}},{"$f":"'Resultats PMV'!AR70/'Resultats PMV'!$AX70","v":{"$error":"#DIV/0!"}},{"$f":"'Resultats PMV'!AS70/'Resultats PMV'!$AX70","v":{"$error":"#DIV/0!"}},{"$f":"'Resultats PMV'!AT70/'Resultats PMV'!$AX70","v":{"$error":"#DIV/0!"}},{"$f":"'Resultats PMV'!AU70/'Resultats PMV'!$AX70","v":{"$error":"#DIV/0!"}},{"$f":"'Resultats PMV'!AV70/'Resultats PMV'!$AX70","v":{"$error":"#DIV/0!"}},{"$f":"'Resultats PMV'!AW70/'Resultats PMV'!$AX70","v":{"$error":"#DIV/0!"}},{"$error":"#DIV/0!"}]
[null,{"$f":"'Resultats PMV'!A71","v":0},{"$f":"'Resultats PMV'!F71/'Resultats PMV'!$P71","v":{"$error":"#DIV/0!"}},{"$f":"'Resultats PMV'!G71/'Resultats PMV'!$P71","v":{"$error":"#DIV/0!"}},{"$f":"'Resultats PMV'!H71/'Resultats PMV'!$P71","v":{"$error":"#DIV/0!"}},{"$f":"'Resultats PMV'!I71/'Resultats PMV'!$P71","v":{"$error":"#DIV/0!"}},{"$f":"'Resultats PMV'!J71/'Resultats PMV'!$P71","v":{"$error":"#DIV/0!"}},{"$f":"'Resultats PMV'!K71/'Resultats PMV'!$P71","v":{"$error":"#DIV/0!"}},{"$f":"'Resultats PMV'!L71/'Resultats PMV'!$P71","v":{"$error":"#DIV/0!"}},{"$f":"'Resultats PMV'!M71/'Resultats PMV'!$P71","v":{"$error":"#DIV/0!"}},{"$f":"'Resultats PMV'!N71/'Resultats PMV'!$P71","v":{"$error":"#DIV/0!"}},{"$f":"'Resultats PMV'!O71/'Resultats PMV'!$P71","v":{"$error":"#DIV/0!"}},{"$error":"#DIV/0!"},null,{"$f":"'Resultats PMV'!R71","v":0},{"$f":"'Resultats PMV'!S71/'Resultats PMV'!$P71","v":{"$error":"#DIV/0!"}},{"$f":"'Resultats PMV'!T71/'Resultats PMV'!$P71","v":{"$error":"#DIV/0!"}},{"$f":"'Resultats PMV'!U71/'Resultats PMV'!$P71","v":{"$error":"#DIV/0!"}},{"$f":"'Resultats PMV'!V71/'Resultats PMV'!$P71","v":{"$error":"#DIV/0!"}},{"$f":"'Resultats PMV'!W71/'Resultats PMV'!$P71","v":{"$error":"#DIV/0!"}},{"$f":"'Resultats PMV'!X71/'Resultats PMV'!$P71","v":{"$error":"#DIV/0!"}},{"$f":"'Resultats PMV'!Y71/'Resultats PMV'!$P71","v":{"$error":"#DIV/0!"}},{"$f":"'Resultats PMV'!Z71/'Resultats PMV'!$P71","v":{"$error":"#DIV/0!"}},{"$f":"'Resultats PMV'!AA71/'Resultats PMV'!$P71","v":{"$error":"#DIV/0!"}},{"$f":"'Resultats PMV'!AB71/'Resultats PMV'!$P71","v":{"$error":"#DIV/0!"}},{"$error":"#DIV/0!"},null,{"$f":"'Resultats PMV'!AI71","v":0},{"$f":"'Resultats PMV'!AN71/'Resultats PMV'!$AX71","v":{"$error":"#DIV/0!"}},{"$f":"'Resultats PMV'!AO71/'Resultats PMV'!$AX71","v":{"$error":"#DIV/0!"}},{"$f":"'Resultats PMV'!AP71/'Resultats PMV'!$AX71","v":{"$error":"#DIV/0!"}},{"$f":"'Resultats PMV'!AQ71/'Resultats PMV'!$AX71","v":{"$error":"#DIV/0!"}},{"$f":"'Resultats PMV'!AR71/'Resultats PMV'!$AX71","v":{"$error":"#DIV/0!"}},{"$f":"'Resultats PMV'!AS71/'Resultats PMV'!$AX71","v":{"$error":"#DIV/0!"}},{"$f":"'Resultats PMV'!AT71/'Resultats PMV'!$AX71","v":{"$error":"#DIV/0!"}},{"$f":"'Resultats PMV'!AU71/'Resultats PMV'!$AX71","v":{"$error":"#DIV/0!"}},{"$f":"'Resultats PMV'!AV71/'Resultats PMV'!$AX71","v":{"$error":"#DIV/0!"}},{"$f":"'Resultats PMV'!AW71/'Resultats PMV'!$AX71","v":{"$error":"#DIV/0!"}},{"$error":"#DIV/0!"}]
[null,{"$f":"'Resultats PMV'!A72","v":0},{"$f":"'Resultats PMV'!F72/'Resultats PMV'!$P72","v":{"$error":"#DIV/0!"}},{"$f":"'Resultats PMV'!G72/'Resultats PMV'!$P72","v":{"$error":"#DIV/0!"}},{"$f":"'Resultats PMV'!H72/'Resultats PMV'!$P72","v":{"$error":"#DIV/0!"}},{"$f":"'Resultats PMV'!I72/'Resultats PMV'!$P72","v":{"$error":"#DIV/0!"}},{"$f":"'Resultats PMV'!J72/'Resultats PMV'!$P72","v":{"$error":"#DIV/0!"}},{"$f":"'Resultats PMV'!K72/'Resultats PMV'!$P72","v":{"$error":"#DIV/0!"}},{"$f":"'Resultats PMV'!L72/'Resultats PMV'!$P72","v":{"$error":"#DIV/0!"}},{"$f":"'Resultats PMV'!M72/'Resultats PMV'!$P72","v":{"$error":"#DIV/0!"}},{"$f":"'Resultats PMV'!N72/'Resultats PMV'!$P72","v":{"$error":"#DIV/0!"}},{"$f":"'Resultats PMV'!O72/'Resultats PMV'!$P72","v":{"$error":"#DIV/0!"}},{"$error":"#DIV/0!"},null,{"$f":"'Resultats PMV'!R72","v":0},{"$f":"'Resultats PMV'!S72/'Resultats PMV'!$P72","v":{"$error":"#DIV/0!"}},{"$f":"'Resultats PMV'!T72/'Resultats PMV'!$P72","v":{"$error":"#DIV/0!"}},{"$f":"'Resultats PMV'!U72/'Resultats PMV'!$P72","v":{"$error":"#DIV/0!"}},{"$f":"'Resultats PMV'!V72/'Resultats PMV'!$P72","v":{"$error":"#DIV/0!"}},{"$f":"'Resultats PMV'!W72/'Resultats PMV'!$P72","v":{"$error":"#DIV/0!"}},{"$f":"'Resultats PMV'!X72/'Resultats PMV'!$P72","v":{"$error":"#DIV/0!"}},{"$f":"'Resultats PMV'!Y72/'Resultats PMV'!$P72","v":{"$error":"#DIV/0!"}},{"$f":"'Resultats PMV'!Z72/'Resultats PMV'!$P72","v":{"$error":"#DIV/0!"}},{"$f":"'Resultats PMV'!AA72/'Resultats PMV'!$P72","v":{"$error":"#DIV/0!"}},{"$f":"'Resultats PMV'!AB72/'Resultats PMV'!$P72","v":{"$error":"#DIV/0!"}},{"$error":"#DIV/0!"},null,{"$f":"'Resultats PMV'!AI72","v":0},{"$f":"'Resultats PMV'!AN72/'Resultats PMV'!$AX72","v":{"$error":"#DIV/0!"}},{"$f":"'Resultats PMV'!AO72/'Resultats PMV'!$AX72","v":{"$error":"#DIV/0!"}},{"$f":"'Resultats PMV'!AP72/'Resultats PMV'!$AX72","v":{"$error":"#DIV/0!"}},{"$f":"'Resultats PMV'!AQ72/'Resultats PMV'!$AX72","v":{"$error":"#DIV/0!"}},{"$f":"'Resultats PMV'!AR72/'Resultats PMV'!$AX72","v":{"$error":"#DIV/0!"}},{"$f":"'Resultats PMV'!AS72/'Resultats PMV'!$AX72","v":{"$error":"#DIV/0!"}},{"$f":"'Resultats PMV'!AT72/'Resultats PMV'!$AX72","v":{"$error":"#DIV/0!"}},{"$f":"'Resultats PMV'!AU72/'Resultats PMV'!$AX72","v":{"$error":"#DIV/0!"}},{"$f":"'Resultats PMV'!AV72/'Resultats PMV'!$AX72","v":{"$error":"#DIV/0!"}},{"$f":"'Resultats PMV'!AW72/'Resultats PMV'!$AX72","v":{"$error":"#DIV/0!"}},{"$error":"#DIV/0!"}]
[null,{"$f":"'Resultats PMV'!A73","v":0},{"$f":"'Resultats PMV'!F73/'Resultats PMV'!$P73","v":{"$error":"#DIV/0!"}},{"$f":"'Resultats PMV'!G73/'Resultats PMV'!$P73","v":{"$error":"#DIV/0!"}},{"$f":"'Resultats PMV'!H73/'Resultats PMV'!$P73","v":{"$error":"#DIV/0!"}},{"$f":"'Resultats PMV'!I73/'Resultats PMV'!$P73","v":{"$error":"#DIV/0!"}},{"$f":"'Resultats PMV'!J73/'Resultats PMV'!$P73","v":{"$error":"#DIV/0!"}},{"$f":"'Resultats PMV'!K73/'Resultats PMV'!$P73","v":{"$error":"#DIV/0!"}},{"$f":"'Resultats PMV'!L73/'Resultats PMV'!$P73","v":{"$error":"#DIV/0!"}},{"$f":"'Resultats PMV'!M73/'Resultats PMV'!$P73","v":{"$error":"#DIV/0!"}},{"$f":"'Resultats PMV'!N73/'Resultats PMV'!$P73","v":{"$error":"#DIV/0!"}},{"$f":"'Resultats PMV'!O73/'Resultats PMV'!$P73","v":{"$error":"#DIV/0!"}},{"$error":"#DIV/0!"},null,{"$f":"'Resultats PMV'!R73","v":0},{"$f":"'Resultats PMV'!S73/'Resultats PMV'!$P73","v":{"$error":"#DIV/0!"}},{"$f":"'Resultats PMV'!T73/'Resultats PMV'!$P73","v":{"$error":"#DIV/0!"}},{"$f":"'Resultats PMV'!U73/'Resultats PMV'!$P73","v":{"$error":"#DIV/0!"}},{"$f":"'Resultats PMV'!V73/'Resultats PMV'!$P73","v":{"$error":"#DIV/0!"}},{"$f":"'Resultats PMV'!W73/'Resultats PMV'!$P73","v":{"$error":"#DIV/0!"}},{"$f":"'Resultats PMV'!X73/'Resultats PMV'!$P73","v":{"$error":"#DIV/0!"}},{"$f":"'Resultats PMV'!Y73/'Resultats PMV'!$P73","v":{"$error":"#DIV/0!"}},{"$f":"'Resultats PMV'!Z73/'Resultats PMV'!$P73","v":{"$error":"#DIV/0!"}},{"$f":"'Resultats PMV'!AA73/'Resultats PMV'!$P73","v":{"$error":"#DIV/0!"}},{"$f":"'Resultats PMV'!AB73/'Resultats PMV'!$P73","v":{"$error":"#DIV/0!"}},{"$error":"#DIV/0!"},null,{"$f":"'Resultats PMV'!AI73","v":0},{"$f":"'Resultats PMV'!AN73/'Resultats PMV'!$AX73","v":{"$error":"#DIV/0!"}},{"$f":"'Resultats PMV'!AO73/'Resultats PMV'!$AX73","v":{"$error":"#DIV/0!"}},{"$f":"'Resultats PMV'!AP73/'Resultats PMV'!$AX73","v":{"$error":"#DIV/0!"}},{"$f":"'Resultats PMV'!AQ73/'Resultats PMV'!$AX73","v":{"$error":"#DIV/0!"}},{"$f":"'Resultats PMV'!AR73/'Resultats PMV'!$AX73","v":{"$error":"#DIV/0!"}},{"$f":"'Resultats PMV'!AS73/'Resultats PMV'!$AX73","v":{"$error":"#DIV/0!"}},{"$f":"'Resultats PMV'!AT73/'Resultats PMV'!$AX73","v":{"$error":"#DIV/0!"}},{"$f":"'Resultats PMV'!AU73/'Resultats PMV'!$AX73","v":{"$error":"#DIV/0!"}},{"$f":"'Resultats PMV'!AV73/'Resultats PMV'!$AX73","v":{"$error":"#DIV/0!"}},{"$f":"'Resultats PMV'!AW73/'Resultats PMV'!$AX73","v":{"$error":"#DIV/0!"}},{"$error":"#DIV/0!"}]
[null,{"$f":"'Resultats PMV'!A74","v":0},{"$f":"'Resultats PMV'!F74/'Resultats PMV'!$P74","v":{"$error":"#DIV/0!"}},{"$f":"'Resultats PMV'!G74/'Resultats PMV'!$P74","v":{"$error":"#DIV/0!"}},{"$f":"'Resultats PMV'!H74/'Resultats PMV'!$P74","v":{"$error":"#DIV/0!"}},{"$f":"'Resultats PMV'!I74/'Resultats PMV'!$P74","v":{"$error":"#DIV/0!"}},{"$f":"'Resultats PMV'!J74/'Resultats PMV'!$P74","v":{"$error":"#DIV/0!"}},{"$f":"'Resultats PMV'!K74/'Resultats PMV'!$P74","v":{"$error":"#DIV/0!"}},{"$f":"'Resultats PMV'!L74/'Resultats PMV'!$P74","v":{"$error":"#DIV/0!"}},{"$f":"'Resultats PMV'!M74/'Resultats PMV'!$P74","v":{"$error":"#DIV/0!"}},{"$f":"'Resultats PMV'!N74/'Resultats PMV'!$P74","v":{"$error":"#DIV/0!"}},{"$f":"'Resultats PMV'!O74/'Resultats PMV'!$P74","v":{"$error":"#DIV/0!"}},{"$f":"1-SUM(F84:I84)","v":{"$error":"#DIV/0!"}},null,{"$f":"'Resultats PMV'!R74","v":0},{"$f":"'Resultats PMV'!S74/'Resultats PMV'!$P74","v":{"$error":"#DIV/0!"}},{"$f":"'Resultats PMV'!T74/'Resultats PMV'!$P74","v":{"$error":"#DIV/0!"}},{"$f":"'Resultats PMV'!U74/'Resultats PMV'!$P74","v":{"$error":"#DIV/0!"}},{"$f":"'Resultats PMV'!V74/'Resultats PMV'!$P74","v":{"$error":"#DIV/0!"}},{"$f":"'Resultats PMV'!W74/'Resultats PMV'!$P74","v":{"$error":"#DIV/0!"}},{"$f":"'Resultats PMV'!X74/'Resultats PMV'!$P74","v":{"$error":"#DIV/0!"}},{"$f":"'Resultats PMV'!Y74/'Resultats PMV'!$P74","v":{"$error":"#DIV/0!"}},{"$f":"'Resultats PMV'!Z74/'Resultats PMV'!$P74","v":{"$error":"#DIV/0!"}},{"$f":"'Resultats PMV'!AA74/'Resultats PMV'!$P74","v":{"$error":"#DIV/0!"}},{"$f":"'Resultats PMV'!AB74/'Resultats PMV'!$P74","v":{"$error":"#DIV/0!"}},{"$f":"1-SUM(S84:V84)","v":{"$error":"#DIV/0!"}},null,{"$f":"'Resultats PMV'!AI74","v":0},{"$f":"'Resultats PMV'!AN74/'Resultats PMV'!$AX74","v":{"$error":"#DIV/0!"}},{"$f":"'Resultats PMV'!AO74/'Resultats PMV'!$AX74","v":{"$error":"#DIV/0!"}},{"$f":"'Resultats PMV'!AP74/'Resultats PMV'!$AX74","v":{"$error":"#DIV/0!"}},{"$f":"'Resultats PMV'!AQ74/'Resultats PMV'!$AX74","v":{"$error":"#DIV/0!"}},{"$f":"'Resultats PMV'!AR74/'Resultats PMV'!$AX74","v":{"$error":"#DIV/0!"}},{"$f":"'Resultats PMV'!AS74/'Resultats PMV'!$AX74","v":{"$error":"#DIV/0!"}},{"$f":"'Resultats PMV'!AT74/'Resultats PMV'!$AX74","v":{"$error":"#DIV/0!"}},{"$f":"'Resultats PMV'!AU74/'Resultats PMV'!$AX74","v":{"$error":"#DIV/0!"}},{"$f":"'Resultats PMV'!AV74/'Resultats PMV'!$AX74","v":{"$error":"#DIV/0!"}},{"$f":"'Resultats PMV'!AW74/'Resultats PMV'!$AX74","v":{"$error":"#DIV/0!"}},{"$f":"1-SUM(AF84:AI84)","v":{"$error":"#DIV/0!"}}]
[null,{"$f":"'Resultats PMV'!A75","v":0},{"$f":"'Resultats PMV'!F75/'Resultats PMV'!$P75","v":{"$error":"#DIV/0!"}},{"$f":"'Resultats PMV'!G75/'Resultats PMV'!$P75","v":{"$error":"#DIV/0!"}},{"$f":"'Resultats PMV'!H75/'Resultats PMV'!$P75","v":{"$error":"#DIV/0!"}},{"$f":"'Resultats PMV'!I75/'Resultats PMV'!$P75","v":{"$error":"#DIV/0!"}},{"$f":"'Resultats PMV'!J75/'Resultats PMV'!$P75","v":{"$error":"#DIV/0!"}},{"$f":"'Resultats PMV'!K75/'Resultats PMV'!$P75","v":{"$error":"#DIV/0!"}},{"$f":"'Resultats PMV'!L75/'Resultats PMV'!$P75","v":{"$error":"#DIV/0!"}},{"$f":"'Resultats PMV'!M75/'Resultats PMV'!$P75","v":{"$error":"#DIV/0!"}},{"$f":"'Resultats PMV'!N75/'Resultats PMV'!$P75","v":{"$error":"#DIV/0!"}},{"$f":"'Resultats PMV'!O75/'Resultats PMV'!$P75","v":{"$error":"#DIV/0!"}},{"$error":"#DIV/0!"},null,{"$f":"'Resultats PMV'!R75","v":0},{"$f":"'Resultats PMV'!S75/'Resultats PMV'!$P75","v":{"$error":"#DIV/0!"}},{"$f":"'Resultats PMV'!T75/'Resultats PMV'!$P75","v":{"$error":"#DIV/0!"}},{"$f":"'Resultats PMV'!U75/'Resultats PMV'!$P75","v":{"$error":"#DIV/0!"}},{"$f":"'Resultats PMV'!V75/'Resultats PMV'!$P75","v":{"$error":"#DIV/0!"}},{"$f":"'Resultats PMV'!W75/'Resultats PMV'!$P75","v":{"$error":"#DIV/0!"}},{"$f":"'Resultats PMV'!X75/'Resultats PMV'!$P75","v":{"$error":"#DIV/0!"}},{"$f":"'Resultats PMV'!Y75/'Resultats PMV'!$P75","v":{"$error":"#DIV/0!"}},{"$f":"'Resultats PMV'!Z75/'Resultats PMV'!$P75","v":{"$error":"#DIV/0!"}},{"$f":"'Resultats PMV'!AA75/'Resultats PMV'!$P75","v":{"$error":"#DIV/0!"}},{"$f":"'Resultats PMV'!AB75/'Resultats PMV'!$P75","v":{"$error":"#DIV/0!"}},{"$error":"#DIV/0!"},null,{"$f":"'Resultats PMV'!AI75","v":0},{"$f":"'Resultats PMV'!AN75/'Resultats PMV'!$AX75","v":{"$error":"#DIV/0!"}},{"$f":"'Resultats PMV'!AO75/'Resultats PMV'!$AX75","v":{"$error":"#DIV/0!"}},{"$f":"'Resultats PMV'!AP75/'Resultats PMV'!$AX75","v":{"$error":"#DIV/0!"}},{"$f":"'Resultats PMV'!AQ75/'Resultats PMV'!$AX75","v":{"$error":"#DIV/0!"}},{"$f":"'Resultats PMV'!AR75/'Resultats PMV'!$AX75","v":{"$error":"#DIV/0!"}},{"$f":"'Resultats PMV'!AS75/'Resultats PMV'!$AX75","v":{"$error":"#DIV/0!"}},{"$f":"'Resultats PMV'!AT75/'Resultats PMV'!$AX75","v":{"$error":"#DIV/0!"}},{"$f":"'Resultats PMV'!AU75/'Resultats PMV'!$AX75","v":{"$error":"#DIV/0!"}},{"$f":"'Resultats PMV'!AV75/'Resultats PMV'!$AX75","v":{"$error":"#DIV/0!"}},{"$f":"'Resultats PMV'!AW75/'Resultats PMV'!$AX75","v":{"$error":"#DIV/0!"}},{"$error":"#DIV/0!"}]
[null,{"$f":"'Resultats PMV'!A76","v":0},{"$f":"'Resultats PMV'!F76/'Resultats PMV'!$P76","v":{"$error":"#DIV/0!"}},{"$f":"'Resultats PMV'!G76/'Resultats PMV'!$P76","v":{"$error":"#DIV/0!"}},{"$f":"'Resultats PMV'!H76/'Resultats PMV'!$P76","v":{"$error":"#DIV/0!"}},{"$f":"'Resultats PMV'!I76/'Resultats PMV'!$P76","v":{"$error":"#DIV/0!"}},{"$f":"'Resultats PMV'!J76/'Resultats PMV'!$P76","v":{"$error":"#DIV/0!"}},{"$f":"'Resultats PMV'!K76/'Resultats PMV'!$P76","v":{"$error":"#DIV/0!"}},{"$f":"'Resultats PMV'!L76/'Resultats PMV'!$P76","v":{"$error":"#DIV/0!"}},{"$f":"'Resultats PMV'!M76/'Resultats PMV'!$P76","v":{"$error":"#DIV/0!"}},{"$f":"'Resultats PMV'!N76/'Resultats PMV'!$P76","v":{"$error":"#DIV/0!"}},{"$f":"'Resultats PMV'!O76/'Resultats PMV'!$P76","v":{"$error":"#DIV/0!"}},{"$error":"#DIV/0!"},null,{"$f":"'Resultats PMV'!R76","v":0},{"$f":"'Resultats PMV'!S76/'Resultats PMV'!$P76","v":{"$error":"#DIV/0!"}},{"$f":"'Resultats PMV'!T76/'Resultats PMV'!$P76","v":{"$error":"#DIV/0!"}},{"$f":"'Resultats PMV'!U76/'Resultats PMV'!$P76","v":{"$error":"#DIV/0!"}},{"$f":"'Resultats PMV'!V76/'Resultats PMV'!$P76","v":{"$error":"#DIV/0!"}},{"$f":"'Resultats PMV'!W76/'Resultats PMV'!$P76","v":{"$error":"#DIV/0!"}},{"$f":"'Resultats PMV'!X76/'Resultats PMV'!$P76","v":{"$error":"#DIV/0!"}},{"$f":"'Resultats PMV'!Y76/'Resultats PMV'!$P76","v":{"$error":"#DIV/0!"}},{"$f":"'Resultats PMV'!Z76/'Resultats PMV'!$P76","v":{"$error":"#DIV/0!"}},{"$f":"'Resultats PMV'!AA76/'Resultats PMV'!$P76","v":{"$error":"#DIV/0!"}},{"$f":"'Resultats PMV'!AB76/'Resultats PMV'!$P76","v":{"$error":"#DIV/0!"}},{"$error":"#DIV/0!"},null,{"$f":"'Resultats PMV'!AI76","v":0},{"$f":"'Resultats PMV'!AN76/'Resultats PMV'!$AX76","v":{"$error":"#DIV/0!"}},{"$f":"'Resultats PMV'!AO76/'Resultats PMV'!$AX76","v":{"$error":"#DIV/0!"}},{"$f":"'Resultats PMV'!AP76/'Resultats PMV'!$AX76","v":{"$error":"#DIV/0!"}},{"$f":"'Resultats PMV'!AQ76/'Resultats PMV'!$AX76","v":{"$error":"#DIV/0!"}},{"$f":"'Resultats PMV'!AR76/'Resultats PMV'!$AX76","v":{"$error":"#DIV/0!"}},{"$f":"'Resultats PMV'!AS76/'Resultats PMV'!$AX76","v":{"$error":"#DIV/0!"}},{"$f":"'Resultats PMV'!AT76/'Resultats PMV'!$AX76","v":{"$error":"#DIV/0!"}},{"$f":"'Resultats PMV'!AU76/'Resultats PMV'!$AX76","v":{"$error":"#DIV/0!"}},{"$f":"'Resultats PMV'!AV76/'Resultats PMV'!$AX76","v":{"$error":"#DIV/0!"}},{"$f":"'Resultats PMV'!AW76/'Resultats PMV'!$AX76","v":{"$error":"#DIV/0!"}},{"$error":"#DIV/0!"}]
[null,{"$f":"'Resultats PMV'!A77","v":0},{"$f":"'Resultats PMV'!F77/'Resultats PMV'!$P77","v":{"$error":"#DIV/0!"}},{"$f":"'Resultats PMV'!G77/'Resultats PMV'!$P77","v":{"$error":"#DIV/0!"}},{"$f":"'Resultats PMV'!H77/'Resultats PMV'!$P77","v":{"$error":"#DIV/0!"}},{"$f":"'Resultats PMV'!I77/'Resultats PMV'!$P77","v":{"$error":"#DIV/0!"}},{"$f":"'Resultats PMV'!J77/'Resultats PMV'!$P77","v":{"$error":"#DIV/0!"}},{"$f":"'Resultats PMV'!K77/'Resultats PMV'!$P77","v":{"$error":"#DIV/0!"}},{"$f":"'Resultats PMV'!L77/'Resultats PMV'!$P77","v":{"$error":"#DIV/0!"}},{"$f":"'Resultats PMV'!M77/'Resultats PMV'!$P77","v":{"$error":"#DIV/0!"}},{"$f":"'Resultats PMV'!N77/'Resultats PMV'!$P77","v":{"$error":"#DIV/0!"}},{"$f":"'Resultats PMV'!O77/'Resultats PMV'!$P77","v":{"$error":"#DIV/0!"}},{"$error":"#DIV/0!"},null,{"$f":"'Resultats PMV'!R77","v":0},{"$f":"'Resultats PMV'!S77/'Resultats PMV'!$P77","v":{"$error":"#DIV/0!"}},{"$f":"'Resultats PMV'!T77/'Resultats PMV'!$P77","v":{"$error":"#DIV/0!"}},{"$f":"'Resultats PMV'!U77/'Resultats PMV'!$P77","v":{"$error":"#DIV/0!"}},{"$f":"'Resultats PMV'!V77/'Resultats PMV'!$P77","v":{"$error":"#DIV/0!"}},{"$f":"'Resultats PMV'!W77/'Resultats PMV'!$P77","v":{"$error":"#DIV/0!"}},{"$f":"'Resultats PMV'!X77/'Resultats PMV'!$P77","v":{"$error":"#DIV/0!"}},{"$f":"'Resultats PMV'!Y77/'Resultats PMV'!$P77","v":{"$error":"#DIV/0!"}},{"$f":"'Resultats PMV'!Z77/'Resultats PMV'!$P77","v":{"$error":"#DIV/0!"}},{"$f":"'Resultats PMV'!AA77/'Resultats PMV'!$P77","v":{"$error":"#DIV/0!"}},{"$f":"'Resultats PMV'!AB77/'Resultats PMV'!$P77","v":{"$error":"#DIV/0!"}},{"$error":"#DIV/0!"},null,{"$f":"'Resultats PMV'!AI77","v":0},{"$f":"'Resultats PMV'!AN77/'Resultats PMV'!$AX77","v":{"$error":"#DIV/0!"}},{"$f":"'Resultats PMV'!AO77/'Resultats PMV'!$AX77","v":{"$error":"#DIV/0!"}},{"$f":"'Resultats PMV'!AP77/'Resultats PMV'!$AX77","v":{"$error":"#DIV/0!"}},{"$f":"'Resultats PMV'!AQ77/'Resultats PMV'!$AX77","v":{"$error":"#DIV/0!"}},{"$f":"'Resultats PMV'!AR77/'Resultats PMV'!$AX77","v":{"$error":"#DIV/0!"}},{"$f":"'Resultats PMV'!AS77/'Resultats PMV'!$AX77","v":{"$error":"#DIV/0!"}},{"$f":"'Resultats PMV'!AT77/'Resultats PMV'!$AX77","v":{"$error":"#DIV/0!"}},{"$f":"'Resultats PMV'!AU77/'Resultats PMV'!$AX77","v":{"$error":"#DIV/0!"}},{"$f":"'Resultats PMV'!AV77/'Resultats PMV'!$AX77","v":{"$error":"#DIV/0!"}},{"$f":"'Resultats PMV'!AW77/'Resultats PMV'!$AX77","v":{"$error":"#DIV/0!"}},{"$error":"#DIV/0!"}]
[null,{"$f":"'Resultats PMV'!A78","v":0},{"$f":"'Resultats PMV'!F78/'Resultats PMV'!$P78","v":{"$error":"#DIV/0!"}},{"$f":"'Resultats PMV'!G78/'Resultats PMV'!$P78","v":{"$error":"#DIV/0!"}},{"$f":"'Resultats PMV'!H78/'Resultats PMV'!$P78","v":{"$error":"#DIV/0!"}},{"$f":"'Resultats PMV'!I78/'Resultats PMV'!$P78","v":{"$error":"#DIV/0!"}},{"$f":"'Resultats PMV'!J78/'Resultats PMV'!$P78","v":{"$error":"#DIV/0!"}},{"$f":"'Resultats PMV'!K78/'Resultats PMV'!$P78","v":{"$error":"#DIV/0!"}},{"$f":"'Resultats PMV'!L78/'Resultats PMV'!$P78","v":{"$error":"#DIV/0!"}},{"$f":"'Resultats PMV'!M78/'Resultats PMV'!$P78","v":{"$error":"#DIV/0!"}},{"$f":"'Resultats PMV'!N78/'Resultats PMV'!$P78","v":{"$error":"#DIV/0!"}},{"$f":"'Resultats PMV'!O78/'Resultats PMV'!$P78","v":{"$error":"#DIV/0!"}},{"$error":"#DIV/0!"},null,{"$f":"'Resultats PMV'!R78","v":0},{"$f":"'Resultats PMV'!S78/'Resultats PMV'!$P78","v":{"$error":"#DIV/0!"}},{"$f":"'Resultats PMV'!T78/'Resultats PMV'!$P78","v":{"$error":"#DIV/0!"}},{"$f":"'Resultats PMV'!U78/'Resultats PMV'!$P78","v":{"$error":"#DIV/0!"}},{"$f":"'Resultats PMV'!V78/'Resultats PMV'!$P78","v":{"$error":"#DIV/0!"}},{"$f":"'Resultats PMV'!W78/'Resultats PMV'!$P78","v":{"$error":"#DIV/0!"}},{"$f":"'Resultats PMV'!X78/'Resultats PMV'!$P78","v":{"$error":"#DIV/0!"}},{"$f":"'Resultats PMV'!Y78/'Resultats PMV'!$P78","v":{"$error":"#DIV/0!"}},{"$f":"'Resultats PMV'!Z78/'Resultats PMV'!$P78","v":{"$error":"#DIV/0!"}},{"$f":"'Resultats PMV'!AA78/'Resultats PMV'!$P78","v":{"$error":"#DIV/0!"}},{"$f":"'Resultats PMV'!AB78/'Resultats PMV'!$P78","v":{"$error":"#DIV/0!"}},{"$error":"#DIV/0!"},null,{"$f":"'Resultats PMV'!AI78","v":0},{"$f":"'Resultats PMV'!AN78/'Resultats PMV'!$AX78","v":{"$error":"#DIV/0!"}},{"$f":"'Resultats PMV'!AO78/'Resultats PMV'!$AX78","v":{"$error":"#DIV/0!"}},{"$f":"'Resultats PMV'!AP78/'Resultats PMV'!$AX78","v":{"$error":"#DIV/0!"}},{"$f":"'Resultats PMV'!AQ78/'Resultats PMV'!$AX78","v":{"$error":"#DIV/0!"}},{"$f":"'Resultats PMV'!AR78/'Resultats PMV'!$AX78","v":{"$error":"#DIV/0!"}},{"$f":"'Resultats PMV'!AS78/'Resultats PMV'!$AX78","v":{"$error":"#DIV/0!"}},{"$f":"'Resultats PMV'!AT78/'Resultats PMV'!$AX78","v":{"$error":"#DIV/0!"}},{"$f":"'Resultats PMV'!AU78/'Resultats PMV'!$AX78","v":{"$error":"#DIV/0!"}},{"$f":"'Resultats PMV'!AV78/'Resultats PMV'!$AX78","v":{"$error":"#DIV/0!"}},{"$f":"'Resultats PMV'!AW78/'Resultats PMV'!$AX78","v":{"$error":"#DIV/0!"}},{"$error":"#DIV/0!"}]
[null,{"$f":"'Resultats PMV'!A79","v":0},{"$f":"'Resultats PMV'!F79/'Resultats PMV'!$P79","v":{"$error":"#DIV/0!"}},{"$f":"'Resultats PMV'!G79/'Resultats PMV'!$P79","v":{"$error":"#DIV/0!"}},{"$f":"'Resultats PMV'!H79/'Resultats PMV'!$P79","v":{"$error":"#DIV/0!"}},{"$f":"'Resultats PMV'!I79/'Resultats PMV'!$P79","v":{"$error":"#DIV/0!"}},{"$f":"'Resultats PMV'!J79/'Resultats PMV'!$P79","v":{"$error":"#DIV/0!"}},{"$f":"'Resultats PMV'!K79/'Resultats PMV'!$P79","v":{"$error":"#DIV/0!"}},{"$f":"'Resultats PMV'!L79/'Resultats PMV'!$P79","v":{"$error":"#DIV/0!"}},{"$f":"'Resultats PMV'!M79/'Resultats PMV'!$P79","v":{"$error":"#DIV/0!"}},{"$f":"'Resultats PMV'!N79/'Resultats PMV'!$P79","v":{"$error":"#DIV/0!"}},{"$f":"'Resultats PMV'!O79/'Resultats PMV'!$P79","v":{"$error":"#DIV/0!"}},{"$error":"#DIV/0!"},null,{"$f":"'Resultats PMV'!R79","v":0},{"$f":"'Resultats PMV'!S79/'Resultats PMV'!$P79","v":{"$error":"#DIV/0!"}},{"$f":"'Resultats PMV'!T79/'Resultats PMV'!$P79","v":{"$error":"#DIV/0!"}},{"$f":"'Resultats PMV'!U79/'Resultats PMV'!$P79","v":{"$error":"#DIV/0!"}},{"$f":"'Resultats PMV'!V79/'Resultats PMV'!$P79","v":{"$error":"#DIV/0!"}},{"$f":"'Resultats PMV'!W79/'Resultats PMV'!$P79","v":{"$error":"#DIV/0!"}},{"$f":"'Resultats PMV'!X79/'Resultats PMV'!$P79","v":{"$error":"#DIV/0!"}},{"$f":"'Resultats PMV'!Y79/'Resultats PMV'!$P79","v":{"$error":"#DIV/0!"}},{"$f":"'Resultats PMV'!Z79/'Resultats PMV'!$P79","v":{"$error":"#DIV/0!"}},{"$f":"'Resultats PMV'!AA79/'Resultats PMV'!$P79","v":{"$error":"#DIV/0!"}},{"$f":"'Resultats PMV'!AB79/'Resultats PMV'!$P79","v":{"$error":"#DIV/0!"}},{"$error":"#DIV/0!"},null,{"$f":"'Resultats PMV'!AI79","v":0},{"$f":"'Resultats PMV'!AN79/'Resultats PMV'!$AX79","v":{"$error":"#DIV/0!"}},{"$f":"'Resultats PMV'!AO79/'Resultats PMV'!$AX79","v":{"$error":"#DIV/0!"}},{"$f":"'Resultats PMV'!AP79/'Resultats PMV'!$AX79","v":{"$error":"#DIV/0!"}},{"$f":"'Resultats PMV'!AQ79/'Resultats PMV'!$AX79","v":{"$error":"#DIV/0!"}},{"$f":"'Resultats PMV'!AR79/'Resultats PMV'!$AX79","v":{"$error":"#DIV/0!"}},{"$f":"'Resultats PMV'!AS79/'Resultats PMV'!$AX79","v":{"$error":"#DIV/0!"}},{"$f":"'Resultats PMV'!AT79/'Resultats PMV'!$AX79","v":{"$error":"#DIV/0!"}},{"$f":"'Resultats PMV'!AU79/'Resultats PMV'!$AX79","v":{"$error":"#DIV/0!"}},{"$f":"'Resultats PMV'!AV79/'Resultats PMV'!$AX79","v":{"$error":"#DIV/0!"}},{"$f":"'Resultats PMV'!AW79/'Resultats PMV'!$AX79","v":{"$error":"#DIV/0!"}},{"$error":"#DIV/0!"}]
[null,{"$f":"'Resultats PMV'!A80","v":0},{"$f":"'Resultats PMV'!F80/'Resultats PMV'!$P80","v":{"$error":"#DIV/0!"}},{"$f":"'Resultats PMV'!G80/'Resultats PMV'!$P80","v":{"$error":"#DIV/0!"}},{"$f":"'Resultats PMV'!H80/'Resultats PMV'!$P80","v":{"$error":"#DIV/0!"}},{"$f":"'Resultats PMV'!I80/'Resultats PMV'!$P80","v":{"$error":"#DIV/0!"}},{"$f":"'Resultats PMV'!J80/'Resultats PMV'!$P80","v":{"$error":"#DIV/0!"}},{"$f":"'Resultats PMV'!K80/'Resultats PMV'!$P80","v":{"$error":"#DIV/0!"}},{"$f":"'Resultats PMV'!L80/'Resultats PMV'!$P80","v":{"$error":"#DIV/0!"}},{"$f":"'Resultats PMV'!M80/'Resultats PMV'!$P80","v":{"$error":"#DIV/0!"}},{"$f":"'Resultats PMV'!N80/'Resultats PMV'!$P80","v":{"$error":"#DIV/0!"}},{"$f":"'Resultats PMV'!O80/'Resultats PMV'!$P80","v":{"$error":"#DIV/0!"}},{"$error":"#DIV/0!"},null,{"$f":"'Resultats PMV'!R80","v":0},{"$f":"'Resultats PMV'!S80/'Resultats PMV'!$P80","v":{"$error":"#DIV/0!"}},{"$f":"'Resultats PMV'!T80/'Resultats PMV'!$P80","v":{"$error":"#DIV/0!"}},{"$f":"'Resultats PMV'!U80/'Resultats PMV'!$P80","v":{"$error":"#DIV/0!"}},{"$f":"'Resultats PMV'!V80/'Resultats PMV'!$P80","v":{"$error":"#DIV/0!"}},{"$f":"'Resultats PMV'!W80/'Resultats PMV'!$P80","v":{"$error":"#DIV/0!"}},{"$f":"'Resultats PMV'!X80/'Resultats PMV'!$P80","v":{"$error":"#DIV/0!"}},{"$f":"'Resultats PMV'!Y80/'Resultats PMV'!$P80","v":{"$error":"#DIV/0!"}},{"$f":"'Resultats PMV'!Z80/'Resultats PMV'!$P80","v":{"$error":"#DIV/0!"}},{"$f":"'Resultats PMV'!AA80/'Resultats PMV'!$P80","v":{"$error":"#DIV/0!"}},{"$f":"'Resultats PMV'!AB80/'Resultats PMV'!$P80","v":{"$error":"#DIV/0!"}},{"$error":"#DIV/0!"},null,{"$f":"'Resultats PMV'!AI80","v":0},{"$f":"'Resultats PMV'!AN80/'Resultats PMV'!$AX80","v":{"$error":"#DIV/0!"}},{"$f":"'Resultats PMV'!AO80/'Resultats PMV'!$AX80","v":{"$error":"#DIV/0!"}},{"$f":"'Resultats PMV'!AP80/'Resultats PMV'!$AX80","v":{"$error":"#DIV/0!"}},{"$f":"'Resultats PMV'!AQ80/'Resultats PMV'!$AX80","v":{"$error":"#DIV/0!"}},{"$f":"'Resultats PMV'!AR80/'Resultats PMV'!$AX80","v":{"$error":"#DIV/0!"}},{"$f":"'Resultats PMV'!AS80/'Resultats PMV'!$AX80","v":{"$error":"#DIV/0!"}},{"$f":"'Resultats PMV'!AT80/'Resultats PMV'!$AX80","v":{"$error":"#DIV/0!"}},{"$f":"'Resultats PMV'!AU80/'Resultats PMV'!$AX80","v":{"$error":"#DIV/0!"}},{"$f":"'Resultats PMV'!AV80/'Resultats PMV'!$AX80","v":{"$error":"#DIV/0!"}},{"$f":"'Resultats PMV'!AW80/'Resultats PMV'!$AX80","v":{"$error":"#DIV/0!"}},{"$error":"#DIV/0!"}]
[null,{"$f":"'Resultats PMV'!A81","v":0},{"$f":"'Resultats PMV'!F81/'Resultats PMV'!$P81","v":{"$error":"#DIV/0!"}},{"$f":"'Resultats PMV'!G81/'Resultats PMV'!$P81","v":{"$error":"#DIV/0!"}},{"$f":"'Resultats PMV'!H81/'Resultats PMV'!$P81","v":{"$error":"#DIV/0!"}},{"$f":"'Resultats PMV'!I81/'Resultats PMV'!$P81","v":{"$error":"#DIV/0!"}},{"$f":"'Resultats PMV'!J81/'Resultats PMV'!$P81","v":{"$error":"#DIV/0!"}},{"$f":"'Resultats PMV'!K81/'Resultats PMV'!$P81","v":{"$error":"#DIV/0!"}},{"$f":"'Resultats PMV'!L81/'Resultats PMV'!$P81","v":{"$error":"#DIV/0!"}},{"$f":"'Resultats PMV'!M81/'Resultats PMV'!$P81","v":{"$error":"#DIV/0!"}},{"$f":"'Resultats PMV'!N81/'Resultats PMV'!$P81","v":{"$error":"#DIV/0!"}},{"$f":"'Resultats PMV'!O81/'Resultats PMV'!$P81","v":{"$error":"#DIV/0!"}},{"$error":"#DIV/0!"},null,{"$f":"'Resultats PMV'!R81","v":0},{"$f":"'Resultats PMV'!S81/'Resultats PMV'!$P81","v":{"$error":"#DIV/0!"}},{"$f":"'Resultats PMV'!T81/'Resultats PMV'!$P81","v":{"$error":"#DIV/0!"}},{"$f":"'Resultats PMV'!U81/'Resultats PMV'!$P81","v":{"$error":"#DIV/0!"}},{"$f":"'Resultats PMV'!V81/'Resultats PMV'!$P81","v":{"$error":"#DIV/0!"}},{"$f":"'Resultats PMV'!W81/'Resultats PMV'!$P81","v":{"$error":"#DIV/0!"}},{"$f":"'Resultats PMV'!X81/'Resultats PMV'!$P81","v":{"$error":"#DIV/0!"}},{"$f":"'Resultats PMV'!Y81/'Resultats PMV'!$P81","v":{"$error":"#DIV/0!"}},{"$f":"'Resultats PMV'!Z81/'Resultats PMV'!$P81","v":{"$error":"#DIV/0!"}},{"$f":"'Resultats PMV'!AA81/'Resultats PMV'!$P81","v":{"$error":"#DIV/0!"}},{"$f":"'Resultats PMV'!AB81/'Resultats PMV'!$P81","v":{"$error":"#DIV/0!"}},{"$error":"#DIV/0!"},null,{"$f":"'Resultats PMV'!AI81","v":0},{"$f":"'Resultats PMV'!AN81/'Resultats PMV'!$AX81","v":{"$error":"#DIV/0!"}},{"$f":"'Resultats PMV'!AO81/'Resultats PMV'!$AX81","v":{"$error":"#DIV/0!"}},{"$f":"'Resultats PMV'!AP81/'Resultats PMV'!$AX81","v":{"$error":"#DIV/0!"}},{"$f":"'Resultats PMV'!AQ81/'Resultats PMV'!$AX81","v":{"$error":"#DIV/0!"}},{"$f":"'Resultats PMV'!AR81/'Resultats PMV'!$AX81","v":{"$error":"#DIV/0!"}},{"$f":"'Resultats PMV'!AS81/'Resultats PMV'!$AX81","v":{"$error":"#DIV/0!"}},{"$f":"'Resultats PMV'!AT81/'Resultats PMV'!$AX81","v":{"$error":"#DIV/0!"}},{"$f":"'Resultats PMV'!AU81/'Resultats PMV'!$AX81","v":{"$error":"#DIV/0!"}},{"$f":"'Resultats PMV'!AV81/'Resultats PMV'!$AX81","v":{"$error":"#DIV/0!"}},{"$f":"'Resultats PMV'!AW81/'Resultats PMV'!$AX81","v":{"$error":"#DIV/0!"}},{"$error":"#DIV/0!"}]
[null,{"$f":"'Resultats PMV'!A82","v":0},{"$f":"'Resultats PMV'!F82/'Resultats PMV'!$P82","v":{"$error":"#DIV/0!"}},{"$f":"'Resultats PMV'!G82/'Resultats PMV'!$P82","v":{"$error":"#DIV/0!"}},{"$f":"'Resultats PMV'!H82/'Resultats PMV'!$P82","v":{"$error":"#DIV/0!"}},{"$f":"'Resultats PMV'!I82/'Resultats PMV'!$P82","v":{"$error":"#DIV/0!"}},{"$f":"'Resultats PMV'!J82/'Resultats PMV'!$P82","v":{"$error":"#DIV/0!"}},{"$f":"'Resultats PMV'!K82/'Resultats PMV'!$P82","v":{"$error":"#DIV/0!"}},{"$f":"'Resultats PMV'!L82/'Resultats PMV'!$P82","v":{"$error":"#DIV/0!"}},{"$f":"'Resultats PMV'!M82/'Resultats PMV'!$P82","v":{"$error":"#DIV/0!"}},{"$f":"'Resultats PMV'!N82/'Resultats PMV'!$P82","v":{"$error":"#DIV/0!"}},{"$f":"'Resultats PMV'!O82/'Resultats PMV'!$P82","v":{"$error":"#DIV/0!"}},{"$error":"#DIV/0!"},null,{"$f":"'Resultats PMV'!R82","v":0},{"$f":"'Resultats PMV'!S82/'Resultats PMV'!$P82","v":{"$error":"#DIV/0!"}},{"$f":"'Resultats PMV'!T82/'Resultats PMV'!$P82","v":{"$error":"#DIV/0!"}},{"$f":"'Resultats PMV'!U82/'Resultats PMV'!$P82","v":{"$error":"#DIV/0!"}},{"$f":"'Resultats PMV'!V82/'Resultats PMV'!$P82","v":{"$error":"#DIV/0!"}},{"$f":"'Resultats PMV'!W82/'Resultats PMV'!$P82","v":{"$error":"#DIV/0!"}},{"$f":"'Resultats PMV'!X82/'Resultats PMV'!$P82","v":{"$error":"#DIV/0!"}},{"$f":"'Resultats PMV'!Y82/'Resultats PMV'!$P82","v":{"$error":"#DIV/0!"}},{"$f":"'Resultats PMV'!Z82/'Resultats PMV'!$P82","v":{"$error":"#DIV/0!"}},{"$f":"'Resultats PMV'!AA82/'Resultats PMV'!$P82","v":{"$error":"#DIV/0!"}},{"$f":"'Resultats PMV'!AB82/'Resultats PMV'!$P82","v":{"$error":"#DIV/0!"}},{"$error":"#DIV/0!"},null,{"$f":"'Resultats PMV'!AI82","v":0},{"$f":"'Resultats PMV'!AN82/'Resultats PMV'!$AX82","v":{"$error":"#DIV/0!"}},{"$f":"'Resultats PMV'!AO82/'Resultats PMV'!$AX82","v":{"$error":"#DIV/0!"}},{"$f":"'Resultats PMV'!AP82/'Resultats PMV'!$AX82","v":{"$error":"#DIV/0!"}},{"$f":"'Resultats PMV'!AQ82/'Resultats PMV'!$AX82","v":{"$error":"#DIV/0!"}},{"$f":"'Resultats PMV'!AR82/'Resultats PMV'!$AX82","v":{"$error":"#DIV/0!"}},{"$f":"'Resultats PMV'!AS82/'Resultats PMV'!$AX82","v":{"$error":"#DIV/0!"}},{"$f":"'Resultats PMV'!AT82/'Resultats PMV'!$AX82","v":{"$error":"#DIV/0!"}},{"$f":"'Resultats PMV'!AU82/'Resultats PMV'!$AX82","v":{"$error":"#DIV/0!"}},{"$f":"'Resultats PMV'!AV82/'Resultats PMV'!$AX82","v":{"$error":"#DIV/0!"}},{"$f":"'Resultats PMV'!AW82/'Resultats PMV'!$AX82","v":{"$error":"#DIV/0!"}},{"$error":"#DIV/0!"}]
[null,{"$f":"'Resultats PMV'!A83","v":0},{"$f":"'Resultats PMV'!F83/'Resultats PMV'!$P83","v":{"$error":"#DIV/0!"}},{"$f":"'Resultats PMV'!G83/'Resultats PMV'!$P83","v":{"$error":"#DIV/0!"}},{"$f":"'Resultats PMV'!H83/'Resultats PMV'!$P83","v":{"$error":"#DIV/0!"}},{"$f":"'Resultats PMV'!I83/'Resultats PMV'!$P83","v":{"$error":"#DIV/0!"}},{"$f":"'Resultats PMV'!J83/'Resultats PMV'!$P83","v":{"$error":"#DIV/0!"}},{"$f":"'Resultats PMV'!K83/'Resultats PMV'!$P83","v":{"$error":"#DIV/0!"}},{"$f":"'Resultats PMV'!L83/'Resultats PMV'!$P83","v":{"$error":"#DIV/0!"}},{"$f":"'Resultats PMV'!M83/'Resultats PMV'!$P83","v":{"$error":"#DIV/0!"}},{"$f":"'Resultats PMV'!N83/'Resultats PMV'!$P83","v":{"$error":"#DIV/0!"}},{"$f":"'Resultats PMV'!O83/'Resultats PMV'!$P83","v":{"$error":"#DIV/0!"}},{"$error":"#DIV/0!"},null,{"$f":"'Resultats PMV'!R83","v":0},{"$f":"'Resultats PMV'!S83/'Resultats PMV'!$P83","v":{"$error":"#DIV/0!"}},{"$f":"'Resultats PMV'!T83/'Resultats PMV'!$P83","v":{"$error":"#DIV/0!"}},{"$f":"'Resultats PMV'!U83/'Resultats PMV'!$P83","v":{"$error":"#DIV/0!"}},{"$f":"'Resultats PMV'!V83/'Resultats PMV'!$P83","v":{"$error":"#DIV/0!"}},{"$f":"'Resultats PMV'!W83/'Resultats PMV'!$P83","v":{"$error":"#DIV/0!"}},{"$f":"'Resultats PMV'!X83/'Resultats PMV'!$P83","v":{"$error":"#DIV/0!"}},{"$f":"'Resultats PMV'!Y83/'Resultats PMV'!$P83","v":{"$error":"#DIV/0!"}},{"$f":"'Resultats PMV'!Z83/'Resultats PMV'!$P83","v":{"$error":"#DIV/0!"}},{"$f":"'Resultats PMV'!AA83/'Resultats PMV'!$P83","v":{"$error":"#DIV/0!"}},{"$f":"'Resultats PMV'!AB83/'Resultats PMV'!$P83","v":{"$error":"#DIV/0!"}},{"$error":"#DIV/0!"},null,{"$f":"'Resultats PMV'!AI83","v":0},{"$f":"'Resultats PMV'!AN83/'Resultats PMV'!$AX83","v":{"$error":"#DIV/0!"}},{"$f":"'Resultats PMV'!AO83/'Resultats PMV'!$AX83","v":{"$error":"#DIV/0!"}},{"$f":"'Resultats PMV'!AP83/'Resultats PMV'!$AX83","v":{"$error":"#DIV/0!"}},{"$f":"'Resultats PMV'!AQ83/'Resultats PMV'!$AX83","v":{"$error":"#DIV/0!"}},{"$f":"'Resultats PMV'!AR83/'Resultats PMV'!$AX83","v":{"$error":"#DIV/0!"}},{"$f":"'Resultats PMV'!AS83/'Resultats PMV'!$AX83","v":{"$error":"#DIV/0!"}},{"$f":"'Resultats PMV'!AT83/'Resultats PMV'!$AX83","v":{"$error":"#DIV/0!"}},{"$f":"'Resultats PMV'!AU83/'Resultats PMV'!$AX83","v":{"$error":"#DIV/0!"}},{"$f":"'Resultats PMV'!AV83/'Resultats PMV'!$AX83","v":{"$error":"#DIV/0!"}},{"$f":"'Resultats PMV'!AW83/'Resultats PMV'!$AX83","v":{"$error":"#DIV/0!"}},{"$error":"#DIV/0!"}]
[null,{"$f":"'Resultats PMV'!A84","v":0},{"$f":"'Resultats PMV'!F84/'Resultats PMV'!$P84","v":{"$error":"#DIV/0!"}},{"$f":"'Resultats PMV'!G84/'Resultats PMV'!$P84","v":{"$error":"#DIV/0!"}},{"$f":"'Resultats PMV'!H84/'Resultats PMV'!$P84","v":{"$error":"#DIV/0!"}},{"$f":"'Resultats PMV'!I84/'Resultats PMV'!$P84","v":{"$error":"#DIV/0!"}},{"$f":"'Resultats PMV'!J84/'Resultats PMV'!$P84","v":{"$error":"#DIV/0!"}},{"$f":"'Resultats PMV'!K84/'Resultats PMV'!$P84","v":{"$error":"#DIV/0!"}},{"$f":"'Resultats PMV'!L84/'Resultats PMV'!$P84","v":{"$error":"#DIV/0!"}},{"$f":"'Resultats PMV'!M84/'Resultats PMV'!$P84","v":{"$error":"#DIV/0!"}},{"$f":"'Resultats PMV'!N84/'Resultats PMV'!$P84","v":{"$error":"#DIV/0!"}},{"$f":"'Resultats PMV'!O84/'Resultats PMV'!$P84","v":{"$error":"#DIV/0!"}},{"$error":"#DIV/0!"},null,{"$f":"'Resultats PMV'!R84","v":0},{"$f":"'Resultats PMV'!S84/'Resultats PMV'!$P84","v":{"$error":"#DIV/0!"}},{"$f":"'Resultats PMV'!T84/'Resultats PMV'!$P84","v":{"$error":"#DIV/0!"}},{"$f":"'Resultats PMV'!U84/'Resultats PMV'!$P84","v":{"$error":"#DIV/0!"}},{"$f":"'Resultats PMV'!V84/'Resultats PMV'!$P84","v":{"$error":"#DIV/0!"}},{"$f":"'Resultats PMV'!W84/'Resultats PMV'!$P84","v":{"$error":"#DIV/0!"}},{"$f":"'Resultats PMV'!X84/'Resultats PMV'!$P84","v":{"$error":"#DIV/0!"}},{"$f":"'Resultats PMV'!Y84/'Resultats PMV'!$P84","v":{"$error":"#DIV/0!"}},{"$f":"'Resultats PMV'!Z84/'Resultats PMV'!$P84","v":{"$error":"#DIV/0!"}},{"$f":"'Resultats PMV'!AA84/'Resultats PMV'!$P84","v":{"$error":"#DIV/0!"}},{"$f":"'Resultats PMV'!AB84/'Resultats PMV'!$P84","v":{"$error":"#DIV/0!"}},{"$error":"#DIV/0!"},null,{"$f":"'Resultats PMV'!AI84","v":0},{"$f":"'Resultats PMV'!AN84/'Resultats PMV'!$AX84","v":{"$error":"#DIV/0!"}},{"$f":"'Resultats PMV'!AO84/'Resultats PMV'!$AX84","v":{"$error":"#DIV/0!"}},{"$f":"'Resultats PMV'!AP84/'Resultats PMV'!$AX84","v":{"$error":"#DIV/0!"}},{"$f":"'Resultats PMV'!AQ84/'Resultats PMV'!$AX84","v":{"$error":"#DIV/0!"}},{"$f":"'Resultats PMV'!AR84/'Resultats PMV'!$AX84","v":{"$error":"#DIV/0!"}},{"$f":"'Resultats PMV'!AS84/'Resultats PMV'!$AX84","v":{"$error":"#DIV/0!"}},{"$f":"'Resultats PMV'!AT84/'Resultats PMV'!$AX84","v":{"$error":"#DIV/0!"}},{"$f":"'Resultats PMV'!AU84/'Resultats PMV'!$AX84","v":{"$error":"#DIV/0!"}},{"$f":"'Resultats PMV'!AV84/'Resultats PMV'!$AX84","v":{"$error":"#DIV/0!"}},{"$f":"'Resultats PMV'!AW84/'Resultats PMV'!$AX84","v":{"$error":"#DIV/0!"}},{"$error":"#DIV/0!"}]
[null,{"$f":"'Resultats PMV'!A85","v":0},{"$f":"'Resultats PMV'!F85/'Resultats PMV'!$P85","v":{"$error":"#DIV/0!"}},{"$f":"'Resultats PMV'!G85/'Resultats PMV'!$P85","v":{"$error":"#DIV/0!"}},{"$f":"'Resultats PMV'!H85/'Resultats PMV'!$P85","v":{"$error":"#DIV/0!"}},{"$f":"'Resultats PMV'!I85/'Resultats PMV'!$P85","v":{"$error":"#DIV/0!"}},{"$f":"'Resultats PMV'!J85/'Resultats PMV'!$P85","v":{"$error":"#DIV/0!"}},{"$f":"'Resultats PMV'!K85/'Resultats PMV'!$P85","v":{"$error":"#DIV/0!"}},{"$f":"'Resultats PMV'!L85/'Resultats PMV'!$P85","v":{"$error":"#DIV/0!"}},{"$f":"'Resultats PMV'!M85/'Resultats PMV'!$P85","v":{"$error":"#DIV/0!"}},{"$f":"'Resultats PMV'!N85/'Resultats PMV'!$P85","v":{"$error":"#DIV/0!"}},{"$f":"'Resultats PMV'!O85/'Resultats PMV'!$P85","v":{"$error":"#DIV/0!"}},{"$error":"#DIV/0!"},null,{"$f":"'Resultats PMV'!R85","v":0},{"$f":"'Resultats PMV'!S85/'Resultats PMV'!$P85","v":{"$error":"#DIV/0!"}},{"$f":"'Resultats PMV'!T85/'Resultats PMV'!$P85","v":{"$error":"#DIV/0!"}},{"$f":"'Resultats PMV'!U85/'Resultats PMV'!$P85","v":{"$error":"#DIV/0!"}},{"$f":"'Resultats PMV'!V85/'Resultats PMV'!$P85","v":{"$error":"#DIV/0!"}},{"$f":"'Resultats PMV'!W85/'Resultats PMV'!$P85","v":{"$error":"#DIV/0!"}},{"$f":"'Resultats PMV'!X85/'Resultats PMV'!$P85","v":{"$error":"#DIV/0!"}},{"$f":"'Resultats PMV'!Y85/'Resultats PMV'!$P85","v":{"$error":"#DIV/0!"}},{"$f":"'Resultats PMV'!Z85/'Resultats PMV'!$P85","v":{"$error":"#DIV/0!"}},{"$f":"'Resultats PMV'!AA85/'Resultats PMV'!$P85","v":{"$error":"#DIV/0!"}},{"$f":"'Resultats PMV'!AB85/'Resultats PMV'!$P85","v":{"$error":"#DIV/0!"}},{"$error":"#DIV/0!"},null,{"$f":"'Resultats PMV'!AI85","v":0},{"$f":"'Resultats PMV'!AN85/'Resultats PMV'!$AX85","v":{"$error":"#DIV/0!"}},{"$f":"'Resultats PMV'!AO85/'Resultats PMV'!$AX85","v":{"$error":"#DIV/0!"}},{"$f":"'Resultats PMV'!AP85/'Resultats PMV'!$AX85","v":{"$error":"#DIV/0!"}},{"$f":"'Resultats PMV'!AQ85/'Resultats PMV'!$AX85","v":{"$error":"#DIV/0!"}},{"$f":"'Resultats PMV'!AR85/'Resultats PMV'!$AX85","v":{"$error":"#DIV/0!"}},{"$f":"'Resultats PMV'!AS85/'Resultats PMV'!$AX85","v":{"$error":"#DIV/0!"}},{"$f":"'Resultats PMV'!AT85/'Resultats PMV'!$AX85","v":{"$error":"#DIV/0!"}},{"$f":"'Resultats PMV'!AU85/'Resultats PMV'!$AX85","v":{"$error":"#DIV/0!"}},{"$f":"'Resultats PMV'!AV85/'Resultats PMV'!$AX85","v":{"$error":"#DIV/0!"}},{"$f":"'Resultats PMV'!AW85/'Resultats PMV'!$AX85","v":{"$error":"#DIV/0!"}},{"$error":"#DIV/0!"}]
[null,{"$f":"'Resultats PMV'!A86","v":0},{"$f":"'Resultats PMV'!F86/'Resultats PMV'!$P86","v":{"$error":"#DIV/0!"}},{"$f":"'Resultats PMV'!G86/'Resultats PMV'!$P86","v":{"$error":"#DIV/0!"}},{"$f":"'Resultats PMV'!H86/'Resultats PMV'!$P86","v":{"$error":"#DIV/0!"}},{"$f":"'Resultats PMV'!I86/'Resultats PMV'!$P86","v":{"$error":"#DIV/0!"}},{"$f":"'Resultats PMV'!J86/'Resultats PMV'!$P86","v":{"$error":"#DIV/0!"}},{"$f":"'Resultats PMV'!K86/'Resultats PMV'!$P86","v":{"$error":"#DIV/0!"}},{"$f":"'Resultats PMV'!L86/'Resultats PMV'!$P86","v":{"$error":"#DIV/0!"}},{"$f":"'Resultats PMV'!M86/'Resultats PMV'!$P86","v":{"$error":"#DIV/0!"}},{"$f":"'Resultats PMV'!N86/'Resultats PMV'!$P86","v":{"$error":"#DIV/0!"}},{"$f":"'Resultats PMV'!O86/'Resultats PMV'!$P86","v":{"$error":"#DIV/0!"}},{"$error":"#DIV/0!"},null,{"$f":"'Resultats PMV'!R86","v":0},{"$f":"'Resultats PMV'!S86/'Resultats PMV'!$P86","v":{"$error":"#DIV/0!"}},{"$f":"'Resultats PMV'!T86/'Resultats PMV'!$P86","v":{"$error":"#DIV/0!"}},{"$f":"'Resultats PMV'!U86/'Resultats PMV'!$P86","v":{"$error":"#DIV/0!"}},{"$f":"'Resultats PMV'!V86/'Resultats PMV'!$P86","v":{"$error":"#DIV/0!"}},{"$f":"'Resultats PMV'!W86/'Resultats PMV'!$P86","v":{"$error":"#DIV/0!"}},{"$f":"'Resultats PMV'!X86/'Resultats PMV'!$P86","v":{"$error":"#DIV/0!"}},{"$f":"'Resultats PMV'!Y86/'Resultats PMV'!$P86","v":{"$error":"#DIV/0!"}},{"$f":"'Resultats PMV'!Z86/'Resultats PMV'!$P86","v":{"$error":"#DIV/0!"}},{"$f":"'Resultats PMV'!AA86/'Resultats PMV'!$P86","v":{"$error":"#DIV/0!"}},{"$f":"'Resultats PMV'!AB86/'Resultats PMV'!$P86","v":{"$error":"#DIV/0!"}},{"$error":"#DIV/0!"},null,{"$f":"'Resultats PMV'!AI86","v":0},{"$f":"'Resultats PMV'!AN86/'Resultats PMV'!$AX86","v":{"$error":"#DIV/0!"}},{"$f":"'Resultats PMV'!AO86/'Resultats PMV'!$AX86","v":{"$error":"#DIV/0!"}},{"$f":"'Resultats PMV'!AP86/'Resultats PMV'!$AX86","v":{"$error":"#DIV/0!"}},{"$f":"'Resultats PMV'!AQ86/'Resultats PMV'!$AX86","v":{"$error":"#DIV/0!"}},{"$f":"'Resultats PMV'!AR86/'Resultats PMV'!$AX86","v":{"$error":"#DIV/0!"}},{"$f":"'Resultats PMV'!AS86/'Resultats PMV'!$AX86","v":{"$error":"#DIV/0!"}},{"$f":"'Resultats PMV'!AT86/'Resultats PMV'!$AX86","v":{"$error":"#DIV/0!"}},{"$f":"'Resultats PMV'!AU86/'Resultats PMV'!$AX86","v":{"$error":"#DIV/0!"}},{"$f":"'Resultats PMV'!AV86/'Resultats PMV'!$AX86","v":{"$error":"#DIV/0!"}},{"$f":"'Resultats PMV'!AW86/'Resultats PMV'!$AX86","v":{"$error":"#DIV/0!"}},{"$error":"#DIV/0!"}]
[null,{"$f":"'Resultats PMV'!A87","v":0},{"$f":"'Resultats PMV'!F87/'Resultats PMV'!$P87","v":{"$error":"#DIV/0!"}},{"$f":"'Resultats PMV'!G87/'Resultats PMV'!$P87","v":{"$error":"#DIV/0!"}},{"$f":"'Resultats PMV'!H87/'Resultats PMV'!$P87","v":{"$error":"#DIV/0!"}},{"$f":"'Resultats PMV'!I87/'Resultats PMV'!$P87","v":{"$error":"#DIV/0!"}},{"$f":"'Resultats PMV'!J87/'Resultats PMV'!$P87","v":{"$error":"#DIV/0!"}},{"$f":"'Resultats PMV'!K87/'Resultats PMV'!$P87","v":{"$error":"#DIV/0!"}},{"$f":"'Resultats PMV'!L87/'Resultats PMV'!$P87","v":{"$error":"#DIV/0!"}},{"$f":"'Resultats PMV'!M87/'Resultats PMV'!$P87","v":{"$error":"#DIV/0!"}},{"$f":"'Resultats PMV'!N87/'Resultats PMV'!$P87","v":{"$error":"#DIV/0!"}},{"$f":"'Resultats PMV'!O87/'Resultats PMV'!$P87","v":{"$error":"#DIV/0!"}},{"$error":"#DIV/0!"},null,{"$f":"'Resultats PMV'!R87","v":0},{"$f":"'Resultats PMV'!S87/'Resultats PMV'!$P87","v":{"$error":"#DIV/0!"}},{"$f":"'Resultats PMV'!T87/'Resultats PMV'!$P87","v":{"$error":"#DIV/0!"}},{"$f":"'Resultats PMV'!U87/'Resultats PMV'!$P87","v":{"$error":"#DIV/0!"}},{"$f":"'Resultats PMV'!V87/'Resultats PMV'!$P87","v":{"$error":"#DIV/0!"}},{"$f":"'Resultats PMV'!W87/'Resultats PMV'!$P87","v":{"$error":"#DIV/0!"}},{"$f":"'Resultats PMV'!X87/'Resultats PMV'!$P87","v":{"$error":"#DIV/0!"}},{"$f":"'Resultats PMV'!Y87/'Resultats PMV'!$P87","v":{"$error":"#DIV/0!"}},{"$f":"'Resultats PMV'!Z87/'Resultats PMV'!$P87","v":{"$error":"#DIV/0!"}},{"$f":"'Resultats PMV'!AA87/'Resultats PMV'!$P87","v":{"$error":"#DIV/0!"}},{"$f":"'Resultats PMV'!AB87/'Resultats PMV'!$P87","v":{"$error":"#DIV/0!"}},{"$error":"#DIV/0!"},null,{"$f":"'Resultats PMV'!AI87","v":0},{"$f":"'Resultats PMV'!AN87/'Resultats PMV'!$AX87","v":{"$error":"#DIV/0!"}},{"$f":"'Resultats PMV'!AO87/'Resultats PMV'!$AX87","v":{"$error":"#DIV/0!"}},{"$f":"'Resultats PMV'!AP87/'Resultats PMV'!$AX87","v":{"$error":"#DIV/0!"}},{"$f":"'Resultats PMV'!AQ87/'Resultats PMV'!$AX87","v":{"$error":"#DIV/0!"}},{"$f":"'Resultats PMV'!AR87/'Resultats PMV'!$AX87","v":{"$error":"#DIV/0!"}},{"$f":"'Resultats PMV'!AS87/'Resultats PMV'!$AX87","v":{"$error":"#DIV/0!"}},{"$f":"'Resultats PMV'!AT87/'Resultats PMV'!$AX87","v":{"$error":"#DIV/0!"}},{"$f":"'Resultats PMV'!AU87/'Resultats PMV'!$AX87","v":{"$error":"#DIV/0!"}},{"$f":"'Resultats PMV'!AV87/'Resultats PMV'!$AX87","v":{"$error":"#DIV/0!"}},{"$f":"'Resultats PMV'!AW87/'Resultats PMV'!$AX87","v":{"$error":"#DIV/0!"}},{"$error":"#DIV/0!"}]
[null,{"$f":"'Resultats PMV'!A88","v":0},{"$f":"'Resultats PMV'!F88/'Resultats PMV'!$P88","v":{"$error":"#DIV/0!"}},{"$f":"'Resultats PMV'!G88/'Resultats PMV'!$P88","v":{"$error":"#DIV/0!"}},{"$f":"'Resultats PMV'!H88/'Resultats PMV'!$P88","v":{"$error":"#DIV/0!"}},{"$f":"'Resultats PMV'!I88/'Resultats PMV'!$P88","v":{"$error":"#DIV/0!"}},{"$f":"'Resultats PMV'!J88/'Resultats PMV'!$P88","v":{"$error":"#DIV/0!"}},{"$f":"'Resultats PMV'!K88/'Resultats PMV'!$P88","v":{"$error":"#DIV/0!"}},{"$f":"'Resultats PMV'!L88/'Resultats PMV'!$P88","v":{"$error":"#DIV/0!"}},{"$f":"'Resultats PMV'!M88/'Resultats PMV'!$P88","v":{"$error":"#DIV/0!"}},{"$f":"'Resultats PMV'!N88/'Resultats PMV'!$P88","v":{"$error":"#DIV/0!"}},{"$f":"'Resultats PMV'!O88/'Resultats PMV'!$P88","v":{"$error":"#DIV/0!"}},{"$error":"#DIV/0!"},null,{"$f":"'Resultats PMV'!R88","v":0},{"$f":"'Resultats PMV'!S88/'Resultats PMV'!$P88","v":{"$error":"#DIV/0!"}},{"$f":"'Resultats PMV'!T88/'Resultats PMV'!$P88","v":{"$error":"#DIV/0!"}},{"$f":"'Resultats PMV'!U88/'Resultats PMV'!$P88","v":{"$error":"#DIV/0!"}},{"$f":"'Resultats PMV'!V88/'Resultats PMV'!$P88","v":{"$error":"#DIV/0!"}},{"$f":"'Resultats PMV'!W88/'Resultats PMV'!$P88","v":{"$error":"#DIV/0!"}},{"$f":"'Resultats PMV'!X88/'Resultats PMV'!$P88","v":{"$error":"#DIV/0!"}},{"$f":"'Resultats PMV'!Y88/'Resultats PMV'!$P88","v":{"$error":"#DIV/0!"}},{"$f":"'Resultats PMV'!Z88/'Resultats PMV'!$P88","v":{"$error":"#DIV/0!"}},{"$f":"'Resultats PMV'!AA88/'Resultats PMV'!$P88","v":{"$error":"#DIV/0!"}},{"$f":"'Resultats PMV'!AB88/'Resultats PMV'!$P88","v":{"$error":"#DIV/0!"}},{"$error":"#DIV/0!"},null,{"$f":"'Resultats PMV'!AI88","v":0},{"$f":"'Resultats PMV'!AN88/'Resultats PMV'!$AX88","v":{"$error":"#DIV/0!"}},{"$f":"'Resultats PMV'!AO88/'Resultats PMV'!$AX88","v":{"$error":"#DIV/0!"}},{"$f":"'Resultats PMV'!AP88/'Resultats PMV'!$AX88","v":{"$error":"#DIV/0!"}},{"$f":"'Resultats PMV'!AQ88/'Resultats PMV'!$AX88","v":{"$error":"#DIV/0!"}},{"$f":"'Resultats PMV'!AR88/'Resultats PMV'!$AX88","v":{"$error":"#DIV/0!"}},{"$f":"'Resultats PMV'!AS88/'Resultats PMV'!$AX88","v":{"$error":"#DIV/0!"}},{"$f":"'Resultats PMV'!AT88/'Resultats PMV'!$AX88","v":{"$error":"#DIV/0!"}},{"$f":"'Resultats PMV'!AU88/'Resultats PMV'!$AX88","v":{"$error":"#DIV/0!"}},{"$f":"'Resultats PMV'!AV88/'Resultats PMV'!$AX88","v":{"$error":"#DIV/0!"}},{"$f":"'Resultats PMV'!AW88/'Resultats PMV'!$AX88","v":{"$error":"#DIV/0!"}},{"$error":"#DIV/0!"}]
[null,{"$f":"'Resultats PMV'!A89","v":0},{"$f":"'Resultats PMV'!F89/'Resultats PMV'!$P89","v":{"$error":"#DIV/0!"}},{"$f":"'Resultats PMV'!G89/'Resultats PMV'!$P89","v":{"$error":"#DIV/0!"}},{"$f":"'Resultats PMV'!H89/'Resultats PMV'!$P89","v":{"$error":"#DIV/0!"}},{"$f":"'Resultats PMV'!I89/'Resultats PMV'!$P89","v":{"$error":"#DIV/0!"}},{"$f":"'Resultats PMV'!J89/'Resultats PMV'!$P89","v":{"$error":"#DIV/0!"}},{"$f":"'Resultats PMV'!K89/'Resultats PMV'!$P89","v":{"$error":"#DIV/0!"}},{"$f":"'Resultats PMV'!L89/'Resultats PMV'!$P89","v":{"$error":"#DIV/0!"}},{"$f":"'Resultats PMV'!M89/'Resultats PMV'!$P89","v":{"$error":"#DIV/0!"}},{"$f":"'Resultats PMV'!N89/'Resultats PMV'!$P89","v":{"$error":"#DIV/0!"}},{"$f":"'Resultats PMV'!O89/'Resultats PMV'!$P89","v":{"$error":"#DIV/0!"}},{"$error":"#DIV/0!"},null,{"$f":"'Resultats PMV'!R89","v":0},{"$f":"'Resultats PMV'!S89/'Resultats PMV'!$P89","v":{"$error":"#DIV/0!"}},{"$f":"'Resultats PMV'!T89/'Resultats PMV'!$P89","v":{"$error":"#DIV/0!"}},{"$f":"'Resultats PMV'!U89/'Resultats PMV'!$P89","v":{"$error":"#DIV/0!"}},{"$f":"'Resultats PMV'!V89/'Resultats PMV'!$P89","v":{"$error":"#DIV/0!"}},{"$f":"'Resultats PMV'!W89/'Resultats PMV'!$P89","v":{"$error":"#DIV/0!"}},{"$f":"'Resultats PMV'!X89/'Resultats PMV'!$P89","v":{"$error":"#DIV/0!"}},{"$f":"'Resultats PMV'!Y89/'Resultats PMV'!$P89","v":{"$error":"#DIV/0!"}},{"$f":"'Resultats PMV'!Z89/'Resultats PMV'!$P89","v":{"$error":"#DIV/0!"}},{"$f":"'Resultats PMV'!AA89/'Resultats PMV'!$P89","v":{"$error":"#DIV/0!"}},{"$f":"'Resultats PMV'!AB89/'Resultats PMV'!$P89","v":{"$error":"#DIV/0!"}},{"$error":"#DIV/0!"},null,{"$f":"'Resultats PMV'!AI89","v":0},{"$f":"'Resultats PMV'!AN89/'Resultats PMV'!$AX89","v":{"$error":"#DIV/0!"}},{"$f":"'Resultats PMV'!AO89/'Resultats PMV'!$AX89","v":{"$error":"#DIV/0!"}},{"$f":"'Resultats PMV'!AP89/'Resultats PMV'!$AX89","v":{"$error":"#DIV/0!"}},{"$f":"'Resultats PMV'!AQ89/'Resultats PMV'!$AX89","v":{"$error":"#DIV/0!"}},{"$f":"'Resultats PMV'!AR89/'Resultats PMV'!$AX89","v":{"$error":"#DIV/0!"}},{"$f":"'Resultats PMV'!AS89/'Resultats PMV'!$AX89","v":{"$error":"#DIV/0!"}},{"$f":"'Resultats PMV'!AT89/'Resultats PMV'!$AX89","v":{"$error":"#DIV/0!"}},{"$f":"'Resultats PMV'!AU89/'Resultats PMV'!$AX89","v":{"$error":"#DIV/0!"}},{"$f":"'Resultats PMV'!AV89/'Resultats PMV'!$AX89","v":{"$error":"#DIV/0!"}},{"$f":"'Resultats PMV'!AW89/'Resultats PMV'!$AX89","v":{"$error":"#DIV/0!"}},{"$error":"#DIV/0!"}]
[null,{"$f":"'Resultats PMV'!A90","v":0},{"$f":"'Resultats PMV'!F90/'Resultats PMV'!$P90","v":{"$error":"#DIV/0!"}},{"$f":"'Resultats PMV'!G90/'Resultats PMV'!$P90","v":{"$error":"#DIV/0!"}},{"$f":"'Resultats PMV'!H90/'Resultats PMV'!$P90","v":{"$error":"#DIV/0!"}},{"$f":"'Resultats PMV'!I90/'Resultats PMV'!$P90","v":{"$error":"#DIV/0!"}},{"$f":"'Resultats PMV'!J90/'Resultats PMV'!$P90","v":{"$error":"#DIV/0!"}},{"$f":"'Resultats PMV'!K90/'Resultats PMV'!$P90","v":{"$error":"#DIV/0!"}},{"$f":"'Resultats PMV'!L90/'Resultats PMV'!$P90","v":{"$error":"#DIV/0!"}},{"$f":"'Resultats PMV'!M90/'Resultats PMV'!$P90","v":{"$error":"#DIV/0!"}},{"$f":"'Resultats PMV'!N90/'Resultats PMV'!$P90","v":{"$error":"#DIV/0!"}},{"$f":"'Resultats PMV'!O90/'Resultats PMV'!$P90","v":{"$error":"#DIV/0!"}},{"$error":"#DIV/0!"},null,{"$f":"'Resultats PMV'!R90","v":0},{"$f":"'Resultats PMV'!S90/'Resultats PMV'!$P90","v":{"$error":"#DIV/0!"}},{"$f":"'Resultats PMV'!T90/'Resultats PMV'!$P90","v":{"$error":"#DIV/0!"}},{"$f":"'Resultats PMV'!U90/'Resultats PMV'!$P90","v":{"$error":"#DIV/0!"}},{"$f":"'Resultats PMV'!V90/'Resultats PMV'!$P90","v":{"$error":"#DIV/0!"}},{"$f":"'Resultats PMV'!W90/'Resultats PMV'!$P90","v":{"$error":"#DIV/0!"}},{"$f":"'Resultats PMV'!X90/'Resultats PMV'!$P90","v":{"$error":"#DIV/0!"}},{"$f":"'Resultats PMV'!Y90/'Resultats PMV'!$P90","v":{"$error":"#DIV/0!"}},{"$f":"'Resultats PMV'!Z90/'Resultats PMV'!$P90","v":{"$error":"#DIV/0!"}},{"$f":"'Resultats PMV'!AA90/'Resultats PMV'!$P90","v":{"$error":"#DIV/0!"}},{"$f":"'Resultats PMV'!AB90/'Resultats PMV'!$P90","v":{"$error":"#DIV/0!"}},{"$error":"#DIV/0!"},null,{"$f":"'Resultats PMV'!AI90","v":0},{"$f":"'Resultats PMV'!AN90/'Resultats PMV'!$AX90","v":{"$error":"#DIV/0!"}},{"$f":"'Resultats PMV'!AO90/'Resultats PMV'!$AX90","v":{"$error":"#DIV/0!"}},{"$f":"'Resultats PMV'!AP90/'Resultats PMV'!$AX90","v":{"$error":"#DIV/0!"}},{"$f":"'Resultats PMV'!AQ90/'Resultats PMV'!$AX90","v":{"$error":"#DIV/0!"}},{"$f":"'Resultats PMV'!AR90/'Resultats PMV'!$AX90","v":{"$error":"#DIV/0!"}},{"$f":"'Resultats PMV'!AS90/'Resultats PMV'!$AX90","v":{"$error":"#DIV/0!"}},{"$f":"'Resultats PMV'!AT90/'Resultats PMV'!$AX90","v":{"$error":"#DIV/0!"}},{"$f":"'Resultats PMV'!AU90/'Resultats PMV'!$AX90","v":{"$error":"#DIV/0!"}},{"$f":"'Resultats PMV'!AV90/'Resultats PMV'!$AX90","v":{"$error":"#DIV/0!"}},{"$f":"'Resultats PMV'!AW90/'Resultats PMV'!$AX90","v":{"$error":"#DIV/0!"}},{"$error":"#DIV/0!"}]
[null,{"$f":"'Resultats PMV'!A91","v":0},{"$f":"'Resultats PMV'!F91/'Resultats PMV'!$P91","v":{"$error":"#DIV/0!"}},{"$f":"'Resultats PMV'!G91/'Resultats PMV'!$P91","v":{"$error":"#DIV/0!"}},{"$f":"'Resultats PMV'!H91/'Resultats PMV'!$P91","v":{"$error":"#DIV/0!"}},{"$f":"'Resultats PMV'!I91/'Resultats PMV'!$P91","v":{"$error":"#DIV/0!"}},{"$f":"'Resultats PMV'!J91/'Resultats PMV'!$P91","v":{"$error":"#DIV/0!"}},{"$f":"'Resultats PMV'!K91/'Resultats PMV'!$P91","v":{"$error":"#DIV/0!"}},{"$f":"'Resultats PMV'!L91/'Resultats PMV'!$P91","v":{"$error":"#DIV/0!"}},{"$f":"'Resultats PMV'!M91/'Resultats PMV'!$P91","v":{"$error":"#DIV/0!"}},{"$f":"'Resultats PMV'!N91/'Resultats PMV'!$P91","v":{"$error":"#DIV/0!"}},{"$f":"'Resultats PMV'!O91/'Resultats PMV'!$P91","v":{"$error":"#DIV/0!"}},{"$error":"#DIV/0!"},null,{"$f":"'Resultats PMV'!R91","v":0},{"$f":"'Resultats PMV'!S91/'Resultats PMV'!$P91","v":{"$error":"#DIV/0!"}},{"$f":"'Resultats PMV'!T91/'Resultats PMV'!$P91","v":{"$error":"#DIV/0!"}},{"$f":"'Resultats PMV'!U91/'Resultats PMV'!$P91","v":{"$error":"#DIV/0!"}},{"$f":"'Resultats PMV'!V91/'Resultats PMV'!$P91","v":{"$error":"#DIV/0!"}},{"$f":"'Resultats PMV'!W91/'Resultats PMV'!$P91","v":{"$error":"#DIV/0!"}},{"$f":"'Resultats PMV'!X91/'Resultats PMV'!$P91","v":{"$error":"#DIV/0!"}},{"$f":"'Resultats PMV'!Y91/'Resultats PMV'!$P91","v":{"$error":"#DIV/0!"}},{"$f":"'Resultats PMV'!Z91/'Resultats PMV'!$P91","v":{"$error":"#DIV/0!"}},{"$f":"'Resultats PMV'!AA91/'Resultats PMV'!$P91","v":{"$error":"#DIV/0!"}},{"$f":"'Resultats PMV'!AB91/'Resultats PMV'!$P91","v":{"$error":"#DIV/0!"}},{"$error":"#DIV/0!"},null,{"$f":"'Resultats PMV'!AI91","v":0},{"$f":"'Resultats PMV'!AN91/'Resultats PMV'!$AX91","v":{"$error":"#DIV/0!"}},{"$f":"'Resultats PMV'!AO91/'Resultats PMV'!$AX91","v":{"$error":"#DIV/0!"}},{"$f":"'Resultats PMV'!AP91/'Resultats PMV'!$AX91","v":{"$error":"#DIV/0!"}},{"$f":"'Resultats PMV'!AQ91/'Resultats PMV'!$AX91","v":{"$error":"#DIV/0!"}},{"$f":"'Resultats PMV'!AR91/'Resultats PMV'!$AX91","v":{"$error":"#DIV/0!"}},{"$f":"'Resultats PMV'!AS91/'Resultats PMV'!$AX91","v":{"$error":"#DIV/0!"}},{"$f":"'Resultats PMV'!AT91/'Resultats PMV'!$AX91","v":{"$error":"#DIV/0!"}},{"$f":"'Resultats PMV'!AU91/'Resultats PMV'!$AX91","v":{"$error":"#DIV/0!"}},{"$f":"'Resultats PMV'!AV91/'Resultats PMV'!$AX91","v":{"$error":"#DIV/0!"}},{"$f":"'Resultats PMV'!AW91/'Resultats PMV'!$AX91","v":{"$error":"#DIV/0!"}},{"$error":"#DIV/0!"}]
[null,{"$f":"'Resultats PMV'!A92","v":0},{"$f":"'Resultats PMV'!F92/'Resultats PMV'!$P92","v":{"$error":"#DIV/0!"}},{"$f":"'Resultats PMV'!G92/'Resultats PMV'!$P92","v":{"$error":"#DIV/0!"}},{"$f":"'Resultats PMV'!H92/'Resultats PMV'!$P92","v":{"$error":"#DIV/0!"}},{"$f":"'Resultats PMV'!I92/'Resultats PMV'!$P92","v":{"$error":"#DIV/0!"}},{"$f":"'Resultats PMV'!J92/'Resultats PMV'!$P92","v":{"$error":"#DIV/0!"}},{"$f":"'Resultats PMV'!K92/'Resultats PMV'!$P92","v":{"$error":"#DIV/0!"}},{"$f":"'Resultats PMV'!L92/'Resultats PMV'!$P92","v":{"$error":"#DIV/0!"}},{"$f":"'Resultats PMV'!M92/'Resultats PMV'!$P92","v":{"$error":"#DIV/0!"}},{"$f":"'Resultats PMV'!N92/'Resultats PMV'!$P92","v":{"$error":"#DIV/0!"}},{"$f":"'Resultats PMV'!O92/'Resultats PMV'!$P92","v":{"$error":"#DIV/0!"}},{"$error":"#DIV/0!"},null,{"$f":"'Resultats PMV'!R92","v":0},{"$f":"'Resultats PMV'!S92/'Resultats PMV'!$P92","v":{"$error":"#DIV/0!"}},{"$f":"'Resultats PMV'!T92/'Resultats PMV'!$P92","v":{"$error":"#DIV/0!"}},{"$f":"'Resultats PMV'!U92/'Resultats PMV'!$P92","v":{"$error":"#DIV/0!"}},{"$f":"'Resultats PMV'!V92/'Resultats PMV'!$P92","v":{"$error":"#DIV/0!"}},{"$f":"'Resultats PMV'!W92/'Resultats PMV'!$P92","v":{"$error":"#DIV/0!"}},{"$f":"'Resultats PMV'!X92/'Resultats PMV'!$P92","v":{"$error":"#DIV/0!"}},{"$f":"'Resultats PMV'!Y92/'Resultats PMV'!$P92","v":{"$error":"#DIV/0!"}},{"$f":"'Resultats PMV'!Z92/'Resultats PMV'!$P92","v":{"$error":"#DIV/0!"}},{"$f":"'Resultats PMV'!AA92/'Resultats PMV'!$P92","v":{"$error":"#DIV/0!"}},{"$f":"'Resultats PMV'!AB92/'Resultats PMV'!$P92","v":{"$error":"#DIV/0!"}},{"$error":"#DIV/0!"},null,{"$f":"'Resultats PMV'!AI92","v":0},{"$f":"'Resultats PMV'!AN92/'Resultats PMV'!$AX92","v":{"$error":"#DIV/0!"}},{"$f":"'Resultats PMV'!AO92/'Resultats PMV'!$AX92","v":{"$error":"#DIV/0!"}},{"$f":"'Resultats PMV'!AP92/'Resultats PMV'!$AX92","v":{"$error":"#DIV/0!"}},{"$f":"'Resultats PMV'!AQ92/'Resultats PMV'!$AX92","v":{"$error":"#DIV/0!"}},{"$f":"'Resultats PMV'!AR92/'Resultats PMV'!$AX92","v":{"$error":"#DIV/0!"}},{"$f":"'Resultats PMV'!AS92/'Resultats PMV'!$AX92","v":{"$error":"#DIV/0!"}},{"$f":"'Resultats PMV'!AT92/'Resultats PMV'!$AX92","v":{"$error":"#DIV/0!"}},{"$f":"'Resultats PMV'!AU92/'Resultats PMV'!$AX92","v":{"$error":"#DIV/0!"}},{"$f":"'Resultats PMV'!AV92/'Resultats PMV'!$AX92","v":{"$error":"#DIV/0!"}},{"$f":"'Resultats PMV'!AW92/'Resultats PMV'!$AX92","v":{"$error":"#DIV/0!"}},{"$error":"#DIV/0!"}]
[null,{"$f":"'Resultats PMV'!A93","v":0},{"$f":"'Resultats PMV'!F93/'Resultats PMV'!$P93","v":{"$error":"#DIV/0!"}},{"$f":"'Resultats PMV'!G93/'Resultats PMV'!$P93","v":{"$error":"#DIV/0!"}},{"$f":"'Resultats PMV'!H93/'Resultats PMV'!$P93","v":{"$error":"#DIV/0!"}},{"$f":"'Resultats PMV'!I93/'Resultats PMV'!$P93","v":{"$error":"#DIV/0!"}},{"$f":"'Resultats PMV'!J93/'Resultats PMV'!$P93","v":{"$error":"#DIV/0!"}},{"$f":"'Resultats PMV'!K93/'Resultats PMV'!$P93","v":{"$error":"#DIV/0!"}},{"$f":"'Resultats PMV'!L93/'Resultats PMV'!$P93","v":{"$error":"#DIV/0!"}},{"$f":"'Resultats PMV'!M93/'Resultats PMV'!$P93","v":{"$error":"#DIV/0!"}},{"$f":"'Resultats PMV'!N93/'Resultats PMV'!$P93","v":{"$error":"#DIV/0!"}},{"$f":"'Resultats PMV'!O93/'Resultats PMV'!$P93","v":{"$error":"#DIV/0!"}},{"$error":"#DIV/0!"},null,{"$f":"'Resultats PMV'!R93","v":0},{"$f":"'Resultats PMV'!S93/'Resultats PMV'!$P93","v":{"$error":"#DIV/0!"}},{"$f":"'Resultats PMV'!T93/'Resultats PMV'!$P93","v":{"$error":"#DIV/0!"}},{"$f":"'Resultats PMV'!U93/'Resultats PMV'!$P93","v":{"$error":"#DIV/0!"}},{"$f":"'Resultats PMV'!V93/'Resultats PMV'!$P93","v":{"$error":"#DIV/0!"}},{"$f":"'Resultats PMV'!W93/'Resultats PMV'!$P93","v":{"$error":"#DIV/0!"}},{"$f":"'Resultats PMV'!X93/'Resultats PMV'!$P93","v":{"$error":"#DIV/0!"}},{"$f":"'Resultats PMV'!Y93/'Resultats PMV'!$P93","v":{"$error":"#DIV/0!"}},{"$f":"'Resultats PMV'!Z93/'Resultats PMV'!$P93","v":{"$error":"#DIV/0!"}},{"$f":"'Resultats PMV'!AA93/'Resultats PMV'!$P93","v":{"$error":"#DIV/0!"}},{"$f":"'Resultats PMV'!AB93/'Resultats PMV'!$P93","v":{"$error":"#DIV/0!"}},{"$error":"#DIV/0!"},null,{"$f":"'Resultats PMV'!AI93","v":0},{"$f":"'Resultats PMV'!AN93/'Resultats PMV'!$AX93","v":{"$error":"#DIV/0!"}},{"$f":"'Resultats PMV'!AO93/'Resultats PMV'!$AX93","v":{"$error":"#DIV/0!"}},{"$f":"'Resultats PMV'!AP93/'Resultats PMV'!$AX93","v":{"$error":"#DIV/0!"}},{"$f":"'Resultats PMV'!AQ93/'Resultats PMV'!$AX93","v":{"$error":"#DIV/0!"}},{"$f":"'Resultats PMV'!AR93/'Resultats PMV'!$AX93","v":{"$error":"#DIV/0!"}},{"$f":"'Resultats PMV'!AS93/'Resultats PMV'!$AX93","v":{"$error":"#DIV/0!"}},{"$f":"'Resultats PMV'!AT93/'Resultats PMV'!$AX93","v":{"$error":"#DIV/0!"}},{"$f":"'Resultats PMV'!AU93/'Resultats PMV'!$AX93","v":{"$error":"#DIV/0!"}},{"$f":"'Resultats PMV'!AV93/'Resultats PMV'!$AX93","v":{"$error":"#DIV/0!"}},{"$f":"'Resultats PMV'!AW93/'Resultats PMV'!$AX93","v":{"$error":"#DIV/0!"}},{"$error":"#DIV/0!"}]
[null,{"$f":"'Resultats PMV'!A94","v":0},{"$f":"'Resultats PMV'!F94/'Resultats PMV'!$P94","v":{"$error":"#DIV/0!"}},{"$f":"'Resultats PMV'!G94/'Resultats PMV'!$P94","v":{"$error":"#DIV/0!"}},{"$f":"'Resultats PMV'!H94/'Resultats PMV'!$P94","v":{"$error":"#DIV/0!"}},{"$f":"'Resultats PMV'!I94/'Resultats PMV'!$P94","v":{"$error":"#DIV/0!"}},{"$f":"'Resultats PMV'!J94/'Resultats PMV'!$P94","v":{"$error":"#DIV/0!"}},{"$f":"'Resultats PMV'!K94/'Resultats PMV'!$P94","v":{"$error":"#DIV/0!"}},{"$f":"'Resultats PMV'!L94/'Resultats PMV'!$P94","v":{"$error":"#DIV/0!"}},{"$f":"'Resultats PMV'!M94/'Resultats PMV'!$P94","v":{"$error":"#DIV/0!"}},{"$f":"'Resultats PMV'!N94/'Resultats PMV'!$P94","v":{"$error":"#DIV/0!"}},{"$f":"'Resultats PMV'!O94/'Resultats PMV'!$P94","v":{"$error":"#DIV/0!"}},{"$error":"#DIV/0!"},null,{"$f":"'Resultats PMV'!R94","v":0},{"$f":"'Resultats PMV'!S94/'Resultats PMV'!$P94","v":{"$error":"#DIV/0!"}},{"$f":"'Resultats PMV'!T94/'Resultats PMV'!$P94","v":{"$error":"#DIV/0!"}},{"$f":"'Resultats PMV'!U94/'Resultats PMV'!$P94","v":{"$error":"#DIV/0!"}},{"$f":"'Resultats PMV'!V94/'Resultats PMV'!$P94","v":{"$error":"#DIV/0!"}},{"$f":"'Resultats PMV'!W94/'Resultats PMV'!$P94","v":{"$error":"#DIV/0!"}},{"$f":"'Resultats PMV'!X94/'Resultats PMV'!$P94","v":{"$error":"#DIV/0!"}},{"$f":"'Resultats PMV'!Y94/'Resultats PMV'!$P94","v":{"$error":"#DIV/0!"}},{"$f":"'Resultats PMV'!Z94/'Resultats PMV'!$P94","v":{"$error":"#DIV/0!"}},{"$f":"'Resultats PMV'!AA94/'Resultats PMV'!$P94","v":{"$error":"#DIV/0!"}},{"$f":"'Resultats PMV'!AB94/'Resultats PMV'!$P94","v":{"$error":"#DIV/0!"}},{"$error":"#DIV/0!"},null,{"$f":"'Resultats PMV'!AI94","v":0},{"$f":"'Resultats PMV'!AN94/'Resultats PMV'!$AX94","v":{"$error":"#DIV/0!"}},{"$f":"'Resultats PMV'!AO94/'Resultats PMV'!$AX94","v":{"$error":"#DIV/0!"}},{"$f":"'Resultats PMV'!AP94/'Resultats PMV'!$AX94","v":{"$error":"#DIV/0!"}},{"$f":"'Resultats PMV'!AQ94/'Resultats PMV'!$AX94","v":{"$error":"#DIV/0!"}},{"$f":"'Resultats PMV'!AR94/'Resultats PMV'!$AX94","v":{"$error":"#DIV/0!"}},{"$f":"'Resultats PMV'!AS94/'Resultats PMV'!$AX94","v":{"$error":"#DIV/0!"}},{"$f":"'Resultats PMV'!AT94/'Resultats PMV'!$AX94","v":{"$error":"#DIV/0!"}},{"$f":"'Resultats PMV'!AU94/'Resultats PMV'!$AX94","v":{"$error":"#DIV/0!"}},{"$f":"'Resultats PMV'!AV94/'Resultats PMV'!$AX94","v":{"$error":"#DIV/0!"}},{"$f":"'Resultats PMV'!AW94/'Resultats PMV'!$AX94","v":{"$error":"#DIV/0!"}},{"$error":"#DIV/0!"}]

{"sheet":"Resultats PPD","index":3,"n_rows":53,"n_cols":15,"rows_kept":53,"cut":false,"hidden":false,"merged":[[0,4,0,14],[1,4,1,14]]}
[null,"1ère colonne",1,null,"Il s'agit du numéro de l'entête de colonne du tableau ZONE THERMAL COMFORT FANGER MODEL PPD qui correspond à la valeur minimale de PPD. Par défaut la colonne de PPD min à 5%  est \"1 [hr]\". Le numéro est la valeur n de l'entête de colonne \"n [hr]\". Saisissez 0 pour partir de la colonne \"- [hr]\"."]
[null,"Dernière colonne",7,null,"Le numéro de la dernière colonne à reporter ci-dessous. Le numéro de l'entête de colonne est le chiffre n dans l'intitulé de ZONE THERMAL COMFORT FANGER MODEL PPD : n [hr]. Saisissez \"-\" pour la colonne \"equal to or more than\".\nAttention le tableau ci-dessous n'est pas automatiquement adapté au nombre de tranches souhaitées, il faut le dimensionner manuellement et modifier la macro (nettoyage des valeurs du tableau jusqu'à N2000 à modifier)."]
[]
[]
[null,null,null,null,null,"Totaux",null,null,null,null,null,null,null,null,"Total annuel"]
["Année",null,null,null,null,{"$f":"SUM(F9:F502)","v":106.5},{"$f":"SUM(G9:G502)","v":3228},1387,1090.5,920.5,724,588.5,499,3984,{"$f":"SUM(F6:N6)","v":12528}]
[null,null,null,null,null,"Inférieur à","5.01<=","10.01<=","15.01<=","20.01<=","25.01<=","30.01<=","35.01<=","Supérieur à"]
["Nom Zone","Moyenne","Ecart Type","Min","Max",5.01,"10.01>","15.01>","20.01>","25.01>","30.01>","35.01>","40.01>",40.01,"Temps hors confort"]
["FLOOR0:ZONE1",34.35,30.34,5,100,25,866.5,358.5,252.5,189.5,152,113.5,113,1061.5,{"$f":"SUM(I9:N9)","v":1882}]
["FLOOR0:ZONE2",34.06,29.2,5,99.99,26.5,780.5,317,278.5,240,189,166.5,128.5,1005.5,{"$f":"SUM(I10:N10)","v":2008}]
["FLOOR1:SANITAIRES",33.450000000000003,29.35,5,99.99,26,800,375,273.5,234,176,149.5,127,971,1931]
["FLOOR1:ZONE1",32.99,28.43,5,100,29,781,336.5,286,257,207,159,130.5,946,1985.5]
[null,null,null,null,null,null,null,null,null,null,null,null,null,null,0]
[null,null,null,null,null,null,null,null,null,null,null,null,null,null,0]
[null,null,null,null,null,null,null,null,null,null,null,null,null,null,0]
[null,null,null,null,null,null,null,null,null,null,null,null,null,null,0]
[null,null,null,null,null,null,null,null,null,null,null,null,null,null,0]
[null,null,null,null,null,null,null,null,null,null,null,null,null,null,0]
[null,null,null,null,null,null,null,null,null,null,null,null,null,null,0]
[null,null,null,null,null,null,null,null,null,null,null,null,null,null,0]
[null,null,null,null,null,null,null,null,null,null,null,null,null,null,0]
[null,null,null,null,null,null,null,null,null,null,null,null,null,null,0]
[null,null,null,null,null,null,null,null,null,null,null,null,null,null,0]
[null,null,null,null,null,null,null,null,null,null,null,null,null,null,0]
[null,null,null,null,null,null,null,null,null,null,null,null,null,null,0]
[null,null,null,null,null,null,null,null,null,null,null,null,null,null,0]
[null,null,null,null,null,null,null,null,null,null,null,null,null,null,0]
[null,null,null,null,null,null,null,null,null,null,null,null,null,null,0]
[null,null,null,null,null,null,null,null,null,null,null,null,null,null,0]
[null,null,null,null,null,null,null,null,null,null,null,null,null,null,0]
[null,null,null,null,null,null,null,null,null,null,null,null,null,null,0]
[null,null,null,null,null,null,null,null,null,null,null,null,null,null,0]
[null,null,null,null,null,null,null,null,null,null,null,null,null,null,0]
[null,null,null,null,null,null,null,null,null,null,null,null,null,null,0]
[null,null,null,null,null,null,null,null,null,null,null,null,null,null,0]
[null,null,null,null,null,null,null,null,null,null,null,null,null,null,0]
[null,null,null,null,null,null,null,null,null,null,null,null,null,null,0]
[null,null,null,null,null,null,null,null,null,null,null,null,null,null,0]
[null,null,null,null,null,null,null,null,null,null,null,null,null,null,0]
[null,null,null,null,null,null,null,null,null,null,null,null,null,null,0]
[null,null,null,null,null,null,null,null,null,null,null,null,null,null,0]
[null,null,null,null,null,null,null,null,null,null,null,null,null,null,0]
[null,null,null,null,null,null,null,null,null,null,null,null,null,null,0]
[null,null,null,null,null,null,null,null,null,null,null,null,null,null,0]
[null,null,null,null,null,null,null,null,null,null,null,null,null,null,0]
[null,null,null,null,null,null,null,null,null,null,null,null,null,null,0]
[null,null,null,null,null,null,null,null,null,null,null,null,null,null,0]
[null,null,null,null,null,null,null,null,null,null,null,null,null,null,0]
[null,null,null,null,null,null,null,null,null,null,null,null,null,null,0]
[null,null,null,null,null,null,null,null,null,null,null,null,null,null,0]
[null,null,null,null,null,null,null,null,null,null,null,null,null,null,0]
[null,null,null,null,null,null,null,null,null,null,null,null,null,null,0]
[null,null,null,null,null,null,null,null,null,null,null,null,null,null,0]

{"sheet":"Tableau BREEAM","index":4,"n_rows":32,"n_cols":10,"rows_kept":32,"cut":false,"hidden":false,"merged":[]}
[]
[]
[null,"Space","PMV min","PMV max","PPD min","PPD max","Mean PPD","% of unmet hours"]
[null,{"$f":"'Resultats PMV'!A9","v":"FLOOR0:ZONE1"},{"$f":"'Resultats PMV'!D9","v":-2.2000000000000002},{"$f":"'Resultats PMV'!E9","v":4.3899999999999997},{"$f":"VLOOKUP($B4,'Resultats PPD'!$A$9:$D$53,4,FALSE)","v":5},{"$f":"VLOOKUP($B4,'Resultats PPD'!$A$9:$E$53,5,FALSE)","v":100},null,{"$f":"VLOOKUP($B4,'Synth & graphe PMV'!$B$19:$M$104,12,FALSE)","v":0.70849297573435499},null,{"$f":"MAX(ABS(C4),D4)","v":4.3899999999999997}]
[null,{"$f":"'Resultats PMV'!A10","v":"FLOOR0:ZONE2"},{"$f":"'Resultats PMV'!D10","v":-2.2999999999999998},{"$f":"'Resultats PMV'!E10","v":3.77},{"$f":"VLOOKUP($B5,'Resultats PPD'!$A$9:$D$53,4,FALSE)","v":5},{"$f":"VLOOKUP($B5,'Resultats PPD'!$A$9:$E$53,5,FALSE)","v":99.99},null,{"$f":"VLOOKUP($B5,'Synth & graphe PMV'!$B$19:$M$104,12,FALSE)","v":0.73802681992337171},null,{"$f":"MAX(ABS(C5),D5)","v":3.77}]
[null,{"$f":"'Resultats PMV'!A11","v":"FLOOR1:SANITAIRES"},{"$f":"'Resultats PMV'!D11","v":-2},{"$f":"'Resultats PMV'!E11","v":3.67},{"$f":"VLOOKUP($B6,'Resultats PPD'!$A$9:$D$53,4,FALSE)","v":5},{"$f":"VLOOKUP($B6,'Resultats PPD'!$A$9:$E$53,5,FALSE)","v":99.99},null,{"$f":"VLOOKUP($B6,'Synth & graphe PMV'!$B$19:$M$104,12,FALSE)","v":0.72940613026819923},null,3.67]
[null,{"$f":"'Resultats PMV'!A12","v":"FLOOR1:ZONE1"},{"$f":"'Resultats PMV'!D12","v":-2.2000000000000002},{"$f":"'Resultats PMV'!E12","v":3.91},{"$f":"VLOOKUP($B7,'Resultats PPD'!$A$9:$D$53,4,FALSE)","v":5},{"$f":"VLOOKUP($B7,'Resultats PPD'!$A$9:$E$53,5,FALSE)","v":100},null,{"$f":"VLOOKUP($B7,'Synth & graphe PMV'!$B$19:$M$104,12,FALSE)","v":0.73547254150702424},null,3.91]
[null,{"$f":"'Resultats PMV'!A13","v":0},{"$f":"'Resultats PMV'!D13","v":0},{"$f":"'Resultats PMV'!E13","v":0},{"$f":"VLOOKUP($B8,'Resultats PPD'!$A$9:$D$53,4,FALSE)","v":{"$error":"#N/A"}},{"$f":"VLOOKUP($B8,'Resultats PPD'!$A$9:$E$53,5,FALSE)","v":{"$error":"#N/A"}},null,{"$f":"VLOOKUP($B8,'Synth & graphe PMV'!$B$19:$M$104,12,FALSE)","v":{"$error":"#DIV/0!"}},null,0]
[null,{"$f":"'Resultats PMV'!A14","v":0},{"$f":"'Resultats PMV'!D14","v":0},{"$f":"'Resultats PMV'!E14","v":0},{"$f":"VLOOKUP($B9,'Resultats PPD'!$A$9:$D$53,4,FALSE)","v":{"$error":"#N/A"}},{"$f":"VLOOKUP($B9,'Resultats PPD'!$A$9:$E$53,5,FALSE)","v":{"$error":"#N/A"}},null,{"$f":"VLOOKUP($B9,'Synth & graphe PMV'!$B$19:$M$104,12,FALSE)","v":{"$error":"#DIV/0!"}},null,0]
[null,{"$f":"'Resultats PMV'!A15","v":0},{"$f":"'Resultats PMV'!D15","v":0},{"$f":"'Resultats PMV'!E15","v":0},{"$f":"VLOOKUP($B10,'Resultats PPD'!$A$9:$D$53,4,FALSE)","v":{"$error":"#N/A"}},{"$f":"VLOOKUP($B10,'Resultats PPD'!$A$9:$E$53,5,FALSE)","v":{"$error":"#N/A"}},null,{"$f":"VLOOKUP($B10,'Synth & graphe PMV'!$B$19:$M$104,12,FALSE)","v":{"$error":"#DIV/0!"}},null,0]
[null,{"$f":"'Resultats PMV'!A16","v":0},{"$f":"'Resultats PMV'!D16","v":0},{"$f":"'Resultats PMV'!E16","v":0},{"$f":"VLOOKUP($B11,'Resultats PPD'!$A$9:$D$53,4,FALSE)","v":{"$error":"#N/A"}},{"$f":"VLOOKUP($B11,'Resultats PPD'!$A$9:$E$53,5,FALSE)","v":{"$error":"#N/A"}},null,{"$f":"VLOOKUP($B11,'Synth & graphe PMV'!$B$19:$M$104,12,FALSE)","v":{"$error":"#DIV/0!"}},null,0]
[null,{"$f":"'Resultats PMV'!A17","v":0},{"$f":"'Resultats PMV'!D17","v":0},{"$f":"'Resultats PMV'!E17","v":0},{"$f":"VLOOKUP($B12,'Resultats PPD'!$A$9:$D$53,4,FALSE)","v":{"$error":"#N/A"}},{"$f":"VLOOKUP($B12,'Resultats PPD'!$A$9:$E$53,5,FALSE)","v":{"$error":"#N/A"}},null,{"$f":"VLOOKUP($B12,'Synth & graphe PMV'!$B$19:$M$104,12,FALSE)","v":{"$error":"#DIV/0!"}},null,0]
[null,{"$f":"'Resultats PMV'!A18","v":0},{"$f":"'Resultats PMV'!D18","v":0},{"$f":"'Resultats PMV'!E18","v":0},{"$f":"VLOOKUP($B13,'Resultats PPD'!$A$9:$D$53,4,FALSE)","v":{"$error":"#N/A"}},{"$f":"VLOOKUP($B13,'Resultats PPD'!$A$9:$E$53,5,FALSE)","v":{"$error":"#N/A"}},null,{"$f":"VLOOKUP($B13,'Synth & graphe PMV'!$B$19:$M$104,12,FALSE)","v":{"$error":"#DIV/0!"}},null,0]
[null,{"$f":"'Resultats PMV'!A19","v":0},{"$f":"'Resultats PMV'!D19","v":0},{"$f":"'Resultats PMV'!E19","v":0},{"$f":"VLOOKUP($B14,'Resultats PPD'!$A$9:$D$53,4,FALSE)","v":{"$error":"#N/A"}},{"$f":"VLOOKUP($B14,'Resultats PPD'!$A$9:$E$53,5,FALSE)","v":{"$error":"#N/A"}},null,{"$f":"VLOOKUP($B14,'Synth & graphe PMV'!$B$19:$M$104,12,FALSE)","v":{"$error":"#DIV/0!"}},null,0]
[null,{"$f":"'Resultats PMV'!A20","v":0},{"$f":"'Resultats PMV'!D20","v":0},{"$f":"'Resultats PMV'!E20","v":0},{"$f":"VLOOKUP($B15,'Resultats PPD'!$A$9:$D$53,4,FALSE)","v":{"$error":"#N/A"}},{"$f":"VLOOKUP($B15,'Resultats PPD'!$A$9:$E$53,5,FALSE)","v":{"$error":"#N/A"}},null,{"$f":"VLOOKUP($B15,'Synth & graphe PMV'!$B$19:$M$104,12,FALSE)","v":{"$error":"#DIV/0!"}},null,0]
[null,{"$f":"'Resultats PMV'!A21","v":0},{"$f":"'Resultats PMV'!D21","v":0},{"$f":"'Resultats PMV'!E21","v":0},{"$f":"VLOOKUP($B16,'Resultats PPD'!$A$9:$D$53,4,FALSE)","v":{"$error":"#N/A"}},{"$f":"VLOOKUP($B16,'Resultats PPD'!$A$9:$E$53,5,FALSE)","v":{"$error":"#N/A"}},null,{"$f":"VLOOKUP($B16,'Synth & graphe PMV'!$B$19:$M$104,12,FALSE)","v":{"$error":"#DIV/0!"}},null,0]
[null,{"$f":"'Resultats PMV'!A22","v":0},{"$f":"'Resultats PMV'!D22","v":0},{"$f":"'Resultats PMV'!E22","v":0},{"$f":"VLOOKUP($B17,'Resultats PPD'!$A$9:$D$53,4,FALSE)","v":{"$error":"#N/A"}},{"$f":"VLOOKUP($B17,'Resultats PPD'!$A$9:$E$53,5,FALSE)","v":{"$error":"#N/A"}},null,{"$f":"VLOOKUP($B17,'Synth & graphe PMV'!$B$19:$M$104,12,FALSE)","v":{"$error":"#DIV/0!"}}]
[null,{"$f":"'Resultats PMV'!A23","v":0},{"$f":"'Resultats PMV'!D23","v":0},{"$f":"'Resultats PMV'!E23","v":0},{"$f":"VLOOKUP($B18,'Resultats PPD'!$A$9:$D$53,4,FALSE)","v":{"$error":"#N/A"}},{"$f":"VLOOKUP($B18,'Resultats PPD'!$A$9:$E$53,5,FALSE)","v":{"$error":"#N/A"}},null,{"$f":"VLOOKUP($B18,'Synth & graphe PMV'!$B$19:$M$104,12,FALSE)","v":{"$error":"#DIV/0!"}}]
[null,{"$f":"'Resultats PMV'!A24","v":0},{"$f":"'Resultats PMV'!D24","v":0},{"$f":"'Resultats PMV'!E24","v":0},{"$f":"VLOOKUP($B19,'Resultats PPD'!$A$9:$D$53,4,FALSE)","v":{"$error":"#N/A"}},{"$f":"VLOOKUP($B19,'Resultats PPD'!$A$9:$E$53,5,FALSE)","v":{"$error":"#N/A"}},null,{"$f":"VLOOKUP($B19,'Synth & graphe PMV'!$B$19:$M$104,12,FALSE)","v":{"$error":"#DIV/0!"}}]
[null,{"$f":"'Resultats PMV'!A25","v":0},{"$f":"'Resultats PMV'!D25","v":0},{"$f":"'Resultats PMV'!E25","v":0},{"$f":"VLOOKUP($B20,'Resultats PPD'!$A$9:$D$53,4,FALSE)","v":{"$error":"#N/A"}},{"$f":"VLOOKUP($B20,'Resultats PPD'!$A$9:$E$53,5,FALSE)","v":{"$error":"#N/A"}},null,{"$f":"VLOOKUP($B20,'Synth & graphe PMV'!$B$19:$M$104,12,FALSE)","v":{"$error":"#DIV/0!"}}]
[null,{"$f":"'Resultats PMV'!A26","v":0},{"$f":"'Resultats PMV'!D26","v":0},{"$f":"'Resultats PMV'!E26","v":0},{"$f":"VLOOKUP($B21,'Resultats PPD'!$A$9:$D$53,4,FALSE)","v":{"$error":"#N/A"}},{"$f":"VLOOKUP($B21,'Resultats PPD'!$A$9:$E$53,5,FALSE)","v":{"$error":"#N/A"}},null,{"$f":"VLOOKUP($B21,'Synth & graphe PMV'!$B$19:$M$104,12,FALSE)","v":{"$error":"#DIV/0!"}}]
[null,{"$f":"'Resultats PMV'!A27","v":0},{"$f":"'Resultats PMV'!D27","v":0},{"$f":"'Resultats PMV'!E27","v":0},{"$f":"VLOOKUP($B22,'Resultats PPD'!$A$9:$D$53,4,FALSE)","v":{"$error":"#N/A"}},{"$f":"VLOOKUP($B22,'Resultats PPD'!$A$9:$E$53,5,FALSE)","v":{"$error":"#N/A"}},null,{"$f":"VLOOKUP($B22,'Synth & graphe PMV'!$B$19:$M$104,12,FALSE)","v":{"$error":"#DIV/0!"}}]
[null,{"$f":"'Resultats PMV'!A28","v":0},{"$f":"'Resultats PMV'!D28","v":0},{"$f":"'Resultats PMV'!E28","v":0},{"$f":"VLOOKUP($B23,'Resultats PPD'!$A$9:$D$53,4,FALSE)","v":{"$error":"#N/A"}},{"$f":"VLOOKUP($B23,'Resultats PPD'!$A$9:$E$53,5,FALSE)","v":{"$error":"#N/A"}},null,{"$f":"VLOOKUP($B23,'Synth & graphe PMV'!$B$19:$M$104,12,FALSE)","v":{"$error":"#DIV/0!"}}]
[null,{"$f":"'Resultats PMV'!A29","v":0},{"$f":"'Resultats PMV'!D29","v":0},{"$f":"'Resultats PMV'!E29","v":0},{"$f":"VLOOKUP($B24,'Resultats PPD'!$A$9:$D$53,4,FALSE)","v":{"$error":"#N/A"}},{"$f":"VLOOKUP($B24,'Resultats PPD'!$A$9:$E$53,5,FALSE)","v":{"$error":"#N/A"}},null,{"$f":"VLOOKUP($B24,'Synth & graphe PMV'!$B$19:$M$104,12,FALSE)","v":{"$error":"#DIV/0!"}}]
[null,{"$f":"'Resultats PMV'!A30","v":0},{"$f":"'Resultats PMV'!D30","v":0},{"$f":"'Resultats PMV'!E30","v":0},{"$f":"VLOOKUP($B25,'Resultats PPD'!$A$9:$D$53,4,FALSE)","v":{"$error":"#N/A"}},{"$f":"VLOOKUP($B25,'Resultats PPD'!$A$9:$E$53,5,FALSE)","v":{"$error":"#N/A"}},null,{"$f":"VLOOKUP($B25,'Synth & graphe PMV'!$B$19:$M$104,12,FALSE)","v":{"$error":"#DIV/0!"}}]
[null,{"$f":"'Resultats PMV'!A31","v":0},{"$f":"'Resultats PMV'!D31","v":0},{"$f":"'Resultats PMV'!E31","v":0},{"$f":"VLOOKUP($B26,'Resultats PPD'!$A$9:$D$53,4,FALSE)","v":{"$error":"#N/A"}},{"$f":"VLOOKUP($B26,'Resultats PPD'!$A$9:$E$53,5,FALSE)","v":{"$error":"#N/A"}},null,{"$f":"VLOOKUP($B26,'Synth & graphe PMV'!$B$19:$M$104,12,FALSE)","v":{"$error":"#DIV/0!"}}]
[null,{"$f":"'Resultats PMV'!A32","v":0},{"$f":"'Resultats PMV'!D32","v":0},{"$f":"'Resultats PMV'!E32","v":0},{"$f":"VLOOKUP($B27,'Resultats PPD'!$A$9:$D$53,4,FALSE)","v":{"$error":"#N/A"}},{"$f":"VLOOKUP($B27,'Resultats PPD'!$A$9:$E$53,5,FALSE)","v":{"$error":"#N/A"}},null,{"$f":"VLOOKUP($B27,'Synth & graphe PMV'!$B$19:$M$104,12,FALSE)","v":{"$error":"#DIV/0!"}}]
[null,{"$f":"'Resultats PMV'!A33","v":0},{"$f":"'Resultats PMV'!D33","v":0},{"$f":"'Resultats PMV'!E33","v":0},{"$f":"VLOOKUP($B28,'Resultats PPD'!$A$9:$D$53,4,FALSE)","v":{"$error":"#N/A"}},{"$f":"VLOOKUP($B28,'Resultats PPD'!$A$9:$E$53,5,FALSE)","v":{"$error":"#N/A"}},null,{"$f":"VLOOKUP($B28,'Synth & graphe PMV'!$B$19:$M$104,12,FALSE)","v":{"$error":"#DIV/0!"}}]
[null,{"$f":"'Resultats PMV'!A34","v":0},{"$f":"'Resultats PMV'!D34","v":0},{"$f":"'Resultats PMV'!E34","v":0},{"$f":"VLOOKUP($B29,'Resultats PPD'!$A$9:$D$53,4,FALSE)","v":{"$error":"#N/A"}},{"$f":"VLOOKUP($B29,'Resultats PPD'!$A$9:$E$53,5,FALSE)","v":{"$error":"#N/A"}},null,{"$f":"VLOOKUP($B29,'Synth & graphe PMV'!$B$19:$M$104,12,FALSE)","v":{"$error":"#DIV/0!"}}]
[null,{"$f":"'Resultats PMV'!A35","v":0},{"$f":"'Resultats PMV'!D35","v":0},{"$f":"'Resultats PMV'!E35","v":0},{"$f":"VLOOKUP($B30,'Resultats PPD'!$A$9:$D$53,4,FALSE)","v":{"$error":"#N/A"}},{"$f":"VLOOKUP($B30,'Resultats PPD'!$A$9:$E$53,5,FALSE)","v":{"$error":"#N/A"}},null,{"$f":"VLOOKUP($B30,'Synth & graphe PMV'!$B$19:$M$104,12,FALSE)","v":{"$error":"#DIV/0!"}}]
[null,{"$f":"'Resultats PMV'!A36","v":0},{"$f":"'Resultats PMV'!D36","v":0},{"$f":"'Resultats PMV'!E36","v":0},{"$f":"VLOOKUP($B31,'Resultats PPD'!$A$9:$D$53,4,FALSE)","v":{"$error":"#N/A"}},{"$f":"VLOOKUP($B31,'Resultats PPD'!$A$9:$E$53,5,FALSE)","v":{"$error":"#N/A"}},null,{"$f":"VLOOKUP($B31,'Synth & graphe PMV'!$B$19:$M$104,12,FALSE)","v":{"$error":"#DIV/0!"}}]
[null,{"$f":"'Resultats PMV'!A37","v":0},{"$f":"'Resultats PMV'!D37","v":0},{"$f":"'Resultats PMV'!E37","v":0},{"$f":"VLOOKUP($B32,'Resultats PPD'!$A$9:$D$53,4,FALSE)","v":{"$error":"#N/A"}},{"$f":"VLOOKUP($B32,'Resultats PPD'!$A$9:$E$53,5,FALSE)","v":{"$error":"#N/A"}},null,{"$f":"VLOOKUP($B32,'Synth & graphe PMV'!$B$19:$M$104,12,FALSE)","v":{"$error":"#DIV/0!"}}]